Workbook

Sheet Readme First
A3: 1 | B3: All lines in the Portfolio view are coded with a reference, such as "aa" or "f". This makes conference discussions and data requests much easier.
C4: Some reference letters were purposely omitted.
A5: 2 | B5: Some programs in the Portfolio and Sector Views, (Single Family Existing and Electronic Media Tools & Marketing, for instance) are comprised
B6: of sub-groupings.
C7: Those sub-groups are color-coded and indented. Their totals add up to the grouping above.
A8: 3 | B8: In all program detail pages, program names, order number, and fuel type are noted in both the horizontal and vertical margins, providing a quick reference
B9: for readers, no matter where they are in the worksheet.
A10: 4 | B10: Measure tables are calculated for 2019-specific values.
B11: Original 2019 (the 2019 values originally stated in the 2018-2019 BCP) are hard-coded in the detail pages for reference.
A12: 5 | B12: PSE added new navigation buttons to the detail pages. Now, readers can navigate directly to a corresponding gas or electric detail page.
B13: (The exception, of course, are those programs that are gas-or electric-only, or retired [red tab] programs.)
A14: 6 | B14: Prescriptive measure revisions--including UES values, measure cost, incentives, or unit totals--are noted by cell highlighting in their
B15: respective program detail pages.

Sheet Budget Category Descriptions
B1: Exhibit 1 Budget Category Definitions
B3: Cost Element | C3: Also referred to as a General Ledger account number, the cost element is the finest level of detail within PSE accounting systems. There are often many cost element numbers that "roll up" into a cost element segment. For instance, the overhead segment includes material OH, transportation OH, labor OH, etc. Employee/Office Expenses include travel, meals, lodging, parking, etc. Cost elements have a very specific connotation and are typically designed to meet a variety of accounting standards, such as FERC requirements. Therefore, in Exhibit 1, the term "cost element" is rarely used. The groupings that represent the budget allocations are most accurately listed in the below table.
B4: Order number(s) | C4: This is the main level of tracking expenditures and expenses in Energy Effiency. Per FERC rules, all conservation order numbers start with a "1823nnnn", where "n" is some number. Cost elements apply to all order numbers (for instance, all conservation programs that offer incentives will have at least a labor, incentive and overhead cost element within the order number.
B5: Labor | C5: Energy Efficiency program staff labor. Average FTE cost including management assessments. This Budget Category group includes assessments from Major Accounts management, Resource Planning, Corporate Communications management, IT specialists and some building maintenance allocations.
B6: Marketing Labor | C6: Also Energy Efficiency staff labor, associated specifically with Marketing functions. Marketing allocates staffing according to program needs.
B7: Overhead | C7: Overhead--costs associated with primarily employee labor; benefits, for instance.
B8: Micro-Overhead | C8: New for 2017, these expenditures are not incremental from 2016 budget amounts. Rather, this budget category reflects assessments (both labor and non-labor, such as office supplies, departmental meetings, group trainings, etc.) that were formerly calculated, aggregated, and then represented in the Labor category. A result of PSE accounting revisions implemented in 2017, this enhancement will provide a more direct view of expenditures that assess over a cost center, rather than directly to an order number. Annual Schedule 120 audits of assessed costs will become clearer.
B9: Marketing | C9: Service and materials associated with the cost of printing program brochures, marketing pieces, advertising, banners, etc. Also includes marketing conducted by vendors and contractors.
B10: Employee/Office Expense | C10: Costs associated with EE staff attending events, employee training, conferences, business meals, business parking, ferry & bridge tolls, mileage incurred on employee automobiles, office supplies, phones, subscriptions, software/hardware, etc.
B11: Outside Services | C11: Contractors and vendors, such as PECI, Ecos, CostCo, EFI, etc. Legal expenses, technical services (CMS design, PSE.com web portals, etc.). These costs do NOT include brochure development, marketing pieces, (which are classified under MARKETING). These costs do NOT include incentives paid to customers by contractors.
B12: Materials | C12: Primarily tools, trade show equipment, etc.
B13: Miscellaneous | C13: This category should seldomly be used, and only expenses that cannot be classified under one of the above categories.
B14: Direct Benefit to Customer | C14: All costs associated with rebates, grants, remuneration, value-added services. PSE cost element # 62510000; Consumer Incentive Payments, is classified by the Accounting department as Miscellaneous. However, it is one of the primarily elements of Energy Efficiency's Direct Benefit to Customer (DBtC).
B15: Revenue (Enter as a negative) | C15: Any amount that PSE is paid by a customer, partner, municipality or outside entity.

Sheet Global Figures Reference
A1: Global References
B3: Overhead Rates
D4: 2018 | E4: 2019
C5: Labor Overhead | D5: 0.688 | E5: 0.683
C6: Micro Overhead | D6: 0.24 | E6: 0.23

Sheet Building the 2-yr elec target
H2: Reflects Bill Hopkins' input of 7/14/2017
H5: Puget Sound Energy 2018-2019 Electric Portfolio Savings
H8: Description | I8: MWh | J8: aMW | K8: Comment | N8: Calculation
H10: Colored cells correspond to indicated lines in Exhibit 1: Savings and Budgets, 2-Year Portfolio View.
H11: Add | L11: These are specific elements that comprise the Portfolio View of Exhibit 1.
G12: a | H12: Total Biennial Potential IRP & CPA Guidance | I12: 473163 | J12: =I12/8760 -> 54.0140411 | K12: IRP guidance (no behavior savings) | L12: Represents all available conservation that is cost-effective, reliable, and feasible, per RCW 19.285.040(1). | N12: Figure 3, Exhibit i
G13: b | H13: Add Decoupling Commitment (5% add) | I13: =(I12)*0.05 -> 23658.15 | J13: =J12*0.05 -> 2.700702055 | K13: 5% of "base" savings | L13: Based on IRP Total Biennial Potential | N13: = a * 0.05
G14: c | H14: Add 449 Customers | I14: 18693 | J14: =I14/8760 -> 2.13390411 | K14: 15,000 residential HER customers | L14: Excluded from CPA. Savings included in Large Power User/Self-Directed program | N14: line u of 2018-2019 Exhibit 1 Portfolio View
G15: d | H15: Add Pilots with Uncertain Savings | I15: 4480 | J15: =I15/8760 -> 0.5114155251 | K15: New Residential + Small Business | L15: Commercial Pay For Performance pilot | N15: line aa of 2018-2019 Exhibit 1 Portfolio View
G16: e | H16: Total 2018-2019 Portfolio Savings Target | I16: =SUM(I12:I15) -> 519994.15 | J16: =I16/8760 -> 59.36006279 | L16: This figure is what Energy Efficiency is managing to. | N16: = a + b + c + d: lines bb & be of Exhibit 1 Portfolio View
H17: Exclude | L17: Remove these elements in order to calculate the EIA penalty target.
G18: f | H18: Subtract NEEA Savings | I18: -25054 | J18: =I18/8760 -> -2.860045662 | L18: (RV "codes & standards", "trackable" measures from NEEA forecast) | N18: line ac of 2018-2019 Exhibit 1 Portfolio View
G19: g | H19: Subtract Decoupling Commitment Amount | I19: =-I13 -> -23658.15 | J19: =-J13 -> -2.700702055 | N19: Provided by NEEA staff
G20: h | H20: Subtract 449 Customers | I20: =-I14 -> -18693 | J20: =I20/8760 -> -2.13390411 | N20: = c
G21: i | H21: Subtract Pilots with Uncertain Savings | I21: =-I15 -> -4480 | J21: =-J15 -> -0.5114155251 | N21: = d
G22: j | H22: Total Exclusion | I22: =SUM(I18:I21) -> -71885.15 | J22: =SUM(J18:J21) -> -8.206067352 | N22: = f + g + h + i
H23: Resultant Targets
G24: k | H24: EIA Penalty Target | I24: =I16+I22 -> 448109 | J24: =I24/8760 -> 51.15399543 | K24: EIA Target + Decoupling Commitment. $50/MWh of shortfall. | L24: $58.77/MWh shortfall penalty, based on 2016 inflation, per RCW 19.285.060. | N24: = e + j
G26: l | H26: Decoupling Commitment | I26: =I13 -> 23658.15 | J26: =J13 -> 2.700702055 | N26: = b
L32: D.C. = Decoupling Commitment
L33: EIA = Energy Independence Act; referencing RCW 19.285, or "I-937".
L34: HER = Residential Home Energy Reports
L35: IRP = Integrated Resource Plan

Sheet Building the 2-yr gas target
F7: Puget Sound Energy 2018-2019 Natural Gas Portfolio Savings
F10: Description | G10: Therms | H10: Comment | K10: Calculation
F11: Colored cells correspond to indicated lines in Exhibit 1: Savings and Budgets, 2-Year Portfolio View.
F12: Add | H12: These are specific elements that comprise the Portfolio View of Exhibit 1
E13: a | F13: Total Biennial Potential IRP Guidance | G13: =ROUND(6155339,-3) -> 6155000 | H13: 2-year pro rata, versus ramp rate in IRP | K13: Page 24, July 16 CRAG meeting presentation
E14: b | F14: Decoupling Commitment | G14: =G13*0.05 -> 307750 | H14: Consistent with Order 08, Docket UG-170034. | K14: 5% of Total Biennial Potential
E15: c | F15: Add Pilots with Uncertain Savings | G15: 40000 | H15: Commercial Pay for Performance pilot | K15: line z of 2018-2019 Exhibit 1 Portfolio View
E16: d | F16: Total 2018-2019 Portfolio Savings Target | G16: =SUM(G13:G15) -> 6502750 | H16: This figure is what Energy Efficiency is managing to. | K16: = a + b + c; line bb of Exhibit 1 Portfolio View
F17: Exclude | H17: Remove these elements in order to calculate the penalty target.
E18: e | F18: NEEA Savings | G18: 0 | K18: line ab of Exhibit 1 Portfolio View
E19: f | F19: Decoupling Commitment | G19: =-G14 -> -307750 | K19: = b
E20: g | F20: Pilots with Uncertain Savings | G20: =-G15 -> -40000 | K20: = c
E21: h | F21: Total Exclusion | G21: =SUM(G18:G20) -> -347750 | K21: = e + f + g
F22: Resultant Targets
E23: i | F23: Total natural gas savings subject to penalty | G23: =G16+G21 -> 6155000 | H23: Penalty outlined in Stipulation Agreement, UG-011571 Section M43. | K23: = d + h
E25: l | F25: Decoupling Commitment | G25: =G14 -> 307750 | H25: Penalty = $20,000/4.9% to 4.5% of target to $75,000/less than 3.75% of target | K25: = b
G29: It is important to note that many specific natural gas program total values include decimals. Their aggregation may
G30: result in slight rounding differences between this table and the Portfolio View of Exhibit 1.

Sheet ACP OView Tables
B2: Chapter 1: Executive Summary
C4: 2019 Energy Efficiency
C6: Portfolio Amounts
C7: Category | E7: Originally-Indicated, 2018-2019 BCP | G7: Updated 2019 ACP Values | I7: Revised TRC B/C Ratio
E8: Savings | F8: Budgets | G8: Savings | H8: Budgets
C9: Electric | E9: 239127 | F9: 84273557 | G9: ='Portfolio--2019 Specific'!G79 -> 228771.7938 | H9: ='Portfolio--2019 Specific'!H79 -> 83793667.68 | I9: 1.39
C10: aMW | E10: =E9/8760 -> 27.29760274 | G10: =G9/8760 -> 26.11550157
D11: Percent Change | G11: =(G9-E9)/E9 -> -0.04330421174 | H11: =(H9-F9)/F9 -> -0.005694423423
C12: Natural Gas | E12: 3233146 | F12: 15791274 | G12: ='Portfolio--2019 Specific'!I79 -> 3147391.12 | H12: ='Portfolio--2019 Specific'!J79 -> 15910510.63 | I12: 1.34
D13: Percent Change | G13: =(G12-E12)/E12 -> -0.02652366457 | H13: =(H12-F12)/F12 -> 0.007550792324
C14: Total Budget | F14: =F9+F12 -> 100064831 | H14: =H9+H12 -> 99704178.31
C15: Percent Change | H15: =(H14-F14)/F14 -> -0.003604190232
G17: Note: consistent with WAC 480-109-100(10)(b), Low Income Weatherization (LIW) electric figures are excluded from REM and Portfolio TRC ratios. LIW natural gas figures are also excluded from REM and Portfolio cost-effectiveness totals.
K19: 2018-2019 Total Utility Conservation Goal Forecast
K20: Portfolio Amounts
K21: Category | M21: BCP Value | N21: 2018 Forecast + 2019 Updates | O21: Percent Over/(Under) Target
K22: Electric | M22: 520456 | N22: 531768 | O22: =(N22-M22)/M22 -> 0.02173478642
K23: aMW | M23: =M22/8760 -> 59.41278539
K25: Natural Gas | M25: 6502750 | N25: 7324729 | O25: =(N25-M25)/M25 -> 0.1264048287
R28: Chapter 2: Intro
R30: 2019 Comparison: 2018-2019 BCP Versus ACP Update
S31: Savings | U31: Expenses
R32: Portfolio | S32: Electric | T32: Natural Gas | U32: Electric $ | V32: Natural Gas $ | W32: Total $
S33: (MWh) | T33: (Therms)
R34: 2019 Original | S34: ='Compare BCP to 2019 ACP'!G83 -> 239126.786 | T34: ='Compare BCP to 2019 ACP'!O83 -> 3233146.42 | U34: ='Compare BCP to 2019 ACP'!K83 -> 84273556.91 | V34: ='Compare BCP to 2019 ACP'!S83 -> 15791273.72 | W34: =SUM(U34:V34) -> 100064830.6
R35: As indicated in 2018-2019 BCP
R37: Updated 2019 ACP | S37: ='Compare BCP to 2019 ACP'!H83 -> 228771.7938 | T37: ='Compare BCP to 2019 ACP'!P83 -> 3147391.12 | U37: ='Compare BCP to 2019 ACP'!L83 -> 83793667.68 | V37: ='Compare BCP to 2019 ACP'!T83 -> 15910510.63 | W37: =SUM(U37:V37) -> 99704178.31
R38: Change | S38: =S37-S34 -> -10354.99222 | T38: =T37-T34 -> -85755.3 | U38: -479889.2289 | V38: 119236.9107 | W38: -360652.3183
R39: Percent Change | S39: =(S37-S34)/S34 -> -0.0433033555 | T39: =(T37-T34)/T34 -> -0.02652379103 | U39: -0.005694422385 | V39: 0.0075508102 | W39: -0.003604186566
Z44: Chapter 3: Developing Updates
Z46: 2019 Savings Comparison: 2018-2019 BCP Versus ACP Update
AA47: Electric (MWh) | AE47: Natural Gas (Therms)
Z48: Sector | AA48: Original | AB48: Update | AC48: Difference | AD48: Percent | AE48: Original | AF48: Update | AG48: Difference | AH48: Percent
Z49: Residential | AA49: ='Compare BCP to 2019 ACP'!G21 -> 106589.5797 | AB49: ='Compare BCP to 2019 ACP'!H21 -> 100814.1531 | AC49: =AB49-AA49 -> -5775.426622 | AD49: =(AB49-AA49)/AA49 -> -0.05418378269 | AE49: ='Compare BCP to 2019 ACP'!O21 -> 1705812.52 | AF49: ='Compare BCP to 2019 ACP'!P21 -> 1584254.22 | AG49: =AF49-AE49 -> -121558.3 | AH49: =(AF49-AE49)/AE49 -> -0.07126123098
Z50: Business | AA50: ='Compare BCP to 2019 ACP'!G37 -> 115620.4063 | AB50: ='Compare BCP to 2019 ACP'!H37 -> 114407.6407 | AC50: =AB50-AA50 -> -1212.7656 | AD50: -0.0104892003 | AE50: ='Compare BCP to 2019 ACP'!O37 -> 1494833.9 | AF50: ='Compare BCP to 2019 ACP'!P37 -> 1561136.9 | AG50: =AF50-AE50 -> 66303 | AH50: 0.04435476075
Z51: Pilots with Uncertain Savings | AA51: ='Compare BCP to 2019 ACP'!G42 -> 3640 | AB51: ='Compare BCP to 2019 ACP'!H42 -> 750 | AC51: -2890 | AD51: -0.793956044 | AE51: ='Compare BCP to 2019 ACP'!O42 -> 32500 | AF51: ='Compare BCP to 2019 ACP'!P42 -> 2000 | AG51: -30500 | AH51: -0.9384615385
Z52: Regional | AA52: ='Compare BCP to 2019 ACP'!G48 -> 13276.8 | AB52: ='Compare BCP to 2019 ACP'!H48 -> 12800 | AC52: -476.8 | AD52: -0.03591226802 | AE52: ='Compare BCP to 2019 ACP'!O48 -> 0 | AF52: ='Compare BCP to 2019 ACP'!P48 -> 0 | AG52: 0
Z53: TOTALS | AA53: =SUM(AA49:AA52) -> 239126.786 | AB53: =SUM(AB49:AB52) -> 228771.7938 | AC53: -10354.99222 | AD53: -0.0433033555 | AE53: =SUM(AE49:AE52) -> 3233146.42 | AF53: =SUM(AF49:AF52) -> 3147391.12 | AG53: =SUM(AG49:AG52) -> -85755.3 | AH53: -0.02652379103
Z57: 2019 Spending Comparison: 2018-2019 BCP Versus ACP Update
AA58: Electric (MWh) | AE58: Natural Gas (Therms)
Z59: Sector | AA59: Original | AB59: Update | AC59: Difference | AD59: Percent | AE59: Original | AF59: Update | AG59: Difference | AH59: Percent
Z60: Residential | AA60: ='Compare BCP to 2019 ACP'!K21 -> 38505603.38 | AB60: ='Compare BCP to 2019 ACP'!L21 -> 37607324.56 | AC60: =AB60-AA60 -> -898278.8186 | AD60: =(AB60-AA60)/AA60 -> -0.02332852208 | AE60: ='Compare BCP to 2019 ACP'!S21 -> 7948914.722 | AF60: ='Compare BCP to 2019 ACP'!T21 -> 7961748.188 | AG60: =AF60-AE60 -> 12833.46567 | AH60: =(AF60-AE60)/AE60 -> 0.00161449281
Z61: Business | AA61: ='Compare BCP to 2019 ACP'!K37 -> 29201270.49 | AB61: ='Compare BCP to 2019 ACP'!L37 -> 29294509.17 | AC61: =AB61-AA61 -> 93238.68467 | AD61: 0.003192966714 | AE61: ='Compare BCP to 2019 ACP'!S37 -> 3878443.8 | AF61: ='Compare BCP to 2019 ACP'!T37 -> 3929173.8 | AG61: =AF61-AE61 -> 50730 | AH61: 0.01307998842
Z62: Pilots with Uncertain Savings | AA62: ='Compare BCP to 2019 ACP'!K42 -> 350000 | AB62: ='Compare BCP to 2019 ACP'!L42 -> 244130 | AC62: -105870 | AD62: -0.3024857143 | AE62: ='Compare BCP to 2019 ACP'!S42 -> 49688 | AF62: ='Compare BCP to 2019 ACP'!T42 -> 10000 | AG62: -39688 | AH62: -0.7987441636
Z63: Regional | AA63: ='Compare BCP to 2019 ACP'!K48 -> 5200000 | AB63: ='Compare BCP to 2019 ACP'!L48 -> 5200000 | AC63: 0 | AD63: 0 | AE63: ='Compare BCP to 2019 ACP'!S48 -> 2434244 | AF63: ='Compare BCP to 2019 ACP'!T48 -> 2434244 | AG63: =AF63-AE63 -> 0 | AH63: =(AF63-AE63)/AE63 -> 0
Z64: Portfolio Support | AA64: ='Compare BCP to 2019 ACP'!K65 -> 6622671.64 | AB64: ='Compare BCP to 2019 ACP'!L65 -> 7238303.765 | AC64: =AB64-AA64 -> 615632.125 | AD64: =(AB64-AA64)/AA64 -> 0.09295827401 | AE64: ='Compare BCP to 2019 ACP'!S65 -> 1090050.4 | AF64: ='Compare BCP to 2019 ACP'!T65 -> 1219332.225 | AG64: 129281.825 | AH64: 0.1186016949
Z65: Research & Compliance | AA65: ='Compare BCP to 2019 ACP'!K73 -> 3300121.802 | AB65: ='Compare BCP to 2019 ACP'!L73 -> 3117702.182 | AC65: -182419.62 | AD65: -0.05527663248 | AE65: ='Compare BCP to 2019 ACP'!S73 -> 389932.798 | AF65: ='Compare BCP to 2019 ACP'!T73 -> 356012.418 | AG65: -33920.38 | AH65: -0.08699032288
Z66: Other Electric | AA66: ='Compare BCP to 2019 ACP'!K79 -> 1093889.6 | AB66: ='Compare BCP to 2019 ACP'!L79 -> 1091698 | AC66: -2191.6 | AD66: -0.002003492857
Z67: TOTALS | AA67: =SUM(AA60:AA66) -> 84273556.91 | AB67: =SUM(AB60:AB66) -> 83793667.68 | AC67: =SUM(AC60:AC66) -> -479889.2289 | AD67: =(AB67-AA67)/AA67 -> -0.005694422385 | AE67: =SUM(AE60:AE66) -> 15791273.72 | AF67: =SUM(AF60:AF66) -> 15910510.63 | AG67: =SUM(AG60:AG66) -> 119236.9107 | AH67: =(AF67-AE67)/AE67 -> 0.0075508102
AJ75: Chapter 4: REM Overview
AJ77: 2019 Residential Energy Management
AK78: Total Savings Electric: MWh Natural Gas: Therms | AL78: Budgets | AM78: Total Resource Cost
AJ79: Electric | AK79: ='Portfolio--2019 Specific'!G22 -> 100814.1531 | AL79: ='Portfolio--2019 Specific'!H22 -> 37607324.56 | AM79: 1.68
AJ80: aMW | AK80: =AK79/8760 -> 11.50846496
AJ81: Natural Gas | AK81: ='Portfolio--2019 Specific'!I22 -> 1584254.22 | AL81: ='Portfolio--2019 Specific'!J22 -> 7961748.188 | AM81: 1.53
AJ82: Total Budget | AL82: =AL79+AL81 -> 45569072.75
AJ85: Note: consistent with WAC 480-109-100(10)(b), Low Income Weatherization (LIW) electric figures are excluded from REM and Portfolio TRC ratios. LIW natural gas figures are also excluded from REM and Portfolio cost-effectiveness totals.
AJ87: Chapter 6: BEM Overview
AJ89: 2019 Business Energy Management
AK90: Total Savings Electric: MWh Natural Gas: Therms | AL90: Budgets | AM90: Total Resource Cost
AJ91: Electric | AK91: ='Portfolio--2019 Specific'!G33 -> 114407.6407 | AL91: ='Portfolio--2019 Specific'!H33 -> 29294509.17 | AM91: 1.48
AJ92: aMW | AK92: =AK91/8760 -> 13.06023296
AJ93: Natural Gas | AK93: ='Portfolio--2019 Specific'!I33 -> 1561136.9 | AL93: ='Portfolio--2019 Specific'!J33 -> 3929173.8 | AM93: 1.75
AJ94: Total Budget | AL94: =AL91+AL93 -> 33223682.97

Sheet Compare BCP to 2019 ACP
G2: BCP 2019 | H2: ACP 2019 | I2: Difference | J2: % Change | K2: BCP 2019 | L2: ACP 2019 | M2: Difference | N2: % Change | O2: BCP 2019 | P2: ACP 2019 | Q2: Difference | R2: % Change | S2: BCP 2019 | T2: ACP 2019 | U2: Difference | V2: % Change | W2: BCP 2019 | X2: ACP 2019 | Y2: Difference | Z2: % Change
B3: Ref # | C3: Schedule Nos. (Unless otherwise noted, applies to both electric and gas) | D3: Program Name | G3: MWh Savings | I3: (BCP - ACP) | K3: Electric Rider Budget | M3: (ACP - BCP) | O3: Therm Savings | Q3: (ACP - BCP) | S3: Gas Rider Budget | U3: (ACP - BCP) | W3: Total Rider Budget | Y3: (ACP - BCP)
D5: Residential Energy Management
B6: a | C6: 201 | D6: Low Income Weatherization | G6: 2066.03267 | H6: ='[4]Portfolio--2019 Specific'!$G$7 -> 2066.03267 | I6: =H6-G6 -> 0 | J6: =(H6-G6)/G6 -> 0 | K6: 4856678.689 | L6: ='Portfolio--2019 Specific'!H7 -> 4688441.457 | M6: =L6-K6 -> -168237.2318 | N6: =(L6-K6)/K6 -> -0.0346403875 | O6: 9769.97 | P6: ='Portfolio--2019 Specific'!I7 -> 16079.57 | Q6: =P6-O6 -> 6309.6 | R6: =(P6-O6)/O6 -> 0.6458156985 | S6: 437425.5132 | T6: ='Portfolio--2019 Specific'!J7 -> 656080.1925 | U6: =T6-S6 -> 218654.6793 | V6: =(T6-S6)/S6 -> 0.4998672291 | W6: 5294104.202 | X6: =L6+T6 -> 5344521.65 | Y6: =X6-W6 -> 50417.4475 | Z6: =(X6-W6)/W6 -> 0.009523319824
B7: b | C7: 214 | D7: Single Family Existing Subtotal | G7: 84433.07898 | H7: ='Portfolio--2019 Specific'!G8 -> 79996.23759 | I7: =H7-G7 -> -4436.841392 | J7: =(H7-G7)/G7 -> -0.05254861537 | K7: 22761397.39 | L7: ='Portfolio--2019 Specific'!H8 -> 21376702.62 | M7: =L7-K7 -> -1384694.767 | N7: =(L7-K7)/K7 -> -0.06083522656 | O7: 1544535.75 | P7: ='Portfolio--2019 Specific'!I8 -> 1418098.25 | Q7: =P7-O7 -> -126437.5 | R7: =(P7-O7)/O7 -> -0.08186116767 | S7: 6308019.569 | T7: ='Portfolio--2019 Specific'!J8 -> 6326822.03 | U7: =T7-S7 -> 18802.46142 | V7: =(T7-S7)/S7 -> 0.002980723381 | W7: 29069416.96 | X7: =L7+T7 -> 27703524.65 | Y7: =X7-W7 -> -1365892.305 | Z7: =(X7-W7)/W7 -> -0.04698726182
B8: c | E8: Residential lighting | G8: 59570.28623 | H8: ='Portfolio--2019 Specific'!G9 -> 60073.00909 | I8: 502.722858 | J8: 0.008439154649 | K8: 11997139.92 | L8: ='Portfolio--2019 Specific'!H9 -> 11667683.96 | M8: -329455.9625 | N8: -0.02746120864 | P8: ='Portfolio--2019 Specific'!I9 -> 0 | Q8: 0 | T8: ='Portfolio--2019 Specific'!J9 -> 0 | U8: 0 | W8: 11997139.92 | X8: 11667683.96 | Y8: -329455.9625 | Z8: -0.02746120864
B9: d | E9: Space heat | G9: 7549.37 | H9: ='Portfolio--2019 Specific'!G10 -> 7276.125 | I9: -273.245 | J9: -0.03619441092 | K9: 3304298.4 | L9: ='Portfolio--2019 Specific'!H10 -> 3460106.4 | M9: 155808 | N9: 0.04715312636 | O9: 629097.9 | P9: ='Portfolio--2019 Specific'!I10 -> 504161 | Q9: -124936.9 | R9: -0.1985969115 | S9: 2242206.6 | T9: ='Portfolio--2019 Specific'!J10 -> 1513380 | U9: -728826.6 | V9: -0.3250488158 | W9: 5546505 | X9: 4973486.4 | Y9: -573018.6 | Z9: -0.103311653
B10: e | E10: Water heat | G10: 980.452 | H10: ='Portfolio--2019 Specific'!G11 -> 757.802 | I10: -222.65 | J10: -0.2270891385 | K10: 402152.4 | L10: ='Portfolio--2019 Specific'!H11 -> 401840.4 | M10: -312 | N10: -0.0007758252841 | O10: 94125.5 | P10: ='Portfolio--2019 Specific'!I11 -> 109907 | Q10: 15781.5 | R10: 0.167664448 | S10: 287116.4 | T10: ='Portfolio--2019 Specific'!J11 -> 341556.4 | U10: 54440 | V10: 0.1896095103 | W10: 689268.8 | X10: 743396.8 | Y10: 54128 | Z10: 0.07852959542
B11: f | E11: Single Family Rental Pilot | G11: 0 | H11: ='Portfolio--2019 Specific'!G12 -> 0 | I11: 0 | K11: 104778.4 | L11: ='Portfolio--2019 Specific'!H12 -> 104586.4 | M11: -192 | N11: -0.001832438747 | O11: 0 | P11: ='Portfolio--2019 Specific'!I12 -> 0 | Q11: 0 | S11: 94778.4 | T11: ='Portfolio--2019 Specific'!J12 -> 94586.4 | U11: -192 | V11: -0.002025778025 | W11: 199556.8 | X11: 199172.8 | Y11: -384 | Z11: -0.001924264169
B12: g | E12: Home Energy Assessment | G12: 5148.285 | H12: ='Portfolio--2019 Specific'!G13 -> 4782.5515 | I12: -365.7335 | J12: -0.07103987056 | K12: 2638879.7 | L12: ='Portfolio--2019 Specific'!H13 -> 2505933.7 | M12: -132946 | N12: -0.05037971226 | O12: 0 | P12: ='Portfolio--2019 Specific'!I13 -> 0 | Q12: 0 | S12: 0 | T12: ='Portfolio--2019 Specific'!J13 -> 0 | U12: 0 | W12: 2638879.7 | X12: 2505933.7 | Y12: -132946 | Z12: -0.05037971226
B13: h | E13: Home Appliances | G13: 6172.40275 | H13: ='Portfolio--2019 Specific'!G14 -> 2047.79 | I13: -4124.61275 | J13: -0.6682345461 | K13: 2374444.2 | L13: ='Portfolio--2019 Specific'!H14 -> 850025 | M13: -1524419.2 | N13: -0.6420109599 | O13: 11791.25 | P13: ='Portfolio--2019 Specific'!I14 -> 12210 | Q13: 418.75 | R13: 0.03551362239 | S13: 0 | T13: ='Portfolio--2019 Specific'!J14 -> 0 | U13: 0 | W13: 2374444.2 | X13: 850025 | Y13: -1524419.2 | Z13: -0.6420109599
B14: i | E14: Web-Enabled Thermostats | G14: 1457 | H14: ='Portfolio--2019 Specific'!G15 -> 1639.02 | I14: 182.02 | J14: 0.1249279341 | K14: 164024.8 | L14: ='Portfolio--2019 Specific'!H15 -> 423669.2 | M14: 259644.4 | N14: 1.582958187 | O14: 370500 | P14: ='Portfolio--2019 Specific'!I15 -> 258070 | Q14: -112430 | R14: -0.3034547908 | S14: 647424.8 | T14: ='Portfolio--2019 Specific'!J15 -> 1057222.6 | U14: 409797.8 | V14: 0.6329658672 | W14: 811449.6 | X14: 1480891.8 | Y14: 669442.2 | Z14: 0.8249954156
B15: j | E15: Showerheads | G15: 1476.223 | H15: ='Portfolio--2019 Specific'!G16 -> 1567.972 | I15: 91.749 | J15: 0.06215117906 | K15: 417202.2344 | L15: ='Portfolio--2019 Specific'!H16 -> 404352.4 | M15: -12849.83435 | N15: -0.03080001327 | O15: 60698.6 | P15: ='Portfolio--2019 Specific'!I16 -> 116700.95 | Q15: 56002.35 | R15: 0.9226300112 | S15: 293461.3986 | T15: ='Portfolio--2019 Specific'!J16 -> 375961.64 | U15: 82500.24142 | V15: 0.2811280864 | W15: 710663.6329 | X15: 780314.04 | Y15: 69650.40707 | Z15: 0.09800755778
B16: k | E16: Weatherization | G16: 2079.06 | H16: ='Portfolio--2019 Specific'!G17 -> 1851.968 | I16: -227.092 | J16: -0.1092282089 | K16: 969269.6 | L16: ='Portfolio--2019 Specific'!H17 -> 843712.6 | M16: -125557 | N16: -0.1295377468 | O16: 378322.5 | P16: ='Portfolio--2019 Specific'!I17 -> 417049.3 | Q16: 38726.8 | R16: 0.102364517 | S16: 2642347 | T16: ='Portfolio--2019 Specific'!J17 -> 2351337 | U16: -291010 | V16: -0.1101331506 | W16: 3611616.6 | X16: 3195049.6 | Y16: -416567 | Z16: -0.1153408698
B17: l | E17: Home Energy Reports | G17: 0 | H17: ='Portfolio--2019 Specific'!G18 -> 0 | I17: 0 | K17: 389207.73 | L17: ='Portfolio--2019 Specific'!H18 -> 714792.56 | M17: 325584.83 | N17: 0.8365322806 | O17: 0 | P17: ='Portfolio--2019 Specific'!I18 -> 0 | Q17: 0 | S17: 100684.97 | T17: ='Portfolio--2019 Specific'!J18 -> 592777.99 | U17: 492093.02 | V17: 4.887452616 | W17: 489892.7 | X17: 1307570.55 | Y17: 817677.85 | Z17: 1.669095804
B18: m | C18: 215 | D18: Single Family New Construction | G18: 359.503 | H18: ='Portfolio--2019 Specific'!G19 -> 381.238 | I18: 21.735 | J18: 0.06045846627 | K18: 267861.2 | L18: ='Portfolio--2019 Specific'!H19 -> 272905.2 | M18: 5044 | N18: 0.01883064811 | O18: 16045 | P18: ='Portfolio--2019 Specific'!I19 -> 16045 | Q18: 0 | R18: 0 | S18: 113099.44 | T18: ='Portfolio--2019 Specific'!J19 -> 112972.24 | U18: -127.2 | V18: -0.001124674004 | W18: 380960.64 | X18: 385877.44 | Y18: 4916.8 | Z18: 0.01290632019
B19: n | C19: 217 | D19: Multifamily Retrofit | G19: 16234.96503 | H19: ='Portfolio--2019 Specific'!G20 -> 14728.652 | I19: -1506.31303 | J19: -0.09278203108 | K19: 9170254.845 | L19: ='Portfolio--2019 Specific'!H20 -> 9315206.925 | M19: 144952.08 | N19: 0.01580676682 | O19: 80226.8 | P19: ='Portfolio--2019 Specific'!I20 -> 50031.4 | Q19: -30195.4 | R19: -0.3763754755 | S19: 640524 | T19: ='Portfolio--2019 Specific'!J20 -> 401871.025 | U19: -238652.975 | V19: -0.3725902152 | W19: 9810778.845 | X19: 9717077.95 | Y19: -93700.895 | Z19: -0.00955081105
B20: o | C20: 218 | D20: Multifamily New Construction | G20: 3496 | H20: ='Portfolio--2019 Specific'!G21 -> 3752 | I20: 256 | J20: 0.07322654462 | K20: 1449411.26 | L20: ='Portfolio--2019 Specific'!H21 -> 1954068.36 | M20: 504657.1 | N20: 0.3481807503 | O20: 55235 | P20: ='Portfolio--2019 Specific'!I21 -> 84000 | Q20: 28765 | R20: 0.520774871 | S20: 449846.2 | T20: ='Portfolio--2019 Specific'!J21 -> 464002.7 | U20: 14156.5 | V20: 0.03146964451 | W20: 1899257.46 | X20: 2418071.06 | Y20: 518813.6 | Z20: 0.2731665458
B21: p | D21: Total, Residential Programs | G21: 106589.5797 | H21: ='Portfolio--2019 Specific'!G22 -> 100814.1531 | I21: -5775.426622 | J21: -0.05418378269 | K21: 38505603.38 | L21: ='Portfolio--2019 Specific'!H22 -> 37607324.56 | M21: -898278.8186 | N21: -0.02332852208 | O21: 1705812.52 | P21: ='Portfolio--2019 Specific'!I22 -> 1584254.22 | Q21: -121558.3 | R21: -0.07126123098 | S21: 7948914.722 | T21: ='Portfolio--2019 Specific'!J22 -> 7961748.188 | U21: 12833.46567 | V21: 0.00161449281 | W21: 46454518.1 | X21: 45569072.75 | Y21: -885445.3529 | Z21: -0.0190604787
D23: Business Energy Management
B24: q | C24: 250 | D24: Commercial / Industrial Retrofit | G24: 60750 | H24: ='Portfolio--2019 Specific'!G25 -> 60750 | I24: =H24-G24 -> 0 | J24: 0 | K24: 15422278.63 | L24: ='Portfolio--2019 Specific'!H25 -> 15380823.86 | M24: =L24-K24 -> -41454.76603 | N24: -0.002687979321 | O24: 425000 | P24: ='Portfolio--2019 Specific'!I25 -> 425000 | Q24: =P24-O24 -> 0 | R24: 0 | S24: 1649600 | T24: ='Portfolio--2019 Specific'!J25 -> 1648600 | U24: =T24-S24 -> -1000 | V24: -0.0006062075655 | W24: 17071878.63 | X24: 17029423.86 | Y24: =X24-W24 -> -42454.76603 | Z24: -0.0024868245
B25: r | C25: 251 | D25: Commercial/Industrial New Construction | G25: 20000 | H25: ='Portfolio--2019 Specific'!G26 -> 20000 | I25: 0 | J25: 0 | K25: 4795910.4 | L25: ='Portfolio--2019 Specific'!H26 -> 4795358.4 | M25: -552 | N25: -0.0001150980636 | O25: 105000 | P25: ='Portfolio--2019 Specific'!I26 -> 105000 | Q25: 0 | R25: 0 | S25: 499460 | T25: ='Portfolio--2019 Specific'!J26 -> 499700 | U25: 240 | V25: 0.0004805189605 | W25: 5295370.4 | X25: 5295058.4 | Y25: -312 | Z25: -5.891939117e-05
B26: s | C26: 253 | D26: Commercial Strategic Energy Management | G26: 13000 | H26: ='Portfolio--2019 Specific'!G27 -> 13000 | I26: 0 | J26: 0 | K26: 1419704 | L26: ='Portfolio--2019 Specific'!H27 -> 1417739 | M26: -1965 | N26: -0.001384091332 | O26: 670000 | P26: ='Portfolio--2019 Specific'!I27 -> 670000 | Q26: 0 | R26: 0 | S26: 570752 | T26: ='Portfolio--2019 Specific'!J27 -> 569682 | U26: -1070 | V26: -0.001874719668 | W26: 1990456 | X26: 1987421 | Y26: -3035 | Z26: -0.001524776232
B27: t | C27: E258 | D27: Large Power User - Self Directed Program Subtotal | G27: 1000 | H27: ='Portfolio--2019 Specific'!G28 -> 1000 | I27: 0 | J27: 0 | K27: 1920547.222 | L27: ='Portfolio--2019 Specific'!H28 -> 1920496.873 | M27: -50.34929936 | N27: -2.621612152e-05 | P27: ='Portfolio--2019 Specific'!I28 -> 0 | Q27: 0 | T27: ='Portfolio--2019 Specific'!J28 -> 0 | U27: 0 | W27: 1920547.222 | X27: 1920496.873 | Y27: -50.34929936 | Z27: -2.621612152e-05
B28: u | C28: E258 | E28: 449 Customers | G28: 500 | H28: ='Portfolio--2019 Specific'!G29 -> 500 | I28: 0 | J28: 0 | K28: 623340.4688 | L28: ='Portfolio--2019 Specific'!H29 -> 623198.779 | M28: -141.6897822 | N28: -0.000227307209 | P28: ='Portfolio--2019 Specific'!I29 -> 0 | Q28: 0 | T28: ='Portfolio--2019 Specific'!J29 -> 0 | U28: 0 | W28: 623340.4688 | X28: 623198.779 | Y28: -141.6897822 | Z28: -0.000227307209
B29: v | C29: E258 | E29: Non-449 Customers | G29: 500 | H29: ='Portfolio--2019 Specific'!G30 -> 500 | I29: 0 | J29: 0 | K29: 1297206.754 | L29: ='Portfolio--2019 Specific'!H30 -> 1297298.094 | M29: 91.34048288 | N29: 7.041320331e-05 | P29: ='Portfolio--2019 Specific'!I30 -> 0 | Q29: 0 | T29: ='Portfolio--2019 Specific'!J30 -> 0 | U29: 0 | W29: 1297206.754 | X29: 1297298.094 | Y29: 91.34048288 | Z29: 7.041320331e-05
B30: w | C30: 261 | D30: Energy Efficient Technology Evaluation | G30: 0 | H30: ='Portfolio--2019 Specific'!G31 -> 0 | I30: 0 | K30: 0 | L30: ='Portfolio--2019 Specific'!H31 -> 0 | M30: 0 | O30: 0 | P30: ='Portfolio--2019 Specific'!I31 -> 0 | Q30: 0 | S30: 0 | T30: ='Portfolio--2019 Specific'!J31 -> 0 | U30: 0 | W30: 0 | X30: 0 | Y30: 0
B31: x | C31: 262 | D31: Commercial Rebates Subtotal | G31: 20870.4063 | H31: ='Portfolio--2019 Specific'!G32 -> 19657.6407 | I31: -1212.7656 | J31: -0.05810934308 | K31: 5642830.24 | L31: ='Portfolio--2019 Specific'!H32 -> 5780091.04 | M31: 137260.8 | N31: 0.02432481471 | O31: 294833.9 | P31: ='Portfolio--2019 Specific'!I32 -> 361136.9 | Q31: 66303 | R31: 0.2248825525 | S31: 1158631.8 | T31: ='Portfolio--2019 Specific'!J32 -> 1211191.8 | U31: 52560 | V31: 0.04536385071 | W31: =K31+S31 -> 6801462.04 | X31: 6991282.84 | Y31: 189820.8 | Z31: 0.02790882297
E32: Lighting to Go--also referred to as Business Lighting Markdowns | G32: =8969882/1000 -> 8969.882 | H32: ='2019 Sector View Elect'!T39/1000 -> 8969.882 | I32: =H32-G32 -> 0 | J32: =(H32-G32)/G32 -> 0 | K32: 512224 | L32: ='2019 Sector View Elect'!S39 -> 479864 | M32: =L32-K32 -> -32360 | N32: =(L32-K32)/K32 -> -0.06317548572 | W32: =K32+S32 -> 512224 | X32: =L32+T32 -> 479864 | Y32: =X32-W32 -> -32360 | Z32: =(X32-W32)/W32 -> -0.06317548572
E33: Commercial kitchen and laundry | G33: =472024.3/1000 -> 472.0243 | H33: ='2019 Sector View Elect'!T40/1000 -> 452.2307 | I33: -19.7936 | J33: -0.04193343436 | K33: 158206 | L33: ='2019 Sector View Elect'!S40 -> 152826 | M33: -5380 | N33: -0.03400629559 | O33: 85158.9 | P33: ='2019 Sector View Gas'!T33 -> 86463.9 | Q33: =P33-O33 -> 1305 | R33: =(P33-O33)/O33 -> 0.01532429376 | S33: 261172.8 | T33: ='2019 Sector View Gas'!S33 -> 268228.8 | U33: =T33-S33 -> 7056 | V33: =(T33-S33)/S33 -> 0.02701659591 | W33: =K33+S33 -> 419378.8 | X33: 421054.8 | Y33: 1676 | Z33: 0.003996387037
E34: Commercial HVAC | G34: =1033500/1000 -> 1033.5 | H34: ='2019 Sector View Elect'!T41/1000 -> 1084.35 | I34: 50.85 | J34: 0.04920174165 | K34: 331267.6 | L34: ='2019 Sector View Elect'!S41 -> 368479.6 | M34: 37212 | N34: 0.1123321448 | O34: 13500 | P34: ='2019 Sector View Gas'!T34 -> 29475 | Q34: 15975 | R34: 1.183333333 | S34: 78534.4 | T34: ='2019 Sector View Gas'!S34 -> 130812.4 | U34: 52278 | V34: 0.6656700758 | W34: 409802 | X34: 499292 | Y34: 89490 | Z34: 0.2183737512
E35: Commercial Midstream | G35: =2115000/1000 -> 2115 | H35: ='2019 Sector View Elect'!T42/1000 -> 871.178 | I35: -1243.822 | J35: -0.5880955083 | K35: 617822.4 | L35: ='2019 Sector View Elect'!S42 -> 757442.4 | M35: 139620 | N35: 0.225987274 | O35: 153875 | P35: ='2019 Sector View Gas'!T35 -> 205898 | Q35: 52023 | R35: 0.3380861089 | S35: 591322.4 | T35: ='2019 Sector View Gas'!S35 -> 591160.4 | U35: -162 | V35: -0.0002739622243 | W35: 1209144.8 | X35: 1348602.8 | Y35: 139458 | Z35: 0.1153360623
E36: Small Business Direct Install | G36: =8280000/1000 -> 8280 | H36: ='2019 Sector View Elect'!T44/1000 -> 8280 | I36: 0 | J36: 0 | K36: 4023310.24 | L36: ='2019 Sector View Elect'!S44 -> 4021479.04 | M36: -1831.2 | N36: -0.0004551476001 | O36: 42300 | P36: ='2019 Sector View Gas'!T36 -> 39300 | Q36: -3000 | R36: -0.07092198582 | S36: 227602.2 | T36: ='2019 Sector View Gas'!S36 -> 220990.2 | U36: -6612 | V36: -0.0290506858 | W36: 4250912.44 | X36: 4242469.24 | Y36: -8443.2 | Z36: -0.001986208871
B37: y | D37: Subtotal, Business Programs | G37: 115620.4063 | H37: ='Portfolio--2019 Specific'!G33 -> 114407.6407 | I37: -1212.7656 | J37: -0.0104892003 | K37: 29201270.49 | L37: ='Portfolio--2019 Specific'!H33 -> 29294509.17 | M37: 93238.68467 | N37: 0.003192966714 | O37: 1494833.9 | P37: ='Portfolio--2019 Specific'!I33 -> 1561136.9 | Q37: 66303 | R37: 0.04435476075 | S37: 3878443.8 | T37: ='Portfolio--2019 Specific'!J33 -> 3929173.8 | U37: 50730 | V37: 0.01307998842 | W37: 33079714.29 | X37: 33223682.97 | Y37: 143968.6847 | Z37: 0.004352174369
D39: Pilots With Uncertain Savings
B40: z | C40: 249 | D40: Residential | G40: 0 | H40: ='Portfolio--2019 Specific'!G36 -> 0 | I40: =H40-G40 -> 0 | K40: 0 | L40: ='Portfolio--2019 Specific'!H36 -> 0 | M40: 0 | O40: 0 | P40: ='Portfolio--2019 Specific'!I36 -> 0 | Q40: =P40-O40 -> 0 | S40: 0 | T40: ='Portfolio--2019 Specific'!J36 -> 0 | U40: 0 | W40: 0 | X40: 0 | Y40: =X40-W40 -> 0
B41: aa | C41: 249 | D41: Commercial Pay for Performance Pilot | G41: 3640 | H41: ='Portfolio--2019 Specific'!G37 -> 750 | I41: -2890 | J41: -0.793956044 | K41: 350000 | L41: ='Portfolio--2019 Specific'!H37 -> 244130 | M41: -105870 | N41: -0.3024857143 | O41: 32500 | P41: ='Portfolio--2019 Specific'!I37 -> 2000 | Q41: -30500 | R41: -0.9384615385 | S41: 49688 | T41: ='Portfolio--2019 Specific'!J37 -> 10000 | U41: -39688 | V41: -0.7987441636 | W41: 399688 | X41: 254130 | Y41: -145558 | Z41: -0.3641790597
B42: ab | D42: Subtotal, Pilots | G42: 3640 | H42: ='Portfolio--2019 Specific'!G38 -> 750 | I42: -2890 | J42: -0.793956044 | K42: 350000 | L42: ='Portfolio--2019 Specific'!H38 -> 244130 | M42: -105870 | N42: -0.3024857143 | O42: 32500 | P42: ='Portfolio--2019 Specific'!I38 -> 2000 | Q42: -30500 | R42: -0.9384615385 | S42: 49688 | T42: ='Portfolio--2019 Specific'!J38 -> 10000 | U42: -39688 | V42: -0.7987441636 | W42: 399688 | X42: 254130 | Y42: -145558 | Z42: -0.3641790597
U43: 0 | Y43: 0
D44: Regional Efficiency Programs | U44: 0 | Y44: 0
B45: ac | C45: E254 | D45: NW Energy Efficiency Alliance (NEEA) | G45: 12526.8 | H45: ='Portfolio--2019 Specific'!G41 -> 11300 | I45: =H45-G45 -> -1226.8 | J45: -0.09793402944 | K45: 5200000 | L45: ='Portfolio--2019 Specific'!H41 -> 5200000 | M45: 0 | N45: 0 | P45: ='Portfolio--2019 Specific'!I41 -> 0 | Q45: =P45-O45 -> 0 | T45: ='Portfolio--2019 Specific'!J41 -> 0 | U45: 0 | W45: 5200000 | X45: 5200000 | Y45: 0 | Z45: 0
B46: ad | D46: NEEA Natural Gas Market Transformation | H46: ='Portfolio--2019 Specific'!G42 -> 0 | I46: 0 | L46: ='Portfolio--2019 Specific'!H42 -> 0 | M46: 0 | O46: 0 | P46: ='Portfolio--2019 Specific'!I42 -> 0 | Q46: 0 | S46: 2434244 | T46: ='Portfolio--2019 Specific'!J42 -> 2434244 | U46: 0 | V46: 0 | W46: 2434244 | X46: 2434244 | Y46: 0 | Z46: 0
B47: ae | C47: E292 | D47: Generation, Transmission and Distribution | G47: 750 | H47: ='Portfolio--2019 Specific'!G43 -> 1500 | I47: 750 | J47: 1 | K47: 0 | L47: ='Portfolio--2019 Specific'!H43 -> 0 | M47: 0 | P47: ='Portfolio--2019 Specific'!I43 -> 0 | Q47: 0 | T47: ='Portfolio--2019 Specific'!J43 -> 0 | U47: 0 | W47: 0 | X47: 0 | Y47: 0
B48: af | D48: Subtotal, Regional Programs | G48: 13276.8 | H48: ='Portfolio--2019 Specific'!G44 -> 12800 | I48: -476.8 | J48: -0.03591226802 | K48: 5200000 | L48: ='Portfolio--2019 Specific'!H44 -> 5200000 | M48: 0 | N48: 0 | O48: 0 | P48: ='Portfolio--2019 Specific'!I44 -> 0 | Q48: 0 | S48: 2434244 | T48: ='Portfolio--2019 Specific'!J44 -> 2434244 | U48: 0 | V48: 0 | W48: 7634244 | X48: 7634244 | Y48: 0 | Z48: 0
D50: Energy Efficiency Portfolio Support
B51: ag | D51: Data and Systems Services | K51: 1101677.52 | L51: ='Portfolio--2019 Specific'!H47 -> 1095387.42 | M51: =L51-K51 -> -6290.1 | N51: -0.005709565536 | S51: 164618.48 | T51: ='Portfolio--2019 Specific'!J47 -> 163678.58 | U51: =T51-S51 -> -939.9 | V51: -0.005709565536 | W51: 1266296 | X51: 1259066 | Y51: =X51-W51 -> -7230 | Z51: -0.005709565536
B52: ah | D52: Rebates Processing | K52: 562526.4 | L52: ='Portfolio--2019 Specific'!H48 -> 558344.4 | M52: -4182 | N52: -0.007434317749 | S52: 83483.6 | T52: ='Portfolio--2019 Specific'!J48 -> 82865.6 | U52: -618 | V52: -0.007402651539 | W52: 646010 | X52: 641210 | Y52: -4800 | Z52: -0.007430225538
B53: ai | D53: Verification Team | K53: 538894.24 | L53: ='Portfolio--2019 Specific'!H49 -> 535443.04 | M53: -3451.2 | N53: -0.006404225066 | S53: 79847.76 | T53: ='Portfolio--2019 Specific'!J49 -> 79338.96 | U53: -508.8 | V53: -0.006372126156 | W53: 618742 | X53: 614782 | Y53: -3960 | Z53: -0.006400082749
B54: aj | D54: Programs Support | K54: 414566.4 | L54: ='Portfolio--2019 Specific'!H50 -> 411434.4 | M54: -3132 | N54: -0.007554881438 | S54: 62153.6 | T54: ='Portfolio--2019 Specific'!J50 -> 61685.6 | U54: -468 | V54: -0.007529732791 | W54: 476720 | X54: 473120 | Y54: -3600 | Z54: -0.007551602618
B55: ak | D55: Trade Ally Support | K55: 118000 | L55: ='Portfolio--2019 Specific'!H51 -> 118000 | M55: 0 | N55: 0 | S55: 22000 | T55: ='Portfolio--2019 Specific'!J51 -> 22000 | U55: 0 | V55: 0 | W55: 140000 | X55: 140000 | Y55: 0 | Z55: 0
B56: al | D56: Contractor Alliance Network (net of revenue + cost) | K56: 34000 | L56: ='Portfolio--2019 Specific'!H52 -> 32896 | M56: -1104 | N56: -0.03247058824 | S56: 34000 | T56: ='Portfolio--2019 Specific'!J52 -> 32896 | U56: -1104 | V56: -0.03247058824 | W56: 68000 | X56: 65792 | Y56: -2208 | Z56: -0.03247058824
B57: am | D57: Automated Benchmarking System | K57: 173620.248 | L57: ='Portfolio--2019 Specific'!H53 -> 172732.383 | M57: -887.865 | N57: -0.005113833267 | S57: 77438.392 | T57: ='Portfolio--2019 Specific'!J53 -> 77034.307 | U57: -404.085 | V57: -0.005218148125 | W57: 251058.64 | X57: 249766.69 | Y57: -1291.95 | Z57: -0.005146008916
B58: an | D58: Energy Advisors | K58: 1150707.12 | L58: ='Portfolio--2019 Specific'!H54 -> 1147435.92 | M58: -3271.2 | N58: -0.002842773755 | S58: 173675.88 | T58: ='Portfolio--2019 Specific'!J54 -> 173187.08 | U58: -488.8 | V58: -0.002814438021 | W58: 1324383 | X58: 1320623 | Y58: -3760 | Z58: -0.002839057886
B59: ao | D59: Energy Efficient Communities | K59: 991335.6 | L59: ='Portfolio--2019 Specific'!H55 -> 989079.6 | M59: -2256 | N59: -0.002275717729 | S59: 143480.8 | T59: ='Portfolio--2019 Specific'!J55 -> 143160.3 | U59: -320.5 | V59: -0.002233748348 | W59: 1134816.4 | X59: 1132239.9 | Y59: -2576.5 | Z59: -0.002270411319
B60: ap | D60: Customer Digital Experience | K60: 586195.92 | L60: ='Portfolio--2019 Specific'!H56 -> 1237479.33 | M60: 651283.41 | N60: 1.11103368 | S60: 88203.76 | T60: ='Portfolio--2019 Specific'!J56 -> 224048.95 | U60: 135845.19 | V60: 1.540129242 | W60: 674399.68 | X60: 1461528.28 | Y60: 787128.6 | Z60: 1.167154468
B61: aq | D61: Market Integration | K61: 261961.472 | L61: ='Portfolio--2019 Specific'!H57 -> 261226.752 | M61: -734.72 | N61: -0.002804687248 | S61: 38972.928 | T61: ='Portfolio--2019 Specific'!J57 -> 38863.648 | U61: -109.28 | V61: -0.002803997688 | W61: 300934.4 | X61: 300090.4 | Y61: -844 | Z61: -0.002804597946
B62: ar | D62: Events | K62: 597862.32 | L62: ='Portfolio--2019 Specific'!H58 -> 596351.62 | M62: -1510.7 | N62: -0.002526835944 | S62: 111054 | T62: ='Portfolio--2019 Specific'!J58 -> 110764 | U62: -290 | V62: -0.00261134223 | W62: 708916.32 | X62: 707115.62 | Y62: -1800.7 | Z62: -0.002540074123
B63: as | D63: Brochures, non program-specific | K63: 82624.4 | L63: ='Portfolio--2019 Specific'!H59 -> 82492.9 | M63: -131.5 | N63: -0.001591539545 | S63: 9821.2 | T63: ='Portfolio--2019 Specific'!J59 -> 9809.2 | U63: -12 | V63: -0.001221846618 | W63: 92445.6 | X63: 92302.1 | Y63: -143.5 | Z63: -0.001552264251
B64: at | C64: 202 | D64: Education | K64: 8700 | L64: ='Portfolio--2019 Specific'!H60 -> 0 | M64: -8700 | N64: -1 | S64: 1300 | T64: ='Portfolio--2019 Specific'!J60 -> 0 | U64: -1300 | V64: -1 | W64: 10000 | X64: 0 | Y64: -10000 | Z64: -1
B65: au | D65: Subtotal, Portfolio Support | K65: 6622671.64 | L65: ='Portfolio--2019 Specific'!H61 -> 7238303.765 | M65: 615632.125 | N65: 0.09295827401 | S65: 1090050.4 | T65: ='Portfolio--2019 Specific'!J61 -> 1219332.225 | U65: 129281.825 | V65: 0.1186016949 | W65: 7712722.04 | X65: 8457635.99 | Y65: 744913.95 | Z65: 0.09658249657
D67: Energy Efficiency Research & Compliance
B68: av | D68: Conservation Supply Curves | K68: 210366 | L68: ='Portfolio--2019 Specific'!H64 -> 209931 | M68: =L68-K68 -> -435 | N68: -0.002067824648 | S68: 31434 | T68: ='Portfolio--2019 Specific'!J64 -> 31369 | U68: =T68-S68 -> -65 | V68: -0.002067824648 | W68: 241800 | X68: 241300 | Y68: =X68-W68 -> -500 | Z68: -0.002067824648
B69: aw | D69: Strategic Planning | K69: 786029.384 | L69: ='Portfolio--2019 Specific'!H65 -> 924070.544 | M69: 138041.16 | N69: 0.1756183201 | S69: 66263.816 | T69: ='Portfolio--2019 Specific'!J65 -> 86890.656 | U69: 20626.84 | V69: 0.3112836122 | W69: 852293.2 | X69: 1010961.2 | Y69: 158668 | Z69: 0.1861659814
B70: ax | D70: Market Research | K70: 234969.6 | L70: ='Portfolio--2019 Specific'!H66 -> 247715.1 | M70: 12745.5 | N70: 0.0542431872 | S70: 35110.4 | T70: ='Portfolio--2019 Specific'!J66 -> 37014.9 | U70: 1904.5 | V70: 0.0542431872 | W70: 270080 | X70: 284730 | Y70: 14650 | Z70: 0.0542431872
B71: ay | D71: Program Evaluation | K71: 1993756.818 | L71: ='Portfolio--2019 Specific'!H67 -> 1659899.538 | M71: -333857.28 | N71: -0.1674513546 | S71: 257124.582 | T71: ='Portfolio--2019 Specific'!J67 -> 200737.862 | U71: -56386.72 | V71: -0.2192972743 | W71: 2250881.4 | X71: 1860637.4 | Y71: -390244 | Z71: -0.1733738615
B72: az | D72: Biennial Electric Conservation Acquisition Review | K72: 75000 | L72: ='Portfolio--2019 Specific'!H68 -> 76086 | M72: 1086 | N72: 0.01448 | T72: ='Portfolio--2019 Specific'!J68 -> 0 | U72: 0 | W72: 75000 | X72: 76086 | Y72: 1086 | Z72: 0.01448
B73: ba | D73: Subtotal, Research & Compliance | K73: 3300121.802 | L73: ='Portfolio--2019 Specific'!H69 -> 3117702.182 | M73: -182419.62 | N73: -0.05527663248 | S73: 389932.798 | T73: ='Portfolio--2019 Specific'!J69 -> 356012.418 | U73: -33920.38 | V73: -0.08699032288 | W73: 3690054.6 | X73: 3473714.6 | Y73: -216340 | Z73: -0.05862785879
L74: ='Portfolio--2019 Specific'!H70 -> 0 | M74: 0 | T74: ='Portfolio--2019 Specific'!J70 -> 0 | U74: 0 | X74: 0 | Y74: 0
B75: bb | D75: Total Savings, Efficiency Programs Included in CE Calculations | G75: 239126.786 | H75: ='Portfolio--2019 Specific'!G71 -> 228771.7938 | I75: =H75-G75 -> -10354.99222 | J75: -0.0433033555 | K75: 83179667.31 | L75: ='Portfolio--2019 Specific'!H71 -> 82701969.68 | M75: -477697.6289 | N75: -0.005742961524 | O75: 3233146.42 | P75: ='Portfolio--2019 Specific'!I71 -> 3147391.12 | Q75: =P75-O75 -> -85755.3 | R75: -0.02652379103 | S75: 15791273.72 | T75: ='Portfolio--2019 Specific'!J71 -> 15910510.63 | U75: 119236.9107 | V75: 0.0075508102 | W75: 98970941.03 | X75: 98612480.31 | Y75: -358460.7183 | Z75: -0.003621878448
D77: Other Electric Programs
B78: bc | C78: E150 | D78: Net Metering | K78: 1093890 | L78: ='Portfolio--2019 Specific'!H74 -> 1091698 | M78: =L78-K78 -> -2192 | N78: =(L78-K78)/K78 -> -0.002003857792 | T78: ='Portfolio--2019 Specific'!J74 -> 0 | U78: =T78-S78 -> 0 | W78: 1093890 | X78: =L78+T78 -> 1091698 | Y78: =X78-W78 -> -2192 | Z78: =(X78-W78)/W78 -> -0.002003857792
B79: bd | D79: Subtotal, Other Electric Programs | K79: 1093889.6 | L79: ='Portfolio--2019 Specific'!H75 -> 1091698 | M79: -2191.6 | N79: -0.002003492857 | S79: 0 | T79: ='Portfolio--2019 Specific'!J75 -> 0 | U79: 0 | W79: 1093890 | X79: 1091698 | Y79: -2192 | Z79: -0.002003857792
B83: be | D83: GRAND TOTAL All Programs | G83: 239126.786 | H83: ='Portfolio--2019 Specific'!G79 -> 228771.7938 | I83: =G83-H83 -> 10354.99222 | J83: =(H83-G83)/G83 -> -0.0433033555 | K83: 84273556.91 | L83: ='Portfolio--2019 Specific'!H79 -> 83793667.68 | M83: =L83-K83 -> -479889.2289 | N83: -0.005694422385 | O83: 3233146.42 | P83: ='Portfolio--2019 Specific'!I79 -> 3147391.12 | Q83: =P83-O83 -> -85755.3 | R83: =(P83-O83)/O83 -> -0.02652379103 | S83: 15791273.72 | T83: ='Portfolio--2019 Specific'!J79 -> 15910510.63 | U83: =T83-S83 -> 119236.9107 | V83: =(T83-S83)/S83 -> 0.0075508102 | W83: =W75+W79 -> 100064831 | X83: 99704178.31 | Y83: =X83-W83 -> -360652.7183 | Z83: -0.003604190549
G84: 27.29757831 | H84: ='Portfolio--2019 Specific'!G80 -> 26.11550157 | I84: 1.182076738 | J84: -0.0433033555

Sheet Portfolio--2019 Specific
B1: Updated 2019 for ACP
F2: PSE Conservation Rider Savings Goals and Budgets
B3: Last revised: | D3: =NOW() -> 2018-11-16T10:51:14.690
B4: Ref # | C4: Schedule Nos. (Unless otherwise noted, applies to both electric and gas) | D4: Program Name | G4: MWh Savings | H4: Electric Rider Budget | I4: Therm Savings | J4: Gas Rider Budget | K4: Total Rider Budget
D5: (All indented program or activity names are color-coded and comprise the totals of the above program or activity grouping.)
D6: Residential Energy Management
B7: a | C7: 201 | D7: Low Income Weatherization | G7: ='2019 Sector View Elect'!T8/1000 -> 1956.02547 | H7: ='2019 Sector View Elect'!S8 -> 4688441.457 | I7: ='2019 Sector View Gas'!T8 -> 16079.57 | J7: ='2019 Sector View Gas'!S8 -> 656080.1925 | K7: =H7:H22+J7:J22 -> 5344521.65
B8: b | C8: 214 | D8: Single Family Existing Subtotal | G8: =SUM(G9:G18) -> 79996.23759 | H8: =SUM(H9:H18) -> 21376702.62 | I8: =SUM(I9:I18) -> 1418098.25 | J8: =SUM(J9:J18) -> 6326822.03 | K8: 27703524.65
B9: c | E9: Residential lighting | G9: ='2019 Sector View Elect'!T16/1000 -> 60073.00909 | H9: ='2019 Sector View Elect'!S16 -> 11667683.96 | K9: 11667683.96
B10: d | E10: Space heat | G10: ='2019 Sector View Elect'!T12/1000 -> 7276.125 | H10: ='2019 Sector View Elect'!S12 -> 3460106.4 | I10: ='2019 Sector View Gas'!T12 -> 504161 | J10: ='2019 Sector View Gas'!S12 -> 1513380 | K10: 4973486.4
B11: e | E11: Water heat | G11: ='2019 Sector View Elect'!T10/1000 -> 757.802 | H11: ='2019 Sector View Elect'!S10 -> 401840.4 | I11: ='2019 Sector View Gas'!T10 -> 109907 | J11: ='2019 Sector View Gas'!S10 -> 341556.4 | K11: 743396.8
B12: f | E12: Single Family Rental Pilot | G12: ='2019 Sector View Elect'!T13/1000 -> 0 | H12: ='2019 Sector View Elect'!S13 -> 104586.4 | I12: ='2019 Sector View Gas'!T13 -> 0 | J12: ='2019 Sector View Gas'!S13 -> 94586.4 | K12: 199172.8
B13: g | E13: Home Energy Assessment | G13: ='2019 Sector View Elect'!T9/1000 -> 4782.5515 | H13: ='2019 Sector View Elect'!S9 -> 2505933.7 | I13: ='2019 Sector View Gas'!T9 -> 0 | J13: ='2019 Sector View Gas'!S9 -> 0 | K13: 2505933.7
B14: h | E14: Home Appliances | G14: ='2019 Sector View Elect'!T14/1000 -> 2047.79 | H14: ='2019 Sector View Elect'!S14 -> 850025 | I14: ='2019 Sector View Gas'!T15 -> 12210 | J14: ='2019 Sector View Gas'!S15 -> 0 | K14: 850025
B15: i | E15: Web-Enabled Thermostats | G15: ='2019 Sector View Elect'!T18/1000 -> 1639.02 | H15: ='2019 Sector View Elect'!S18 -> 423669.2 | I15: ='2019 Sector View Gas'!T16 -> 258070 | J15: ='2019 Sector View Gas'!S16 -> 1057222.6 | K15: 1480891.8
B16: j | E16: Showerheads | G16: ='2019 Sector View Elect'!T15/1000 -> 1567.972 | H16: ='2019 Sector View Elect'!S15 -> 404352.4 | I16: ='2019 Sector View Gas'!T14 -> 116700.95 | J16: ='2019 Sector View Gas'!S14 -> 375961.64 | K16: 780314.04
B17: k | E17: Weatherization | G17: ='2019 Sector View Elect'!T11/1000 -> 1851.968 | H17: ='2019 Sector View Elect'!S11 -> 843712.6 | I17: ='2019 Sector View Gas'!T11 -> 417049.3 | J17: ='2019 Sector View Gas'!S11 -> 2351337 | K17: 3195049.6
B18: l | E18: Home Energy Reports | G18: ='2019 Sector View Elect'!T17 -> 0 | H18: ='2019 Sector View Elect'!S17 -> 714792.56 | I18: ='2019 Sector View Gas'!T17 -> 0 | J18: ='2019 Sector View Gas'!S17 -> 592777.99 | K18: 1307570.55
B19: m | C19: 215 | D19: Single Family New Construction | G19: ='2019 Sector View Elect'!T19/1000+'2019 Sector View Elect'!T20/1000 -> 381.238 | H19: ='2019 Sector View Elect'!S19+'2019 Sector View Elect'!S20 -> 272905.2 | I19: =+'2019 Sector View Gas'!T18 -> 16045 | J19: ='2019 Sector View Gas'!S18 -> 112972.24 | K19: 385877.44
B20: n | C20: 217 | D20: Multifamily Retrofit | G20: ='2019 Sector View Elect'!T21/1000 -> 14728.652 | H20: ='2019 Sector View Elect'!S21 -> 9315206.925 | I20: ='2019 Sector View Gas'!T19 -> 50031.4 | J20: ='2019 Sector View Gas'!S19 -> 401871.025 | K20: 9717077.95
B21: o | C21: 218 | D21: Multifamily New Construction | G21: ='2019 Sector View Elect'!T22/1000 -> 3752 | H21: ='2019 Sector View Elect'!S22 -> 1954068.36 | I21: ='2019 Sector View Gas'!T20 -> 84000 | J21: ='2019 Sector View Gas'!S20 -> 464002.7 | K21: 2418071.06
B22: p | D22: Total, Residential Programs | G22: =G7+G8+SUM(G19:G21) -> 100814.1531 | H22: =H7+H8+SUM(H19:H21) -> 37607324.56 | I22: =I7+I8+SUM(I19:I21) -> 1584254.22 | J22: =J7+J8+SUM(J19:J21) -> 7961748.188 | K22: 45569072.75
D24: Business Energy Management
B25: q | C25: 250 | D25: Commercial / Industrial Retrofit | G25: =('2019 Sector View Elect'!T27/1000)+('2019 Sector View Elect'!T28/1000) -> 60750 | H25: ='2019 Sector View Elect'!S27+'2019 Sector View Elect'!S28 -> 15380823.86 | I25: ='2019 Sector View Gas'!T26 -> 425000 | J25: ='2019 Sector View Gas'!S26 -> 1648600 | K25: =H25:H33+J25:J33 -> 17029423.86
B26: r | C26: 251 | D26: Commercial/Industrial New Construction | G26: ='2019 Sector View Elect'!T29/1000 -> 20000 | H26: ='2019 Sector View Elect'!S29 -> 4795358.4 | I26: ='2019 Sector View Gas'!T27 -> 105000 | J26: ='2019 Sector View Gas'!S27 -> 499700 | K26: 5295058.4
B27: s | C27: 253 | D27: Commercial Strategic Energy Management | G27: ='2019 Sector View Elect'!T30/1000 -> 13000 | H27: ='2019 Sector View Elect'!S30 -> 1417739 | I27: ='2019 Sector View Gas'!T28 -> 670000 | J27: ='2019 Sector View Gas'!S28 -> 569682 | K27: 1987421
B28: t | C28: E258 | D28: Large Power User - Self Directed Program Subtotal | G28: =G29+G30 -> 1000 | H28: =H29+H30 -> 1920496.873 | K28: 1920496.873
B29: u | C29: E258 | E29: 449 Customers | G29: ='2019 Sector View Elect'!T35/1000 -> 500 | H29: ='2019 Sector View Elect'!S35 -> 623198.779 | K29: 623198.779
B30: v | C30: E258 | E30: Non-449 Customers | G30: ='2019 Sector View Elect'!T36/1000 -> 500 | H30: ='2019 Sector View Elect'!S36 -> 1297298.094 | K30: 1297298.094
B31: w | C31: 261 | D31: Energy Efficient Technology Evaluation | G31: ='2019 Sector View Elect'!T37 -> 0 | H31: ='2019 Sector View Elect'!S37 -> 0 | I31: ='2019 Sector View Gas'!T31 -> 0 | J31: ='2019 Sector View Gas'!S31 -> 0 | K31: 0
B32: x | C32: 262 | D32: Commercial Rebates | G32: ='2019 Sector View Elect'!T38/1000 -> 19657.6407 | H32: ='2019 Sector View Elect'!S38 -> 5780091.04 | I32: ='2019 Sector View Gas'!T32 -> 361136.9 | J32: ='2019 Sector View Gas'!S32 -> 1211191.8 | K32: 6991282.84
B33: y | D33: Subtotal, Business Programs | G33: =SUM(G25:G28)+SUM(G31:G32) -> 114407.6407 | H33: =SUM(H25:H28)+SUM(H31:H32) -> 29294509.17 | I33: =SUM(I25:I32) -> 1561136.9 | J33: =SUM(J25:J32) -> 3929173.8 | K33: 33223682.97
D35: Pilots With Uncertain Savings
B36: z | C36: 249 | D36: Residential | G36: ='2019 Sector View Elect'!T52 -> 0 | H36: ='2019 Sector View Elect'!S52 -> 0 | I36: ='2019 Sector View Gas'!T45 -> 0 | J36: ='2019 Sector View Gas'!S45 -> 0 | K36: =H36:H38+J36:J38 -> 0
B37: aa | C37: 249 | D37: Commercial Pay for Performance Pilot | G37: ='2019 Sector View Elect'!T53/1000 -> 750 | H37: ='2019 Sector View Elect'!S53 -> 244130 | I37: ='2019 Sector View Gas'!T46 -> 2000 | J37: ='2019 Sector View Gas'!S46 -> 10000 | K37: 254130
B38: ab | D38: Subtotal, Pilots | G38: =SUM(G36:G37) -> 750 | H38: =SUM(H36:H37) -> 244130 | I38: =SUM(I36:I37) -> 2000 | J38: =SUM(J36:J37) -> 10000 | K38: 254130
D40: Regional Efficiency Programs
B41: ac | C41: E254 | D41: NW Energy Efficiency Alliance (NEEA) | G41: ='2019 Sector View Elect'!T59/1000 -> 11300 | H41: ='2019 Sector View Elect'!S59 -> 5200000 | K41: =H41:H44+J41:J44 -> 5200000
B42: ad | D42: NEEA Natural Gas Market Transformation | I42: ='2019 Sector View Gas'!T52 -> 0 | J42: ='2019 Sector View Gas'!S52 -> 2434244 | K42: 2434244
B43: ae | C43: E292 | D43: Generation, Transmission and Distribution | G43: ='2019 Sector View Elect'!T60/1000 -> 1500 | H43: ='2019 Sector View Elect'!S60 -> 0 | K43: 0
B44: af | D44: Subtotal, Regional Programs | G44: =SUM(G41:G43) -> 12800 | H44: =SUM(H41:H43) -> 5200000 | I44: =SUM(I41:I43) -> 0 | J44: =SUM(J41:J43) -> 2434244 | K44: 7634244
D46: Energy Efficiency Portfolio Support
B47: ag | D47: Data and Systems Services | H47: ='2019 Sector View Elect'!S66 -> 1095387.42 | J47: ='2019 Sector View Gas'!S58 -> 163678.58 | K47: =H47:H61+J47:J61 -> 1259066
B48: ah | D48: Rebates Processing | H48: ='2019 Sector View Elect'!S67 -> 558344.4 | J48: ='2019 Sector View Gas'!S59 -> 82865.6 | K48: =H48:H62+J48:J62 -> 641210
B49: ai | D49: Verification Team | H49: ='2019 Sector View Elect'!S68 -> 535443.04 | J49: ='2019 Sector View Gas'!S60 -> 79338.96 | K49: =H49:H63+J49:J63 -> 614782
B50: aj | D50: Programs Support | H50: ='2019 Sector View Elect'!S69 -> 411434.4 | J50: ='2019 Sector View Gas'!S61 -> 61685.6 | K50: =H50:H64+J50:J64 -> 473120
B51: ak | D51: Trade Ally Support | H51: ='2019 Sector View Elect'!S70 -> 118000 | J51: ='2019 Sector View Gas'!S62 -> 22000 | K51: =H51:H65+J51:J65 -> 140000
B52: al | D52: Contractor Alliance Network (net of revenue + cost) | H52: ='2019 Sector View Elect'!S71 -> 32896 | J52: ='2019 Sector View Gas'!S63 -> 32896 | K52: =H52:H66+J52:J66 -> 65792
B53: am | D53: Automated Benchmarking System | H53: ='2019 Sector View Elect'!S72 -> 172732.383 | J53: ='2019 Sector View Gas'!S64 -> 77034.307 | K53: =H53:H67+J53:J67 -> 249766.69
B54: an | D54: Energy Advisors | H54: ='2019 Sector View Elect'!S73 -> 1147435.92 | J54: ='2019 Sector View Gas'!S65 -> 173187.08 | K54: =H54:H68+J54:J68 -> 1320623
B55: ao | D55: Energy Efficient Communities | H55: ='2019 Sector View Elect'!S74 -> 989079.6 | J55: ='2019 Sector View Gas'!S66 -> 143160.3 | K55: =H55:H69+J55:J69 -> 1132239.9
B56: ap | D56: Customer Digital Experience | H56: ='2019 Sector View Elect'!S75 -> 1237479.33 | J56: ='2019 Sector View Gas'!S67 -> 224048.95 | K56: =H56:H70+J56:J70 -> 1461528.28
B57: aq | D57: Market Integration | H57: ='2019 Sector View Elect'!S79 -> 261226.752 | J57: ='2019 Sector View Gas'!S71 -> 38863.648 | K57: =H57:H71+J57:J71 -> 300090.4
B58: ar | D58: Events | H58: ='2019 Sector View Elect'!S80 -> 596351.62 | J58: ='2019 Sector View Gas'!S72 -> 110764 | K58: =H58:H72+J58:J72 -> 707115.62
B59: as | D59: Brochures, non program-specific | H59: ='2019 Sector View Elect'!S81 -> 82492.9 | J59: ='2019 Sector View Gas'!S73 -> 9809.2 | K59: =H59:H73+J59:J73 -> 92302.1
B60: at | C60: 202 | D60: Education | H60: ='2019 Sector View Elect'!S82 -> 0 | J60: ='2019 Sector View Gas'!S74 -> 0 | K60: =H60:H74+J60:J74 -> 0
B61: au | D61: Subtotal, Portfolio Support | H61: =SUM(H47:H60) -> 7238303.765 | J61: =SUM(J47:J60) -> 1219332.225 | K61: =H61:H75+J61:J75 -> 8457635.99
D63: Energy Efficiency Research & Compliance
B64: av | D64: Conservation Supply Curves | H64: ='2019 Sector View Elect'!S88 -> 209931 | J64: ='2019 Sector View Gas'!S80 -> 31369 | K64: =H64:H68+J64:J68 -> 241300
B65: aw | D65: Strategic Planning | H65: ='2019 Sector View Elect'!S89 -> 924070.544 | J65: ='2019 Sector View Gas'!S81 -> 86890.656 | K65: =H65:H69+J65:J69 -> 1010961.2
B66: ax | D66: Market Research | H66: ='2019 Sector View Elect'!S90 -> 247715.1 | J66: ='2019 Sector View Gas'!S82 -> 37014.9 | K66: =H66:H70+J66:J70 -> 284730
B67: ay | D67: Program Evaluation | H67: ='2019 Sector View Elect'!S91 -> 1659899.538 | J67: ='2019 Sector View Gas'!S83 -> 200737.862 | K67: =H67:H71+J67:J71 -> 1860637.4
B68: az | D68: Biennial Electric Conservation Acquisition Review | H68: ='2019 Sector View Elect'!S92 -> 76086 | K68: =H68:H72+J68:J72 -> 76086
B69: ba | D69: Subtotal, Research & Compliance | H69: =SUM(H64:H68) -> 3117702.182 | J69: =SUM(J64:J68) -> 356012.418 | K69: =H69+J69 -> 3473714.6
B71: bb | C71: Total Savings, Efficiency Programs Included in CE Calculations | G71: =G22+G33+G38+G44 -> 228771.7938 | H71: =H22+H33+H38+H44+H61+H69 -> 82701969.68 | I71: =I22+I33+I38+I44 -> 3147391.12 | J71: =J22+J33+J38+J44+J61+J69 -> 15910510.63 | K71: =H71+J71 -> 98612480.31
D73: Other Electric Programs
B74: bc | C74: E150 | D74: Net Metering | H74: ='2019 Sector View Elect'!S98 -> 1091698
B75: bd | D75: Subtotal, Other Electric Programs | H75: =SUM(H74:H74) -> 1091698 | J75: =SUM(J74:J74) -> 0
B79: be | D79: GRAND TOTAL All Programs | G79: =G71 -> 228771.7938 | H79: =H71+H75 -> 83793667.68 | I79: =I71 -> 3147391.12 | J79: =J71+J75 -> 15910510.63 | K79: =H79+J79 -> 99704178.31
G80: =G79/8760 -> 26.11550157
B82: bf | E82: Blue cells = use for 10% "info-only" calculation: | H82: =(H38+H61)/H71 -> 0.09047467423 | J82: =(J38+J61)/J71 -> 0.07726541615
F83: Add up all blue cells and divide by "Total, Efficiency Programs Included in CE Calculations" line.
F84: HER program costs excluded from "info-only" calculation because savings will be measured.
B86: bg | E86: Purple cells = use to indicate a reasonable amt. spent on EM&V (condition (6)(c)): | H86: =(H47+H49+SUM(H67:H68))/(H22+H33) -> 0.05032471922 | J86: =(J47+J49+SUM(J67:J68))/(J22+J33) -> 0.0373188389
B87: bh | E87: EM&V Budget (WAC 480-109-120(1)(b)(vi)(B)) | H87: =(H47+H49+SUM(H67:H68)) -> 3366815.998 | J87: =(J47+J49+SUM(J67:J68)) -> 443755.402
F88: (Line bg) Add up the sum of [Data & Systems Services + Program Evaluation + BECAR + Verification] purple cells and divide by the [Residential + Business] purple cells.
F89: (Line bh) Add up the sum of [Data & Systems Services + Program Evaluation + BECAR + Verification] purple cells

Sheet 2019 Sector View Elect
C2: Energy Efficiency 2019 Budgets and Aggregate Program Savings
C3: Sector View | I3: Please see category descriptions at the bottom of the sector table.
G4: Electric Programs
I5: Budget Category
B6: Workbook Name | C6: Schedule | D6: Comment | E6: Description (Blue, indented text indicates a sub-total value) | H6: Order Number (Click on the order# below to link to the detail page) | I6: Program Labor | J6: Marketing Labor | K6: Overhead | L6: Marketing | M6: Employee/Office Expense | N6: Outside Services | O6: Materials | P6: Miscellaneous | Q6: DBtC | R6: Revenue | S6: Total Budget | T6: Total Savings kWh | V6: Comments
C7: Residential Energy Management
B8: LIW Detail_REM E201_Elec | C8: E201 | E8: Low Income Weatherization | H8: 18230611 | I8: =' LowIncWx Detail_REM E201_Elec'!D6 -> 132640 | J8: =' LowIncWx Detail_REM E201_Elec'!E6 -> 0 | K8: =' LowIncWx Detail_REM E201_Elec'!F6 -> 121100.32 | L8: =' LowIncWx Detail_REM E201_Elec'!G6 -> 48600 | M8: =' LowIncWx Detail_REM E201_Elec'!H6 -> 4500 | N8: =' LowIncWx Detail_REM E201_Elec'!I6 -> 22500 | O8: =' LowIncWx Detail_REM E201_Elec'!J6 -> 1350 | P8: =' LowIncWx Detail_REM E201_Elec'!K6 -> 1350 | Q8: =' LowIncWx Detail_REM E201_Elec'!L6 -> 4356401.137 | R8: =' LowIncWx Detail_REM E201_Elec'!M6 -> 0 | S8: =' LowIncWx Detail_REM E201_Elec'!N6 -> 4688441.457 | T8: =' LowIncWx Detail_REM E201_Elec'!O6 -> 1956025.47
B9: HomePrint Detail_REM_E214 Elec | C9: E214 | E9: Home Energy Assessments | H9: 18230625 | I9: ='HmEnrgAsmt Detail_REM_E214 Elec'!D6 -> 62400 | J9: ='HmEnrgAsmt Detail_REM_E214 Elec'!E6 -> 0 | K9: ='HmEnrgAsmt Detail_REM_E214 Elec'!F6 -> 56971.2 | L9: ='HmEnrgAsmt Detail_REM_E214 Elec'!G6 -> 132500 | M9: ='HmEnrgAsmt Detail_REM_E214 Elec'!H6 -> 1500 | N9: ='HmEnrgAsmt Detail_REM_E214 Elec'!I6 -> 181600 | O9: ='HmEnrgAsmt Detail_REM_E214 Elec'!J6 -> 0 | P9: ='HmEnrgAsmt Detail_REM_E214 Elec'!K6 -> 1000 | Q9: ='HmEnrgAsmt Detail_REM_E214 Elec'!L6 -> 2069962.5 | R9: ='HmEnrgAsmt Detail_REM_E214 Elec'!M6 -> 0 | S9: ='HmEnrgAsmt Detail_REM_E214 Elec'!N6 -> 2505933.7 | T9: ='HmEnrgAsmt Detail_REM_E214 Elec'!O6 -> 4782551.5
B10: WaterHea_Detail_REM_E214 Elec | C10: E214 | E10: SF Existing Water Heat | H10: 18230626 | I10: ='WaterHea_Detail_REM_E214 Elec'!D6 -> 20800 | J10: ='WaterHea_Detail_REM_E214 Elec'!E6 -> 0 | K10: ='WaterHea_Detail_REM_E214 Elec'!F6 -> 18990.4 | L10: ='WaterHea_Detail_REM_E214 Elec'!G6 -> 78750 | M10: ='WaterHea_Detail_REM_E214 Elec'!H6 -> 1200 | N10: ='WaterHea_Detail_REM_E214 Elec'!I6 -> 0 | O10: ='WaterHea_Detail_REM_E214 Elec'!J6 -> 1000 | P10: ='WaterHea_Detail_REM_E214 Elec'!K6 -> 500 | Q10: ='WaterHea_Detail_REM_E214 Elec'!L6 -> 280600 | R10: ='WaterHea_Detail_REM_E214 Elec'!M6 -> 0 | S10: ='WaterHea_Detail_REM_E214 Elec'!N6 -> 401840.4 | T10: ='WaterHea_Detail_REM_E214 Elec'!O6 -> 757802
B11: Wx_Detail_REM E214 Elec | C11: E214 | E11: SF Existing Weatherization | H11: 18230627 | I11: ='Wx_Detail_REM E214 Elec'!D6 -> 63200 | J11: ='Wx_Detail_REM E214 Elec'!E6 -> 0 | K11: ='Wx_Detail_REM E214 Elec'!F6 -> 57701.6 | L11: ='Wx_Detail_REM E214 Elec'!G6 -> 137500 | M11: ='Wx_Detail_REM E214 Elec'!H6 -> 3000 | N11: ='Wx_Detail_REM E214 Elec'!I6 -> 110000 | O11: ='Wx_Detail_REM E214 Elec'!J6 -> 0 | P11: ='Wx_Detail_REM E214 Elec'!K6 -> 1000 | Q11: ='Wx_Detail_REM E214 Elec'!L6 -> 471311 | R11: ='Wx_Detail_REM E214 Elec'!M6 -> 0 | S11: ='Wx_Detail_REM E214 Elec'!N6 -> 843712.6 | T11: ='Wx_Detail_REM E214 Elec'!O6 -> 1851968
B12: SpcHeat Detail_REM_E214 Elec | C12: E214 | E12: SF Existing Space Heat | H12: 18230628 | I12: ='SpcHeat Detail_REM_E214 Elec'!D6 -> 52800 | J12: ='SpcHeat Detail_REM_E214 Elec'!E6 -> 0 | K12: ='SpcHeat Detail_REM_E214 Elec'!F6 -> 48206.4 | L12: ='SpcHeat Detail_REM_E214 Elec'!G6 -> 228000 | M12: ='SpcHeat Detail_REM_E214 Elec'!H6 -> 3000 | N12: ='SpcHeat Detail_REM_E214 Elec'!I6 -> 0 | O12: ='SpcHeat Detail_REM_E214 Elec'!J6 -> 1000 | P12: ='SpcHeat Detail_REM_E214 Elec'!K6 -> 500 | Q12: ='SpcHeat Detail_REM_E214 Elec'!L6 -> 3126600 | R12: ='SpcHeat Detail_REM_E214 Elec'!M6 -> 0 | S12: ='SpcHeat Detail_REM_E214 Elec'!N6 -> 3460106.4 | T12: ='SpcHeat Detail_REM_E214 Elec'!O6 -> 7276125
C13: E214 | D13: Discontinued in 2019 | E13: SF Rentals Pilot | H13: 18230525 | I13: ='SFRental_REM_E214 Elec'!D6 -> 12800 | J13: ='SFRental_REM_E214 Elec'!E6 -> 0 | K13: ='SFRental_REM_E214 Elec'!F6 -> 11686.4 | L13: ='SFRental_REM_E214 Elec'!G6 -> 10000 | M13: ='SFRental_REM_E214 Elec'!H6 -> 100 | N13: ='SFRental_REM_E214 Elec'!I6 -> 70000 | O13: ='SFRental_REM_E214 Elec'!J6 -> 0 | P13: ='SFRental_REM_E214 Elec'!K6 -> 0 | Q13: ='SFRental_REM_E214 Elec'!L6 -> 0 | R13: ='SFRental_REM_E214 Elec'!M6 -> 0 | S13: ='SFRental_REM_E214 Elec'!N6 -> 104586.4 | T13: ='SFRental_REM_E214 Elec'!O6 -> 0
B14: HmAppplc_Detail_REM_E214 Elec | C14: E214 | E14: Home Appliances | H14: 18230434 | I14: ='HmAppplc_Detail_REM_E214 Elec'!D6 -> 80000 | J14: ='HmAppplc_Detail_REM_E214 Elec'!E6 -> 0 | K14: ='HmAppplc_Detail_REM_E214 Elec'!F6 -> 73040 | L14: ='HmAppplc_Detail_REM_E214 Elec'!G6 -> 110000 | M14: ='HmAppplc_Detail_REM_E214 Elec'!H6 -> 1000 | N14: ='HmAppplc_Detail_REM_E214 Elec'!I6 -> 137000 | O14: ='HmAppplc_Detail_REM_E214 Elec'!J6 -> 1000 | P14: ='HmAppplc_Detail_REM_E214 Elec'!K6 -> 500 | Q14: ='HmAppplc_Detail_REM_E214 Elec'!L6 -> 447485 | R14: ='HmAppplc_Detail_REM_E214 Elec'!M6 -> 0 | S14: ='HmAppplc_Detail_REM_E214 Elec'!N6 -> 850025 | T14: ='HmAppplc_Detail_REM_E214 Elec'!O6 -> 2047790
B15: ShwrHead_Detail_REM_E214 Elec | C15: E214 | E15: Residential Showerheads | H15: 18230435 | I15: ='ShwrHead_Detail_REM_E214 Elec'!D6 -> 24800 | J15: ='ShwrHead_Detail_REM_E214 Elec'!E6 -> 0 | K15: ='ShwrHead_Detail_REM_E214 Elec'!F6 -> 22642.4 | L15: ='ShwrHead_Detail_REM_E214 Elec'!G6 -> 80915 | M15: ='ShwrHead_Detail_REM_E214 Elec'!H6 -> 500 | N15: ='ShwrHead_Detail_REM_E214 Elec'!I6 -> 66000 | O15: ='ShwrHead_Detail_REM_E214 Elec'!J6 -> 500 | P15: ='ShwrHead_Detail_REM_E214 Elec'!K6 -> 250 | Q15: ='ShwrHead_Detail_REM_E214 Elec'!L6 -> 208745 | R15: ='ShwrHead_Detail_REM_E214 Elec'!M6 -> 0 | S15: ='ShwrHead_Detail_REM_E214 Elec'!N6 -> 404352.4 | T15: ='ShwrHead_Detail_REM_E214 Elec'!O6 -> 1567972
B16: Lighting Detail_REM_E214 Elec | C16: E214 | E16: Energy Efficient Lighting Services | H16: 18230440 | I16: ='Lighting Detail_REM_E214 Elec'!D6 -> 265920 | J16: ='Lighting Detail_REM_E214 Elec'!E6 -> 0 | K16: ='Lighting Detail_REM_E214 Elec'!F6 -> 242784.96 | L16: ='Lighting Detail_REM_E214 Elec'!G6 -> 1355000 | M16: ='Lighting Detail_REM_E214 Elec'!H6 -> 11000 | N16: ='Lighting Detail_REM_E214 Elec'!I6 -> 1175100 | O16: ='Lighting Detail_REM_E214 Elec'!J6 -> 8250 | P16: ='Lighting Detail_REM_E214 Elec'!K6 -> 0 | Q16: ='Lighting Detail_REM_E214 Elec'!L6 -> 8609629 | R16: ='Lighting Detail_REM_E214 Elec'!M6 -> 0 | S16: ='Lighting Detail_REM_E214 Elec'!N6 -> 11667683.96 | T16: ='Lighting Detail_REM_E214 Elec'!O6 -> 60073009.09
B17: HER Detail_REM_E214 elec. | C17: E214 | E17: Home Energy Reports | H17: 18230461 | I17: ='HER Detail_REM_E214 elec.'!D6 -> 20800 | J17: ='HER Detail_REM_E214 elec.'!E6 -> 0 | K17: ='HER Detail_REM_E214 elec.'!F6 -> 18990.4 | L17: ='HER Detail_REM_E214 elec.'!G6 -> 0 | M17: ='HER Detail_REM_E214 elec.'!H6 -> 600 | N17: ='HER Detail_REM_E214 elec.'!I6 -> 337117.16 | O17: ='HER Detail_REM_E214 elec.'!J6 -> 100 | P17: ='HER Detail_REM_E214 elec.'!K6 -> 150 | Q17: ='HER Detail_REM_E214 elec.'!L6 -> 337035 | R17: ='HER Detail_REM_E214 elec.'!M6 -> 0 | S17: ='HER Detail_REM_E214 elec.'!N6 -> 714792.56 | T17: ='HER Detail_REM_E214 elec.'!O6 -> 0
B18: Web Tstat Detail_REM E214 Elec | C18: E214 | E18: Web-Enabled Thermostat | H18: 18230023 | I18: ='Web Tstat Detail_REM E214 Elec'!D6 -> 39400 | J18: ='Web Tstat Detail_REM E214 Elec'!E6 -> 0 | K18: ='Web Tstat Detail_REM E214 Elec'!F6 -> 35972.2 | L18: ='Web Tstat Detail_REM E214 Elec'!G6 -> 65000 | M18: ='Web Tstat Detail_REM E214 Elec'!H6 -> 200 | N18: ='Web Tstat Detail_REM E214 Elec'!I6 -> 36100 | O18: ='Web Tstat Detail_REM E214 Elec'!J6 -> 500 | P18: ='Web Tstat Detail_REM E214 Elec'!K6 -> 500 | Q18: ='Web Tstat Detail_REM E214 Elec'!L6 -> 245997 | R18: ='Web Tstat Detail_REM E214 Elec'!M6 -> 0 | S18: ='Web Tstat Detail_REM E214 Elec'!N6 -> 423669.2 | T18: ='Web Tstat Detail_REM E214 Elec'!O6 -> 1639020
B19: SFNC Detail_REM E215 Elec | C19: E215 | E19: Single Family New Construction | H19: 18230405 | I19: ='SFNC Detail_REM E215 Elec'!D6 -> 17600 | J19: ='SFNC Detail_REM E215 Elec'!E6 -> 0 | K19: ='SFNC Detail_REM E215 Elec'!F6 -> 16068.8 | L19: ='SFNC Detail_REM E215 Elec'!G6 -> 10000 | M19: ='SFNC Detail_REM E215 Elec'!H6 -> 1000 | N19: ='SFNC Detail_REM E215 Elec'!I6 -> 0 | O19: ='SFNC Detail_REM E215 Elec'!J6 -> 0 | P19: ='SFNC Detail_REM E215 Elec'!K6 -> 0 | Q19: ='SFNC Detail_REM E215 Elec'!L6 -> 142750 | R19: ='SFNC Detail_REM E215 Elec'!M6 -> 0 | S19: ='SFNC Detail_REM E215 Elec'!N6 -> 187418.8 | T19: ='SFNC Detail_REM E215 Elec'!O6 -> 285543
B20: MfgHmNew Detail_REM E215 Elec | C20: E215 | E20: Manufactured Home New Construction | H20: 18230071 | I20: ='NCMfgHome Detail_REM E215 Elec'!D6 -> 12800 | J20: ='NCMfgHome Detail_REM E215 Elec'!E6 -> 0 | K20: ='NCMfgHome Detail_REM E215 Elec'!F6 -> 11686.4 | L20: ='NCMfgHome Detail_REM E215 Elec'!G6 -> 16000 | M20: ='NCMfgHome Detail_REM E215 Elec'!H6 -> 500 | N20: ='NCMfgHome Detail_REM E215 Elec'!I6 -> 1500 | O20: ='NCMfgHome Detail_REM E215 Elec'!J6 -> 500 | P20: ='NCMfgHome Detail_REM E215 Elec'!K6 -> 0 | Q20: ='NCMfgHome Detail_REM E215 Elec'!L6 -> 42500 | R20: ='NCMfgHome Detail_REM E215 Elec'!M6 -> 0 | S20: ='NCMfgHome Detail_REM E215 Elec'!N6 -> 85486.4 | T20: ='NCMfgHome Detail_REM E215 Elec'!O6 -> 95695
B21: MF Retr Detail_REM E217 Elec | C21: E217 | E21: Multifamily Retrofit | H21: 18230407 | I21: ='MF Retr Detail_REM E217 Elec'!D6 -> 188100 | J21: ='MF Retr Detail_REM E217 Elec'!E6 -> 0 | K21: ='MF Retr Detail_REM E217 Elec'!F6 -> 171735.3 | L21: ='MF Retr Detail_REM E217 Elec'!G6 -> 67500 | M21: ='MF Retr Detail_REM E217 Elec'!H6 -> 4000 | N21: ='MF Retr Detail_REM E217 Elec'!I6 -> 1200000 | O21: ='MF Retr Detail_REM E217 Elec'!J6 -> 1000 | P21: ='MF Retr Detail_REM E217 Elec'!K6 -> 1000 | Q21: ='MF Retr Detail_REM E217 Elec'!L6 -> 7681871.625 | R21: ='MF Retr Detail_REM E217 Elec'!M6 -> 0 | S21: ='MF Retr Detail_REM E217 Elec'!N6 -> 9315206.925 | T21: ='MF Retr Detail_REM E217 Elec'!O6 -> 14728652
B22: MFNC Detail_REM E218 Elec | C22: E218 | E22: Multi-Family New Construction | H22: 18230486 | I22: ='MFNC Detail_REM E218 Elec'!D6 -> 107720 | J22: ='MFNC Detail_REM E218 Elec'!E6 -> 0 | K22: ='MFNC Detail_REM E218 Elec'!F6 -> 98348.36 | L22: ='MFNC Detail_REM E218 Elec'!G6 -> 35000 | M22: ='MFNC Detail_REM E218 Elec'!H6 -> 4000 | N22: ='MFNC Detail_REM E218 Elec'!I6 -> 302500 | O22: ='MFNC Detail_REM E218 Elec'!J6 -> 3000 | P22: ='MFNC Detail_REM E218 Elec'!K6 -> 0 | Q22: ='MFNC Detail_REM E218 Elec'!L6 -> 1403500 | R22: ='MFNC Detail_REM E218 Elec'!M6 -> 0 | S22: ='MFNC Detail_REM E218 Elec'!N6 -> 1954068.36 | T22: ='MFNC Detail_REM E218 Elec'!O6 -> 3752000
G23: Total, Residential Energy Management | I23: =SUM(I8:I22) -> 1101780 | J23: =SUM(J8:J22) -> 0 | K23: 1005925.14 | L23: 2374765 | M23: 36100 | N23: 3639417.16 | O23: 18200 | P23: 6750 | Q23: 29424387.26 | R23: 0 | S23: 37607324.56 | T23: 100814153.1
C26: Business Energy Managment
B27: CI Retr Detail_BEM E250 Elec | C27: E250 | E27: Commercial/Industrial Retrofit | H27: 18230711 | I27: ='CI Retr Detail_BEM E250 Elec'!C6 -> 687359.8339 | J27: ='CI Retr Detail_BEM E250 Elec'!D6 -> 0 | K27: ='CI Retr Detail_BEM E250 Elec'!E6 -> 633551.5263 | L27: ='CI Retr Detail_BEM E250 Elec'!F6 -> 10150 | M27: ='CI Retr Detail_BEM E250 Elec'!G6 -> 90700 | N27: ='CI Retr Detail_BEM E250 Elec'!H6 -> 639700 | O27: ='CI Retr Detail_BEM E250 Elec'!I6 -> 0 | P27: ='CI Retr Detail_BEM E250 Elec'!J6 -> 0 | Q27: ='CI Retr Detail_BEM E250 Elec'!K6 -> 3230000 | S27: ='CI Retr Detail_BEM E250 Elec'!M6 -> 5291461.36 | T27: ='CI Retr Detail_BEM E250 Elec'!N6 -> 17000000
B28: BusLgtGrants_BEM E250 Elect | C28: E250 | E28: Custom Lighting Grants | H28: 18230724 | I28: ='BusLgtGrants_BEM E250 Elect'!C6 -> 1287500 | J28: ='BusLgtGrants_BEM E250 Elect'!D6 -> 0 | K28: ='BusLgtGrants_BEM E250 Elect'!E6 -> 1188362.5 | L28: ='BusLgtGrants_BEM E250 Elect'!F6 -> 12000 | M28: ='BusLgtGrants_BEM E250 Elect'!G6 -> 45000 | N28: ='BusLgtGrants_BEM E250 Elect'!H6 -> 112500 | O28: ='BusLgtGrants_BEM E250 Elect'!I6 -> 3500 | P28: ='BusLgtGrants_BEM E250 Elect'!J6 -> 3000 | Q28: ='BusLgtGrants_BEM E250 Elect'!K6 -> 7437500 | S28: ='BusLgtGrants_BEM E250 Elect'!M6 -> 10089362.5 | T28: ='BusLgtGrants_BEM E250 Elect'!N6 -> 43750000
B29: CI NC Detail_BEM E251 Elec | C29: E251 | E29: Commercial/Industrial New Construction | H29: 18230715 | I29: ='CI NC Detail_BEM E251 Elec'!C6 -> 340800 | J29: ='CI NC Detail_BEM E251 Elec'!D6 -> 0 | K29: ='CI NC Detail_BEM E251 Elec'!E6 -> 314558.4 | L29: ='CI NC Detail_BEM E251 Elec'!F6 -> 4800 | M29: ='CI NC Detail_BEM E251 Elec'!G6 -> 4800 | N29: ='CI NC Detail_BEM E251 Elec'!H6 -> 100800 | O29: ='CI NC Detail_BEM E251 Elec'!I6 -> 7200 | P29: ='CI NC Detail_BEM E251 Elec'!J6 -> 0 | Q29: ='CI NC Detail_BEM E251 Elec'!K6 -> 4022400 | S29: ='CI NC Detail_BEM E251 Elec'!M6 -> 4795358.4 | T29: ='CI NC Detail_BEM E251 Elec'!N6 -> 20000000
E30: Commercial Strategic Energy Management | H30: Subtotal | I30: =SUM(I31:I33) -> 443000 | J30: =SUM(J31:J33) -> 0 | K30: =SUM(K31:K33) -> 409739 | L30: 5000 | M30: 15000 | N30: 30000 | O30: 5000 | P30: 10000 | Q30: 500000 | R30: 0 | S30: 1417739 | T30: 13000000
B31: RCM Detail_BEM E253 Elec | C31: E253 | E31: SEM | H31: 18230723 | I31: ='RCM Detail_BEM E253 Elec'!C6 -> 393000 | J31: ='RCM Detail_BEM E253 Elec'!D6 -> 0 | K31: ='RCM Detail_BEM E253 Elec'!E6 -> 362739 | L31: ='RCM Detail_BEM E253 Elec'!F6 -> 5000 | M31: ='RCM Detail_BEM E253 Elec'!G6 -> 15000 | N31: ='RCM Detail_BEM E253 Elec'!H6 -> 15000 | O31: ='RCM Detail_BEM E253 Elec'!I6 -> 5000 | P31: ='RCM Detail_BEM E253 Elec'!J6 -> 10000 | Q31: ='RCM Detail_BEM E253 Elec'!K6 -> 500000 | S31: ='RCM Detail_BEM E253 Elec'!M6 -> 1305739 | T31: ='RCM Detail_BEM E253 Elec'!N6 -> 13000000
B32: RCM U-S-B Detail_E253 Elec | C32: E253 | E32: Urban Smart Bellevue | H32: 18230414 | I32: ='RCM U-S-B Detail_E253 Elec'!C6 -> 0 | J32: ='RCM U-S-B Detail_E253 Elec'!D6 -> 0 | K32: ='RCM U-S-B Detail_E253 Elec'!E6 -> 0 | L32: ='RCM U-S-B Detail_E253 Elec'!F6 -> 0 | M32: ='RCM U-S-B Detail_E253 Elec'!G6 -> 0 | N32: ='RCM U-S-B Detail_E253 Elec'!H6 -> 0 | O32: ='RCM U-S-B Detail_E253 Elec'!I6 -> 0 | P32: ='RCM U-S-B Detail_E253 Elec'!J6 -> 0 | Q32: ='RCM U-S-B Detail_E253 Elec'!K6 -> 0 | R32: ='RCM U-S-B Detail_E253 Elec'!L6 -> 0 | S32: ='RCM U-S-B Detail_E253 Elec'!M6 -> 0 | T32: ='RCM U-S-B Detail_E253 Elec'!N6 -> 0
B33: ResAcctSW Detail_PSWE_Elec | E33: Resource Accounting Software | H33: 18230502 | I33: ='ResAcctSW Detail_PSWE_Elec'!D6 -> 50000 | J33: ='ResAcctSW Detail_PSWE_Elec'!E6 -> 0 | K33: ='ResAcctSW Detail_PSWE_Elec'!F6 -> 47000 | L33: ='ResAcctSW Detail_PSWE_Elec'!G6 -> 0 | M33: ='ResAcctSW Detail_PSWE_Elec'!H6 -> 0 | N33: ='ResAcctSW Detail_PSWE_Elec'!I6 -> 15000 | O33: ='ResAcctSW Detail_PSWE_Elec'!J6 -> 0 | P33: ='ResAcctSW Detail_PSWE_Elec'!K6 -> 0 | Q33: ='ResAcctSW Detail_PSWE_Elec'!L6 -> 0 | R33: ='ResAcctSW Detail_PSWE_Elec'!M6 -> 0 | S33: ='ResAcctSW Detail_PSWE_Elec'!N6 -> 112000
E34: High Voltage, Self-Directed | H34: Subtotal | I34: =SUM(I35:I36) -> 351824.2252 | J34: =SUM(J35:J36) -> 0 | K34: 326172.6479 | L34: 0 | M34: 0 | N34: 0 | O34: 0 | P34: 0 | Q34: 1242500 | R34: 0 | S34: 1920496.873 | T34: 1000000
B35: LPSD_Detail_449_Elec | C35: E258 | E35: 449 Customers | H35: 18230720 | I35: =LPSD_Detail_449_Elec!C6 -> 94853 | J35: =LPSD_Detail_449_Elec!D6 -> 0 | K35: =LPSD_Detail_449_Elec!E6 -> 88345.77903 | L35: =LPSD_Detail_449_Elec!F6 -> 0 | M35: =LPSD_Detail_449_Elec!G6 -> 0 | N35: =LPSD_Detail_449_Elec!H6 -> 0 | O35: =LPSD_Detail_449_Elec!I6 -> 0 | P35: =LPSD_Detail_449_Elec!J6 -> 0 | Q35: =LPSD_Detail_449_Elec!K6 -> 440000 | R35: =LPSD_Detail_449_Elec!L6 -> 0 | S35: =LPSD_Detail_449_Elec!M6 -> 623198.779 | T35: =LPSD_Detail_449_Elec!N6 -> 500000
B36: LPSD_Detail_Non-449 Elec | C36: E258 | E36: Non-449 Customers | H36: 18230721 | I36: ='LPSD_Detail_Non-449 Elec'!C6 -> 256971.2252 | J36: ='LPSD_Detail_Non-449 Elec'!D6 -> 0 | K36: ='LPSD_Detail_Non-449 Elec'!E6 -> 237826.8689 | L36: ='LPSD_Detail_Non-449 Elec'!F6 -> 0 | M36: ='LPSD_Detail_Non-449 Elec'!G6 -> 0 | N36: ='LPSD_Detail_Non-449 Elec'!H6 -> 0 | O36: ='LPSD_Detail_Non-449 Elec'!I6 -> 0 | P36: ='LPSD_Detail_Non-449 Elec'!J6 -> 0 | Q36: ='LPSD_Detail_Non-449 Elec'!K6 -> 802500 | S36: ='LPSD_Detail_Non-449 Elec'!M6 -> 1297298.094 | T36: ='LPSD_Detail_Non-449 Elec'!N6 -> 500000
B37: TechEval Detail_BEM E261 Elec | C37: E261 | E37: Technology Evaluation | H37: 18230448 | I37: ='TechEval Detail_BEM E261 Elec'!C6 -> 0 | J37: ='TechEval Detail_BEM E261 Elec'!D6 -> 0 | K37: ='TechEval Detail_BEM E261 Elec'!E6 -> 0 | L37: ='TechEval Detail_BEM E261 Elec'!F6 -> 0 | M37: ='TechEval Detail_BEM E261 Elec'!G6 -> 0 | N37: ='TechEval Detail_BEM E261 Elec'!H6 -> 0 | O37: ='TechEval Detail_BEM E261 Elec'!I6 -> 0 | P37: ='TechEval Detail_BEM E261 Elec'!J6 -> 0 | Q37: ='TechEval Detail_BEM E261 Elec'!K6 -> 0 | S37: ='TechEval Detail_BEM E261 Elec'!M6 -> 0 | T37: ='TechEval Detail_BEM E261 Elec'!N6 -> 0
C38: E262 | E38: Business Rebates | H38: Subtotal | I38: =SUM(I39:I44) -> 208080 | J38: =SUM(J39:J44) -> 0 | K38: =SUM(K39:K44) -> 189977.04 | L38: 90000 | M38: 15250 | N38: 851740 | O38: 7750 | P38: 4000 | Q38: 4413294 | R38: 0 | S38: 5780091.04 | T38: =SUM(T39:T44) -> 19657640.7
B39: Comm Lgt Mkdn_E262 Elect | C39: E262 | E39: Lighting to Go--also referred to as Business Lighting Markdowns | H39: 18230714 | I39: ='Comm Lgt Mkdn_E262 Elect'!D6 -> 24000 | J39: ='Comm Lgt Mkdn_E262 Elect'!E6 -> 0 | K39: ='Comm Lgt Mkdn_E262 Elect'!F6 -> 21912 | L39: ='Comm Lgt Mkdn_E262 Elect'!G6 -> 10000 | M39: ='Comm Lgt Mkdn_E262 Elect'!H6 -> 2750 | N39: ='Comm Lgt Mkdn_E262 Elect'!I6 -> 63000 | O39: ='Comm Lgt Mkdn_E262 Elect'!J6 -> 250 | P39: ='Comm Lgt Mkdn_E262 Elect'!K6 -> 500 | Q39: ='Comm Lgt Mkdn_E262 Elect'!L6 -> 357452 | R39: ='Comm Lgt Mkdn_E262 Elect'!M6 -> 0 | S39: ='Comm Lgt Mkdn_E262 Elect'!N6 -> 479864 | T39: ='Comm Lgt Mkdn_E262 Elect'!O6 -> 8969882
B40: Comm Kit-Laund_E262 Elect | C40: E262 | E40: Commercial kitchen and laundry | H40: 18230716 | I40: ='Comm Kit-Laund_E262 Elect'!D6 -> 32000 | J40: ='Comm Kit-Laund_E262 Elect'!E6 -> 0 | K40: ='Comm Kit-Laund_E262 Elect'!F6 -> 29216 | L40: ='Comm Kit-Laund_E262 Elect'!G6 -> 15000 | M40: ='Comm Kit-Laund_E262 Elect'!H6 -> 3500 | N40: ='Comm Kit-Laund_E262 Elect'!I6 -> 0 | O40: ='Comm Kit-Laund_E262 Elect'!J6 -> 0 | P40: ='Comm Kit-Laund_E262 Elect'!K6 -> 0 | Q40: ='Comm Kit-Laund_E262 Elect'!L6 -> 73110 | R40: ='Comm Kit-Laund_E262 Elect'!M6 -> 0 | S40: ='Comm Kit-Laund_E262 Elect'!N6 -> 152826 | T40: ='Comm Kit-Laund_E262 Elect'!O6 -> 452230.7
B41: Comm HVAC_E262 Elect | C41: E262 | E41: Commercial HVAC | H41: 18230718 | I41: ='Comm HVAC_E262 Elect'!D6 -> 19200 | J41: ='Comm HVAC_E262 Elect'!E6 -> 0 | K41: ='Comm HVAC_E262 Elect'!F6 -> 17529.6 | L41: ='Comm HVAC_E262 Elect'!G6 -> 5000 | M41: ='Comm HVAC_E262 Elect'!H6 -> 2000 | N41: ='Comm HVAC_E262 Elect'!I6 -> 0 | O41: ='Comm HVAC_E262 Elect'!J6 -> 5000 | P41: ='Comm HVAC_E262 Elect'!K6 -> 1000 | Q41: ='Comm HVAC_E262 Elect'!L6 -> 318750 | R41: ='Comm HVAC_E262 Elect'!M6 -> 0 | S41: ='Comm HVAC_E262 Elect'!N6 -> 368479.6 | T41: ='Comm HVAC_E262 Elect'!O6 -> 1084350
C42: E262 | E42: Commercial Midstream | H42: 18230524 | I42: ='Comm Upstr-Rooftop_E262 Elect'!D6 -> 10800 | J42: ='Comm Upstr-Rooftop_E262 Elect'!E6 -> 0 | K42: ='Comm Upstr-Rooftop_E262 Elect'!F6 -> 9860.4 | L42: ='Comm Upstr-Rooftop_E262 Elect'!G6 -> 20000 | M42: ='Comm Upstr-Rooftop_E262 Elect'!H6 -> 1000 | N42: ='Comm Upstr-Rooftop_E262 Elect'!I6 -> 250000 | O42: ='Comm Upstr-Rooftop_E262 Elect'!J6 -> 500 | P42: ='Comm Upstr-Rooftop_E262 Elect'!K6 -> 500 | Q42: ='Comm Upstr-Rooftop_E262 Elect'!L6 -> 464782 | R42: ='Comm Upstr-Rooftop_E262 Elect'!M6 -> 0 | S42: ='Comm Upstr-Rooftop_E262 Elect'!N6 -> 757442.4 | T42: ='Comm Upstr-Rooftop_E262 Elect'!O6 -> 871178
B43: Comm ExpLgt_E262 Elect | C43: E262 | E43: Business Lighting Express | H43: 18230722
E44: Business Direct-Install Programs--Includes: | H44: Subtotal | I44: =I45+I46+I47 -> 122080 | J44: =J45+J46+J47 -> 0 | K44: 111459.04 | L44: 40000 | M44: 6000 | N44: 538740 | O44: 2000 | P44: 2000 | Q44: 3199200 | R44: 0 | S44: 4021479.04 | T44: 8280000
B45: Sm Bus DI_E262 Elect | C45: E262 | F45: Small Business Direct Install | H45: 18231134 | I45: ='Sm Bus DI_E262 Elect'!D6 -> 122080 | J45: ='Sm Bus DI_E262 Elect'!E6 -> 0 | K45: ='Sm Bus DI_E262 Elect'!F6 -> 111459.04 | L45: ='Sm Bus DI_E262 Elect'!G6 -> 40000 | M45: ='Sm Bus DI_E262 Elect'!H6 -> 6000 | N45: ='Sm Bus DI_E262 Elect'!I6 -> 538740 | O45: ='Sm Bus DI_E262 Elect'!J6 -> 2000 | P45: ='Sm Bus DI_E262 Elect'!K6 -> 2000 | Q45: ='Sm Bus DI_E262 Elect'!L6 -> 3199200 | R45: ='Sm Bus DI_E262 Elect'!M6 -> 0 | S45: ='Sm Bus DI_E262 Elect'!N6 -> 4021479.04 | T45: ='Sm Bus DI_E262 Elect'!O6 -> 8280000
B46: Sm Agr DI_E262 Elect | C46: E262 | F46: Small Agriculture Direct Install | H46: 18230521 | I46: ='Sm Agr DI_E262 Elect'!D6 -> 0 | J46: ='Sm Agr DI_E262 Elect'!E6 -> 0 | K46: ='Sm Agr DI_E262 Elect'!F6 -> 0 | L46: ='Sm Agr DI_E262 Elect'!G6 -> 0 | M46: ='Sm Agr DI_E262 Elect'!H6 -> 0 | N46: ='Sm Agr DI_E262 Elect'!I6 -> 0 | O46: ='Sm Agr DI_E262 Elect'!J6 -> 0 | P46: ='Sm Agr DI_E262 Elect'!K6 -> 0 | Q46: ='Sm Agr DI_E262 Elect'!L6 -> 0 | R46: ='Sm Agr DI_E262 Elect'!M6 -> 0 | S46: ='Sm Agr DI_E262 Elect'!N6 -> 0 | T46: ='Sm Agr DI_E262 Elect'!O6 -> 0
B47: Lodging DI_E262 Elec | C47: E262 | F47: Lodging Direct Install | H47: 18230520 | I47: ='Lodging DI_E262 Elec'!D6 -> 0 | J47: ='Lodging DI_E262 Elec'!E6 -> 0 | K47: ='Lodging DI_E262 Elec'!F6 -> 0 | L47: ='Lodging DI_E262 Elec'!G6 -> 0 | M47: ='Lodging DI_E262 Elec'!H6 -> 0 | N47: ='Lodging DI_E262 Elec'!I6 -> 0 | O47: ='Lodging DI_E262 Elec'!J6 -> 0 | P47: ='Lodging DI_E262 Elec'!K6 -> 0 | Q47: ='Lodging DI_E262 Elec'!L6 -> 0 | R47: ='Lodging DI_E262 Elec'!M6 -> 0 | S47: ='Lodging DI_E262 Elec'!N6 -> 0 | T47: ='Lodging DI_E262 Elec'!O6 -> 0
G48: Total, Business Energy Management | I48: =SUM(I27:I30)+I34+I37+I38 -> 3318564.059 | J48: 0 | K48: 3062361.114 | L48: 121950 | M48: 170750 | N48: 1734740 | O48: 23450 | P48: 17000 | Q48: 20845694 | R48: 0 | S48: 29294509.17 | T48: 114407640.7
C51: Pilots With Uncertain Savings
B52: REM Pilots E249 Elec | C52: E249 | E52: Residential Pilots | H52: 18230522 | I52: ='REM Pilots E249 Elec'!D6 -> 0 | J52: ='REM Pilots E249 Elec'!E6 -> 0 | K52: ='REM Pilots E249 Elec'!F6 -> 0 | L52: ='REM Pilots E249 Elec'!G6 -> 0 | M52: ='REM Pilots E249 Elec'!H6 -> 0 | N52: ='REM Pilots E249 Elec'!I6 -> 0 | O52: ='REM Pilots E249 Elec'!J6 -> 0 | P52: ='REM Pilots E249 Elec'!K6 -> 0 | Q52: ='REM Pilots E249 Elec'!L6 -> 0 | R52: ='REM Pilots E249 Elec'!M6 -> 0 | S52: ='REM Pilots E249 Elec'!N6 -> 0 | T52: ='REM Pilots E249 Elec'!O6 -> 0
B53: BEM Pilots E249 Elec | C53: E249 | E53: Commercial Pay for Performance Pilot | H53: 18230140 | I53: ='BEM Pilots E249 Elec'!I6 -> 10000 | J53: ='BEM Pilots E249 Elec'!J6 -> 0 | K53: ='BEM Pilots E249 Elec'!K6 -> 9130 | L53: ='BEM Pilots E249 Elec'!L6 -> 0 | M53: ='BEM Pilots E249 Elec'!M6 -> 0 | N53: ='BEM Pilots E249 Elec'!N6 -> 0 | O53: ='BEM Pilots E249 Elec'!O6 -> 0 | P53: ='BEM Pilots E249 Elec'!P6 -> 0 | Q53: ='BEM Pilots E249 Elec'!Q6 -> 225000 | R53: ='BEM Pilots E249 Elec'!R6 -> 0 | S53: ='BEM Pilots E249 Elec'!S6 -> 244130 | T53: ='BEM Pilots E249 Elec'!T6 -> 750000
G54: Total, Pilots | I54: =SUM(I52:I53) -> 10000 | J54: =SUM(J52:J53) -> 0 | K54: 9130 | L54: 0 | M54: 0 | N54: 0 | O54: 0 | P54: 0 | Q54: 225000 | R54: 0 | S54: 244130 | T54: 750000
C58: Regional Efficiency Programs
B59: NEEA Detail_E254 elec | C59: E254 | E59: Northwest Energy Efficiency Alliance | H59: 18230421 | I59: ='NEEA Detail_E254 elec'!D6 -> 0 | J59: ='NEEA Detail_E254 elec'!E6 -> 0 | K59: ='NEEA Detail_E254 elec'!F6 -> 0 | L59: ='NEEA Detail_E254 elec'!G6 -> 0 | M59: ='NEEA Detail_E254 elec'!H6 -> 0 | N59: ='NEEA Detail_E254 elec'!I6 -> 1560000 | O59: ='NEEA Detail_E254 elec'!J6 -> 0 | P59: ='NEEA Detail_E254 elec'!K6 -> 0 | Q59: ='NEEA Detail_E254 elec'!L6 -> 3640000 | S59: ='NEEA Detail_E254 elec'!N6 -> 5200000 | T59: ='NEEA Detail_E254 elec'!O6 -> 11300000
B60: T&D Detail_Reg E292 elec | C60: E292 | E60: Transmission & Distribution | H60: 18230711 | I60: ='T&D Detail_Reg E292 elec'!C6 -> 0 | J60: ='T&D Detail_Reg E292 elec'!D6 -> 0 | K60: ='T&D Detail_Reg E292 elec'!E6 -> 0 | L60: ='T&D Detail_Reg E292 elec'!F6 -> 0 | M60: ='T&D Detail_Reg E292 elec'!G6 -> 0 | N60: ='T&D Detail_Reg E292 elec'!H6 -> 0 | O60: ='T&D Detail_Reg E292 elec'!I6 -> 0 | P60: ='T&D Detail_Reg E292 elec'!J6 -> 0 | Q60: ='T&D Detail_Reg E292 elec'!K6 -> 0 | S60: ='T&D Detail_Reg E292 elec'!M6 -> 0 | T60: ='T&D Detail_Reg E292 elec'!N6 -> 1500000
G61: Total, Regional Efficiency Programs | I61: =SUM(I59:I60) -> 0 | J61: 0 | K61: 0 | L61: 0 | M61: 0 | N61: 1560000 | O61: 0 | P61: 0 | Q61: 3640000 | R61: 0 | S61: 5200000 | T61: 12800000
C65: Energy Efficiency Portfolio Support
B66: Data & Systm Svcs_Elect | E66: Data and Systems Services | H66: 18230745 | I66: ='Data & Systm Svcs_Elect'!D6 -> 419340 | J66: ='Data & Systm Svcs_Elect'!E6 -> 0 | K66: ='Data & Systm Svcs_Elect'!F6 -> 382857.42 | L66: ='Data & Systm Svcs_Elect'!G6 -> 0 | M66: ='Data & Systm Svcs_Elect'!H6 -> 10440 | N66: ='Data & Systm Svcs_Elect'!I6 -> 282750 | O66: ='Data & Systm Svcs_Elect'!J6 -> 0 | P66: ='Data & Systm Svcs_Elect'!K6 -> 0 | Q66: ='Data & Systm Svcs_Elect'!L6 -> 0 | R66: ='Data & Systm Svcs_Elect'!M6 -> 0 | S66: ='Data & Systm Svcs_Elect'!N6 -> 1095387.42
B67: Rebt Procg Detail_Elect | E67: Rebates Processing | H67: 18230507 | I67: ='Rebt Procg Detail_Elect'!D6 -> 278800 | J67: ='Rebt Procg Detail_Elect'!E6 -> 0 | K67: ='Rebt Procg Detail_Elect'!F6 -> 254544.4 | L67: ='Rebt Procg Detail_Elect'!G6 -> 0 | M67: ='Rebt Procg Detail_Elect'!H6 -> 20000 | N67: ='Rebt Procg Detail_Elect'!I6 -> 0 | O67: ='Rebt Procg Detail_Elect'!J6 -> 5000 | P67: ='Rebt Procg Detail_Elect'!K6 -> 0 | Q67: ='Rebt Procg Detail_Elect'!L6 -> 0 | S67: ='Rebt Procg Detail_Elect'!N6 -> 558344.4
B68: VTeam Detail_R&C_Elec | E68: Verification Team | H68: 18230418 | I68: ='Verifctn Team Detail Elec'!D6 -> 230080 | J68: ='Verifctn Team Detail Elec'!E6 -> 0 | K68: ='Verifctn Team Detail Elec'!F6 -> 210063.04 | L68: ='Verifctn Team Detail Elec'!G6 -> 0 | M68: ='Verifctn Team Detail Elec'!H6 -> 10800 | N68: ='Verifctn Team Detail Elec'!I6 -> 78300 | O68: ='Verifctn Team Detail Elec'!J6 -> 6200 | P68: ='Verifctn Team Detail Elec'!K6 -> 0 | Q68: ='Verifctn Team Detail Elec'!L6 -> 0 | R68: ='Verifctn Team Detail Elec'!M6 -> 0 | S68: ='Verifctn Team Detail Elec'!N6 -> 535443.04
B69: ProgDev Detail_R&C_ Elec | E69: Programs Support | H69: 18230810 | I69: ='Progs Supp Detail_PS_ Elec'!D6 -> 208800 | J69: ='Progs Supp Detail_PS_ Elec'!E6 -> 0 | K69: ='Progs Supp Detail_PS_ Elec'!F6 -> 190634.4 | L69: ='Progs Supp Detail_PS_ Elec'!G6 -> 0 | M69: ='Progs Supp Detail_PS_ Elec'!H6 -> 12000 | N69: ='Progs Supp Detail_PS_ Elec'!I6 -> 0 | O69: ='Progs Supp Detail_PS_ Elec'!J6 -> 0 | P69: ='Progs Supp Detail_PS_ Elec'!K6 -> 0 | Q69: ='Progs Supp Detail_PS_ Elec'!L6 -> 0 | R69: ='Progs Supp Detail_PS_ Elec'!M6 -> 0 | S69: ='Progs Supp Detail_PS_ Elec'!N6 -> 411434.4
B70: TradeAlly Detail_PS_ Elec | E70: Trade Ally Support | H70: 18230730 | I70: ='TradeAlly Detail_PS_ Elec'!D6 -> 0 | J70: ='TradeAlly Detail_PS_ Elec'!E6 -> 0 | K70: ='TradeAlly Detail_PS_ Elec'!F6 -> 0 | L70: ='TradeAlly Detail_PS_ Elec'!G6 -> 0 | M70: ='TradeAlly Detail_PS_ Elec'!H6 -> 0 | N70: ='TradeAlly Detail_PS_ Elec'!I6 -> 118000 | O70: ='TradeAlly Detail_PS_ Elec'!J6 -> 0 | P70: ='TradeAlly Detail_PS_ Elec'!K6 -> 0 | Q70: ='TradeAlly Detail_PS_ Elec'!L6 -> 0 | S70: ='TradeAlly Detail_PS_ Elec'!N6 -> 118000
B71: CAN_Elect | E71: Contractor Alliance Network (revenue + cost) | H71: 18230746 | I71: =CAN_Elect!D6 -> 73600 | J71: =CAN_Elect!E6 -> 0 | K71: =CAN_Elect!F6 -> 67196.8 | L71: =CAN_Elect!G6 -> 20000 | M71: =CAN_Elect!H6 -> 5000 | N71: =CAN_Elect!I6 -> 148000 | O71: =CAN_Elect!J6 -> 1500 | P71: =CAN_Elect!K6 -> 0 | Q71: =CAN_Elect!L6 -> 0 | R71: =CAN_Elect!M6 -> -282400.8 | S71: =CAN_Elect!N6 -> 32896
B72: ABS Detail_PSWE_Elec | E72: Automated Benchmarking System | H72: 18230411 | I72: ='ABS Detail_PSWE_Elec'!D6 -> 59191 | J72: ='ABS Detail_PSWE_Elec'!E6 -> 0 | K72: ='ABS Detail_PSWE_Elec'!F6 -> 54041.383 | L72: ='ABS Detail_PSWE_Elec'!G6 -> 0 | M72: ='ABS Detail_PSWE_Elec'!H6 -> 0 | N72: ='ABS Detail_PSWE_Elec'!I6 -> 59500 | O72: ='ABS Detail_PSWE_Elec'!J6 -> 0 | P72: ='ABS Detail_PSWE_Elec'!K6 -> 0 | Q72: ='ABS Detail_PSWE_Elec'!L6 -> 0 | R72: ='ABS Detail_PSWE_Elec'!L6 -> 0 | S72: ='ABS Detail_PSWE_Elec'!N6 -> 172732.383
B73: Engy Adv Detail_PSCE Elec | E73: Energy Advisors | H73: 18230610 | I73: ='Engy Adv Detail_PSCE Elec'!D6 -> 654240 | J73: ='Engy Adv Detail_PSCE Elec'!E6 -> 0 | K73: ='Engy Adv Detail_PSCE Elec'!F6 -> 446845.92 | L73: ='Engy Adv Detail_PSCE Elec'!G6 -> 0 | M73: ='Engy Adv Detail_PSCE Elec'!H6 -> 44000 | N73: ='Engy Adv Detail_PSCE Elec'!I6 -> 1000 | O73: ='Engy Adv Detail_PSCE Elec'!J6 -> 0 | P73: ='Engy Adv Detail_PSCE Elec'!K6 -> 1350 | Q73: ='Engy Adv Detail_PSCE Elec'!L6 -> 0 | R73: ='Engy Adv Detail_PSCE Elec'!M6 -> 0 | S73: ='Engy Adv Detail_PSCE Elec'!N6 -> 1147435.92
B74: EEC Detail_PS_Elec | E74: Energy Efficient Communities | H74: 18230811 | I74: ='EEC Detail_PS_Elec'!D6 -> 451200 | J74: ='EEC Detail_PS_Elec'!E6 -> 0 | K74: ='EEC Detail_PS_Elec'!F6 -> 308169.6 | L74: ='EEC Detail_PS_Elec'!G6 -> 46800 | M74: ='EEC Detail_PS_Elec'!H6 -> 35670 | N74: ='EEC Detail_PS_Elec'!I6 -> 135240 | O74: ='EEC Detail_PS_Elec'!J6 -> 12000 | P74: ='EEC Detail_PS_Elec'!K6 -> 0 | Q74: ='EEC Detail_PS_Elec'!L6 -> 0 | S74: ='EEC Detail_PS_Elec'!N6 -> 989079.6
B75: CustOnline Detail_PSWE_Elec | E75: Customer Digital Experience | H75: Subtotal | I75: =SUM(I76:I78) -> 127440 | J75: =SUM(J76:J78) -> 0 | K75: 89985.52 | L75: 0 | M75: 400 | N75: 1019653.81 | O75: 0 | P75: 0 | Q75: 0 | R75: 0 | S75: 1237479.33
F76: Digital Experience | H76: 18230400 | I76: ='CustDigExprnc Detail_PSWE_Elec'!D6 -> 114640 | J76: ='CustDigExprnc Detail_PSWE_Elec'!E6 -> 0 | K76: ='CustDigExprnc Detail_PSWE_Elec'!F6 -> 78299.12 | L76: ='CustDigExprnc Detail_PSWE_Elec'!G6 -> 0 | M76: ='CustDigExprnc Detail_PSWE_Elec'!H6 -> 400 | N76: ='CustDigExprnc Detail_PSWE_Elec'!I6 -> 430279 | O76: ='CustDigExprnc Detail_PSWE_Elec'!J6 -> 0 | P76: ='CustDigExprnc Detail_PSWE_Elec'!K6 -> 0 | Q76: ='CustDigExprnc Detail_PSWE_Elec'!L6 -> 0 | S76: ='CustDigExprnc Detail_PSWE_Elec'!N6 -> 623618.12
B77: CustAwarTools_elec | F77: Customer Awareness Tools | H77: 18230508 | I77: =CustAwarTools_Elect!D6 -> 12800 | J77: =CustAwarTools_Elect!E6 -> 0 | K77: =CustAwarTools_Elect!F6 -> 11686.4 | L77: =CustAwarTools_Elect!G6 -> 0 | M77: =CustAwarTools_Elect!H6 -> 0 | N77: =CustAwarTools_Elect!I6 -> 569374.81 | O77: =CustAwarTools_Elect!J6 -> 0 | P77: =CustAwarTools_Elect!K6 -> 0 | Q77: =CustAwarTools_Elect!L6 -> 0 | R77: =CustAwarTools_Elect!M6 -> 0 | S77: =CustAwarTools_Elect!N6 -> 593861.21
B78: ShopPSE_elec | F78: ShopPSE | H78: 18230509 | I78: =ShopPSE_elec!D6 -> 0 | J78: =ShopPSE_elec!E6 -> 0 | K78: =ShopPSE_elec!F6 -> 0 | L78: =ShopPSE_elec!G6 -> 0 | M78: =ShopPSE_elec!H6 -> 0 | N78: =ShopPSE_elec!I6 -> 20000 | O78: =ShopPSE_elec!J6 -> 0 | P78: =ShopPSE_elec!K6 -> 0 | Q78: =ShopPSE_elec!L6 -> 0 | R78: =ShopPSE_elec!M6 -> 0 | S78: =ShopPSE_elec!N6 -> 20000
B79: Mkt Intgn Detail_PSWE_Elec | E79: Market Integration | H79: 18230466 | I79: ='Mkt Intgn Detail_PSWE_Elec'!D6 -> 146944 | J79: ='Mkt Intgn Detail_PSWE_Elec'!E6 -> 0 | K79: ='Mkt Intgn Detail_PSWE_Elec'!F6 -> 100362.752 | L79: ='Mkt Intgn Detail_PSWE_Elec'!G6 -> 0 | M79: ='Mkt Intgn Detail_PSWE_Elec'!H6 -> 0 | N79: ='Mkt Intgn Detail_PSWE_Elec'!I6 -> 13920 | O79: ='Mkt Intgn Detail_PSWE_Elec'!J6 -> 0 | P79: ='Mkt Intgn Detail_PSWE_Elec'!K6 -> 0 | Q79: ='Mkt Intgn Detail_PSWE_Elec'!L6 -> 0 | S79: ='Mkt Intgn Detail_PSWE_Elec'!N6 -> 261226.752
B80: Events Detail_PSCE Elec | E80: Events | H80: 18230602 | I80: ='Events Detail_PSCE Elec'!D6 -> 302140 | J80: ='Events Detail_PSCE Elec'!E6 -> 0 | K80: ='Events Detail_PSCE Elec'!F6 -> 206361.62 | L80: ='Events Detail_PSCE Elec'!G6 -> 6960 | M80: ='Events Detail_PSCE Elec'!H6 -> 3905 | N80: ='Events Detail_PSCE Elec'!I6 -> 72200 | O80: ='Events Detail_PSCE Elec'!J6 -> 4785 | P80: ='Events Detail_PSCE Elec'!K6 -> 0 | Q80: ='Events Detail_PSCE Elec'!L6 -> 0 | R80: ='Events Detail_PSCE Elec'!M6 -> 0 | S80: ='Events Detail_PSCE Elec'!N6 -> 596351.62
B81: Brochures Detail_PSCE Elec | E81: Brochures, non program-specific | H81: 18230482 | I81: ='Brochures Detail_PSCE Elec'!D6 -> 26300 | J81: ='Brochures Detail_PSCE Elec'!E6 -> 0 | K81: ='Brochures Detail_PSCE Elec'!F6 -> 17962.9 | L81: ='Brochures Detail_PSCE Elec'!G6 -> 13000 | M81: ='Brochures Detail_PSCE Elec'!H6 -> 0 | N81: ='Brochures Detail_PSCE Elec'!I6 -> 2610 | O81: ='Brochures Detail_PSCE Elec'!J6 -> 22620 | P81: ='Brochures Detail_PSCE Elec'!K6 -> 0 | Q81: ='Brochures Detail_PSCE Elec'!L6 -> 0 | R81: ='Brochures Detail_PSCE Elec'!M6 -> 0 | S81: ='Brochures Detail_PSCE Elec'!N6 -> 82492.9
B82: Educatn Detail_PSCE E202 Elec | C82: E202 | E82: Education | H82: 18230621 | I82: ='Educatn Detail_PSCE E202 Elec'!D6 -> 0 | J82: ='Educatn Detail_PSCE E202 Elec'!E6 -> 0 | K82: ='Educatn Detail_PSCE E202 Elec'!F6 -> 0 | L82: ='Educatn Detail_PSCE E202 Elec'!G6 -> 0 | M82: ='Educatn Detail_PSCE E202 Elec'!H6 -> 0 | N82: ='Educatn Detail_PSCE E202 Elec'!I6 -> 0 | O82: ='Educatn Detail_PSCE E202 Elec'!J6 -> 0 | P82: ='Educatn Detail_PSCE E202 Elec'!K6 -> 0 | Q82: ='Educatn Detail_PSCE E202 Elec'!L6 -> 0 | R82: ='Educatn Detail_PSCE E202 Elec'!M6 -> 0 | S82: ='Educatn Detail_PSCE E202 Elec'!N6 -> 0
G83: Total, Portfolio Support | I83: =SUM(I66:I75)+SUM(I79:I82) -> 2978075 | J83: =SUM(J66:J75)+SUM(J79:J82) -> 0 | K83: 2329025.755 | L83: 86760 | M83: 142215 | N83: 1931173.81 | O83: 52105 | P83: 1350 | Q83: 0 | R83: -282400.8 | S83: =SUM(S66:S75)+SUM(S79:S82) -> 7238303.765
C87: Research & Compliance
B88: SuppCrv Detail_R&C_Elec | E88: Conservation Supply Curves | H88: 18230809 | I88: ='SuppCrv Detail_R&C_Elec'!D6 -> 87000 | J88: ='SuppCrv Detail_R&C_Elec'!E6 -> 0 | K88: ='SuppCrv Detail_R&C_Elec'!F6 -> 59421 | L88: ='SuppCrv Detail_R&C_Elec'!G6 -> 0 | M88: ='SuppCrv Detail_R&C_Elec'!H6 -> 870 | N88: ='SuppCrv Detail_R&C_Elec'!I6 -> 62640 | O88: ='SuppCrv Detail_R&C_Elec'!J6 -> 0 | P88: ='SuppCrv Detail_R&C_Elec'!K6 -> 0 | Q88: ='SuppCrv Detail_R&C_Elec'!L6 -> 0 | R88: ='SuppCrv Detail_R&C_Elec'!M6 -> 0 | S88: ='SuppCrv Detail_R&C_Elec'!N6 -> 209931
B89: Strat Plan Detail_R&C_Elec | E89: Strategic Planning | H89: 18230469 | I89: ='Strat Plan Detail_R&C_Elec'!D6 -> 231768 | J89: ='Strat Plan Detail_R&C_Elec'!E6 -> 0 | K89: ='Strat Plan Detail_R&C_Elec'!F6 -> 158297.544 | L89: ='Strat Plan Detail_R&C_Elec'!G6 -> 0 | M89: ='Strat Plan Detail_R&C_Elec'!H6 -> 10005 | N89: ='Strat Plan Detail_R&C_Elec'!I6 -> 524000 | O89: ='Strat Plan Detail_R&C_Elec'!J6 -> 0 | P89: ='Strat Plan Detail_R&C_Elec'!K6 -> 0 | Q89: ='Strat Plan Detail_R&C_Elec'!L6 -> 0 | R89: ='Strat Plan Detail_R&C_Elec'!M6 -> 0 | S89: ='Strat Plan Detail_R&C_Elec'!N6 -> 924070.544
B90: Mktg Resch Detail_PS_ Elec | E90: Market Research | H90: 18230413 | I90: ='Mktg Resch Detail_PS_ Elec'!D6 -> 139200 | J90: ='Mktg Resch Detail_PS_ Elec'!E6 -> 0 | K90: ='Mktg Resch Detail_PS_ Elec'!F6 -> 95073.6 | L90: ='Mktg Resch Detail_PS_ Elec'!G6 -> 0 | M90: ='Mktg Resch Detail_PS_ Elec'!H6 -> 0 | N90: ='Mktg Resch Detail_PS_ Elec'!I6 -> 13441.5 | O90: ='Mktg Resch Detail_PS_ Elec'!J6 -> 0 | P90: ='Mktg Resch Detail_PS_ Elec'!K6 -> 0 | Q90: ='Mktg Resch Detail_PS_ Elec'!L6 -> 0 | R90: ='Mktg Resch Detail_PS_ Elec'!M6 -> 0 | S90: ='Mktg Resch Detail_PS_ Elec'!N6 -> 247715.1
B91: Eval Detail_R&C_Elec | E91: Program Evaluation | H91: 18230802 | I91: ='Eval Detail_R&C_Elec'!D6 -> 164256 | J91: ='Eval Detail_R&C_Elec'!E6 -> 0 | K91: ='Eval Detail_R&C_Elec'!F6 -> 149965.728 | L91: ='Eval Detail_R&C_Elec'!G6 -> 0 | M91: ='Eval Detail_R&C_Elec'!H6 -> 6090 | N91: ='Eval Detail_R&C_Elec'!I6 -> 1066587.81 | O91: ='Eval Detail_R&C_Elec'!J6 -> 0 | P91: ='Eval Detail_R&C_Elec'!K6 -> 273000 | Q91: ='Eval Detail_R&C_Elec'!L6 -> 0 | R91: ='Eval Detail_R&C_Elec'!M6 -> 0 | S91: ='Eval Detail_R&C_Elec'!N6 -> 1659899.538
B92: BECAR Detail_R&C Elec | E92: Biennial Elec. Consv. Aquisitn. Review | H92: 18230624 | I92: ='BECAR Detail_R&C Elec'!D6 -> 0 | J92: ='BECAR Detail_R&C Elec'!E6 -> 0 | K92: ='BECAR Detail_R&C Elec'!F6 -> 0 | L92: ='BECAR Detail_R&C Elec'!G6 -> 0 | M92: ='BECAR Detail_R&C Elec'!H6 -> 0 | N92: ='BECAR Detail_R&C Elec'!I6 -> 76086 | O92: ='BECAR Detail_R&C Elec'!J6 -> 0 | P92: ='BECAR Detail_R&C Elec'!K6 -> 0 | Q92: ='BECAR Detail_R&C Elec'!L6 -> 0 | R92: ='BECAR Detail_R&C Elec'!M6 -> 0 | S92: ='BECAR Detail_R&C Elec'!N6 -> 76086
G93: Total, Research & Compliance | I93: =SUM(I88:I92) -> 622224 | J93: 0 | K93: 462757.872 | L93: 0 | M93: 16965 | N93: 1742755.31 | O93: 0 | P93: 273000 | Q93: 0 | R93: 0 | S93: 3117702.182
C97: Other Electric Programs
B98: Net Mtr Details_Oth Elec E150 | C98: E150 | E98: Net Metering | H98: 18230128 | I98: ='Net Mtr Details_Oth Elec E150'!D6 -> 206000 | J98: ='Net Mtr Details_Oth Elec E150'!E6 -> 0 | K98: ='Net Mtr Details_Oth Elec E150'!F6 -> 140698 | L98: ='Net Mtr Details_Oth Elec E150'!G6 -> 0 | M98: ='Net Mtr Details_Oth Elec E150'!H6 -> 10000 | N98: ='Net Mtr Details_Oth Elec E150'!I6 -> 170000 | O98: ='Net Mtr Details_Oth Elec E150'!J6 -> 5000 | P98: ='Net Mtr Details_Oth Elec E150'!K6 -> 560000 | Q98: ='Net Mtr Details_Oth Elec E150'!L6 -> 0 | S98: ='Net Mtr Details_Oth Elec E150'!N6 -> 1091698
G99: Total, Other Electric Programs | I99: =SUM(I98:I98) -> 206000 | J99: 0 | K99: 140698 | L99: 0 | M99: 10000 | N99: 170000 | O99: 5000 | P99: 560000 | Q99: 0 | R99: 0 | S99: 1091698
G103: GRAND TOTAL, ELECTRIC PROGRAMS | I103: =I99+I93+I61+I54+I83+I48+I23 -> 8236643.059 | J103: =J99+J93+J61+J54+J83+J48+J23 -> 0 | K103: 7009897.881 | L103: 2583475 | M103: 376030 | N103: 10778086.28 | O103: 98755 | P103: 858100 | Q103: 54135081.26 | R103: -282400.8 | S103: =S99+S93+S61+S54+S83+S48+S23 -> 83793667.68 | T103: 228771793.8
T106: =T103/1000/8760 -> 26.11550157
G107: Budget Category Includes | H107: This is the main level of tracking expenditures and expenses in EES. Per FERC rules, all conservation order numbers start with a "1823nnnn", where "n" is some number. Cost elements apply to all order numbers (for instance, all conservation programs that | I107: Energy Efficiency program staff labor. Average FTE cost including management assessments. This Budget Category group includes assessments from Major Accounts management, Resource Planning, Corporate Communications management, IT specialists and some building maintenance allocations. | J107: Also Energy Efficiency staff labor, associated specifically with Marketing functions. Marketing allocates staffing according to program needs. | K107: Overhead--costs associated with primarily employee labor; benefits, for instance. For 2017, includes micro-overhead. | L107: Service and materials associated with the cost of printing program brochures, marketing pieces, advertising, banners, etc. Also includes marketing conducted by vendors and contractors. | M107: Costs associated with EE staff attending events, employee training, conferences, business meals, business parking, ferry & bridge tolls, mileage incurred on employee automobiles, office supplies, phones, subscriptions, software/hardware, etc. | N107: Contractors and vendors, such as PECI, Ecos, CostCo, EFI, etc. Legal expenses, technical services (CMS design, PSE.com web portals, etc.). These costs do NOT include brochure development, marketing pieces, (which are classified under MARKETING). These costs do NOT include incentives paid to customers by contractors. | O107: Primarily tools, trade show equipment, etc. | P107: This category should seldomly be used, and only expenses that cannot be classified under one of the above categories. | Q107: All costs associated with rebates, grants, remuneration, value-added services that have a direct bearing on a customer's perceived value of PSE offerings. | R107: Any amount that PSE is paid by a customer, partner, municipality or outside entity.

Sheet 2019 Sector View Gas
C2: Energy Efficiency 2019 Budgets and Aggregate Program Savings
C3: Sector View | I3: Please see category descriptions at the bottom of the sector table.
C4: Natural Gas Programs
I5: Budget Category
B6: Workbook Name | C6: Schedule | D6: Comment | E6: Description (Blue, indented text indicates a sub-total value) | H6: Order Number (Click on the order# below to link to the detail page) | I6: Program Labor | J6: Marketing Labor | K6: Overhead | L6: Marketing | M6: Employee/Office Expense | N6: Outside Services | O6: Materials | P6: Miscellaneous | Q6: DBtC | R6: Revenue | S6: Total Budget | T6: Total Savings Therms
C7: Residential Energy Management
B8: LIW Detail_REM G201 Gas | C8: G201 | E8: Low Income Weatherization | H8: 18230661 | I8: ='LowIncWx Detail_REM G201 Gas'!D6 -> 9160 | J8: ='LowIncWx Detail_REM G201 Gas'!E6 -> 0 | K8: ='LowIncWx Detail_REM G201 Gas'!F6 -> 8363.08 | L8: ='LowIncWx Detail_REM G201 Gas'!G6 -> 5400 | M8: ='LowIncWx Detail_REM G201 Gas'!H6 -> 500 | N8: ='LowIncWx Detail_REM G201 Gas'!I6 -> 2500 | O8: ='LowIncWx Detail_REM G201 Gas'!J6 -> 150 | P8: ='LowIncWx Detail_REM G201 Gas'!K6 -> 150 | Q8: ='LowIncWx Detail_REM G201 Gas'!L6 -> 629857.1125 | R8: ='LowIncWx Detail_REM G201 Gas'!M6 -> 0 | S8: ='LowIncWx Detail_REM G201 Gas'!N6 -> 656080.1925 | T8: ='LowIncWx Detail_REM G201 Gas'!O6 -> 16079.57
B9: HmPrint Detail_REM G214 Gas | C9: G214 | E9: Home Energy Assessments | H9: 18230635 | I9: ='HmEnrgyAsmt Detail_REM G214 Gas'!D6 -> 0 | J9: ='HmEnrgyAsmt Detail_REM G214 Gas'!E6 -> 0 | K9: ='HmEnrgyAsmt Detail_REM G214 Gas'!F6 -> 0 | L9: ='HmEnrgyAsmt Detail_REM G214 Gas'!G6 -> 0 | M9: ='HmEnrgyAsmt Detail_REM G214 Gas'!H6 -> 0 | N9: ='HmEnrgyAsmt Detail_REM G214 Gas'!I6 -> 0 | O9: ='HmEnrgyAsmt Detail_REM G214 Gas'!J6 -> 0 | P9: ='HmEnrgyAsmt Detail_REM G214 Gas'!K6 -> 0 | Q9: ='HmEnrgyAsmt Detail_REM G214 Gas'!L6 -> 0 | R9: ='HmEnrgyAsmt Detail_REM G214 Gas'!M6 -> 0 | S9: ='HmEnrgyAsmt Detail_REM G214 Gas'!N6 -> 0 | T9: ='HmEnrgyAsmt Detail_REM G214 Gas'!O6 -> 0
B10: WtrHeat Detail_REM G214 Gas | C10: G214 | E10: SF Existing Water Heat | H10: 18230636 | I10: ='WtrHeat Detail_REM G214 Gas'!D6 -> 16800 | J10: ='WtrHeat Detail_REM G214 Gas'!E6 -> 0 | K10: ='WtrHeat Detail_REM G214 Gas'!F6 -> 15338.4 | L10: ='WtrHeat Detail_REM G214 Gas'!G6 -> 25000 | M10: ='WtrHeat Detail_REM G214 Gas'!H6 -> 1200 | N10: ='WtrHeat Detail_REM G214 Gas'!I6 -> 0 | O10: ='WtrHeat Detail_REM G214 Gas'!J6 -> 1000 | P10: ='WtrHeat Detail_REM G214 Gas'!K6 -> 500 | Q10: ='WtrHeat Detail_REM G214 Gas'!L6 -> 281718 | R10: ='WtrHeat Detail_REM G214 Gas'!M6 -> 0 | S10: ='WtrHeat Detail_REM G214 Gas'!N6 -> 341556.4 | T10: ='WtrHeat Detail_REM G214 Gas'!O6 -> 109907
B11: Wx Detail_REM G214 Gas | C11: G214 | E11: SF Existing Weatherization | H11: 18230637 | I11: ='Wx Detail_REM G214 Gas'!D6 -> 36000 | J11: ='Wx Detail_REM G214 Gas'!E6 -> 0 | K11: ='Wx Detail_REM G214 Gas'!F6 -> 32868 | L11: ='Wx Detail_REM G214 Gas'!G6 -> 37500 | M11: ='Wx Detail_REM G214 Gas'!H6 -> 1000 | N11: ='Wx Detail_REM G214 Gas'!I6 -> 224900 | O11: ='Wx Detail_REM G214 Gas'!J6 -> 100 | P11: ='Wx Detail_REM G214 Gas'!K6 -> 1000 | Q11: ='Wx Detail_REM G214 Gas'!L6 -> 2017969 | R11: ='Wx Detail_REM G214 Gas'!M6 -> 0 | S11: ='Wx Detail_REM G214 Gas'!N6 -> 2351337 | T11: ='Wx Detail_REM G214 Gas'!O6 -> 417049.3
B12: SpHeat Detail_REM G214 Gas | C12: G214 | E12: SF Existing Space Heat | H12: 18230638 | I12: ='SpHeat Detail_REM G214 Gas'!D6 -> 44000 | J12: ='SpHeat Detail_REM G214 Gas'!E6 -> 0 | K12: ='SpHeat Detail_REM G214 Gas'!F6 -> 40172 | L12: ='SpHeat Detail_REM G214 Gas'!G6 -> 225000 | M12: ='SpHeat Detail_REM G214 Gas'!H6 -> 3000 | N12: ='SpHeat Detail_REM G214 Gas'!I6 -> 10000 | O12: ='SpHeat Detail_REM G214 Gas'!J6 -> 1000 | P12: ='SpHeat Detail_REM G214 Gas'!K6 -> 500 | Q12: ='SpHeat Detail_REM G214 Gas'!L6 -> 1189708 | R12: ='SpHeat Detail_REM G214 Gas'!M6 -> 0 | S12: ='SpHeat Detail_REM G214 Gas'!N6 -> 1513380 | T12: ='SpHeat Detail_REM G214 Gas'!O6 -> 504161
C13: G214 | D13: Discontinued in 2019 | E13: SF Rentals Pilot | H13: 1823xxxx | I13: ='SFRental_REM_G214 Gas'!D6 -> 12800 | J13: ='SFRental_REM_G214 Gas'!E6 -> 0 | K13: ='SFRental_REM_G214 Gas'!F6 -> 11686.4 | L13: ='SFRental_REM_G214 Gas'!G6 -> 10000 | M13: ='SFRental_REM_G214 Gas'!H6 -> 100 | N13: ='SFRental_REM_G214 Gas'!I6 -> 60000 | O13: ='SFRental_REM_G214 Gas'!J6 -> 0 | P13: ='SFRental_REM_G214 Gas'!K6 -> 0 | Q13: ='SFRental_REM_G214 Gas'!L6 -> 0 | R13: ='SFRental_REM_G214 Gas'!M6 -> 0 | S13: ='SFRental_REM_G214 Gas'!N6 -> 94586.4 | T13: ='SFRental_REM_G214 Gas'!O6 -> 0
B14: ShwrHead Detail_REM G214 Gas | C14: G214 | E14: Residential Showerheads | H14: 18230700 | I14: ='ShwrHead Detail_REM G214 Gas'!D6 -> 15280 | J14: ='ShwrHead Detail_REM G214 Gas'!E6 -> 0 | K14: ='ShwrHead Detail_REM G214 Gas'!F6 -> 13950.64 | L14: ='ShwrHead Detail_REM G214 Gas'!G6 -> 80915 | M14: ='ShwrHead Detail_REM G214 Gas'!H6 -> 300 | N14: ='ShwrHead Detail_REM G214 Gas'!I6 -> 64711 | O14: ='ShwrHead Detail_REM G214 Gas'!J6 -> 300 | P14: ='ShwrHead Detail_REM G214 Gas'!K6 -> 300 | Q14: ='ShwrHead Detail_REM G214 Gas'!L6 -> 200205 | R14: ='ShwrHead Detail_REM G214 Gas'!M6 -> 0 | S14: ='ShwrHead Detail_REM G214 Gas'!N6 -> 375961.64 | T14: ='ShwrHead Detail_REM G214 Gas'!O6 -> 116700.95
B15: HmApplSvgs Detail_REM G214 Gas | C15: G214 | E15: Home Appliances | H15: 1823gggg | I15: ='HmApplSvgs Detail_REM G214 Gas'!D6 -> 0 | J15: ='HmApplSvgs Detail_REM G214 Gas'!E6 -> 0 | K15: ='HmApplSvgs Detail_REM G214 Gas'!F6 -> 0 | L15: ='HmApplSvgs Detail_REM G214 Gas'!G6 -> 0 | M15: ='HmApplSvgs Detail_REM G214 Gas'!H6 -> 0 | N15: ='HmApplSvgs Detail_REM G214 Gas'!I6 -> 0 | O15: ='HmApplSvgs Detail_REM G214 Gas'!J6 -> 0 | P15: ='HmApplSvgs Detail_REM G214 Gas'!K6 -> 0 | Q15: ='HmApplSvgs Detail_REM G214 Gas'!L6 -> 0 | R15: ='HmApplSvgs Detail_REM G214 Gas'!M6 -> 0 | S15: ='HmApplSvgs Detail_REM G214 Gas'!N6 -> 0 | T15: ='HmApplSvgs Detail_REM G214 Gas'!O6 -> 12210
B16: WebTstat Detail_REM G214 Gas | C16: G214 | E16: Web-Enabled Thermostats | H16: 18230687 | I16: ='WebTstat Detail_REM G214 Gas'!D6 -> 29200 | J16: ='WebTstat Detail_REM G214 Gas'!E6 -> 0 | K16: ='WebTstat Detail_REM G214 Gas'!F6 -> 26659.6 | L16: ='WebTstat Detail_REM G214 Gas'!G6 -> 32000 | M16: ='WebTstat Detail_REM G214 Gas'!H6 -> 1000 | N16: ='WebTstat Detail_REM G214 Gas'!I6 -> 61200 | O16: ='WebTstat Detail_REM G214 Gas'!J6 -> 500 | P16: ='WebTstat Detail_REM G214 Gas'!K6 -> 500 | Q16: ='WebTstat Detail_REM G214 Gas'!L6 -> 906163 | R16: ='WebTstat Detail_REM G214 Gas'!M6 -> 0 | S16: ='WebTstat Detail_REM G214 Gas'!N6 -> 1057222.6 | T16: ='WebTstat Detail_REM G214 Gas'!O6 -> 258070
B17: HER Detail_REM G214 gas | C17: G214 | E17: Home Energy Reports | H17: 18230738 | I17: ='HER Detail_REM G214 gas'!D6 -> 23400 | J17: ='HER Detail_REM G214 gas'!E6 -> 0 | K17: ='HER Detail_REM G214 gas'!F6 -> 21364.2 | L17: ='HER Detail_REM G214 gas'!G6 -> 0 | M17: ='HER Detail_REM G214 gas'!H6 -> 250 | N17: ='HER Detail_REM G214 gas'!I6 -> 273602.54 | O17: ='HER Detail_REM G214 gas'!J6 -> 100 | P17: ='HER Detail_REM G214 gas'!K6 -> 150 | Q17: ='HER Detail_REM G214 gas'!L6 -> 273911.25 | R17: ='HER Detail_REM G214 gas'!M6 -> 0 | S17: ='HER Detail_REM G214 gas'!N6 -> 592777.99 | T17: ='HER Detail_REM G214 gas'!O6 -> 0
B18: SFNC Detail_REM G215 Gas | C18: G215 | E18: Single Family New Construction | H18: 18230684 | I18: ='SFNC Detail_REM G215 Gas'!D6 -> 8480 | J18: ='SFNC Detail_REM G215 Gas'!E6 -> 0 | K18: ='SFNC Detail_REM G215 Gas'!F6 -> 7742.24 | L18: ='SFNC Detail_REM G215 Gas'!G6 -> 48000 | M18: ='SFNC Detail_REM G215 Gas'!H6 -> 1500 | N18: ='SFNC Detail_REM G215 Gas'!I6 -> 0 | O18: ='SFNC Detail_REM G215 Gas'!J6 -> 1000 | P18: ='SFNC Detail_REM G215 Gas'!K6 -> 0 | Q18: ='SFNC Detail_REM G215 Gas'!L6 -> 46250 | R18: ='SFNC Detail_REM G215 Gas'!M6 -> 0 | S18: ='SFNC Detail_REM G215 Gas'!N6 -> 112972.24 | T18: ='SFNC Detail_REM G215 Gas'!O6 -> 16045
B19: MF Retr Detail_REM G217 Gas | C19: G217 | E19: Multifamily Retrofit | H19: 18230736 | I19: ='MF Retr Detail_REM G217 Gas'!D6 -> 55000 | J19: ='MF Retr Detail_REM G217 Gas'!E6 -> 0 | K19: ='MF Retr Detail_REM G217 Gas'!F6 -> 50215 | L19: ='MF Retr Detail_REM G217 Gas'!G6 -> 3600 | M19: ='MF Retr Detail_REM G217 Gas'!H6 -> 1000 | N19: ='MF Retr Detail_REM G217 Gas'!I6 -> 60000 | O19: ='MF Retr Detail_REM G217 Gas'!J6 -> 500 | P19: ='MF Retr Detail_REM G217 Gas'!K6 -> 500 | Q19: ='MF Retr Detail_REM G217 Gas'!L6 -> 231056.025 | R19: ='MF Retr Detail_REM G217 Gas'!M6 -> 0 | S19: ='MF Retr Detail_REM G217 Gas'!N6 -> 401871.025 | T19: ='MF Retr Detail_REM G217 Gas'!O6 -> 50031.4
B20: MFNC Detail_REM G218 Gas | C20: G218 | E20: Multi-Family New Construction | H20: 18230673 | I20: ='MFNC Detail_REM G218 Gas'!D6 -> 37900 | J20: ='MFNC Detail_REM G218 Gas'!E6 -> 0 | K20: ='MFNC Detail_REM G218 Gas'!F6 -> 34602.7 | L20: ='MFNC Detail_REM G218 Gas'!G6 -> 13000 | M20: ='MFNC Detail_REM G218 Gas'!H6 -> 1000 | N20: ='MFNC Detail_REM G218 Gas'!I6 -> 75000 | O20: ='MFNC Detail_REM G218 Gas'!J6 -> 1500 | P20: ='MFNC Detail_REM G218 Gas'!K6 -> 0 | Q20: ='MFNC Detail_REM G218 Gas'!L6 -> 301000 | R20: ='MFNC Detail_REM G218 Gas'!M6 -> 0 | S20: ='MFNC Detail_REM G218 Gas'!N6 -> 464002.7 | T20: ='MFNC Detail_REM G218 Gas'!O6 -> 84000
G21: Total, Residential Energy Management | I21: =SUM(I8:I20) -> 288020 | J21: 0 | K21: 262962.26 | L21: 480415 | M21: 10850 | N21: 831913.54 | O21: 6150 | P21: 3600 | Q21: 6077837.388 | R21: 0 | S21: 7961748.188 | T21: 1584254.22
C25: Business Energy Management
B26: CI Retr Detail_BEM G250 Gas | C26: G250 | E26: Commercial/Industrial Retrofit | H26: 18230731 | I26: ='CI Retr Detail_BEM G250 Gas'!C6 -> 203200 | J26: ='CI Retr Detail_BEM G250 Gas'!D6 -> 0 | K26: ='CI Retr Detail_BEM G250 Gas'!E6 -> 185600 | L26: ='CI Retr Detail_BEM G250 Gas'!F6 -> 6700 | M26: ='CI Retr Detail_BEM G250 Gas'!G6 -> 12300 | N26: ='CI Retr Detail_BEM G250 Gas'!H6 -> 40800 | O26: ='CI Retr Detail_BEM G250 Gas'!I6 -> 0 | P26: ='CI Retr Detail_BEM G250 Gas'!J6 -> 0 | Q26: ='CI Retr Detail_BEM G250 Gas'!K6 -> 1200000 | S26: ='CI Retr Detail_BEM G250 Gas'!M6 -> 1648600 | T26: ='CI Retr Detail_BEM G250 Gas'!N6 -> 425000
B27: CI NC Detail_BEM G251 Gas | C27: G251 | E27: Commercial/Industrial New Construction | H27: 18230706 | I27: ='CI NC Detail_BEM G251 Gas'!C6 -> 45000 | J27: ='CI NC Detail_BEM G251 Gas'!D6 -> 0 | K27: ='CI NC Detail_BEM G251 Gas'!E6 -> 41760 | L27: ='CI NC Detail_BEM G251 Gas'!F6 -> 1000 | M27: ='CI NC Detail_BEM G251 Gas'!G6 -> 2000 | N27: ='CI NC Detail_BEM G251 Gas'!H6 -> 9500 | O27: ='CI NC Detail_BEM G251 Gas'!I6 -> 2000 | P27: ='CI NC Detail_BEM G251 Gas'!J6 -> 0 | Q27: ='CI NC Detail_BEM G251 Gas'!K6 -> 398440 | S27: ='CI NC Detail_BEM G251 Gas'!M6 -> 499700 | T27: ='CI NC Detail_BEM G251 Gas'!N6 -> 105000
E28: Commercial Strategic Energy Management | H28: Subtotal | I28: =SUM(I29:I30) -> 184000 | J28: =SUM(J29:J30) -> 0 | K28: 169682 | L28: 2000 | M28: 5000 | N28: 10000 | O28: 2000 | P28: 5000 | Q28: 192000 | R28: 0 | S28: =SUM(S29:S30) -> 569682 | T28: 670000
B29: RCM Detail_BEM 253 Gas | C29: G253 | E29: SEM | H29: 18230691 | I29: ='RCM Detail_BEM 253 Gas'!C6 -> 169000 | J29: ='RCM Detail_BEM 253 Gas'!D6 -> 0 | K29: ='RCM Detail_BEM 253 Gas'!E6 -> 155987 | L29: ='RCM Detail_BEM 253 Gas'!F6 -> 2000 | M29: ='RCM Detail_BEM 253 Gas'!G6 -> 5000 | N29: ='RCM Detail_BEM 253 Gas'!H6 -> 5000 | O29: ='RCM Detail_BEM 253 Gas'!I6 -> 2000 | P29: ='RCM Detail_BEM 253 Gas'!J6 -> 5000 | Q29: ='RCM Detail_BEM 253 Gas'!K6 -> 192000 | S29: ='RCM Detail_BEM 253 Gas'!M6 -> 535987 | T29: ='RCM Detail_BEM 253 Gas'!N6 -> 670000
B30: ResAcctSW Detail_PSWE_Gas | E30: Resource Accounting Software | H30: 18231033 | I30: ='ResAcctSW Detail_PSWE_Gas'!D6 -> 15000 | J30: ='ResAcctSW Detail_PSWE_Gas'!E6 -> 0 | K30: ='ResAcctSW Detail_PSWE_Gas'!F6 -> 13695 | L30: ='ResAcctSW Detail_PSWE_Gas'!G6 -> 0 | M30: ='ResAcctSW Detail_PSWE_Gas'!H6 -> 0 | N30: ='ResAcctSW Detail_PSWE_Gas'!I6 -> 5000 | O30: ='ResAcctSW Detail_PSWE_Gas'!J6 -> 0 | P30: ='ResAcctSW Detail_PSWE_Gas'!K6 -> 0 | Q30: ='ResAcctSW Detail_PSWE_Gas'!L6 -> 0 | R30: ='ResAcctSW Detail_PSWE_Gas'!M6 -> 0 | S30: ='ResAcctSW Detail_PSWE_Gas'!N6 -> 33695
B31: TechEval Detail_BEM G261 Gas | C31: G261 | E31: Technology Evaluation | H31: 18230694 | I31: ='TechEval Detail_BEM G261 Gas'!C6 -> 0 | J31: ='TechEval Detail_BEM G261 Gas'!D6 -> 0 | K31: ='TechEval Detail_BEM G261 Gas'!E6 -> 0 | L31: ='TechEval Detail_BEM G261 Gas'!F6 -> 0 | M31: ='TechEval Detail_BEM G261 Gas'!G6 -> 0 | N31: ='TechEval Detail_BEM G261 Gas'!H6 -> 0 | O31: ='TechEval Detail_BEM G261 Gas'!I6 -> 0 | P31: ='TechEval Detail_BEM G261 Gas'!J6 -> 0 | Q31: ='TechEval Detail_BEM G261 Gas'!K6 -> 0 | S31: ='TechEval Detail_BEM G261 Gas'!M6 -> 0 | T31: ='TechEval Detail_BEM G261 Gas'!N6 -> 0
B32: Rebates Detail_BEM G262 Gas | C32: G262 | E32: Business Rebates | H32: Subtotal | I32: =SUM(I33:I36) -> 96000 | J32: =SUM(J33:J36) -> 0 | K32: 87648 | L32: 35000 | M32: 6000 | N32: 274555 | O32: 1000 | P32: 0 | Q32: 710988.8 | R32: 0 | S32: 1211191.8 | T32: =SUM(T33:T36) -> 361136.9
B33: Comm Kit-Laund_G262 Gas | C33: G262 | E33: Commercial Kitchen & Laundry | H33: 18231027 | I33: ='Comm Kit-Laund_G262 Gas'!D6 -> 29600 | J33: ='Comm Kit-Laund_G262 Gas'!E6 -> 0 | K33: ='Comm Kit-Laund_G262 Gas'!F6 -> 27024.8 | L33: ='Comm Kit-Laund_G262 Gas'!G6 -> 15000 | M33: ='Comm Kit-Laund_G262 Gas'!H6 -> 3500 | N33: ='Comm Kit-Laund_G262 Gas'!I6 -> 0 | O33: ='Comm Kit-Laund_G262 Gas'!J6 -> 0 | P33: ='Comm Kit-Laund_G262 Gas'!K6 -> 0 | Q33: ='Comm Kit-Laund_G262 Gas'!L6 -> 193104 | R33: ='Comm Kit-Laund_G262 Gas'!M6 -> 0 | S33: ='Comm Kit-Laund_G262 Gas'!N6 -> 268228.8 | T33: ='Comm Kit-Laund_G262 Gas'!O6 -> 86463.9
B34: Comm HVAC_G262 Gas | C34: G262 | E34: Commercial HVAC | H34: 18231029 | I34: ='Comm HVAC_G262 Gas'!D6 -> 14800 | J34: ='Comm HVAC_G262 Gas'!E6 -> 0 | K34: ='Comm HVAC_G262 Gas'!F6 -> 13512.4 | L34: ='Comm HVAC_G262 Gas'!G6 -> 0 | M34: ='Comm HVAC_G262 Gas'!H6 -> 0 | N34: ='Comm HVAC_G262 Gas'!I6 -> 0 | O34: ='Comm HVAC_G262 Gas'!J6 -> 0 | P34: ='Comm HVAC_G262 Gas'!K6 -> 0 | Q34: ='Comm HVAC_G262 Gas'!L6 -> 102500 | R34: ='Comm HVAC_G262 Gas'!M6 -> 0 | S34: ='Comm HVAC_G262 Gas'!N6 -> 130812.4 | T34: ='Comm HVAC_G262 Gas'!O6 -> 29475
C35: E262 | E35: Commercial Midstream | H35: 18230248 | I35: ='Comm Upstr-Rooftop_G262 Gas'!D6 -> 10800 | J35: ='Comm Upstr-Rooftop_G262 Gas'!E6 -> 0 | K35: ='Comm Upstr-Rooftop_G262 Gas'!F6 -> 9860.4 | L35: ='Comm Upstr-Rooftop_G262 Gas'!G6 -> 20000 | M35: ='Comm Upstr-Rooftop_G262 Gas'!H6 -> 500 | N35: ='Comm Upstr-Rooftop_G262 Gas'!I6 -> 250000 | O35: ='Comm Upstr-Rooftop_G262 Gas'!J6 -> 0 | P35: ='Comm Upstr-Rooftop_G262 Gas'!K6 -> 0 | Q35: ='Comm Upstr-Rooftop_G262 Gas'!L6 -> 300000 | R35: ='Comm Upstr-Rooftop_G262 Gas'!M6 -> 0 | S35: ='Comm Upstr-Rooftop_G262 Gas'!N6 -> 591160.4 | T35: ='Comm Upstr-Rooftop_G262 Gas'!O6 -> 205898
E36: Business Direct Installs--Includes: | H36: Subtotal | I36: =I37+I38+I39 -> 40800 | J36: =J37+J38+J39 -> 0 | K36: 37250.4 | L36: 0 | M36: 2000 | N36: 24555 | O36: 1000 | P36: 0 | Q36: 115384.8 | R36: 0 | S36: 220990.2 | T36: =T37+T38+T39 -> 39300
B37: Sm Bus DI_G262 Gas | C37: G262 | F37: Small Business Direct Install | H37: 18231022 | I37: ='Sm Bus DI_G262 Gas'!D6 -> 40800 | J37: ='Sm Bus DI_G262 Gas'!E6 -> 0 | K37: ='Sm Bus DI_G262 Gas'!F6 -> 37250.4 | L37: ='Sm Bus DI_G262 Gas'!G6 -> 0 | M37: ='Sm Bus DI_G262 Gas'!H6 -> 2000 | N37: ='Sm Bus DI_G262 Gas'!I6 -> 24555 | O37: ='Sm Bus DI_G262 Gas'!J6 -> 1000 | P37: ='Sm Bus DI_G262 Gas'!K6 -> 0 | Q37: ='Sm Bus DI_G262 Gas'!L6 -> 115384.8 | R37: ='Sm Bus DI_G262 Gas'!M6 -> 0 | S37: ='Sm Bus DI_G262 Gas'!N6 -> 220990.2 | T37: ='Sm Bus DI_G262 Gas'!O6 -> 39300
B38: Sm Agr DI_G262 Gas | C38: G262 | F38: Small Agriculture Direct Install | H38: 18230251 | I38: ='Sm Agr DI_G262 Gas'!D6 -> 0 | J38: ='Sm Agr DI_G262 Gas'!E6 -> 0 | K38: ='Sm Agr DI_G262 Gas'!F6 -> 0 | L38: ='Sm Agr DI_G262 Gas'!G6 -> 0 | M38: ='Sm Agr DI_G262 Gas'!H6 -> 0 | N38: ='Sm Agr DI_G262 Gas'!I6 -> 0 | O38: ='Sm Agr DI_G262 Gas'!J6 -> 0 | P38: ='Sm Agr DI_G262 Gas'!K6 -> 0 | Q38: ='Sm Agr DI_G262 Gas'!L6 -> 0 | R38: ='Sm Agr DI_G262 Gas'!M6 -> 0 | S38: ='Sm Agr DI_G262 Gas'!N6 -> 0 | T38: ='Sm Agr DI_G262 Gas'!O6 -> 0
B39: Lodging DI_G262_Gas | C39: G262 | F39: Lodging Direct Install | H39: 18230250 | I39: ='Lodging DI_G262_Gas'!D6 -> 0 | J39: ='Lodging DI_G262_Gas'!E6 -> 0 | K39: ='Lodging DI_G262_Gas'!F6 -> 0 | L39: ='Lodging DI_G262_Gas'!G6 -> 0 | M39: ='Lodging DI_G262_Gas'!H6 -> 0 | N39: ='Lodging DI_G262_Gas'!I6 -> 0 | O39: ='Lodging DI_G262_Gas'!J6 -> 0 | P39: ='Lodging DI_G262_Gas'!K6 -> 0 | Q39: ='Lodging DI_G262_Gas'!L6 -> 0 | R39: ='Lodging DI_G262_Gas'!M6 -> 0 | S39: ='Lodging DI_G262_Gas'!N6 -> 0 | T39: ='Lodging DI_G262_Gas'!O6 -> 0
G40: Total, Business Energy Management | I40: =SUM(I26:I28)+I31+I32 -> 528200 | J40: 0 | K40: 484690 | L40: 44700 | M40: 25300 | N40: 334855 | O40: 5000 | P40: 5000 | Q40: 2501428.8 | R40: 0 | S40: 3929173.8 | T40: 1561136.9
C44: Pilots With Uncertain Savings
B45: REM Pilots Detail G249 Gas | C45: G249 | E45: Residential Pilots | H45: 18230622 | I45: ='REM Pilots Detail G249 Gas'!D6 -> 0 | J45: ='REM Pilots Detail G249 Gas'!E6 -> 0 | K45: ='REM Pilots Detail G249 Gas'!F6 -> 0 | L45: ='REM Pilots Detail G249 Gas'!G6 -> 0 | M45: ='REM Pilots Detail G249 Gas'!H6 -> 0 | N45: ='REM Pilots Detail G249 Gas'!I6 -> 0 | O45: ='REM Pilots Detail G249 Gas'!J6 -> 0 | P45: ='REM Pilots Detail G249 Gas'!K6 -> 0 | Q45: ='REM Pilots Detail G249 Gas'!L6 -> 0 | R45: ='REM Pilots Detail G249 Gas'!M6 -> 0 | S45: ='REM Pilots Detail G249 Gas'!N6 -> 0 | T45: ='REM Pilots Detail G249 Gas'!O6 -> 0
B46: BEM Pilots Detail G249 Gas | C46: G249 | E46: Commercial Pay for Performance Pilot | H46: 1823pppp | I46: ='BEM Pilots Detail G249 Gas'!D6 -> 0 | J46: ='BEM Pilots Detail G249 Gas'!E6 -> 0 | K46: ='BEM Pilots Detail G249 Gas'!F6 -> 0 | L46: ='BEM Pilots Detail G249 Gas'!G6 -> 0 | M46: ='BEM Pilots Detail G249 Gas'!H6 -> 0 | N46: ='BEM Pilots Detail G249 Gas'!I6 -> 0 | O46: ='BEM Pilots Detail G249 Gas'!J6 -> 0 | P46: ='BEM Pilots Detail G249 Gas'!K6 -> 0 | Q46: ='BEM Pilots Detail G249 Gas'!L6 -> 10000 | R46: ='BEM Pilots Detail G249 Gas'!M6 -> 0 | S46: ='BEM Pilots Detail G249 Gas'!N6 -> 10000 | T46: ='BEM Pilots Detail G249 Gas'!O6 -> 2000
G47: Total, Pilots | I47: =SUM(I45:I46) -> 0 | J47: =SUM(J45:J46) -> 0 | K47: 0 | L47: 0 | M47: 0 | N47: 0 | O47: 0 | P47: 0 | Q47: 10000 | R47: 0 | S47: 10000 | T47: =SUM(T45:T46) -> 2000
C51: Regional Efficiency Programs
E52: NW Gas Market Transformation | H52: 18230660 | I52: ='NEEA Gas MT_no Sched Gas'!D6 -> 0 | J52: ='NEEA Gas MT_no Sched Gas'!E6 -> 0 | K52: ='NEEA Gas MT_no Sched Gas'!F6 -> 0 | L52: ='NEEA Gas MT_no Sched Gas'!G6 -> 0 | M52: ='NEEA Gas MT_no Sched Gas'!H6 -> 0 | N52: ='NEEA Gas MT_no Sched Gas'!I6 -> 2434244 | O52: ='NEEA Gas MT_no Sched Gas'!J6 -> 0 | P52: ='NEEA Gas MT_no Sched Gas'!K6 -> 0 | Q52: ='NEEA Gas MT_no Sched Gas'!L6 -> 0 | S52: ='NEEA Gas MT_no Sched Gas'!N6 -> 2434244 | T52: ='NEEA Gas MT_no Sched Gas'!O6 -> 0
G53: Total, Regional Efficiency Programs | I53: =SUM(I52:I52) -> 0 | J53: 0 | K53: 0 | L53: 0 | M53: 0 | N53: 2434244 | O53: 0 | P53: 0 | Q53: 0 | S53: =SUM(S52:S52) -> 2434244 | T53: =SUM(T52:T52) -> 0
C57: Energy Efficiency Portfolio Support
B58: Data & Systm Svcs Detail Gas | E58: Data and Systems Services | H58: 18231005 | I58: ='Data & Systm Svcs Detail Gas'!D6 -> 62660 | J58: ='Data & Systm Svcs Detail Gas'!E6 -> 0 | K58: ='Data & Systm Svcs Detail Gas'!F6 -> 57208.58 | L58: ='Data & Systm Svcs Detail Gas'!G6 -> 0 | M58: ='Data & Systm Svcs Detail Gas'!H6 -> 1560 | N58: ='Data & Systm Svcs Detail Gas'!I6 -> 42250 | O58: ='Data & Systm Svcs Detail Gas'!J6 -> 0 | P58: ='Data & Systm Svcs Detail Gas'!K6 -> 0 | Q58: ='Data & Systm Svcs Detail Gas'!L6 -> 0 | R58: ='Data & Systm Svcs Detail Gas'!M6 -> 0 | S58: ='Data & Systm Svcs Detail Gas'!N6 -> 163678.58
B59: Rebt Procg_Detail Gas | E59: Rebates Processing | H59: 18230507 | I59: ='Rebt Procg_Detail Gas'!D6 -> 41200 | J59: ='Rebt Procg_Detail Gas'!E6 -> 0 | K59: ='Rebt Procg_Detail Gas'!F6 -> 37615.6 | L59: ='Rebt Procg_Detail Gas'!G6 -> 0 | M59: ='Rebt Procg_Detail Gas'!H6 -> 3300 | N59: ='Rebt Procg_Detail Gas'!I6 -> 0 | O59: ='Rebt Procg_Detail Gas'!J6 -> 750 | P59: ='Rebt Procg_Detail Gas'!K6 -> 0 | Q59: ='Rebt Procg_Detail Gas'!L6 -> 0 | R59: ='Rebt Procg_Detail Gas'!M6 -> 0 | S59: ='Rebt Procg_Detail Gas'!N6 -> 82865.6
B60: Vteam Detail_R&C_Gas | E60: Verification Team | H60: 18230668 | I60: ='Verifctn team Detail Gas'!D6 -> 33920 | J60: ='Verifctn team Detail Gas'!E6 -> 0 | K60: ='Verifctn team Detail Gas'!F6 -> 30968.96 | L60: ='Verifctn team Detail Gas'!G6 -> 0 | M60: ='Verifctn team Detail Gas'!H6 -> 1850 | N60: ='Verifctn team Detail Gas'!I6 -> 11700 | O60: ='Verifctn team Detail Gas'!J6 -> 900 | P60: ='Verifctn team Detail Gas'!K6 -> 0 | Q60: ='Verifctn team Detail Gas'!L6 -> 0 | S60: ='Verifctn team Detail Gas'!N6 -> 79338.96
B61: ProgDev Detail_R&C_ Elec | E61: Programs Support | H61: 18230688 | I61: ='Progs Supp Detail_PS_Gas'!D6 -> 31200 | J61: ='Progs Supp Detail_PS_Gas'!E6 -> 0 | K61: ='Progs Supp Detail_PS_Gas'!F6 -> 28485.6 | L61: ='Progs Supp Detail_PS_Gas'!G6 -> 0 | M61: ='Progs Supp Detail_PS_Gas'!H6 -> 2000 | N61: ='Progs Supp Detail_PS_Gas'!I6 -> 0 | O61: ='Progs Supp Detail_PS_Gas'!J6 -> 0 | P61: ='Progs Supp Detail_PS_Gas'!K6 -> 0 | Q61: ='Progs Supp Detail_PS_Gas'!L6 -> 0 | R61: ='Progs Supp Detail_PS_Gas'!M6 -> 0 | S61: ='Progs Supp Detail_PS_Gas'!N6 -> 61685.6
B62: TradeAlly Detail_PS_gas | E62: Trade Ally Support | H62: 18230698 | I62: ='TradeAlly Detail_PS_gas'!D6 -> 0 | J62: ='TradeAlly Detail_PS_gas'!E6 -> 0 | K62: ='TradeAlly Detail_PS_gas'!F6 -> 0 | L62: ='TradeAlly Detail_PS_gas'!G6 -> 0 | M62: ='TradeAlly Detail_PS_gas'!H6 -> 0 | N62: ='TradeAlly Detail_PS_gas'!I6 -> 0 | O62: ='TradeAlly Detail_PS_gas'!J6 -> 22000 | P62: ='TradeAlly Detail_PS_gas'!K6 -> 0 | Q62: ='TradeAlly Detail_PS_gas'!L6 -> 0 | R62: ='TradeAlly Detail_PS_gas'!M6 -> 0 | S62: ='TradeAlly Detail_PS_gas'!N6 -> 22000
B63: CAN_PS_Detail Gas | E63: Contractor Alliance Network (revenue + cost) | H63: 18231031 | I63: ='CAN_PS_Detail Gas'!D6 -> 73600 | J63: ='CAN_PS_Detail Gas'!E6 -> 0 | K63: ='CAN_PS_Detail Gas'!F6 -> 67196.8 | L63: ='CAN_PS_Detail Gas'!G6 -> 20000 | M63: ='CAN_PS_Detail Gas'!H6 -> 5000 | N63: ='CAN_PS_Detail Gas'!I6 -> 148000 | O63: ='CAN_PS_Detail Gas'!J6 -> 1500 | P63: ='CAN_PS_Detail Gas'!K6 -> 0 | Q63: ='CAN_PS_Detail Gas'!L6 -> 0 | R63: ='CAN_PS_Detail Gas'!M6 -> -282400.8 | S63: ='CAN_PS_Detail Gas'!N6 -> 32896
B64: ABS Detail_PSWE_Gas | E64: Automated Benchmarking System | H64: 18230667 | I64: ='ABS Detail_PSWE_Gas'!D6 -> 26939 | J64: ='ABS Detail_PSWE_Gas'!E6 -> 0 | K64: ='ABS Detail_PSWE_Gas'!F6 -> 24595.307 | L64: ='ABS Detail_PSWE_Gas'!G6 -> 0 | M64: ='ABS Detail_PSWE_Gas'!H6 -> 0 | N64: ='ABS Detail_PSWE_Gas'!I6 -> 25500 | O64: ='ABS Detail_PSWE_Gas'!J6 -> 0 | P64: ='ABS Detail_PSWE_Gas'!K6 -> 0 | Q64: ='ABS Detail_PSWE_Gas'!L6 -> 0 | R64: ='ABS Detail_PSWE_Gas'!L6 -> 0 | S64: ='ABS Detail_PSWE_Gas'!N6 -> 77034.307
B65: Engy Adv Detail_PSCE_Gas | E65: Energy Advisors | H65: 18230704 | I65: ='Engy Adv Detail_PSCE_Gas'!D6 -> 97760 | J65: ='Engy Adv Detail_PSCE_Gas'!E6 -> 0 | K65: ='Engy Adv Detail_PSCE_Gas'!F6 -> 66770.08 | L65: ='Engy Adv Detail_PSCE_Gas'!G6 -> 0 | M65: ='Engy Adv Detail_PSCE_Gas'!H6 -> 7832 | N65: ='Engy Adv Detail_PSCE_Gas'!I6 -> 200 | O65: ='Engy Adv Detail_PSCE_Gas'!J6 -> 423 | P65: ='Engy Adv Detail_PSCE_Gas'!K6 -> 202 | Q65: ='Engy Adv Detail_PSCE_Gas'!L6 -> 0 | R65: ='Engy Adv Detail_PSCE_Gas'!M6 -> 0 | S65: ='Engy Adv Detail_PSCE_Gas'!N6 -> 173187.08
B66: EEC Detail_PS_Gas | E66: Energy Efficient Communities | H66: 18230657 | I66: ='EEC Detail_PS_Gas'!D6 -> 64100 | J66: ='EEC Detail_PS_Gas'!E6 -> 0 | K66: ='EEC Detail_PS_Gas'!F6 -> 43780.3 | L66: ='EEC Detail_PS_Gas'!G6 -> 7500 | M66: ='EEC Detail_PS_Gas'!H6 -> 5330 | N66: ='EEC Detail_PS_Gas'!I6 -> 20500 | O66: ='EEC Detail_PS_Gas'!J6 -> 1950 | P66: ='EEC Detail_PS_Gas'!K6 -> 0 | Q66: ='EEC Detail_PS_Gas'!L6 -> 0 | R66: ='EEC Detail_PS_Gas'!M6 -> 0 | S66: ='EEC Detail_PS_Gas'!N6 -> 143160.3
E67: Customer Digital Experience | H67: Subtotal | I67: =SUM(I68:I70) -> 41120 | J67: =SUM(J68:J70) -> 0 | K67: 31028.96 | L67: 0 | M67: 400 | N67: 151499.99 | O67: 0 | P67: 0 | Q67: 0 | R67: 0 | S67: 224048.95
B68: CustOnline Detail_PSWE_Gas | F68: Digital Experience | H68: 18230737 | I68: ='CustDigExprnc Detail_PSWE_Gas'!D6 -> 28320 | J68: ='CustDigExprnc Detail_PSWE_Gas'!E6 -> 0 | K68: ='CustDigExprnc Detail_PSWE_Gas'!F6 -> 19342.56 | L68: ='CustDigExprnc Detail_PSWE_Gas'!G6 -> 0 | M68: ='CustDigExprnc Detail_PSWE_Gas'!H6 -> 400 | N68: ='CustDigExprnc Detail_PSWE_Gas'!I6 -> 66421 | O68: ='CustDigExprnc Detail_PSWE_Gas'!J6 -> 0 | P68: ='CustDigExprnc Detail_PSWE_Gas'!K6 -> 0 | Q68: ='CustDigExprnc Detail_PSWE_Gas'!L6 -> 0 | S68: ='CustDigExprnc Detail_PSWE_Gas'!N6 -> 114483.56
B69: CustAwarTools_gas | F69: Cutomer Awareness Tools | H69: 18230690 | I69: =CustAwarTools_gas!D6 -> 12800 | J69: =CustAwarTools_gas!E6 -> 0 | K69: =CustAwarTools_gas!F6 -> 11686.4 | L69: =CustAwarTools_gas!G6 -> 0 | M69: =CustAwarTools_gas!H6 -> 0 | N69: =CustAwarTools_gas!I6 -> 85078.99 | O69: =CustAwarTools_gas!J6 -> 0 | P69: =CustAwarTools_gas!K6 -> 0 | Q69: =CustAwarTools_gas!L6 -> 0 | R69: =CustAwarTools_gas!M6 -> 0 | S69: =CustAwarTools_gas!N6 -> 109565.39
B70: ShopPSE_gas | F70: ShopPSE | H70: 18230662 | I70: =ShopPSE_gas!D6 -> 0 | J70: =ShopPSE_gas!E6 -> 0 | K70: =ShopPSE_gas!F6 -> 0 | L70: =ShopPSE_gas!G6 -> 0 | M70: =ShopPSE_gas!H6 -> 0 | N70: =ShopPSE_gas!I6 -> 0 | O70: =ShopPSE_gas!J6 -> 0 | P70: =ShopPSE_gas!K6 -> 0 | Q70: =ShopPSE_gas!L6 -> 0 | R70: =ShopPSE_gas!M6 -> 0 | S70: =ShopPSE_gas!N6 -> 0
B71: Mkt Intg Detail_PSWE_Gas | E71: Market Integration | H71: 18230732 | I71: ='Mkt Intg Detail_PSWE_Gas'!D6 -> 21856 | J71: ='Mkt Intg Detail_PSWE_Gas'!E6 -> 0 | K71: ='Mkt Intg Detail_PSWE_Gas'!F6 -> 14927.648 | L71: ='Mkt Intg Detail_PSWE_Gas'!G6 -> 0 | M71: ='Mkt Intg Detail_PSWE_Gas'!H6 -> 0 | N71: ='Mkt Intg Detail_PSWE_Gas'!I6 -> 2080 | O71: ='Mkt Intg Detail_PSWE_Gas'!J6 -> 0 | P71: ='Mkt Intg Detail_PSWE_Gas'!K6 -> 0 | Q71: ='Mkt Intg Detail_PSWE_Gas'!L6 -> 0 | S71: ='Mkt Intg Detail_PSWE_Gas'!N6 -> 38863.648
B72: Events Detail_PSCE_Gas | E72: Events | H72: 18230653 | I72: ='Events Detail_PSCE_Gas'!D6 -> 58000 | J72: ='Events Detail_PSCE_Gas'!E6 -> 0 | K72: ='Events Detail_PSCE_Gas'!F6 -> 39614 | L72: ='Events Detail_PSCE_Gas'!G6 -> 1040 | M72: ='Events Detail_PSCE_Gas'!H6 -> 595 | N72: ='Events Detail_PSCE_Gas'!I6 -> 10800 | O72: ='Events Detail_PSCE_Gas'!J6 -> 715 | P72: ='Events Detail_PSCE_Gas'!K6 -> 0 | Q72: ='Events Detail_PSCE_Gas'!L6 -> 0 | R72: ='Events Detail_PSCE_Gas'!M6 -> 0 | S72: ='Events Detail_PSCE_Gas'!N6 -> 110764
B73: Brochure Detail_PSCE_Gas | E73: Brochures, non program-specific | H73: 18230685 | I73: ='Brochure Detail_PSCE_Gas'!D6 -> 2400 | J73: ='Brochure Detail_PSCE_Gas'!E6 -> 0 | K73: ='Brochure Detail_PSCE_Gas'!F6 -> 1639.2 | L73: ='Brochure Detail_PSCE_Gas'!G6 -> 2000 | M73: ='Brochure Detail_PSCE_Gas'!H6 -> 0 | N73: ='Brochure Detail_PSCE_Gas'!I6 -> 390 | O73: ='Brochure Detail_PSCE_Gas'!J6 -> 3380 | P73: ='Brochure Detail_PSCE_Gas'!K6 -> 0 | Q73: ='Brochure Detail_PSCE_Gas'!L6 -> 0 | R73: ='Brochure Detail_PSCE_Gas'!M6 -> 0 | S73: ='Brochure Detail_PSCE_Gas'!N6 -> 9809.2
B74: Eductn Detail_PSCE_G207 Gas | C74: G202 | E74: Education | H74: 18230671 | I74: ='Eductn Detail_PSCE_G207 Gas'!D6 -> 0 | J74: ='Eductn Detail_PSCE_G207 Gas'!E6 -> 0 | K74: ='Eductn Detail_PSCE_G207 Gas'!F6 -> 0 | L74: ='Eductn Detail_PSCE_G207 Gas'!G6 -> 0 | M74: ='Eductn Detail_PSCE_G207 Gas'!H6 -> 0 | N74: ='Eductn Detail_PSCE_G207 Gas'!I6 -> 0 | O74: ='Eductn Detail_PSCE_G207 Gas'!J6 -> 0 | P74: ='Eductn Detail_PSCE_G207 Gas'!K6 -> 0 | Q74: ='Eductn Detail_PSCE_G207 Gas'!L6 -> 0 | R74: ='Eductn Detail_PSCE_G207 Gas'!M6 -> 0 | S74: ='Eductn Detail_PSCE_G207 Gas'!N6 -> 0
G75: Total, Portfolio Support | I75: =SUM(I58:I67)+SUM(I71:I74) -> 554755 | J75: =SUM(J58:J67)+SUM(J71:J74) -> 0 | K75: 443831.035 | L75: 30540 | M75: 27867 | N75: 412919.99 | O75: 31618 | P75: 202 | Q75: 0 | R75: -282400.8 | S75: 1219332.225
C79: Energy Efficiency Research & Compliance
B80: Supp Crv Detail_R&C_gas | E80: Conservation Supply Curves | H80: 18230703 | I80: ='Supp Crv Detail_R&C_gas'!D6 -> 13000 | J80: ='Supp Crv Detail_R&C_gas'!E6 -> 0 | K80: ='Supp Crv Detail_R&C_gas'!F6 -> 8879 | L80: ='Supp Crv Detail_R&C_gas'!G6 -> 0 | M80: ='Supp Crv Detail_R&C_gas'!H6 -> 130 | N80: ='Supp Crv Detail_R&C_gas'!I6 -> 9360 | O80: ='Supp Crv Detail_R&C_gas'!J6 -> 0 | P80: ='Supp Crv Detail_R&C_gas'!K6 -> 0 | Q80: ='Supp Crv Detail_R&C_gas'!L6 -> 0 | S80: ='Supp Crv Detail_R&C_gas'!N6 -> 31369
B81: Strat Pln Detail_R&C_Gas | E81: Strategic Planning | H81: 18230679 | I81: ='Strat Pln Detail_R&C_Gas'!D6 -> 34632 | J81: ='Strat Pln Detail_R&C_Gas'!E6 -> 0 | K81: ='Strat Pln Detail_R&C_Gas'!F6 -> 23653.656 | L81: ='Strat Pln Detail_R&C_Gas'!G6 -> 0 | M81: ='Strat Pln Detail_R&C_Gas'!H6 -> 2605 | N81: ='Strat Pln Detail_R&C_Gas'!I6 -> 26000 | O81: ='Strat Pln Detail_R&C_Gas'!J6 -> 0 | P81: ='Strat Pln Detail_R&C_Gas'!K6 -> 0 | Q81: ='Strat Pln Detail_R&C_Gas'!L6 -> 0 | S81: ='Strat Pln Detail_R&C_Gas'!N6 -> 86890.656
B82: Mktg Rsch Detail_PS_gas | E82: Market Research | H82: 18230669 | I82: ='Mktg Rsch Detail_PS_gas'!D6 -> 20800 | J82: ='Mktg Rsch Detail_PS_gas'!E6 -> 0 | K82: ='Mktg Rsch Detail_PS_gas'!F6 -> 14206.4 | L82: ='Mktg Rsch Detail_PS_gas'!G6 -> 0 | M82: ='Mktg Rsch Detail_PS_gas'!H6 -> 0 | N82: ='Mktg Rsch Detail_PS_gas'!I6 -> 2008.5 | O82: ='Mktg Rsch Detail_PS_gas'!J6 -> 0 | P82: ='Mktg Rsch Detail_PS_gas'!K6 -> 0 | Q82: ='Mktg Rsch Detail_PS_gas'!L6 -> 0 | S82: ='Mktg Rsch Detail_PS_gas'!N6 -> 37014.9
B83: Eval Detail_R&C_Gas | E83: Program Evaluation | H83: 18230699 | I83: ='Eval Detail_R&C_Gas'!D6 -> 24544 | J83: ='Eval Detail_R&C_Gas'!E6 -> 0 | K83: ='Eval Detail_R&C_Gas'!F6 -> 22408.672 | L83: ='Eval Detail_R&C_Gas'!G6 -> 0 | M83: ='Eval Detail_R&C_Gas'!H6 -> 910 | N83: ='Eval Detail_R&C_Gas'!I6 -> 152875.19 | O83: ='Eval Detail_R&C_Gas'!J6 -> 0 | P83: ='Eval Detail_R&C_Gas'!K6 -> 0 | Q83: ='Eval Detail_R&C_Gas'!L6 -> 0 | S83: ='Eval Detail_R&C_Gas'!N6 -> 200737.862
G84: Total, Research & Compliance | I84: =SUM(I80:I83) -> 92976 | J84: 0 | K84: 69147.728 | L84: 0 | M84: 3645 | N84: 190243.69 | O84: 0 | P84: 0 | Q84: 0 | R84: 0 | S84: 356012.418
G88: GRAND TOTAL, GAS PROGRAMS | I88: =I84+I75+I53+I47+I40+I21 -> 1463951 | J88: =J84+J75+J53+J47+J40+J21 -> 0 | K88: =K84+K75+K53+K47+K40+K21 -> 1260631.023 | L88: 555655 | M88: =M84+M75+M53+M47+M40+M21 -> 67662 | N88: 4204176.22 | O88: =O84+O75+O53+O47+O40+O21 -> 42768 | P88: 8802 | Q88: =Q84+Q75+Q53+Q47+Q40+Q21 -> 8589266.188 | R88: -282400.8 | S88: =S84+S75+S53+S47+S40+S21 -> 15910510.63 | T88: =T84+T75+T53+T47+T40+T21 -> 3147391.12
G92: Budget Category Includes | H92: This is the main level of tracking expenditures and expenses in EES. Per FERC rules, all conservation order numbers start with a "1823nnnn", where "n" is some number. Cost elements apply to all order numbers (for instance, all conservation programs that | I92: Energy Efficiency program staff labor. Average FTE cost including management assessments. This Budget Category group includes assessments from Major Accounts management, Resource Planning, Corporate Communications management, IT specialists and some building maintenance allocations. | J92: Also Energy Efficiency staff labor, associated specifically with Marketing functions. Marketing allocates staffing according to program needs. | K92: Overhead--costs associated with primarily employee labor; benefits, for instance. For 2017, includes micro-overhead | L92: Service and materials associated with the cost of printing program brochures, marketing pieces, advertising, banners, etc. Also includes marketing conducted by vendors and contractors. | M92: Costs associated with EE staff attending events, employee training, conferences, business meals, business parking, ferry & bridge tolls, mileage incurred on employee automobiles, office supplies, phones, subscriptions, software/hardware, etc. | N92: Contractors and vendors, such as PECI, Ecos, CostCo, EFI, etc. Legal expenses, technical services (CMS design, PSE.com web portals, etc.). These costs do NOT include brochure development, marketing pieces, (which are classified under MARKETING). These costs do NOT include incentives paid to customers by contractors. | O92: Primarily tools, trade show equipment, etc. | P92: This category should seldomly be used, and only expenses that cannot be classified under one of the above categories. | Q92: All costs associated with rebates, grants, remuneration, value-added services that have a direct bearing on a customer's perceived value of PSE offerings. | R92: Any amount that PSE is paid by a customer, partner, municipality or outside entity.

Sheet LowIncWx Detail_REM E201_Elec
C1: Low Income Weatherization | D1: Schedule 201 | E1: Order Number | F1: 18230611 | G1: Electric | L1: Low Income Weatherization | M1: Schedule 201 | N1: Order Number | O1: 18230611 | P1: Electric | T1: Low Income Weatherization | U1: Schedule 201 | V1: Order Number | W1: 18230611 | X1: Electric
D2: This table summarizes the subtotals in the detail table below and is used to populate 2019 Sector view tables (located at the front of this workbook).
A3: Low Income Weatherization | D3: Program Labor | E3: Marketing Labor | F3: Overhead | G3: Marketing | H3: Employee/Office Expense | I3: Outside Services | J3: Materials | K3: Miscellaneous | L3: DBtC | M3: Revenue | N3: Total Budget | O3: Total Savings
A4: Schedule 201 | C4: 2018 (Reference only) | D4: 116800 | E4: 15840 | F4: 123089.92 | G4: 48600 | H4: 4500 | I4: 22500 | J4: 1350 | K4: 1350 | L4: 4522648.769 | M4: 0 | N4: 4856678.689 | O4: 2066032.67
A5: Order Number | C5: Original 2019 figures | D5: =D15 -> 116800 | E5: =D27 -> 15840 | F5: =D33 -> 123089.92 | G5: =D43 -> 48600 | H5: =D49 -> 4500 | I5: =D55 -> 22500 | J5: =D61 -> 1350 | K5: =D67 -> 1350 | L5: =D73+D21 -> 3610828.724 | M5: 0 | N5: =SUM(D5:M5) -> 3944858.644 | O5: =V15 -> 2066032.67
A6: 18230611 | C6: 2019 (Updated for 2019 ACP) | D6: =E15 -> 132640 | E6: =E27 -> 0 | F6: =E33 -> 121100.32 | G6: =E43 -> 48600 | H6: =E49 -> 4500 | I6: =E55 -> 22500 | J6: =E61 -> 1350 | K6: =E67 -> 1350 | L6: =E73+E21 -> 4356401.137 | M6: =E76 -> 0 | N6: =SUM(D6:M6) -> 4688441.457 | O6: =W15 -> 1956025.47
A7: Electric
H8: All measure cost, incentive and savings figures are based on updated 2019 data. Highlighted cells indicate revisions from values presented in the 2018-2019 BCP. Lined-out measures are retired for 2019.
C9: Budget amounts account for additional funding Per paragraph 178, page 76, Order 7 of Docket 130137 re: decoupling, and the Settlement Stipulation in Order 08, Dockets UE-170033 and UG-170034
C10: Spending Section | H10: Savings Section | W10: Savings Section | AE10: Savings Section
AB11: 0.0953503 | AC11: f PSE Program Support %
C12: Overall Total | D12: =D15+D21+D27+D33+D43+D49+D55+D61+D67+D73 -> 3944858.644 | E12: =E15++E21+E27+E33+E43+E49+E55+E61+E67+E73 -> 4688441.457 | F12: =D12+E12 -> 8633300.101 | H12: Measure Information | S12: Unit Totals | V12: Projected Savings | Y12: Incentive Totals | AB12: 2019 Program Support | AG12: 1st Year NEBs per Unit
H13: Measure Name | I13: Per 1 Savings | J13: Per 2 Savings | K13: UOM | L13: Unit Type | M13: Dual Fuel? | N13: Measure Cost | O13: Incentive | P13: Support % | Q13: Measure Life | R13: End Use | S13: 2018 | T13: 2019 | U13: Combined | V13: 2018 | W13: 2019 | X13: Combined | Y13: 2018 | Z13: 2019 | AA13: Combined | AB13: Agency % | AC13: Program Dollars | AD13: Program Dollars | AE13: Program Dollars | AF13: Other Cost Contribut.
C14: Budget Category | D14: 2018 | E14: 2019 | F14: Total | H14: i | I14: i | L14: i | N14: i | O14: i | P14: i | Q14: i | R14: i | S14: i | T14: i | AB14: i | AC14: Paid to Agency | AD14: PSE | AE14: Combined | AF14: i | AG14: i
B15: FTE | C15: PROGRAM LABOR | D15: =SUM(D16:D19) -> 116800 | E15: =SUM(E16:E19) -> 132640 | F15: =D15+E15 -> 249440 | H15: TOTALS g | O15: =SUM(O16:O114) -> 1993142.69 | Q15: N/A | V15: 2066032.67 | W15: =SUM(W17:W119) -> 1956025.47 | X15: =SUM(X17:X119) -> 4022058.14 | Y15: 3173788.61 | Z15: =SUM(Z17:Z119) -> 3482320.91 | AA15: =SUM(AA17:AA116) -> 6656109.52 | AC15: =SUM(AC16:AC119) -> 874080.2275 | AD15: =SUM(AD16:AD119) -> 332040.3435 | AE15: =SUM(AE16:AE119) -> 1206120.571 | AF15: 0 | AG15: 0
B16: 0.95 | C16: Program Manager | D16: 76000 | E16: 76000 | F16: =E16+D16 -> 152000 | G16: 1 | H16: Shareholder | I16: 0 | J16: 0 | K16: kWh | L16: calculated | AB16: 0
B17: 0.3 | C17: Program Coordinator | D17: 16800 | E17: 16800 | F17: =E17+D17 -> 33600 | G17: 2 | H17: Repairs | I17: 0 | J17: 0 | K17: kWh | L17: calculated | N17: 1079197 | O17: 1079197 | Q17: 1 | R17: Res Refrigerator | S17: 0.5 | T17: 0.5 | U17: =SUM(S17:T17) -> 1 | V17: 0 | W17: 0 | X17: =SUM(V17:W17) -> 0 | Y17: 489598.5 | Z17: =T17*O17 -> 539598.5 | AA17: =SUM(Y17:Z17) -> 1029197 | AB17: 0.25 | AC17: =AB17*T17*O17 -> 134899.625 | AD17: =$AB$11*T17*O17 -> 51450.87885 | AE17: =SUM(AC17:AD17) -> 186350.5039 | AG17: 1079197
B18: 0.3 | C18: Market Manager | D18: 24000 | E18: 24000 | F18: =E18+D18 -> 48000 | G18: 3 | H18: Appliances: Refrigerator Replacement ~ TE, MF | I18: 503 | J18: 0 | K18: kWh | L18: per unit | M18: No | N18: 545 | O18: 545 | Q18: 20 | R18: Res Refrigerator | S18: 8 | T18: 8 | U18: 16 | V18: 4024 | W18: =T18*I18 -> 4024 | X18: =SUM(V18:W18) -> 8048 | Y18: 4360 | Z18: =T18*O18 -> 4360 | AA18: =SUM(Y18:Z18) -> 8720 | AB18: 0.25 | AC18: =AB18*T18*O18 -> 1090 | AD18: =$AB$11*T18*O18 -> 415.727308 | AE18: =SUM(AC18:AD18) -> 1505.727308 | AG18: 0
C19: Marketing Labor | E19: 15840 | F19: =E19+D19 -> 15840 | G19: 4 | H19: Appliances: Refrigerator Replacement ~ TE, SF | I19: 503 | J19: 0 | K19: kWh | L19: per unit | M19: No | N19: 545 | O19: 545 | Q19: 20 | R19: Res Refrigerator | S19: 13 | T19: 13 | U19: 26 | V19: 6539 | W19: =T19*I19 -> 6539 | X19: =SUM(V19:W19) -> 13078 | Y19: 7085 | Z19: 7085 | AA19: =SUM(Y19:Z19) -> 14170 | AB19: 0.25 | AC19: 1771.25 | AD19: 675.5568755 | AE19: =SUM(AC19:AD19) -> 2446.806875 | AG19: 0
B20: =SUM(B16:B19) -> 1.55 | G20: 5 | H20: Appliances: Refrigerator Replacement ~ TE, MH | I20: 503 | J20: 0 | K20: kWh | L20: per unit | M20: No | N20: 545 | O20: 545 | Q20: 20 | R20: SF Heat Pump | S20: 10 | T20: 10 | U20: 20 | V20: 5030 | W20: 5030 | X20: =SUM(V20:W20) -> 10060 | Y20: 5450 | Z20: 5450 | AA20: =SUM(Y20:Z20) -> 10900 | AB20: 0.25 | AC20: 1362.5 | AD20: 519.659135 | AE20: 1882.159135 | AG20: 0
C21: AGENCY PAYMENTS | D21: =SUM(D22:D25) -> 437040.1137 | E21: =SUM(E22:E25) -> 874080.2275 | F21: =D21+E21 -> 1311120.341 | G21: 6 | H21: Furnace / Heating: Ductless Heat Pump ~ TE, SF | I21: 2659 | J21: 0 | K21: kWh | L21: per unit | M21: No | N21: 4282.55 | O21: 4282.55 | Q21: 15 | R21: SF Heat Pump | S21: 132 | T21: 15 | U21: 147 | V21: 349198.08 | W21: 39885 | X21: =SUM(V21:W21) -> 389083.08 | Y21: 565296.6 | Z21: 64238.25 | AA21: 629534.85 | AB21: 0.25 | AC21: 16059.5625 | AD21: 6125.136409 | AE21: 22184.69891 | AG21: 37.13
D22: =AC15/2 -> 437040.1137 | E22: =AC15 -> 874080.2275 | F22: =E22+D22 -> 1311120.341 | G22: 7 | H22: Furnace / Heating: Ductless Heat Pump ~ TE, MH | I22: 3364 | J22: 0 | K22: kWh | L22: per unit | M22: No | N22: 3988.4 | O22: 3988 | Q22: 15 | R22: MF Space Heat | S22: 125 | T22: 300 | U22: 425 | V22: 430980 | W22: 1009200 | X22: 1440180 | Y22: 535318.75 | Z22: 1196400 | AA22: 1731718.75 | AB22: 0.25 | AC22: 299100 | AD22: 114077.0989 | AE22: 413177.0989 | AG22: 67.11
C23: Represented as DBtC | F23: =E23+D23 -> 0 | G23: 8 | H23: Insulation, Ceiling: Attic Insulation (R0 to R19) ~ TE, MF | I23: 0.9 | J23: 0 | K23: kWh | L23: square foot | M23: No | N23: 2.21 | O23: 2.21 | Q23: 45 | S23: 1 | T23: 1 | U23: 2 | V23: 0.9 | W23: 0.9 | X23: 1.8 | Y23: 2.21 | Z23: 2.21 | AA23: 4.42 | AB23: 0.25 | AC23: 0.5525 | AD23: 0.210724163 | AE23: 0.763224163 | AG23: 0
F24: =E24+D24 -> 0 | G24: 9 | H24: Insulation, Ceiling: Attic Insulation (R0 to R22) ~ TE, MH | I24: 0.59 | J24: 0 | L24: square foot | M24: No | N24: 1.55 | O24: 1.55 | Q24: 25 | R24: SF Space Heat | S24: 18449 | T24: 18449 | U24: 36898 | V24: 0 | W24: 10884.91 | X24: 10884.91 | Y24: 0 | Z24: 28595.95 | AA24: 28595.95 | AB24: 0.25 | AC24: 7148.9875 | AD24: 2726.632411 | AE24: 9875.619911 | AG24: 0
F25: =E25+D25 -> 0 | G25: 10 | H25: Insulation, Ceiling: Attic Insulation (R0 to R30) ~ TE, MH | I25: 0.3 | J25: 0 | K25: kWh | L25: square foot | M25: No | N25: 2.03 | O25: 2.03 | Q25: 25 | R25: SF Space Heat | S25: 14000 | T25: 14000 | U25: 28000 | V25: 10884.91 | W25: 4200 | X25: 15084.91 | Y25: 28595.95 | Z25: 28420 | AA25: 57015.95 | AB25: 0.25 | AC25: 7105 | AD25: 2709.855526 | AE25: 9814.855526 | AG25: 0.003
G26: 11 | H26: Insulation, Ceiling: Attic Insulation (R0 to R38) ~ TE, MF | I26: 0.92 | J26: 0 | K26: kWh | L26: square foot | M26: No | N26: 1.92 | O26: 1.92 | Q26: 45 | R26: MF Space Heat | S26: 8000 | T26: 100 | U26: 8100 | V26: 4200 | W26: 92 | X26: 4292 | Y26: 28420 | Z26: 192 | AA26: 28612 | AB26: 0.25 | AC26: 48 | AD26: 18.3072576 | AE26: 66.3072576 | AG26: 0
B27: FTE | C27: MARKETING LABOR | D27: =SUM(D28:D31) -> 15840 | E27: =SUM(E28:E31) -> 0 | F27: =D27+E27 -> 15840 | G27: 12 | H27: Insulation, Ceiling: Attic Insulation (R0 to R38) ~ TE, SF | I27: 2.25 | J27: 0 | K27: kWh | L27: square foot | M27: No | N27: 2.43 | O27: 2.43 | Q27: 45 | R27: SF Space Heat | S27: 5000 | T27: 1000 | U27: 6000 | V27: 7360 | W27: 2250 | X27: 9610 | Y27: 15360 | Z27: 2430 | AA27: 17790 | AB27: 0.25 | AC27: 607.5 | AD27: 231.701229 | AE27: 839.201229 | AG27: 0.035
D28: 15840 | E28: 0 | F28: =SUM(D28:E28) -> 15840 | G28: 13 | H28: Insulation, Ceiling: Attic Insulation (R11 to R38) ~ TE, MF | I28: 0.56 | J28: 0 | K28: kWh | L28: square foot | M28: No | N28: 1.59 | O28: 1.59 | Q28: 45 | R28: MF Space Heat | S28: 1 | T28: 1 | U28: 2 | V28: 11250 | W28: 0.56 | X28: 11250.56 | Y28: 12150 | Z28: 1.59 | AA28: 12151.59 | AB28: 0.25 | AC28: 0.3975 | AD28: 0.151606977 | AE28: 0.549106977 | AG28: 0
F29: 0 | G29: 14 | H29: Insulation, Ceiling: Attic Insulation (R11 to R38) ~ TE, SF | I29: 0.52 | J29: 0 | K29: kWh | L29: square foot | M29: No | N29: 1.59 | O29: 1.59 | Q29: 45 | R29: SF Space Heat | S29: 15300 | T29: 3000 | U29: 18300 | V29: 0.56 | W29: 1560 | X29: 1560.56 | Y29: 1.59 | Z29: 4770 | AA29: 4771.59 | AB29: 0.25 | AC29: 1192.5 | AD29: 454.820931 | AE29: 1647.320931 | AG29: 0.01
F30: 0 | G30: 15 | H30: Insulation, Ceiling: Attic Insulation (R19 to R38) ~ TE, MF | I30: 0.24 | J30: 0 | K30: kWh | L30: square foot | M30: No | N30: 1.29 | O30: 1.29 | Q30: 45 | R30: MF Space Heat | S30: 500 | T30: 500 | U30: 1000 | V30: 7956 | W30: 120 | X30: 8076 | Y30: 24327 | Z30: 645 | AA30: 24972 | AB30: 0.25 | AC30: 161.25 | AD30: 61.5009435 | AE30: 222.7509435 | AG30: 0
F31: 0 | G31: 16 | H31: Insulation, Ceiling: Attic Insulation (R19 to R38) ~ TE, SF | I31: 0.22 | J31: 0 | K31: kWh | L31: square foot | M31: No | N31: 1.29 | O31: 1.29 | Q31: 45 | R31: SF Space Heat | S31: 25000 | T31: 25000 | U31: 50000 | V31: 120 | W31: 5500 | X31: 5620 | Y31: 645 | Z31: 32250 | AA31: 32895 | AB31: 0.25 | AC31: 8062.5 | AD31: 3075.047175 | AE31: 11137.54717 | AG31: 0
B32: =SUM(B28:B31) -> 0 | G32: 17 | H32: Insulation, Ceiling: Attic Insulation (R0 to R49) ~ TE, MF | I32: 0.97 | J32: 0 | K32: kWh | L32: square foot | M32: No | N32: 2.43 | O32: 2.43 | Q32: 45 | R32: MF Space Heat | S32: 250 | T32: 250 | U32: 500 | V32: 5500 | W32: 242.5 | X32: 5742.5 | Y32: 32250 | Z32: 607.5 | AA32: 32857.5 | AB32: 0.25 | AC32: 151.875 | AD32: 57.92530725 | AE32: 209.8003073 | AG32: 0
C33: TOTAL OVERHEAD | D33: =SUM(D35:D37)+SUM(D39:D41) -> 123089.92 | E33: =SUM(E35:E37)+SUM(E39:E41) -> 121100.32 | F33: =D33+E33 -> 244190.24 | G33: 18 | H33: Insulation, Ceiling: Attic Insulation (R0 to R49) ~ TE, SF | I33: 2.23 | J33: 0 | K33: kWh | L33: square foot | M33: No | N33: 2.43 | O33: 2.43 | Q33: 45 | R33: SF Space Heat | S33: 9000 | T33: 15000 | U33: 24000 | V33: 242.5 | W33: 33450 | X33: 33692.5 | Y33: 607.5 | Z33: 36450 | AA33: 37057.5 | AB33: 0.25 | AC33: 9112.5 | AD33: 3475.518435 | AE33: 12588.01843 | AG33: 0.03
A34: Low Income Weatherization | C34: Labor Overhead Rate | D34: ='Global Figures Reference'!$D$5 -> 0.688 | E34: ='Global Figures Reference'!$E$5 -> 0.683 | G34: 19 | H34: Insulation, Ceiling: Attic Insulation (R19 to R49) ~ TE, MF | I34: 0.29 | J34: 0 | K34: kWh | L34: square foot | M34: No | N34: 1.82 | O34: 1.82 | Q34: 45 | R34: MF Space Heat | S34: 250 | T34: 40000 | U34: 40250 | V34: 20070 | W34: 11600 | X34: 31670 | Y34: 21870 | Z34: 72800 | AA34: 94670 | AB34: 0.25 | AC34: 18200 | AD34: 6941.50184 | AE34: 25141.50184 | AG34: 0
A35: Schedule 201 | C35: Program Staff Overhead | D35: =D15*D34 -> 80358.4 | E35: =E15*E34 -> 90593.12 | F35: 170951.52 | G35: 20 | H35: Insulation, Ceiling: Attic Insulation (R11 to R49) ~ TE, SF | I35: 0.51 | J35: 0 | K35: kWh | L35: square foot | M35: No | N35: 1.82 | O35: 1.82 | Q35: 45 | R35: SF Space Heat | S35: 5000 | T35: 1000 | U35: 6000 | V35: 72.5 | W35: 510 | X35: 582.5 | Y35: 455 | Z35: 1820 | AA35: 2275 | AB35: 0.25 | AC35: 455 | AD35: 173.537546 | AE35: 628.537546 | AG35: 0.01
A36: Order Number | C36: Marketing Staff Overhead | D36: =D27*D34 -> 10897.92 | E36: =E27*E34 -> 0 | F36: 10897.92 | G36: 21 | H36: Insulation: Duct Insulation (R0 to R11) ~ TE, MF | I36: 4.65 | J36: 0 | K36: kWh | L36: square foot | M36: No | N36: 6.46 | O36: 6.46 | Q36: 30 | R36: MF Space Heat | S36: 1 | T36: 1 | U36: 2 | V36: 2550 | W36: 4.65 | X36: 2554.65 | Y36: 9100 | Z36: 6.46 | AA36: 9106.46 | AB36: 0.25 | AC36: 1.615 | AD36: 0.615962938 | AE36: 2.230962938 | AG36: 0
A37: 18230611 | G37: 22 | H37: Insulation: Duct Insulation (R0 to R11) ~ TE, SF | I37: 4.65 | J37: 0 | K37: kWh | L37: linear foot | M37: No | N37: 6.46 | O37: 6.46 | Q37: 30 | R37: SF Space Heat | S37: 5000 | T37: 6000 | U37: 11000 | V37: 4.65 | W37: 27900 | X37: 27904.65 | Y37: 6.46 | Z37: 38760 | AA37: 38766.46 | AB37: 0.25 | AC37: 9690 | AD37: 3695.777628 | AE37: 13385.77763 | AG37: 0
A38: Electric | C38: Micro Overhead Rate | D38: ='Global Figures Reference'!$D$6 -> 0.24 | E38: ='Global Figures Reference'!$E$6 -> 0.23 | G38: 23 | H38: Insulation: Floor Insulation (R0 to R19) ~ TE, MF | I38: 1.17 | J38: 0 | K38: kWh | L38: linear foot | M38: No | N38: 1.87 | O38: 1.87 | Q38: 45 | R38: MF Space Heat | S38: 1500 | T38: 250 | U38: 1750 | V38: 23250 | W38: 292.5 | X38: 23542.5 | Y38: 32300 | Z38: 467.5 | AA38: 32767.5 | AB38: 0.25 | AC38: 116.875 | AD38: 44.57626525 | AE38: 161.4512653 | AG38: 0
C39: Program Staff Overhead | D39: =D15*D38 -> 28032 | E39: =E15*E38 -> 30507.2 | F39: =SUM(D39:E39) -> 58539.2 | G39: 24 | H39: Insulation: Floor Insulation (R0 to R19) ~ TE, SF | I39: 0.9 | J39: 0 | K39: kWh | L39: square foot | M39: No | N39: 1.87 | O39: 1.87 | Q39: 45 | R39: SF Space Heat | S39: 18000 | T39: 18000 | U39: 36000 | V39: 1755 | W39: 16200 | X39: 17955 | Y39: 2805 | Z39: 33660 | AA39: 36465 | AB39: 0.25 | AC39: 8415 | AD39: 3209.491098 | AE39: 11624.4911 | AG39: 0.01
C40: Marketing Staff Overhead | D40: =D28*D38 -> 3801.6 | E40: =E28*E38 -> 0 | F40: =SUM(D40:E40) -> 3801.6 | G40: 25 | H40: Insulation: Floor Insulation (R0 to R22) ~ TE, MH | I40: 0.48 | J40: 0 | K40: kWh | L40: square foot | M40: No | N40: 2.37 | O40: 2.37 | Q40: 25 | R40: SF Space Heat | S40: 45000 | T40: 45000 | U40: 90000 | V40: 16200 | W40: 21600 | X40: 37800 | Y40: 33660 | Z40: 106650 | AA40: 140310 | AB40: 0.25 | AC40: 26662.5 | AD40: 10169.1095 | AE40: 36831.60949 | AG40: 0.004
G41: 26 | H41: Insulation: Floor Insulation (R0 to R30) ~ TE, MF | I41: 1.56 | J41: 0 | K41: kWh | L41: square foot | M41: No | N41: 2.2 | O41: 2.2 | Q41: 45 | R41: MF Space Heat | S41: 700 | T41: 14000 | U41: 14700 | V41: 21600 | W41: 21840 | X41: 43440 | Y41: 106650 | Z41: 30800 | AA41: 137450 | AB41: 0.25 | AC41: 7700 | AD41: 2936.78924 | AE41: 10636.78924 | AG41: 0
G42: 27 | H42: Insulation: Floor Insulation (R0 to R30) ~ TE, SF | I42: 1.01 | J42: 0 | K42: kWh | L42: square foot | M42: No | N42: 2.2 | O42: 2.2 | Q42: 45 | R42: SF Space Heat | S42: 20000 | T42: 1000 | U42: 21000 | V42: 1092 | W42: 1010 | X42: 2102 | Y42: 1540 | Z42: 2200 | AA42: 3740 | AB42: 0.25 | AC42: 550 | AD42: 209.77066 | AE42: 759.77066 | AG42: 0.02
C43: MARKETING | D43: =SUM(D44:D47) -> 48600 | E43: =SUM(E44:E47) -> 48600 | F43: =D43+E43 -> 97200 | G43: 28 | H43: Insulation: Floor Insulation (R0 to R30) ~ TE, MH * | I43: 0.52 | J43: 0 | K43: kWh | L43: square foot | M43: No | N43: 2.7 | O43: 2.7 | Q43: 25 | R43: SF Space Heat | S43: 26000 | T43: 26000 | U43: 52000 | V43: 20200 | W43: 13520 | X43: 33720 | Y43: 44000 | Z43: 70200 | AA43: 114200 | AB43: 0.25 | AC43: 17550 | AD43: 6693.59106 | AE43: 24243.59106 | AG43: 0.04
D44: 48600 | E44: 48600 | F44: =SUM(D44:E44) -> 97200 | G44: 29 | H44: Insulation: Floor Insulation (R11 to R22) ~ TE, MH * | I44: 0.2 | J44: 0 | K44: kWh | L44: square foot | M44: No | N44: 1.84 | O44: 1.84 | Q44: 25 | R44: SF Space Heat | S44: 17000 | T44: 17000 | U44: 34000 | V44: 13520 | W44: 3400 | X44: 16920 | Y44: 70200 | Z44: 31280 | AA44: 101480 | AB44: 0.25 | AC44: 7820 | AD44: 2982.557384 | AE44: 10802.55738 | AG44: 0.002
F45: 0 | G45: 30 | H45: Insulation: Floor Insulation (R11 to R30) ~ TE, MF | I45: 0.77 | J45: 0 | K45: kWh | L45: square foot | M45: No | N45: 1.13 | O45: 1.13 | Q45: 45 | R45: MF Space Heat | S45: 1000 | T45: 200 | U45: 1200 | V45: 3400 | W45: 154 | X45: 3554 | Y45: 31280 | Z45: 226 | AA45: 31506 | AB45: 0.25 | AC45: 56.5 | AD45: 21.5491678 | AE45: 78.0491678 | AG45: 0
F46: 0 | G46: 31 | H46: Insulation: Floor Insulation (R11 to R30) ~ TE, SF | I46: 0.61 | J46: 0 | K46: kWh | L46: square foot | M46: No | N46: 1.38 | O46: 1.38 | Q46: 45 | R46: SF Space Heat | S46: 1 | T46: 1 | U46: 2 | V46: 770 | W46: 0.61 | X46: 770.61 | Y46: 1130 | Z46: 1.38 | AA46: 1131.38 | AB46: 0.25 | AC46: 0.345 | AD46: 0.131583414 | AE46: 0.476583414 | AG46: 0
F47: 0 | G47: 32 | H47: Insulation: Wall Insulation (R0 to R11) ~ TE, MF | I47: 2.22 | J47: 0 | K47: kWh | L47: square foot | M47: No | N47: 2.75 | O47: 2.75 | Q47: 45 | R47: MF Space Heat | S47: 28000 | T47: 40000 | U47: 68000 | V47: 0.61 | W47: 88800 | X47: 88800.61 | Y47: 1.38 | Z47: 110000 | AA47: 110001.38 | AB47: 0.25 | AC47: 27500 | AD47: 10488.533 | AE47: 37988.533 | AG47: 0
G48: 33 | H48: Insulation: Wall Insulation (R0 to R11) ~ TE, SF | I48: 1.99 | J48: 0 | K48: kWh | L48: square foot | M48: No | N48: 2.75 | O48: 2.75 | Q48: 45 | R48: SF Space Heat | S48: 20000 | T48: 2000 | U48: 22000 | V48: 62160 | W48: 3980 | X48: 66140 | Y48: 77000 | Z48: 5500 | AA48: 82500 | AB48: 0.25 | AC48: 1375 | AD48: 524.42665 | AE48: 1899.42665 | AG48: 0.03
C49: EMPLOYEE/OFFICE EXPENSES | D49: =SUM(D50:D53) -> 4500 | E49: =SUM(E50:E53) -> 4500 | F49: =D49+E49 -> 9000 | G49: 34 | H49: Insulation: Wall Insulation (R0 to R11) ~ TE, MH | I49: 4.58 | J49: 0 | K49: kWh | L49: square foot | M49: No | N49: 2.75 | O49: 2.75 | Q49: 25 | R49: SF Space Heat | S49: 1200 | T49: 1200 | U49: =SUM(S49:T49) -> 2400 | V49: 39800 | W49: 5496 | X49: 45296 | Y49: 55000 | Z49: 3300 | AA49: 58300 | AB49: 0.25 | AC49: 825 | AD49: 314.65599 | AE49: 1139.65599 | AG49: 0.37
D50: 4500 | E50: 4500 | F50: 9000 | G50: 35 | H50: Low Cost: Showerheads 1.5 GPM ~ TE, MF | I50: 235 | J50: 132 | K50: kWh | L50: square foot | M50: No | N50: 40.5 | O50: 40.5 | Q50: 3 | R50: Res Water Heat | S50: 35 | T50: 10 | U50: 45 | V50: 5496 | W50: 2350 | X50: 7846 | Y50: 3300 | Z50: 405 | AA50: 3705 | AB50: 0.25 | AC50: 101.25 | AD50: 38.6168715 | AE50: 139.8668715 | AG50: 17
F51: 0 | G51: 36 | H51: Low Cost: Showerheads 1.5 GPM ~ TE, SF | I51: 235 | J51: 132 | K51: kWh | L51: per unit | M51: Yes | N51: 40.5 | O51: 40.5 | Q51: 3 | R51: Res Water Heat | S51: 30 | T51: 30 | U51: 60 | V51: 8225 | W51: 7050 | X51: 15275 | Y51: 1417.5 | Z51: 1215 | AA51: 2632.5 | AB51: 0.25 | AC51: 303.75 | AD51: 115.8506145 | AE51: 419.6006145 | AG51: 17
F52: 0 | G52: 37 | H52: Low Cost: Showerheads 1.5 GPM ~ TE, MH | I52: 235 | J52: 132 | K52: kWh | L52: per unit | M52: Yes | N52: 40.5 | O52: 40.5 | Q52: 3 | R52: Res Water Heat | S52: 20 | T52: 20 | U52: 40 | V52: 7050 | W52: 4700 | X52: 11750 | Y52: 1215 | Z52: 810 | AA52: 2025 | AB52: 0.25 | AC52: 202.5 | AD52: 77.233743 | AE52: 279.733743 | AG52: 17
F53: 0 | G53: 38 | H53: Duct Sealing: Duct Sealing ~ TE, SF | I53: 1049 | J53: 0 | K53: kWh | L53: per unit | M53: Yes | N53: 500 | O53: 500 | Q53: 20 | R53: SF Space Heat | S53: 40 | T53: 20 | U53: 60 | V53: 4700 | W53: 20980 | X53: 25680 | Y53: 810 | Z53: 10000 | AA53: 10810 | AB53: 0.25 | AC53: 2500 | AD53: 953.503 | AE53: 3453.503 | AG53: 0
G54: 39 | H54: Duct Sealing: Duct Sealing ~ TE, MH | I54: 1543 | J54: 0 | K54: kWh | L54: per home | M54: No | N54: 500 | O54: 500 | Q54: 18 | R54: SF Space Heat | S54: 75 | T54: 75 | U54: 150 | V54: 41960 | W54: 115725 | X54: 157685 | Y54: 20000 | Z54: 37500 | AA54: 57500 | AB54: 0.25 | AC54: 9375 | AD54: 3575.63625 | AE54: 12950.63625 | AG54: 0
C55: OUTSIDE SERVICES | D55: =SUM(D56:D59) -> 22500 | E55: =SUM(E56:E59) -> 22500 | F55: =D55+E55 -> 45000 | G55: 40 | H55: Structure Sealing: Shell Sealing ~ TE, SF | I55: 0.51 | J55: 0 | K55: kWh | L55: per home | M55: No | N55: 1.32 | O55: 1.32 | Q55: 15 | R55: SF Space Heat | S55: 73000 | T55: 90000 | U55: 163000 | V55: 115725 | W55: 45900 | X55: 161625 | Y55: 37500 | Z55: 118800 | AA55: 156300 | AB55: 0.25 | AC55: 29700 | AD55: 11327.61564 | AE55: 41027.61564 | AG55: 0.01
D56: 22500 | E56: 22500 | F56: =SUM(D56:E56) -> 45000 | G56: 41 | H56: Structure Sealing: Shell Sealing ~ TE, MH | I56: 0.24 | J56: 0 | K56: kWh | L56: calculated | M56: No | N56: 1.15 | O56: 1.15 | Q56: 25 | R56: SF Space Heat | S56: 80000 | T56: 80000 | U56: 160000 | V56: 37230 | W56: 19200 | X56: 56430 | Y56: 96360 | Z56: 92000 | AA56: 188360 | AB56: 0.25 | AC56: 23000 | AD56: 8772.2276 | AE56: 31772.2276 | AG56: 0.002
F57: 0 | G57: 42 | H57: Structure Sealing: Air Sealing ~ TE, MF | I57: 612 | J57: 0 | K57: kWh | L57: calculated | M57: No | N57: 3120 | O57: 3120 | Q57: 30 | R57: MF Space Heat | S57: 300 | T57: 50 | U57: 350 | V57: 19200 | W57: 30600 | X57: 49800 | Y57: 92000 | Z57: 156000 | AA57: 248000 | AB57: 0.25 | AC57: 39000 | AD57: 14874.6468 | AE57: 53874.6468 | AG57: 0
F58: 0 | G58: 43 | H58: EnergyStar Whole House Ventilation w/Air Sealing ~ TE, MF | I58: 143 | J58: 0 | K58: kWh | L58: per home | M58: No | N58: 708.1 | O58: 708.1 | Q58: 15 | R58: MF Space Heat | S58: 25 | T58: 10 | U58: 35 | V58: 183600 | W58: 1430 | X58: 185030 | Y58: 654 | Z58: 7081 | AA58: 7735 | AB58: 0.25 | AC58: 1770.25 | AD58: 675.1754743 | AE58: 2445.425474 | AG58: 0
F59: 0 | G59: 44 | H59: EnergyStar Whole House Ventilation ~ TE, MF | I59: 143 | J59: 0 | K59: kWh | L59: per unit | M59: No | N59: 708.1 | O59: 708.1 | Q59: 15 | R59: MF Space Heat | S59: 25 | T59: 25 | U59: 50 | V59: 3575 | W59: 3575 | X59: 7150 | Y59: 17702.5 | Z59: 17702.5 | AA59: 35405 | AB59: 0.25 | AC59: 4425.625 | AD59: 1687.938686 | AE59: 6113.563686 | AG59: 0
G60: 45 | H60: EnergyStar Whole House Ventilation ~ TE, SF | I60: 143 | J60: 0 | K60: kWh | L60: per unit | M60: No | N60: 708.1 | O60: 708.1 | Q60: 15 | R60: SF Space Heat | S60: 100 | T60: 75 | U60: 175 | V60: 3575 | W60: 10725 | X60: 14300 | Y60: 17702.5 | Z60: 53107.5 | AA60: 70810 | AB60: 0.25 | AC60: 13276.875 | AD60: 5063.816057 | AE60: 18340.69106 | AG60: 0
C61: MATERIALS | D61: =SUM(D62:D65) -> 1350 | E61: =SUM(E62:E65) -> 1350 | F61: =D61+E61 -> 2700 | G61: 46 | H61: EnergyStar Whole House Ventilation ~ TE, MH | I61: 143 | J61: 0 | K61: kWh | L61: per unit | M61: No | N61: 730.01 | O61: 730.01 | Q61: 15 | R61: SF Space Heat | S61: 80 | T61: 80 | U61: 160 | V61: 14300 | W61: 11440 | X61: 25740 | Y61: 70810 | Z61: 58400.8 | AA61: 129210.8 | AB61: 0.25 | AC61: 14600.2 | AD61: 5568.5338 | AE61: 20168.7338 | AG61: 0
D62: 1350 | E62: 1350 | F62: 2700 | G62: 47 | H62: Water Heater: Pipe Insulation ~ TE, MF | I62: 20 | J62: 0 | K62: kWh | L62: per unit | M62: No | N62: 20 | O62: 20 | Q62: 15 | R62: Res Water Heat | S62: 50 | T62: 10 | U62: 60 | V62: 11440 | W62: 200 | X62: 11640 | Y62: 58400.8 | Z62: 200 | AA62: 58600.8 | AB62: 0.25 | AC62: 50 | AD62: 19.07006 | AE62: 69.07006 | AG62: 0
F63: 0 | G63: 48 | H63: Water Heater: Pipe Insulation ~ TE, SF | I63: 20 | J63: 0 | K63: kWh | L63: linear foot | M63: No | N63: 20 | O63: 20 | Q63: 13 | R63: Res Water Heat | S63: 75 | T63: 10 | U63: 85 | V63: 1000 | W63: 200 | X63: 1200 | Y63: 1000 | Z63: 200 | AA63: 1200 | AB63: 0.25 | AC63: 50 | AD63: 19.07006 | AE63: 69.07006 | AG63: 0
F64: 0 | G64: 49 | H64: Water Heater: Pipe Insulation ~ TE, MH | I64: 20 | J64: 0 | K64: kWh | L64: linear foot | M64: No | N64: 20 | O64: 20 | Q64: 15 | R64: Res Water Heat | S64: 100 | T64: 100 | U64: 200 | V64: 1500 | W64: 2000 | X64: 3500 | Y64: 1500 | Z64: 2000 | AA64: 3500 | AB64: 0.25 | AC64: 500 | AD64: 190.7006 | AE64: 690.7006 | AG64: 0
F65: 0 | G65: 50 | H65: Water Heater: Aerator EWH - Direct Install ~ TE, MF | I65: 39.3 | J65: 0 | K65: kWh | L65: linear foot | M65: No | N65: 11.35 | O65: 11.35 | Q65: 10 | R65: Res Water Heat | S65: 40 | T65: 10 | U65: 50 | V65: 2000 | W65: 393 | X65: 2393 | Y65: 2000 | Z65: 113.5 | AA65: 2113.5 | AB65: 0.25 | AC65: 28.375 | AD65: 10.82225905 | AE65: 39.19725905 | AG65: 3.68
G66: 51 | H66: Water Heater: Aerator EWH - Direct Install ~ TE, SF | I66: 20.3 | J66: 0 | K66: kWh | L66: per unit | M66: Yes | N66: 11.35 | O66: 11.35 | Q66: 10 | R66: Res Water Heat | S66: 20 | T66: 15 | U66: 35 | V66: 1793.6 | W66: 304.5 | X66: 2098.1 | Y66: 454 | Z66: 170.25 | AA66: 624.25 | AB66: 0.25 | AC66: 42.5625 | AD66: 16.23338857 | AE66: 58.79588857 | AG66: 3.7
A67: Low Income Weatherization | C67: MISCELLANEOUS | D67: =SUM(D68:D71) -> 1350 | E67: =SUM(E68:E71) -> 1350 | F67: =D67+E67 -> 2700 | G67: 52 | H67: Water Heater: Aerator EWH - Direct Install ~ TE, MH | I67: 38.6 | J67: 0 | K67: kWh | L67: per unit | M67: Yes | N67: 11.35 | O67: 11.35 | Q67: 10 | R67: Res Water Heat | S67: 20 | T67: 20 | U67: 40 | V67: 734.6 | W67: 772 | X67: 1506.6 | Y67: 227 | Z67: 227 | AA67: 454 | AB67: 0.25 | AC67: 56.75 | AD67: 21.6445181 | AE67: 78.3945181 | AG67: 3.7
A68: Schedule 201 | D68: 1350 | E68: 1350 | F68: 2700 | G68: 53 | H68: Water Heater: Heat Pump Water Heater Tier 2 ~ TE, MF | I68: 1120 | J68: 0 | K68: kWh | L68: per unit | M68: Yes | N68: 1369 | O68: 1369 | Q68: 13 | R68: Res Water Heat | S68: 3 | T68: 1 | U68: 4 | V68: 734.6 | W68: 1120 | X68: 1854.6 | Y68: 227 | Z68: 1369 | AA68: 1596 | AB68: 0.25 | AC68: 342.25 | AD68: 130.5345607 | AE68: 472.7845607 | AG68: 0
A69: Order Number | F69: 0 | G69: 54 | H69: Water Heater: Heat Pump Water Heater Tier 2 ~ TE, SF | I69: 1120 | J69: 0 | N69: 1369 | O69: 1369 | Q69: 13 | S69: 3 | T69: 3 | U69: 6 | V69: 0 | W69: 3360 | X69: 3360 | Y69: 0 | Z69: 4107 | AA69: 4107 | AB69: 0.25 | AC69: 1026.75 | AD69: 391.6036821 | AE69: 1418.353682 | AG69: 0
A70: 18230611 | F70: 0 | G70: 55 | H70: Water Heater: Heat Pump Water Heater Tier 2 ~ TE, MH | I70: 1120 | J70: 0 | K70: kWh | L70: per unit | M70: No | N70: 1369 | O70: 1369 | Q70: 13 | R70: Res Water Heat | S70: 3 | T70: 3 | U70: 6 | V70: 4554 | W70: 3360 | X70: 7914 | Y70: 4107 | Z70: 4107 | AA70: 8214 | AB70: 0.25 | AC70: 1026.75 | AD70: 391.6036821 | AE70: 1418.353682 | AG70: 0
A71: Electric | F71: 0 | G71: 56 | H71: Water Heater: Heat Pump Water Heater Tier 3 ~ TE, MF | I71: 1289 | J71: 0 | K71: kWh | L71: per unit | M71: No | N71: 1400 | O71: 1400 | Q71: 13 | R71: Res Water Heat | S71: 1 | T71: 1 | U71: 2 | V71: 4554 | W71: 1289 | X71: 5843 | Y71: 4107 | Z71: 1400 | AA71: 5507 | AB71: 0.25 | AC71: 350 | AD71: 133.49042 | AE71: 483.49042 | AG71: 0
G72: 57 | H72: Water Heater: Heat Pump Water Heater Tier 3 ~ TE, SF | I72: 1289 | J72: 0 | N72: 1400 | O72: 1400 | Q72: 13 | R72: Res Water Heat | S72: 1 | T72: 1 | U72: 2 | V72: 0 | W72: 1289 | X72: 1289 | Y72: 0 | Z72: 1400 | AA72: 1400 | AB72: 0.25 | AC72: 350 | AD72: 133.49042 | AE72: 483.49042 | AG72: 0
C73: DIRECT BENEFIT TO CUSTOMER | D73: =Y15 -> 3173788.61 | E73: =Z15 -> 3482320.91 | F73: =D73+E73 -> 6656109.52 | G73: 58 | H73: Water Heater: Heat Pump Water Heater Tier 3 ~ TE, MH | I73: 1289 | J73: 0 | K73: kWh | L73: per unit | M73: No | N73: 1400 | O73: 1400 | Q73: 13 | R73: Res Water Heat | S73: 1 | T73: 1 | U73: 2 | V73: 4554 | W73: 1289 | X73: 5843 | Y73: 4107 | Z73: 1400 | AA73: 5507 | AB73: 0.25 | AC73: 350 | AD73: 133.49042 | AE73: 483.49042 | AG73: 0
C74: Ratio | D74: =D73/D12 -> 0.8045379814 | E74: =E73/E12 -> 0.7427459512 | G74: 59 | H74: Windows: Window - Double to Triple Pane ~ TE, MF | I74: 15.4 | J74: 0 | K74: kWh | L74: per unit | M74: No | N74: 24.1 | O74: 24.1 | Q74: 45 | R74: Res Water Heat | S74: 1 | T74: 1 | U74: 2 | V74: 1570 | W74: 15.4 | X74: 1585.4 | Y74: 1400 | Z74: 24.1 | AA74: 1424.1 | AB74: 0.25 | AC74: 6.025 | AD74: 2.29794223 | AE74: 8.32294223 | AG74: 0
G75: 60 | H75: Windows: Window - Double to Triple Pane ~ TE, SF | I75: 6.3 | J75: 0 | K75: kWh | L75: per unit | M75: No | N75: 24.1 | O75: 24.1 | Q75: 45 | R75: Res Water Heat | S75: 1 | T75: 1 | U75: 2 | V75: 1570 | W75: 6.3 | X75: 1576.3 | Y75: 1400 | Z75: 24.1 | AA75: 1424.1 | AB75: 0.25 | AC75: 6.025 | AD75: 2.29794223 | AE75: 8.32294223 | AG75: 0.1
C76: REVENUE | D76: 0 | E76: 0 | F76: 0 | G76: 61 | H76: Windows: Early Double to EF Double Pane ~ TE, MF | I76: 12.26 | J76: 0 | K76: kWh | L76: per unit | M76: No | N76: 20.5 | O76: 20.5 | Q76: 45 | R76: MF Space Heat | S76: 1 | T76: 1 | U76: 2 | V76: 1570 | W76: 12.26 | X76: 1582.26 | Y76: 1400 | Z76: 20.5 | AA76: 1420.5 | AB76: 0.25 | AC76: 5.125 | AD76: 1.95468115 | AE76: 7.07968115 | AG76: 0
D77: (Enter as a negative value) | G77: 62 | H77: Windows: Early Double to EF Double Pane ~ TE, SF | I77: 5.43 | J77: 0 | K77: kWh | L77: square foot | M77: No | N77: 20.5 | O77: 20.5 | Q77: 45 | R77: SF Space Heat | S77: 10 | T77: 10 | U77: 20 | V77: 15.4 | W77: 54.3 | X77: 69.7 | Y77: 24.1 | Z77: 205 | AA77: 229.1 | AB77: 0.25 | AC77: 51.25 | AD77: 19.5468115 | AE77: 70.7968115 | AG77: 0.08
G78: 63 | H78: Windows: Early Double to EF Double Pane ~ TE, MH | I78: 3.61 | J78: 0 | K78: kWh | L78: square foot | M78: No | N78: 20.5 | O78: 20.5 | Q78: 25 | R78: MF Space Heat | S78: 1 | T78: 1 | U78: 2 | V78: 6.3 | W78: 3.61 | X78: 9.91 | Y78: 24.1 | Z78: 20.5 | AA78: 44.6 | AB78: 0.25 | AC78: 5.125 | AD78: 1.95468115 | AE78: 7.07968115 | AG78: 0.032
G79: 64 | H79: Windows: Single to Double Pane ~ TE, MF | I79: 24.2 | J79: 0 | K79: kWh | L79: square foot | M79: No | N79: 20.5 | O79: 20.5 | Q79: 45 | R79: SF Space Heat | S79: 1 | T79: 1 | U79: 2 | V79: 12.26 | W79: 24.2 | X79: 36.46 | Y79: 20.5 | Z79: 20.5 | AA79: 41 | AB79: 0.25 | AC79: 5.125 | AD79: 1.95468115 | AE79: 7.07968115 | AG79: 0
G80: 65 | H80: Windows: Single to Double Pane ~ TE, SF | I80: 13.48 | J80: 0 | K80: kWh | L80: square foot | M80: No | N80: 20.5 | O80: 20.5 | Q80: 45 | R80: SF Space Heat | S80: 400 | T80: 1000 | U80: 1400 | V80: 54.3 | W80: 13480 | X80: 13534.3 | Y80: 205 | Z80: 20500 | AA80: 20705 | AB80: 0.25 | AC80: 5125 | AD80: 1954.68115 | AE80: 7079.68115 | AG80: 0.22
G81: 66 | H81: Windows: Single to Double Pane ~ TE, MH | I81: 9.98 | J81: 0 | K81: kWh | L81: square foot | M81: No | N81: 20.5 | O81: 20.5 | Q81: 25 | R81: MF Space Heat | S81: 500 | T81: 500 | U81: =SUM(S81:T81) -> 1000 | V81: 3.61 | W81: 4990 | X81: 4993.61 | Y81: 20.5 | Z81: 10250 | AA81: 10270.5 | AB81: 0.25 | AC81: 2562.5 | AD81: 977.340575 | AE81: 3539.840575 | AG81: 0.085
G82: 67 | H82: Windows: Single to Triple Pane ~ TE, MF | I82: 27.05 | J82: 0 | K82: kWh | L82: square foot | M82: No | N82: 24.1 | O82: 24.1 | Q82: 45 | R82: SF Space Heat | S82: 1 | T82: 1 | U82: 2 | V82: 24.2 | W82: 27.05 | X82: 51.25 | Y82: 20.5 | Z82: =T82*O82 -> 24.1 | AA82: 44.6 | AB82: 0.25 | AC82: =AB82*T82*O82 -> 6.025 | AD82: =$AB$11*T82*O82 -> 2.29794223 | AE82: 8.32294223 | AG82: 0
G83: 68 | H83: Windows: Single to Triple Pane ~ TE, SF | I83: 14.7 | J83: 0 | K83: kWh | L83: square foot | M83: No | N83: 24.1 | O83: 24.2 | Q83: 45 | R83: SF Space Heat | S83: 1 | T83: 1 | U83: 2 | V83: 5392 | W83: =T83*I83 -> 14.7 | X83: 5406.7 | Y83: 8200 | Z83: 24.2 | AA83: 8224.2 | AB83: 0.25 | AC83: 6.05 | AD83: 2.30747726 | AE83: =SUM(AC83:AD83) -> 8.35747726 | AG83: 0.24
G84: 69 | H84: Themostat: Electronic ~ TE, MF | I84: 49 | J84: 0 | K84: kWh | L84: square foot | M84: No | N84: 67.5 | O84: 67.5 | Q84: 15 | R84: MF Space Heat | S84: 25 | T84: 1 | U84: 26 | V84: 4990 | W84: 49 | X84: =SUM(V84:W84) -> 5039 | Y84: 10250 | Z84: 67.5 | AA84: =SUM(Y84:Z84) -> 10317.5 | AB84: 0.25 | AC84: 16.875 | AD84: 6.43614525 | AE84: 23.31114525 | AG84: 0
G85: 70 | H85: Themostat: Electronic ~ TE, SF | I85: 49 | J85: 0 | K85: kWh | L85: square foot | M85: No | N85: 67.5 | O85: 67.5 | Q85: 15 | R85: SF Space Heat | S85: 10 | T85: 10 | U85: 20 | V85: 27.05 | W85: 490 | X85: 517.05 | Y85: 24.1 | Z85: 675 | AA85: 699.1 | AB85: 0.25 | AC85: 168.75 | AD85: 64.3614525 | AE85: 233.1114525 | AG85: 0
G86: 71 | H86: Themostat: Electronic ~ TE, MH | I86: 49 | J86: 0 | K86: kWh | L86: square foot | M86: No | N86: 67.5 | O86: 67.5 | Q86: 15 | R86: MF Space Heat | S86: 10 | T86: 10 | U86: 20 | V86: 14.7 | W86: 490 | X86: 504.7 | Y86: 24.2 | Z86: 675 | AA86: 699.2 | AB86: 0.25 | AC86: 168.75 | AD86: 64.3614525 | AE86: 233.1114525 | AG86: 0
G87: 72 | H87: Lighting: LED A Lamps ~ TE, MF | I87: 16.52 | J87: 0 | K87: kWh | L87: per unit | M87: No | N87: 11.76 | O87: 11.76 | Q87: 12 | R87: SF Space Heat | S87: 200 | T87: 10 | U87: 210 | V87: 1225 | W87: 165.2 | X87: 1390.2 | Y87: 1687.5 | Z87: 117.6 | AA87: 1805.1 | AB87: 0.25 | AC87: 29.4 | AD87: 11.21319528 | AE87: 40.61319528 | AG87: 0
G88: 73 | H88: Lighting: LED A Lamps ~ TE, SF | I88: 20.67 | J88: 0 | K88: kWh | L88: per unit | M88: No | N88: 11.76 | O88: 11.76 | Q88: 12 | R88: SF Space Heat | S88: 100 | T88: 75 | U88: 175 | V88: 490 | W88: 1550.25 | X88: 2040.25 | Y88: 675 | Z88: 882 | AA88: 1557 | AB88: 0.25 | AC88: 220.5 | AD88: 84.0989646 | AE88: 304.5989646 | AG88: 0
G89: 74 | H89: Lighting: LED A Lamps ~ TE, MH | I89: 20.67 | J89: 0 | K89: kWh | L89: per unit | M89: No | N89: 11.76 | O89: 11.76 | Q89: 12 | R89: Res Plug Load | S89: 100 | T89: 100 | U89: 200 | V89: 490 | W89: 2067 | X89: 2557 | Y89: 675 | Z89: 1176 | AA89: 1851 | AB89: 0.25 | AC89: 294 | AD89: 112.1319528 | AE89: =SUM(AC89:AD89) -> 406.1319528 | AG89: 0
G90: 75 | H90: Lighting: LED MR 16 ~ TE, MF | I90: 20.8 | J90: 0 | K90: kWh | L90: per unit | M90: No | N90: 11.76 | O90: 11.76 | Q90: 12 | R90: Res Plug Load | S90: 1 | T90: 1 | U90: 2 | V90: 0 | W90: 20.8 | X90: =SUM(V90:W90) -> 20.8 | Y90: 0 | Z90: 11.76 | AA90: =SUM(Y90:Z90) -> 11.76 | AB90: 0.25 | AC90: 2.94 | AD90: 1.121319528 | AE90: 4.061319528 | AG90: 0
G91: 76 | H91: Lighting: LED MR 16 ~ TE, SF | I91: 20.19 | J91: 0 | K91: kWh | L91: per unit | M91: No | N91: 11.76 | O91: 11.76 | Q91: 12 | R91: Res Plug Load | S91: 1 | T91: 1 | U91: 2 | V91: 0 | W91: 20.19 | X91: 20.19 | Y91: 0 | Z91: 11.76 | AA91: 11.76 | AB91: 0.25 | AC91: 2.94 | AD91: 1.121319528 | AE91: 4.061319528 | AG91: 0
G92: 77 | H92: Lighting: LED Candelabra ~ TE, MF | I92: 9.09 | J92: 0 | K92: kWh | L92: per unit | M92: No | N92: 11.76 | O92: 11.76 | Q92: 12 | R92: Res Lighting | S92: 10 | T92: 1 | U92: 11 | V92: 0 | W92: 9.09 | X92: 9.09 | Y92: 0 | Z92: 11.76 | AA92: 11.76 | AB92: 0.25 | AC92: 2.94 | AD92: 1.121319528 | AE92: 4.061319528 | AG92: 0
G93: 78 | H93: Lighting: LED Candelabra ~ TE, SF | I93: 18.54 | J93: 0 | K93: kWh | L93: per unit | M93: No | N93: 11.76 | O93: 11.76 | Q93: 12 | R93: Res Lighting | S93: 10 | T93: 5 | U93: 15 | V93: 3304 | W93: 92.7 | X93: 3396.7 | Y93: 2352 | Z93: 58.8 | AA93: 2410.8 | AB93: 0.25 | AC93: 14.7 | AD93: 5.60659764 | AE93: 20.30659764 | AG93: 0
G94: 79 | H94: Lighting: LED Candelabra ~ TE, MH | I94: 18.54 | J94: 0 | K94: kWh | L94: per unit | M94: No | N94: 11.76 | O94: 11.76 | Q94: 12 | R94: Res Lighting | S94: 15 | T94: 7 | U94: 22 | V94: 2067 | W94: 129.78 | X94: 2196.78 | Y94: 1176 | Z94: 82.32 | AA94: 1258.32 | AB94: 0.25 | AC94: 20.58 | AD94: 7.849236696 | AE94: 28.4292367 | AG94: 0
G95: 80 | H95: Lighting: LED Globe ~ TE, MF | I95: 14.15 | J95: 0 | K95: kWh | L95: per unit | M95: No | N95: 11.76 | O95: 11.76 | Q95: 12 | R95: Res Lighting | S95: 10 | T95: 1 | U95: 11 | V95: 2067 | W95: 14.15 | X95: 2081.15 | Y95: 1176 | Z95: 11.76 | AA95: 1187.76 | AB95: 0.25 | AC95: 2.94 | AD95: 1.121319528 | AE95: 4.061319528 | AG95: 0
G96: 81 | H96: Lighting: LED Globe ~ TE, SF | I96: 18.09 | J96: 0 | K96: kWh | L96: per unit | M96: No | N96: 11.76 | O96: 11.76 | Q96: 12 | R96: Res Lighting | S96: 10 | T96: 20 | U96: 30 | V96: 20.8 | W96: 361.8 | X96: 382.6 | Y96: 11.76 | Z96: 235.2 | AA96: 246.96 | AB96: 0.25 | AC96: 58.8 | AD96: 22.42639056 | AE96: 81.22639056 | AG96: 0
G97: 82 | H97: Lighting: LED Globe ~ TE, MH | I97: 18.09 | J97: 0 | K97: kWh | L97: per unit | M97: No | N97: 11.76 | O97: 11.76 | Q97: 12 | R97: Res Lighting | S97: 10 | T97: 10 | U97: 20 | V97: 20.19 | W97: 180.9 | X97: 201.09 | Y97: 11.76 | Z97: 117.6 | AA97: 129.36 | AB97: 0.25 | AC97: 29.4 | AD97: 11.21319528 | AE97: 40.61319528 | AG97: 0
G98: 83 | H98: Lighting: T8 Retrofit LED ~ TE, MF | I98: 9.66 | J98: 0 | K98: kWh | L98: per unit | M98: No | N98: 11.76 | O98: 11.76 | Q98: 12 | R98: Res Lighting | S98: 10 | T98: 1 | U98: 11 | V98: 90.9 | W98: 9.66 | X98: 100.56 | Y98: 117.6 | Z98: 11.76 | AA98: 129.36 | AB98: 0.25 | AC98: 2.94 | AD98: 1.121319528 | AE98: 4.061319528 | AG98: 0
G99: 84 | H99: SIR Measure: Common Area Lighting ~ TE, MF (Treat Savings) | I99: 51000 | J99: 0 | K99: kWh | L99: per unit | M99: No | N99: 42000 | O99: 42000 | Q99: 15 | R99: Res Lighting | S99: 1 | T99: 1 | U99: 2 | V99: 160.1 | W99: 51000 | X99: 51160.1 | Y99: 117.6 | Z99: 42000 | AA99: 42117.6 | AB99: 0.25 | AC99: 10500 | AD99: 4004.7126 | AE99: 14504.7126 | AG99: 0
G100: 85 | H100: SIR Measure: ERV~ TE, MF (Treat Savings) | I100: 230602 | J100: 0 | K100: kWh | L100: per unit | M100: No | N100: 287465 | O100: 287465 | Q100: 20 | R100: Res Lighting | S100: 0.1 | T100: 0 | U100: 0.1 | V100: 240.15 | W100: 0 | X100: 240.15 | Y100: 176.4 | Z100: 0 | AA100: 176.4 | AB100: 0.25 | AC100: 0 | AD100: 0 | AE100: 0 | AG100: 0
G101: 86 | H101: SIR Measure: DHP ~ TE, MF (Treat Savings) | I101: 166000 | J101: 0 | K101: kWh | L101: per unit | M101: No | N101: 268000 | O101: 268000 | Q101: 15 | R101: Res Lighting | S101: 0.25 | T101: 1 | U101: 1.25 | V101: 141.5 | W101: 166000 | X101: 166141.5 | Y101: 117.6 | Z101: 268000 | AA101: 268117.6 | AB101: 0.25 | AC101: 67000 | AD101: 25553.8804 | AE101: 92553.8804 | AG101: 0
G102: 87 | H102: SIR Measure: Slab on Grade Insulation ~ TE, MF (Treat Savings) | I102: 164124 | J102: 0 | K102: kWh | L102: per unit | M102: No | N102: 168059 | O102: 168059 | Q102: 45 | R102: Res Lighting | S102: 0.15 | T102: 0 | U102: 0.15 | V102: 180.9 | W102: 0 | X102: 180.9 | Y102: 117.6 | Z102: 0 | AA102: 117.6 | AB102: 0.25 | AC102: 0 | AD102: 0 | AE102: 0 | AG102: 0
G103: 88 | H103: SIR Measure: MF Air Sealing 20+ units (Treat Savings) | I103: 35000 | J103: 0 | K103: kWh | L103: per unit | M103: No | N103: 36000 | O103: 36000 | Q103: 30 | R103: Res Lighting | S103: 1 | T103: 1 | U103: 2 | V103: 180.9 | W103: 35000 | X103: 35180.9 | Y103: 117.6 | Z103: 36000 | AA103: 36117.6 | AB103: 0.25 | AC103: 9000 | AD103: 3432.6108 | AE103: 12432.6108 | AG103: 0
G104: 89 | H104: MHR: Single to Single Wide pre-HUD pre-1976 | I104: 8657 | J104: 0 | K104: kWh | L104: per unit | M104: No | N104: 76600 | O104: 13800 | Q104: 41 | R104: Comm Lighting | S104: 0 | T104: 3 | U104: 3 | V104: 96.6 | W104: 25971 | X104: 26067.6 | Y104: 117.6 | Z104: 41400 | AA104: 41517.6 | AB104: 0.3 | AC104: 12420 | AD104: 3947.50242 | AE104: 16367.50242 | AG104: 25000
G105: 90 | H105: MHR: Double to Double Wide pre-HUD pre-1976 | I105: 8854 | J105: 0 | K105: kWh | L105: calculated | M105: No | N105: 105000 | O105: 14300 | Q105: 41 | R105: MF Space Heat | S105: 0 | T105: 2 | U105: 2 | V105: 54135 | W105: 17708 | X105: 71843 | Y105: 8000 | Z105: 28600 | AA105: 36600 | AB105: 0.3 | AC105: 8580 | AD105: 2727.01858 | AE105: 11307.01858 | AG105: 33000
G106: 91 | H106: MHR: Double to Single Wide pre-HUD pre-1976 | I106: 10976 | J106: 0 | K106: kWh | L106: calculated | M106: No | N106: 78600 | O106: 17750 | Q106: 41 | R106: MF Space Heat | S106: 0 | T106: 0 | U106: 0 | V106: 23060.2 | W106: 0 | X106: 23060.2 | Y106: 28746.5 | Z106: 0 | AA106: 28746.5 | AB106: 0.3 | AC106: 0 | AD106: 0 | AE106: 0 | AG106: 27000
G107: 92 | H107: MHR: Single to Single Wide HUD compliant 1976-1994 | I107: 7236 | J107: 0 | K107: kWh | L107: calculated | M107: No | N107: 76600 | O107: 11600 | Q107: 41 | R107: MF Space Heat | S107: 0 | T107: 0 | U107: 0 | V107: 147126.5 | W107: 0 | X107: 147126.5 | Y107: 182238 | Z107: 0 | AA107: 182238 | AB107: 0.3 | AC107: 0 | AD107: 0 | AE107: 0 | AG107: 25000
G108: 93 | H108: MHR: Double to Double Wide HUD compliant 1976-1994 | I108: 7831 | J108: 0 | K108: kWh | L108: calculated | M108: No | N108: 105000 | O108: 12650 | Q108: 41 | R108: MF Space Heat | S108: 0 | T108: 0 | U108: 0 | V108: 24618.6 | W108: 0 | X108: 24618.6 | Y108: 25208.85 | Z108: 0 | AA108: 25208.85 | AB108: 0.3 | AC108: 0 | AD108: 0 | AE108: 0 | AG108: 33000
G109: 94 | H109: MHR: Double to Single Wide HUD compliant 1976-1994 | I109: 9953 | J109: 0 | K109: kWh | L109: calculated | M109: No | N109: 78600 | O109: 16000 | Q109: 41 | S109: 0 | T109: 0 | U109: 0 | V109: 243836 | W109: 0 | X109: 243836 | Y109: 225868 | Z109: 0 | AA109: =SUM(Y109:Z109) -> 225868 | AB109: 0.3 | AC109: 0 | AD109: 0 | AE109: 0 | AG109: 27000
G110: 95 | H110: Web Enabled Thermostat~TE SF | I110: 502 | J110: 0 | N110: 145.28 | O110: 145.28 | Q110: 12 | S110: 0 | T110: 7 | U110: 7 | V110: =S110*I110 -> 0 | W110: 3514 | X110: 3514 | Y110: =S110*O110 -> 0 | Z110: 1016.96 | AA110: =SUM(Y110:Z110) -> 1016.96 | AB110: 0.25 | AC110: 254.24 | AD110: 96.96744109 | AE110: 351.2074411 | AG110: 0
G111: 96 | H111: Web Enabled Thermostat~TE MH | I111: 502 | J111: 0 | N111: 145.28 | O111: 145.28 | Q111: 12 | S111: 0 | T111: 8 | U111: 8 | V111: 0 | W111: 4016 | X111: 4016 | Y111: 0 | Z111: 1162.24 | AA111: 1162.24 | AB111: 0.25 | AC111: 290.56 | AD111: 110.8199327 | AE111: 401.3799327 | AG111: 0
G112: 97 | AG112: 0
G113: 98 | AG113: 0
G114: 99 | AG114: 0
G115: 100 | AG115: 0
G116: 101 | AG116: 0
G117: 102 | AG117: 0
G118: 103 | AG118: 0
G119: 104 | AG119: 0

Sheet HmEnrgAsmt Detail_REM_E214 Elec
C1: Home Energy Assessment | D1: Schedule 214 | E1: Order Number | F1: 18230625 | G1: Electric | L1: Home Energy Assessment | M1: Schedule 214 | N1: Order Number | O1: 18230625 | P1: Electric | T1: Home Energy Assessment | U1: Schedule 214 | V1: Order Number | W1: 18230625 | X1: Electric
D2: This table summarizes the subtotals in the detail table below and is used to populate 2019 Sector view tables (located at the front of this workbook).
A3: Home Energy Assessment | D3: Program Labor | E3: Marketing Labor | F3: Overhead | G3: Marketing | H3: Employee/Office Expense | I3: Outside Services | J3: Materials | K3: Miscellaneous | L3: DBtC | M3: Revenue | N3: Total Budget | O3: Total Savings
A4: Schedule 214 | C4: 2018 (Reference only) | D4: 40800 | E4: 21600 | F4: 57907.2 | G4: 132500 | H4: 1500 | I4: 187600 | J4: 0 | K4: 1000 | L4: 2201972.5 | M4: 0 | N4: 2644879.7 | O4: 5148285
A5: Order Number | C5: Original 2019 figures | D5: =D15 -> 40800 | E5: =D21 -> 21600 | F5: =D27 -> 57907.2 | G5: =D37 -> 132500 | H5: =D43 -> 1500 | I5: =D49 -> 187600 | J5: =D56 -> 0 | K5: =D62 -> 1000 | L5: =D68 -> 2201972.5 | M5: =D71 -> 0 | N5: =SUM(D5:M5) -> 2644879.7 | O5: =T15 -> 5147675
A6: 18230625 | C6: 2019 (Updated for 2019 ACP) | D6: =E15 -> 62400 | E6: =E21 -> 0 | F6: =E27 -> 56971.2 | G6: =E37 -> 132500 | H6: =E43 -> 1500 | I6: =E49 -> 181600 | J6: =E56 -> 0 | K6: =E62 -> 1000 | L6: =E68 -> 2069962.5 | M6: =E71 -> 0 | N6: =SUM(D6:M6) -> 2505933.7 | O6: =U15 -> 4782551.5
A7: Electric
H8: All measure cost, incentive and savings figures are based on updated 2019 data. Highlighted cells indicate revisions from values presented in the 2018-2019 BCP. Lined-out measures are retired for 2019.
C10: Spending Section | H10: Savings Section | W10: Savings Section
C12: Overall Total | D12: =D15+D21+D27+D37+D43+D49+D56+D62+D68 -> 2644879.7 | E12: =E15+E21+E27+E37+E43+E49+E56+E62+E68 -> 2505933.7 | F12: =D12+E12 -> 5150813.401 | H12: Measure Information | Q12: Unit Totals | T12: Projected Savings | W12: Incentive Totals | Z12: First-year NEBs
H13: Measure Name | I13: Savings | J13: UOM | K13: Unit Type | L13: Measure Cost | M13: Incentive | N13: Support % | O13: Measure Life | P13: End Use | Q13: 2018 | R13: 2019 | S13: Combined | T13: 2018 | U13: 2019 | V13: Combined | W13: 2018 | X13: 2019 | Y13: Combined
C14: Budget Category | D14: 2018 | E14: 2019 | F14: Total | H14: i | I14: i | K14: i | L14: i | M14: i | N14: i | O14: i | P14: i | Q14: i | R14: i | Z14: i
B15: FTE | C15: PROGRAM LABOR | D15: =SUM(D16:D18) -> 40800 | E15: =SUM(E16:E19) -> 62400 | F15: =D15+E15 -> 103200 | H15: TOTALS g | L15: =SUMPRODUCT(L16:L38,S16:S38) -> 4397935.001 | M15: =SUM(M16:M38) -> 607.2300001 | O15: 11 | T15: =SUM(T16:T66) -> 5147675 | U15: =SUM(U16:U66) -> 4782551.5 | V15: =SUM(V16:V66) -> 9930226.5 | W15: 2201972.5 | X15: 2069962.5 | Y15: 4271935.001
B16: 0.9 | C16: Market Manager | D16: 7200 | E16: 7200 | F16: =SUM(D16:E16) -> 14400 | G16: 1 | H16: HEA - Vendor - E | I16: 0 | J16: kWh | K16: per home | L16: 139 | M16: 139 | N16: 0 | O16: 1 | P16: SF Space Heat | Q16: 7500 | R16: 7400 | S16: =SUM(Q16:R16) -> 14900 | T16: 0 | U16: =R16*I16 -> 0 | V16: =SUM(T16:U16) -> 0 | W16: 1035000 | X16: =R16*M16 -> 1028600 | Y16: =SUM(W16:X16) -> 2063600 | Z16: 0
B17: 0.3 | C17: Program Coordinator | D17: 16800 | E17: 16800 | F17: 33600 | G17: 2 | H17: HEA - CAN - E | I17: 0 | J17: kWh | K17: per home | L17: 139 | M17: 139 | N17: 0 | O17: 1 | P17: SF Space Heat | Q17: 3700 | R17: 2600 | S17: =SUM(Q17:R17) -> 6300 | T17: 0 | U17: 0 | V17: 0 | W17: 436600 | X17: 361400 | Y17: 798000 | Z17: 0
B18: 0.3 | C18: Program Implementer | D18: 16800 | E18: 16800 | F18: 33600 | G18: 3 | H18: MH - HEA - Vendor - E | I18: 0 | J18: kWh | K18: per home | L18: 139 | M18: 139 | N18: 0 | O18: 1 | P18: SF Space Heat | Q18: 1200 | R18: 600 | S18: 1800 | T18: 0 | U18: 0 | V18: 0 | W18: 134400 | X18: 83400 | Y18: 217800 | Z18: 0
C19: Marketing Labor | E19: 21600 | F19: 21600 | G19: 4 | H19: MH - HEA - CAN - E | I19: 0 | J19: kWh | K19: per home | L19: 139 | M19: 139 | N19: 0 | O19: 1 | P19: SF Space Heat | Q19: 200 | R19: 600 | S19: 800 | T19: 0 | U19: 0 | V19: 0 | W19: 19400 | X19: 83400 | Y19: 102800 | Z19: 0
B20: =SUM(B16:B19) -> 1.5 | G20: 5 | H20: A-Lamp LED | I20: 20.67 | J20: kWh | K20: per unit | L20: 2.69 | M20: 2.69 | N20: 0.2540078432 | O20: 12 | P20: Res Lighting | Q20: 52000 | R20: 65000 | S20: 117000 | T20: 1074840 | U20: 1343550 | V20: 2418390 | W20: 139880 | X20: 174850 | Y20: 314730 | Z20: 0
B21: FTE | C21: MARKETING LABOR | D21: =SUM(D22:D25) -> 21600 | E21: =SUM(E22:E25) -> 0 | F21: =D21+E21 -> 21600 | G21: 6 | H21: Globe LED | I21: 18.09 | J21: kWh | K21: per unit | L21: 3.19 | M21: 3.19 | N21: 0.1244896495 | O21: 12 | P21: Res Lighting | Q21: 39000 | R21: 25000 | S21: 64000 | T21: 705510 | U21: 452250 | V21: 1157760 | W21: 124410 | X21: 79750 | Y21: 204160 | Z21: 0
B22: 0.22 | C22: Marketing Labor | D22: 21600 | E22: 0 | F22: 21600 | G22: 7 | H22: Reflector LED | I22: 39.41 | J22: kWh | K22: per unit | L22: 3.6 | M22: 3.6 | N22: 0.3390089196 | O22: 12 | P22: Res Lighting | Q22: 50000 | R22: 43000 | S22: 93000 | T22: 1970500 | U22: 1694630 | V22: 3665130 | W22: 180000 | X22: 154800 | Y22: 334800 | Z22: 0
F23: 0 | G23: 8 | H23: Candelabra LED | I23: 18.54 | J23: kWh | K23: per unit | L23: 3.75 | M23: 3.75 | N23: 0.05902272233 | O23: 12 | P23: Res Lighting | Q23: 20000 | R23: 12000 | S23: 32000 | T23: 320000 | U23: 222480 | V23: 542480 | W23: 75000 | X23: 45000 | Y23: 120000 | Z23: 0
F24: 0 | G24: 9 | H24: MH - A-Lamp LED | I24: 20.67 | J24: kWh | K24: per unit | L24: 2.69 | M24: 2.69 | N24: 0.03149697255 | O24: 12 | P24: Res Lighting | Q24: 7500 | R24: 7500 | S24: 15000 | T24: 155025 | U24: =R24*I24 -> 155025 | V24: 310050 | W24: 20175 | X24: 20175 | Y24: 40350 | Z24: 0
F25: 0 | G25: 10 | H25: MH - Globe LED | I25: 18.09 | J25: kWh | K25: per unit | L25: 3.19 | M25: 3.19 | N25: 0.005335270691 | O25: 12 | P25: Res Lighting | Q25: 1900 | R25: 1900 | S25: 3800 | T25: 34371 | U25: 34371 | V25: 68742 | W25: 6061 | X25: 6061 | Y25: 12122 | Z25: 0
B26: =SUM(B22:B25) -> 0.22 | G26: 11 | H26: MH - Reflector LED | I26: 39.41 | J26: kWh | K26: per unit | L26: 3.6 | M26: 3.6 | N26: 0.006780178393 | O26: 12 | P26: Res Lighting | Q26: 1000 | R26: 750 | S26: 1750 | T26: 39000 | U26: 29557.5 | V26: 68557.5 | W26: 3600 | X26: 2700 | Y26: 6300 | Z26: 0
C27: TOTAL OVERHEAD | D27: =SUM(D29:D31)+SUM(D33:D35) -> 57907.2 | E27: =SUM(E29:E31)+SUM(E33:E35) -> 56971.2 | F27: =D27+E27 -> 114878.4 | G27: 12 | H27: MH - Candelabra LED | I27: 18.54 | J27: kWh | K27: per unit | L27: 3.75 | M27: 3.75 | N27: 0.001180454447 | O27: 12 | P27: Res Lighting | Q27: 400 | R27: 400 | S27: 800 | T27: 6404 | U27: 7416 | V27: 13820 | W27: 1500 | X27: 1500 | Y27: 3000 | Z27: 0
C28: Labor Overhead Rate | D28: ='Global Figures Reference'!$D$5 -> 0.688 | E28: ='Global Figures Reference'!$E$5 -> 0.683 | G28: 13 | H28: Showerhead Fixed 1.5 GPM - EWH - Leave Behind | I28: 166 | J28: kWh | K28: per unit | L28: 3.51 | M28: 3.51 | N28: 0.06527768083 | O28: 7 | P28: Res Water Heat | Q28: 2000 | R28: 1500 | S28: 3500 | T28: 332000 | U28: 249000 | V28: 581000 | W28: 7020 | X28: 5265 | Y28: 12285 | Z28: 13.62
C29: Program Staff Overhead | D29: =D15*D28 -> 28070.4 | E29: =E15*E28 -> 42619.2 | F29: 70689.6 | G29: 14 | H29: Showerhead HH 1.5 GPM - EWH - Leave Behind | I29: 166 | J29: kWh | K29: per unit | L29: 8 | M29: 8 | N29: 0.06527768083 | O29: 7 | P29: Res Water Heat | Q29: 1800 | R29: 1900 | S29: 3700 | T29: 298800 | U29: 315400 | V29: 614200 | W29: 14400 | X29: 15200 | Y29: 29600 | Z29: 13.62
C30: Marketing Staff Overhead | D30: =D21*D28 -> 14860.8 | E30: =E21*E28 -> 0 | F30: 14860.8 | G30: 15 | H30: Aerator 1.5 GPM - EWH - Leave Behind | I30: 36.84 | J30: kWh | K30: per unit | L30: 1.26 | M30: 1.26 | N30: 0.006095205138 | O30: 10 | P30: Res Water Heat | Q30: 800 | R30: 800 | S30: 1600 | T30: 24800 | U30: 29472 | V30: 54272 | W30: 1008 | X30: 1008 | Y30: 2016 | Z30: 2.36
F31: 0 | G31: 16 | H31: Aerator 1.0 GPM - EWH - Leave Behind | I31: 22.08 | J31: kWh | K31: per unit | L31: 0.49 | M31: 0.49 | N31: 0.01302604324 | O31: 10 | P31: Res Water Heat | Q31: 1000 | R31: 2500 | S31: 3500 | T31: 53000 | U31: 55200 | V31: 108200 | W31: 490 | X31: 1225 | Y31: 1715 | Z31: 2.36
C32: Micro Overhead Rate | D32: ='Global Figures Reference'!$D$6 -> 0.24 | E32: ='Global Figures Reference'!$E$6 -> 0.23 | G32: 17 | H32: EIE - Water Treatment Savings - Gas SH | I32: 7 | J32: kWh | K32: per unit | L32: 1e-07 | M32: 1e-07 | N32: 0.006021472818 | O32: 10 | P32: Res Water Heat | Q32: 3700 | R32: 3700 | S32: 7400 | T32: 25900 | U32: 25900 | V32: 51800 | W32: 0.00037 | X32: 0.00037 | Y32: 0.00074 | Z32: 0
C33: Program Staff Overhead | D33: =D15*D32 -> 9792 | E33: =E15*E32 -> 14352 | F33: =SUM(D33:E33) -> 24144 | G33: 18 | H33: MH - Showerhead Fixed 1.5 GPM - EWH - Leave Behind | I33: 187 | J33: kWh | K33: per unit | L33: 3.51 | M33: 3.51 | O33: 7 | P33: Res Plug Load | Q33: 350 | R33: 350 | S33: 700 | T33: 0 | U33: 65450 | V33: 65450 | W33: 0 | X33: 1228.5 | Y33: 1228.5 | Z33: 0
A34: Home Energy Assessment | C34: Marketing Staff Overhead | D34: =D21*D32 -> 5184 | E34: =E21*E32 -> 0 | F34: =SUM(D34:E34) -> 5184 | G34: 19 | H34: MH - Showerhead HH 1.5 GPM - EWH - Leave Behind | I34: 187 | J34: kWh | K34: per unit | L34: 8 | M34: 8 | N34: 0.01378794388 | O34: 7 | P34: Res Water Heat | Q34: 225 | R34: 550 | S34: 775 | T34: 65450 | U34: 102850 | V34: 168300 | W34: 1228.5 | X34: 4400 | Y34: 5628.5 | Z34: 14.53
A35: Schedule 214 | G35: 20 | Q35: 0 | R35: 0 | S35: 0 | T35: 42075 | U35: 0 | V35: 42075 | W35: 1800 | X35: 0 | Y35: 1800 | Z35: 14.53
A36: Order Number | G36: 21 | S36: =SUM(Q36:R36) -> 0 | T36: 0 | U36: =R36*I36 -> 0 | V36: =SUM(T36:U36) -> 0 | W36: 0 | X36: =R36*M36 -> 0 | Y36: =SUM(W36:X36) -> 0 | Z36: 14.53
A37: 18230625 | C37: MARKETING | D37: =SUM(D38:D41) -> 132500 | E37: =SUM(E38:E41) -> 132500 | F37: =D37+E37 -> 265000 | G37: 22 | S37: 0 | T37: 0 | U37: 0 | V37: 0 | W37: 0 | X37: 0 | Y37: 0 | Z37: 0
A38: Electric | D38: 132500 | E38: 132500 | F38: =SUM(D38:E38) -> 265000 | G38: 23 | S38: 0 | T38: =Q38*I38 -> 0 | U38: 0 | V38: 0 | W38: 0 | X38: 0 | Y38: 0 | Z38: 0
F39: 0 | G39: 24 | S39: 0 | T39: 0 | U39: 0 | V39: 0 | W39: 0 | X39: =R39*M39 -> 0 | Y39: =SUM(W39:X39) -> 0
F40: 0 | G40: 25 | S40: 0 | T40: 0 | U40: 0 | V40: 0 | W40: =Q40*M40 -> 0 | X40: 0 | Y40: 0
F41: 0 | G41: 26 | S41: 0 | T41: 0 | U41: 0 | V41: 0 | W41: 0 | X41: 0 | Y41: 0
G42: 27 | S42: 0 | T42: 0 | U42: 0 | V42: 0 | W42: 0 | X42: 0 | Y42: 0
C43: EMPLOYEE/OFFICE EXPENSES | D43: =SUM(D44:D47) -> 1500 | E43: =SUM(E44:E47) -> 1500 | F43: =D43+E43 -> 3000 | G43: 28 | S43: 0 | T43: 0 | U43: 0 | V43: 0 | W43: 0 | X43: 0 | Y43: 0
C44: Expenses, Phone, Parking, Etc | D44: 1000 | E44: 750 | F44: =SUM(D44:E44) -> 1750 | G44: 29 | S44: 0 | T44: 0 | U44: 0 | V44: 0 | W44: 0 | X44: 0 | Y44: 0
C45: Training | D45: 500 | E45: 750 | F45: 1250 | G45: 30 | S45: 0 | T45: 0 | U45: 0 | V45: 0 | W45: 0 | X45: 0 | Y45: 0
F46: 0 | G46: 31 | S46: 0 | T46: 0 | U46: 0 | V46: 0 | W46: 0 | X46: 0 | Y46: 0
F47: 0 | G47: 32 | S47: 0 | T47: 0 | U47: 0 | V47: 0 | W47: 0 | X47: 0 | Y47: 0
G48: 33 | S48: 0 | T48: 0 | U48: 0 | V48: 0 | W48: 0 | X48: 0 | Y48: 0
C49: OUTSIDE SERVICES | D49: =SUM(D50:D54) -> 187600 | E49: =SUM(E50:E54) -> 181600 | F49: =D49+E49 -> 369200 | G49: 34 | S49: 0 | T49: 0 | U49: 0 | V49: 0 | W49: 0 | X49: 0 | Y49: 0
C50: Admin Support | D50: 120000 | E50: 120000 | F50: =SUM(D50:E50) -> 240000 | G50: 35 | S50: 0 | T50: 0 | U50: 0 | V50: 0 | W50: 0 | X50: 0 | Y50: 0
C51: Management Staff | D51: 37500 | E51: 37500 | G51: 36
C52: Travel | D52: 21600 | E52: 21600 | F52: 43200 | G52: 37 | S52: 0 | T52: 0 | U52: 0 | V52: 0 | W52: 0 | X52: 0 | Y52: 0
C53: Software Licensing | D53: 2500 | E53: 2500 | F53: 5000 | G53: 38 | S53: 0 | T53: 0 | U53: 0 | V53: 0 | W53: 0 | X53: 0 | Y53: 0
C54: HEA Report redesign | D54: 6000 | E54: 0 | F54: 6000 | G54: 39 | S54: 0 | T54: 0 | U54: 0 | V54: 0 | W54: 0 | X54: 0 | Y54: 0
G55: 40 | S55: 0 | T55: 0 | U55: 0 | V55: 0 | W55: 0 | X55: 0 | Y55: 0
C56: MATERIALS | D56: =SUM(D57:D60) -> 0 | E56: =SUM(E57:E60) -> 0 | F56: =D56+E56 -> 0 | G56: 41 | S56: 0 | T56: 0 | U56: 0 | V56: 0 | W56: 0 | X56: 0 | Y56: 0
F57: =SUM(D57:E57) -> 0 | G57: 42 | S57: 0 | T57: 0 | U57: 0 | V57: 0 | W57: 0 | X57: 0 | Y57: 0
F58: 0 | G58: 43 | S58: 0 | T58: 0 | U58: 0 | V58: 0 | W58: 0 | X58: 0 | Y58: 0
F59: 0 | G59: 44 | S59: 0 | T59: 0 | U59: 0 | V59: 0 | W59: 0 | X59: 0 | Y59: 0
F60: 0 | G60: 45 | S60: 0 | T60: 0 | U60: 0 | V60: 0 | W60: 0 | X60: 0 | Y60: 0
G61: 46 | S61: 0 | T61: 0 | U61: 0 | V61: 0 | W61: 0 | X61: 0 | Y61: 0
C62: MISCELLANEOUS | D62: =SUM(D63:D66) -> 1000 | E62: =SUM(E63:E66) -> 1000 | F62: =D62+E62 -> 2000 | G62: 47 | S62: 0 | T62: 0 | U62: 0 | V62: 0 | W62: 0 | X62: 0 | Y62: 0
D63: 1000 | E63: 1000 | F63: =SUM(D63:E63) -> 2000 | G63: 48 | S63: 0 | T63: 0 | U63: 0 | V63: 0 | W63: 0 | X63: 0 | Y63: 0
F64: 0 | G64: 49 | S64: 0 | T64: 0 | U64: 0 | V64: 0 | W64: 0 | X64: 0 | Y64: 0
A65: Home Energy Assessment | F65: 0 | G65: 50 | S65: 0 | T65: 0 | U65: 0 | V65: 0 | W65: 0 | X65: 0 | Y65: 0
A66: Schedule 214 | F66: 0 | G66: 51 | S66: 0 | T66: 0 | U66: 0 | V66: 0 | W66: 0 | X66: 0 | Y66: 0
A67: Order Number
A68: 18230625 | C68: DIRECT BENEFIT TO CUSTOMER | D68: =W15 -> 2201972.5 | E68: =X15 -> 2069962.5 | F68: =D68+E68 -> 4271935.001
A69: Electric | C69: Ratio | D69: =D68/D12 -> 0.8325416464 | E69: =E68/E12 -> 0.8260244475
C71: REVENUE | D71: 0 | E71: 0 | F71: 0
D72: (Enter as a negative value)

Sheet WaterHea_Detail_REM_E214 Elec
C1: SF Existing Water Heat | D1: Schedule 214 | E1: Order Number | F1: 18230626 | G1: Electric | L1: SF Existing Water Heat | M1: Schedule 214 | N1: Order Number | O1: 18230626 | P1: Electric | T1: SF Existing Water Heat | U1: Schedule 214 | V1: Order Number | W1: 18230626 | X1: Electric
D2: This table summarizes the subtotals in the detail table below and is used to populate 2019 Sector view tables (located at the front of this workbook).
A3: SF Existing Water Heat | D3: Program Labor | E3: Marketing Labor | F3: Overhead | G3: Marketing | H3: Employee/Office Expense | I3: Outside Services | J3: Materials | K3: Miscellaneous | L3: DBtC | M3: Revenue | N3: Total Budget | O3: Total Savings
A4: Schedule 214 | C4: 2018 (Reference only) | D4: 17600 | E4: 3200 | F4: 19302.4 | G4: 78750 | H4: 1200 | I4: 0 | J4: 1000 | K4: 500 | L4: 280600 | M4: 0 | N4: 402152.4 | O4: 980452
A5: Order Number | C5: Original 2019 figures | D5: =D15 -> 17600 | E5: =D21 -> 3200 | F5: =D27 -> 19302.4 | G5: =D37 -> 78750 | H5: =D43 -> 1200 | I5: =D49 -> 0 | J5: =D55 -> 1000 | K5: =D61 -> 500 | L5: =D67 -> 280600 | M5: =D70 -> 0 | N5: =SUM(D5:M5) -> 402152.4 | O5: =T15 -> 980452
A6: 18230626 | C6: 2019 (Updated for 2019 ACP) | D6: =E15 -> 20800 | E6: =E21 -> 0 | F6: =E27 -> 18990.4 | G6: =E37 -> 78750 | H6: =E43 -> 1200 | I6: =E49 -> 0 | J6: =E55 -> 1000 | K6: =E61 -> 500 | L6: =E67 -> 280600 | M6: =E70 -> 0 | N6: =SUM(D6:M6) -> 401840.4 | O6: =U15 -> 757802
A7: Electric
H8: All measure cost, incentive and savings figures are based on updated 2019 data. Highlighted cells indicate revisions from values presented in the 2018-2019 BCP. Lined-out measures are retired for 2019.
C10: Spending Section | H10: Savings Section | W10: Savings Section | Z10: Savings Section
C12: Overall Total | D12: =D15+D21+D27+D37+D43+D49+D55+D61+D67 -> 402152.4 | E12: =E15+E21+E27+E37+E43+E49+E55+E61+E67 -> 401840.4 | F12: =D12+E12 -> 803992.8 | H12: Measure Information | Q12: Unit Totals | T12: Projected Savings | W12: Incentive Totals | Z12: 1st Year
H13: Measure Name | I13: Savings | J13: UOM | K13: Unit Type | L13: Measure Cost | M13: Incentive | N13: Support % | O13: Measure Life | P13: End Use | Q13: 2018 | R13: 2019 | S13: Combined | T13: 2018 | U13: 2019 | V13: Combined | W13: 2018 | X13: 2019 | Y13: Combined | Z13: NEBs per Unit
C14: Budget Category | D14: 2018 | E14: 2019 | F14: Total | H14: i | I14: i | K14: i | L14: i | M14: i | N14: i | O14: i | P14: i | Q14: i | R14: i | Z14: i
B15: FTE | C15: PROGRAM LABOR | D15: =SUM(D16:D18) -> 17600 | E15: =SUM(E16:E19) -> 20800 | F15: =D15+E15 -> 38400 | H15: TOTALS g | L15: =SUMPRODUCT(L16:L22,S16:S22) -> 968200 | M15: =SUM(M16:M22) -> 1004 | O15: 13 | T15: =SUM(T16:T65) -> 980452 | U15: 757802 | V15: 1738254 | W15: 280600 | X15: 280600 | Y15: 561200 | Z15: 0
B16: 0.1 | C16: Program Manager | D16: 8000 | E16: 8000 | F16: =SUM(D16:E16) -> 16000 | G16: 1 | H16: Heat Pump Water Heater Tier 2 | I16: 1120 | J16: kWh | K16: per unit | L16: 870 | M16: 500 | N16: 0.07511841477 | O16: 13 | P16: Res Water Heat | Q16: 50 | R16: 50 | S16: =SUM(Q16:R16) -> 100 | T16: 73650 | U16: =R16*I16 -> 56000 | V16: =SUM(T16:U16) -> 129650 | W16: 25000 | X16: =R16*M16 -> 25000 | Y16: =SUM(W16:X16) -> 50000 | Z16: 0
B17: 0.05 | C17: Market Manager | D17: 4000 | E17: 4000 | F17: =SUM(D17:E17) -> 8000 | G17: 2 | H17: Heat pump Water Heater Tier 3 | I17: 1289 | J17: kWh | K17: per unit | L17: 870 | M17: 500 | N17: 0.8664371127 | O17: 13 | P17: Res Water Heat | Q17: 500 | R17: 500 | S17: 1000 | T17: 849500 | U17: =R17*I17 -> 644500 | V17: 1494000 | W17: 250000 | X17: 250000 | Y17: 500000 | Z17: 0
B18: 0.1 | C18: Program Implementer | D18: 5600 | E18: 5600 | F18: 11200 | G18: 3 | H18: A-19 - LED - TY Kit | I18: 11.32 | J18: kWh | K18: per unit | L18: 3 | M18: 3 | N18: 0.01616397335 | O18: 12 | P18: Res Lighting | Q18: 1400 | R18: 1400 | S18: 2800 | T18: 15848 | U18: 15848 | V18: 31696 | W18: 4200 | X18: 4200 | Y18: 8400 | Z18: 0
C19: Marketing Labor | E19: 3200 | F19: 3200 | G19: 4 | H19: Aerator - Bath 1.0 GPM - TY Kit | I19: 29.61 | J19: kWh | K19: per unit | L19: 1 | M19: 1 | N19: 0.0422804992 | O19: 10 | P19: Res Water Heat | Q19: 1400 | R19: 1400 | S19: 2800 | T19: 41454 | U19: 41454 | V19: 82908 | W19: 1400 | X19: 1400 | Y19: 2800 | Z19: 0
B20: =SUM(B16:B19) -> 0.25 | G20: 5 | S20: 0 | T20: 0 | U20: 0 | V20: 0 | W20: 0 | X20: 0 | Y20: 0 | Z20: 0
B21: FTE | C21: MARKETING LABOR | D21: =SUM(D22:D25) -> 3200 | E21: =SUM(E22:E25) -> 0 | F21: =D21+E21 -> 3200 | G21: 6
D22: 3200 | E22: 0 | F22: =SUM(D22:E22) -> 3200 | G22: 7
F23: 0 | G23: 8
F24: 0 | G24: 9
F25: 0 | G25: 10
B26: =SUM(B22:B25) -> 0 | G26: 11
C27: TOTAL OVERHEAD | D27: =SUM(D29:D31)+SUM(D33:D35) -> 19302.4 | E27: =SUM(E29:E31)+SUM(E33:E35) -> 18990.4 | F27: =D27+E27 -> 38292.8 | G27: 12
C28: Labor Overhead Rate | D28: ='Global Figures Reference'!$D$5 -> 0.688 | E28: ='Global Figures Reference'!$E$5 -> 0.683 | G28: 13
C29: Program Staff Overhead | D29: =D15*D28 -> 12108.8 | E29: =E15*E28 -> 14206.4 | F29: =SUM(D29:E29) -> 26315.2 | G29: 14
C30: Marketing Staff Overhead | D30: =D21*D28 -> 2201.6 | E30: =E21*E28 -> 0 | F30: 2201.6 | G30: 15
F31: 0 | G31: 16
C32: Micro Overhead Rate | D32: ='Global Figures Reference'!$D$6 -> 0.24 | E32: ='Global Figures Reference'!$E$6 -> 0.23 | G32: 17
C33: Program Staff Overhead | D33: =D15*D32 -> 4224 | E33: =E15*E32 -> 4784 | F33: =SUM(D33:E33) -> 9008 | G33: 18
A34: SF Existing Water Heat | C34: Marketing Staff Overhead | D34: =D21*D32 -> 768 | E34: =E21*E32 -> 0 | F34: =SUM(D34:E34) -> 768 | G34: 19
A35: Schedule 214 | G35: 20
A36: Order Number | G36: 21
A37: 18230626 | C37: MARKETING | D37: =SUM(D38:D41) -> 78750 | E37: =SUM(E38:E41) -> 78750 | F37: =D37+E37 -> 157500 | G37: 22
A38: Electric | D38: 78750 | E38: 78750 | F38: =SUM(D38:E38) -> 157500 | G38: 23
F39: 0 | G39: 24
F40: 0 | G40: 25
F41: 0 | G41: 26
G42: 27
C43: EMPLOYEE/OFFICE EXPENSES | D43: =SUM(D44:D47) -> 1200 | E43: =SUM(E44:E47) -> 1200 | F43: =D43+E43 -> 2400 | G43: 28
D44: 1200 | E44: 1200 | F44: =SUM(D44:E44) -> 2400 | G44: 29
F45: 0 | G45: 30
F46: 0 | G46: 31
F47: 0 | G47: 32
G48: 33
C49: OUTSIDE SERVICES | D49: =SUM(D50:D53) -> 0 | E49: =SUM(E50:E53) -> 0 | F49: =D49+E49 -> 0 | G49: 34
F50: =SUM(D50:E50) -> 0 | G50: 35
F51: 0 | G51: 36
F52: 0 | G52: 37
F53: 0 | G53: 38
G54: 39
C55: MATERIALS | D55: =SUM(D56:D59) -> 1000 | E55: =SUM(E56:E59) -> 1000 | F55: =D55+E55 -> 2000 | G55: 40
D56: 1000 | E56: 1000 | F56: =SUM(D56:E56) -> 2000 | G56: 41
F57: 0 | G57: 42
F58: 0 | G58: 43
F59: 0 | G59: 44
G60: 45
C61: MISCELLANEOUS | D61: =SUM(D62:D65) -> 500 | E61: =SUM(E62:E65) -> 500 | F61: =D61+E61 -> 1000 | G61: 46
D62: 500 | E62: 500 | F62: =SUM(D62:E62) -> 1000 | G62: 47
F63: 0 | G63: 48
A64: SF Existing Water Heat | F64: 0 | G64: 49
A65: Schedule 214 | F65: 0 | G65: 50
A66: Order Number
A67: 18230626 | C67: DIRECT BENEFIT TO CUSTOMER | D67: =W15 -> 280600 | E67: =X15 -> 280600 | F67: =D67+E67 -> 561200
A68: Electric | C68: Ratio | D68: =D67/D12 -> 0.6977454318 | E68: =E67/E12 -> 0.6982871807
C70: REVENUE | D70: 0 | E70: 0 | F70: 0
D71: (Enter as a negative value)

Sheet Wx_Detail_REM E214 Elec
C1: SF Existing Weatherization | D1: Schedule 214 | E1: Order Number | F1: 18230627 | G1: Electric | L1: SF Existing Weatherization | M1: Schedule 214 | N1: Order Number | O1: 18230627 | P1: Electric | U1: SF Existing Weatherization | V1: Schedule 214 | W1: Order Number | X1: 18230627 | Y1: Electric
D2: This table summarizes the subtotals in the detail table below and is used to populate 2019 Sector view tables (located at the front of this workbook).
A3: SF Existing Weatherization | D3: Program Labor | E3: Marketing Labor | F3: Overhead | G3: Marketing | H3: Employee/Office Expense | I3: Outside Services | J3: Materials | K3: Miscellaneous | L3: DBtC | M3: Revenue | N3: Total Budget | O3: Total Savings
A4: Schedule 214 | C4: 2018 (Reference only) | D4: 36000 | E4: 27200 | F4: 58649.6 | G4: 137500 | H4: 3000 | I4: 110000 | J4: 0 | K4: 1000 | L4: 595920 | M4: 0 | N4: 969269.6 | O4: 2079060
A5: Order Number | C5: Original 2019 figures | D5: =D15 -> 36000 | E5: =D21 -> 27200 | F5: =D27 -> 58649.6 | G5: =D37 -> 137500 | H5: =D43 -> 3000 | I5: =D49 -> 110000 | J5: =D55 -> 0 | K5: =D61 -> 1000 | L5: =D67 -> 595920 | M5: =D70 -> 0 | N5: =SUM(D5:M5) -> 969269.6 | O5: =T15 -> 2079060
A6: 18230627 | C6: 2019 (Updated for 2019 ACP) | D6: =E15 -> 63200 | E6: =E21 -> 0 | F6: =E27 -> 57701.6 | G6: =E37 -> 137500 | H6: =E43 -> 3000 | I6: =E49 -> 110000 | J6: =E55 -> 0 | K6: =E61 -> 1000 | L6: =E67 -> 471311 | M6: =E70 -> 0 | N6: =SUM(D6:M6) -> 843712.6 | O6: =U15 -> 1851968
A7: Electric
H8: All measure cost, incentive and savings figures are based on updated 2019 data. Highlighted cells indicate revisions from values presented in the 2018-2019 BCP. Lined-out measures are retired for 2019.
C10: Spending Section | H10: Savings Section | W10: Savings Section | Z10: Savings Section
C12: Overall Total | D12: =D15+D21+D27+D37+D43+D49+D55+D61+D67 -> 969269.6 | E12: =E15+E21+E27+E37+E43+E49+E55+E61+E67 -> 843712.6 | F12: =D12+E12 -> 1812982.2 | H12: Measure Information | Q12: Unit Totals | T12: Projected Savings | W12: Incentive Totals | Z12: 1st Year
H13: Measure Name | I13: Savings | J13: UOM | K13: Unit Type | L13: Measure Cost | M13: Incentive | N13: Support % | O13: Measure Life | P13: End Use | Q13: 2018 | R13: 2019 | S13: Combined | T13: 2018 | U13: 2019 | V13: Combined | W13: 2018 | X13: 2019 | Y13: Combined | Z13: NEBs per Unit
C14: Budget Category | D14: 2018 | E14: 2019 | F14: Total | H14: i | I14: i | K14: i | L14: i | M14: i | N14: i | O14: i | P14: i | Q14: i | R14: i | Z14: i
B15: FTE | C15: PROGRAM LABOR | D15: =SUM(D16:D19) -> 36000 | E15: =SUM(E16:E19) -> 63200 | F15: =D15+E15 -> 99200 | H15: TOTALS g | L15: =SUMPRODUCT(L16:L64,S16:S64) -> 5008182.58 | M15: =SUM(M16:M64) -> 2824.9 | O15: 23 | T15: =SUM(T16:T65) -> 2079060 | U15: =SUM(U16:U65) -> 1851968 | V15: =SUM(V16:V65) -> 3931028 | W15: 595920 | X15: 471311 | Y15: 1067231
B16: 0.1 | C16: Market Manager | D16: 8000 | E16: 8000 | F16: =SUM(D16:E16) -> 16000 | G16: 1 | H16: Air Sealing CFM50 - FAF | I16: 0.54 | J16: kWh | K16: per unit | L16: 0.73 | M16: 0.66 | N16: 0.002549228978 | O16: 15 | P16: SF Space Heat | Q16: 10000 | R16: 0 | S16: =SUM(Q16:R16) -> 10000 | T16: 5300 | U16: =R16*I16 -> 0 | V16: =SUM(T16:U16) -> 5300 | W16: 6600 | X16: =R16*M16 -> 0 | Y16: =SUM(W16:X16) -> 6600 | Z16: 0.008
B17: 0.4 | C17: Program Coordinator | D17: 22400 | E17: 22400 | F17: =SUM(D17:E17) -> 44800 | G17: 2 | H17: Air Sealing CFM50 - HP | I17: 0.24 | J17: kWh | K17: per unit | L17: 0.73 | M17: 0.66 | N17: 0.001731551759 | O17: 15 | P17: SF Space Heat | Q17: 15000 | R17: 0 | S17: =SUM(Q17:R17) -> 15000 | T17: 3600 | U17: =R17*I17 -> 0 | V17: =SUM(T17:U17) -> 3600 | W17: 9900 | X17: =R17*M17 -> 0 | Y17: =SUM(W17:X17) -> 9900 | Z17: 0.004
B18: 0.1 | C18: Program Implementer | D18: 5600 | E18: 5600 | F18: 11200 | G18: 3 | H18: Air Sealing CFM50 - Zonal | I18: 0.44 | J18: kWh | K18: per unit | L18: 0.73 | M18: 0.66 | N18: 0.004232682077 | O18: 15 | P18: SF Space Heat | Q18: 20000 | R18: 0 | S18: =SUM(Q18:R18) -> 20000 | T18: 8800 | U18: =R18*I18 -> 0 | V18: =SUM(T18:U18) -> 8800 | W18: 13200 | X18: =R18*M18 -> 0 | Y18: =SUM(W18:X18) -> 13200 | Z18: 0.007
C19: Marketing Labor | E19: 27200 | F19: 27200 | G19: 4 | H19: Attic Insulation R-0 to R-49 FAF | I19: 2.35 | J19: kWh | K19: square foot | L19: 1.24 | M19: 0.33 | N19: 0.05651592547 | O19: 30 | P19: SF Space Heat | Q19: 50000 | R19: 54000 | S19: 104000 | T19: 117500 | U19: 126900 | V19: =SUM(T19:U19) -> 244400 | W19: 16500 | X19: 17820 | Y19: 34320 | Z19: 0.033
B20: =SUM(B16:B19) -> 0.6 | G20: 5 | H20: Attic Insulation R-0 to R-49 HP | I20: 1.33 | J20: kWh | K20: square foot | L20: 1.24 | M20: 0.33 | N20: 0.01407366791 | O20: 30 | P20: SF Space Heat | Q20: 22000 | R20: 29000 | S20: 51000 | T20: 29260 | U20: 38570 | V20: 67830 | W20: 7260 | X20: 9570 | Y20: 16830 | Z20: 0.015
B21: FTE | C21: MARKETING LABOR | D21: =SUM(D22:D25) -> 27200 | E21: =SUM(E22:E25) -> 0 | F21: =D21+E21 -> 27200 | G21: 6 | H21: Attic Insulation R-0 to R-49 Zonal | I21: 2.16 | J21: kWh | K21: square foot | L21: 1.24 | M21: 0.33 | N21: 0.05714120805 | O21: 30 | P21: SF Space Heat | Q21: 55000 | R21: 60000 | S21: 115000 | T21: 118800 | U21: 129600 | V21: 248400 | W21: 18150 | X21: 19800 | Y21: 37950 | Z21: 0.031
B22: 0.34 | D22: 27200 | E22: 0 | F22: =SUM(D22:E22) -> 27200 | G22: 7 | H22: Attic Insulation R-11 to R-49 - FAF | I22: 0.62 | J22: kWh | K22: square foot | L22: 1.09 | M22: 0.33 | N22: 0.01192846767 | O22: 30 | P22: SF Space Heat | Q22: 40000 | R22: 45000 | S22: =SUM(Q22:R22) -> 85000 | T22: 24800 | U22: =R22*I22 -> 27900 | V22: =SUM(T22:U22) -> 52700 | W22: 13200 | X22: =R22*M22 -> 14850 | Y22: =SUM(W22:X22) -> 28050 | Z22: 0.009
F23: 0 | G23: 8 | H23: Attic Insulation R-11 to R-49 - HP | I23: 0.26 | J23: kWh | K23: square foot | L23: 1.09 | M23: 0.33 | N23: 0.00275124335 | O23: 30 | P23: SF Space Heat | Q23: 22000 | R23: 28000 | S23: =SUM(Q23:R23) -> 50000 | T23: 5720 | U23: =R23*I23 -> 7280 | V23: =SUM(T23:U23) -> 13000 | W23: 7260 | X23: =R23*M23 -> 9240 | Y23: =SUM(W23:X23) -> 16500 | Z23: 0.003
F24: 0 | G24: 9 | H24: Attic Insulation R-11 to R-49 - Zonal | I24: 0.44 | J24: kWh | K24: square foot | L24: 1.09 | M24: 0.33 | N24: 0.01163987571 | O24: 30 | P24: SF Space Heat | Q24: 55000 | R24: 44000 | S24: =SUM(Q24:R24) -> 99000 | T24: 24200 | U24: =R24*I24 -> 19360 | V24: =SUM(T24:U24) -> 43560 | W24: 18150 | X24: =R24*M24 -> 14520 | Y24: =SUM(W24:X24) -> 32670 | Z24: 0.007
F25: 0 | G25: 10 | H25: Energy Star Whole House Ventilation | I25: 81 | J25: kWh | K25: per unit | L25: 50 | M25: 50 | N25: 0.0009739978644 | O25: 10 | P25: Res Plug Load | Q25: 25 | R25: 15 | S25: 40 | T25: 2025 | U25: 1215 | V25: 3240 | W25: 1250 | X25: 750 | Y25: 2000 | Z25: 0
B26: =SUM(B22:B25) -> 0.34 | G26: 11 | H26: Floor Insulation R-0 to R-30 FAF | I26: 1 | J26: kWh | K26: square foot | L26: 1.46 | M26: 0.11 | N26: 0.04328879397 | O26: 30 | P26: SF Space Heat | Q26: 90000 | R26: 85000 | S26: 175000 | T26: 90000 | U26: 85000 | V26: 175000 | W26: 9900 | X26: 9350 | Y26: 19250 | Z26: 0.016
C27: TOTAL OVERHEAD | D27: =SUM(D29:D31)+SUM(D33:D35) -> 58649.6 | E27: =SUM(E29:E31)+SUM(E33:E35) -> 57701.6 | F27: =D27+E27 -> 116351.2 | G27: 12 | H27: Floor Insulation R-0 to R-30 HP | I27: 0.18 | J27: kWh | K27: square foot | L27: 1.46 | M27: 0.11 | N27: 0.003895991458 | O27: 30 | P27: SF Space Heat | Q27: 45000 | R27: 50000 | S27: 95000 | T27: 8100 | U27: 9000 | V27: 17100 | W27: 4950 | X27: 5500 | Y27: 10450 | Z27: 0.004
C28: Labor Overhead Rate | D28: ='Global Figures Reference'!$D$5 -> 0.688 | E28: ='Global Figures Reference'!$E$5 -> 0.683 | G28: 13 | H28: Floor Insulation R-0 to R-30 Zonal | I28: 1.03 | J28: kWh | K28: square foot | L28: 1.46 | M28: 0.11 | N28: 0.04954161977 | O28: 30 | P28: SF Space Heat | Q28: 100000 | R28: 104000 | S28: 204000 | T28: 103000 | U28: 107120 | V28: 210120 | W28: 11000 | X28: 11440 | Y28: 22440 | Z28: 0.016
C29: Program Staff Overhead | D29: =D15*D28 -> 24768 | E29: =E15*E28 -> 43165.6 | F29: =SUM(D29:E29) -> 67933.6 | G29: 14 | H29: Home Performance with Energy Star | I29: 0 | J29: kWh | K29: per home | L29: 600 | M29: 400 | N29: 0 | O29: 1 | P29: SF Space Heat | Q29: 40 | R29: 8 | S29: 48 | T29: 0 | U29: 0 | V29: 0 | W29: 16000 | X29: 3200 | Y29: 19200 | Z29: 0
C30: Marketing Staff Overhead | D30: =D21*D28 -> 18713.6 | E30: =E21*E28 -> 0 | F30: 18713.6 | G30: 15 | H30: Prescriptive Duct Sealing and Insulation - Electric | I30: 1859 | J30: kWh | K30: per home | L30: 1000 | M30: 400 | N30: 0.1341231133 | O30: 20 | P30: SF Space Heat | Q30: 150 | R30: 158 | S30: 308 | T30: 278850 | U30: 293722 | V30: 572572 | W30: 60000 | X30: 63200 | Y30: 123200 | Z30: 12.55
F31: 0 | G31: 16 | H31: Wall Insulation R-0 to R-13 FAF | I31: 2.23 | J31: kWh | K31: square foot | L31: 1.54 | M31: 0.22 | N31: 0.01072600117 | O31: 30 | P31: SF Space Heat | Q31: 10000 | R31: 12000 | S31: 22000 | T31: 22300 | U31: 26760 | V31: 49060 | W31: 2200 | X31: 2640 | Y31: 4840 | Z31: 0.034
C32: Micro Overhead Rate | D32: ='Global Figures Reference'!$D$6 -> 0.24 | E32: ='Global Figures Reference'!$E$6 -> 0.23 | G32: 17 | H32: Wall Insulation R-0 to R-13 HP | I32: 0.96 | J32: kWh | K32: square foot | L32: 1.54 | M32: 0.22 | N32: 0.004155724222 | O32: 30 | P32: SF Space Heat | Q32: 9000 | R32: 4500 | S32: 13500 | T32: 8640 | U32: 4320 | V32: 12960 | W32: 1980 | X32: 990 | Y32: 2970 | Z32: 0.014
C33: Program Staff Overhead | D33: =D15*D32 -> 8640 | E33: =E15*E32 -> 14536 | F33: =SUM(D33:E33) -> 23176 | G33: 18 | H33: Wall Insulation R-0 to R-13 Zonal | I33: 1.53 | J33: kWh | K33: square foot | L33: 1.54 | M33: 0.22 | N33: 0.01839773744 | O33: 30 | P33: SF Space Heat | Q33: 25000 | R33: 27000 | S33: 52000 | T33: 38250 | U33: 41310 | V33: 79560 | W33: 5500 | X33: 5940 | Y33: 11440 | Z33: 0.023
A34: SF Existing Weatherization | C34: Marketing Staff Overhead | D34: =D21*D32 -> 6528 | E34: =E21*E32 -> 0 | F34: =SUM(D34:E34) -> 6528 | G34: 19 | H34: Windows - Single Pane to U.30 - FAF | I34: 15.8 | J34: kWh | K34: square foot | L34: 20.5 | M34: 2.78 | N34: 0.1139938241 | O34: 30 | P34: SF Space Heat | Q34: 15000 | R34: 15000 | S34: 30000 | T34: 237000 | U34: 237000 | V34: 474000 | W34: 41700 | X34: 41700 | Y34: 83400 | Z34: 0.235
A35: Schedule 214 | G35: 20 | H35: Windows - Single Pane to U.30 - HP | I35: 6.99 | J35: kWh | K35: square foot | L35: 20.5 | M35: 2.78 | N35: 0.03025886699 | O35: 30 | P35: SF Space Heat | Q35: 9000 | R35: 15000 | S35: 24000 | T35: 62910 | U35: 104850 | V35: 167760 | W35: 25020 | X35: 41700 | Y35: 66720 | Z35: 0.095
A36: Order Number | G36: 21 | H36: Windows - Single Pane to U.30 - Zonal | I36: 8.92 | J36: kWh | K36: square foot | L36: 20.5 | M36: 2.78 | N36: 0.08580800939 | O36: 30 | P36: SF Space Heat | Q36: 20000 | R36: 40000 | S36: 60000 | T36: 178400 | U36: 356800 | V36: 535200 | W36: 55600 | X36: 111200 | Y36: 166800 | Z36: 0.133
A37: 18230627 | C37: MARKETING | D37: =SUM(D38:D41) -> 137500 | E37: =SUM(E38:E41) -> 137500 | F37: =D37+E37 -> 275000 | G37: 22 | H37: Prescriptive air sealing - Attic | I37: 0.15 | J37: kWh | K37: square foot | L37: 0.2 | M37: 0.09 | N37: 0.01262589824 | O37: 30 | P37: SF Space Heat | Q37: 175000 | R37: 175000 | S37: 350000 | T37: 26250 | U37: 26250 | V37: 52500 | W37: 15750 | X37: 15750 | Y37: 31500 | Z37: 0.001
A38: Electric | C38: Materials, Collatoral, Emails | D38: 137500 | E38: 137500 | F38: =SUM(D38:E38) -> 275000 | G38: 23 | H38: Energy Star Whole House Ventilation with Air Sealing | I38: 81 | J38: kWh | K38: per unit | L38: 250 | M38: 150 | N38: 0.003895991458 | O38: 10 | P38: Res Plug Load | Q38: 100 | R38: 5 | S38: =SUM(Q38:R38) -> 105 | T38: 8100 | U38: =R38*I38 -> 405 | V38: =SUM(T38:U38) -> 8505 | W38: 15000 | X38: =R38*M38 -> 750 | Y38: =SUM(W38:X38) -> 15750 | Z38: 0
F39: 0 | G39: 24 | H39: Duct Sealing Only - FAF | I39: 1049 | J39: kWh | K39: per home | L39: 608.58 | M39: 300 | N39: 0.02522774715 | O39: 20 | P39: SF Space Heat | Q39: 50 | R39: 10 | S39: 60 | T39: 52450 | U39: 10490 | V39: 62940 | W39: 15000 | X39: 3000 | Y39: 18000 | Z39: 7.08
F40: 0 | G40: 25 | H40: Duct Sealing Only - HP | I40: 752 | J40: kWh | K40: per home | L40: 608.58 | M40: 300 | N40: 0.01808509615 | O40: 20 | P40: SF Space Heat | Q40: 50 | R40: 10 | S40: 60 | T40: 37600 | U40: 7520 | V40: 45120 | W40: 15000 | X40: 3000 | Y40: 18000 | Z40: 5.08
F41: 0 | G41: 26 | H41: Prescriptive air sealing - Crawl Space | I41: 0.15 | J41: kWh | K41: square foot | L41: 0.2 | M41: 0.09 | N41: 0.01442959799 | O41: 30 | P41: SF Space Heat | Q41: 200000 | R41: 220000 | S41: 420000 | T41: 30000 | U41: 33000 | V41: 63000 | W41: 18000 | X41: 19800 | Y41: 37800 | Z41: 0.001
G42: 27 | H42: MH - Single Pane to U.30 - Resistance | I42: 9.98 | J42: kWh | K42: square foot | L42: 17.81 | M42: 2.78 | N42: 0.04800246265 | O42: 25 | P42: SF Space Heat | Q42: 10000 | R42: 3200 | S42: 13200 | T42: 99800 | U42: 31936 | V42: 131736 | W42: 27800 | X42: 8896 | Y42: 36696 | Z42: 0.067
C43: EMPLOYEE/OFFICE EXPENSES | D43: =SUM(D44:D47) -> 3000 | E43: =SUM(E44:E47) -> 3000 | F43: =D43+E43 -> 6000 | G43: 28 | H43: MH - Single Pane to U.30 - HP | I43: 9.98 | J43: kWh | K43: square foot | L43: 17.81 | M43: 2.78 | N43: 0.03840197012 | O43: 25 | P43: SF Space Heat | Q43: 8000 | R43: 0 | S43: 8000 | T43: 79840 | U43: 0 | V43: 79840 | W43: 22240 | X43: 0 | Y43: 22240 | Z43: 0.067
C44: Travel, tolls, meals, lodging, phone | D44: 1500 | E44: 1500 | F44: =SUM(D44:E44) -> 3000 | G44: 29 | H44: MH - Floor Insulation - R-0 to R-22 - Resistance | I44: 0.46 | J44: kWh | K44: square foot | L44: 1.39 | M44: 0.55 | N44: 0.006637615076 | O44: 25 | P44: SF Space Heat | Q44: 30000 | R44: 10000 | S44: 40000 | T44: 13800 | U44: 4600 | V44: 18400 | W44: 16500 | X44: 5500 | Y44: 22000 | Z44: 0.003
C45: Office supplies, equipment | D45: 500 | E45: 500 | F45: 1000 | G45: 30 | H45: MH - Floor Insulation - R-0 to R-22 - HP | I45: 0.46 | J45: kWh | K45: square foot | L45: 1.39 | M45: 0.55 | N45: 0.004425076717 | O45: 25 | P45: SF Space Heat | Q45: 20000 | R45: 3500 | S45: 23500 | T45: 9200 | U45: 1610 | V45: 10810 | W45: 11000 | X45: 1925 | Y45: 12925 | Z45: 0.003
C46: Training | D46: 1000 | E46: 1000 | F46: 2000 | G46: 31 | H46: MH - Prescriptive Duct Sealing - Single - Resistance | I46: 973 | J46: kWh | K46: per home | L46: 462.66 | M46: 200 | N46: 0.04679999615 | O46: 18 | P46: SF Space Heat | Q46: 100 | R46: 5 | S46: 105 | T46: 97300 | U46: 4865 | V46: 102165 | W46: 20000 | X46: 1000 | Y46: 21000 | Z46: 6.57
F47: 0 | G47: 32 | H47: MH - Prescriptive Duct Sealing - Single - HP | I47: 615 | J47: kWh | K47: per home | L47: 462.66 | M47: 200 | N47: 0.01479033794 | O47: 18 | P47: SF Space Heat | Q47: 50 | R47: 0 | S47: 50 | T47: 30750 | U47: 0 | V47: 30750 | W47: 10000 | X47: 0 | Y47: 10000 | Z47: 4.15
G48: 33 | H48: MH - Prescriptive Duct Selaing - Double/Triple - Resistance | I48: 973 | J48: kWh | K48: per home | L48: 462.66 | M48: 400 | N48: 0.03509999711 | O48: 18 | P48: SF Space Heat | Q48: 75 | R48: 20 | S48: 95 | T48: 72975 | U48: 19460 | V48: 92435 | W48: 30000 | X48: 8000 | Y48: 38000 | Z48: 6.57
C49: OUTSIDE SERVICES | D49: =SUM(D50:D53) -> 110000 | E49: =SUM(E50:E53) -> 110000 | F49: =D49+E49 -> 220000 | G49: 34 | H49: MH - Prescriptive Duct Sealing - Double/Triple - HP | I49: 615 | J49: kWh | K49: per home | L49: 462.66 | M49: 400 | N49: 0.01479033794 | O49: 18 | P49: SF Space Heat | Q49: 50 | R49: 3 | S49: 53 | T49: 30750 | U49: 1845 | V49: 32595 | W49: 20000 | X49: 1200 | Y49: 21200 | Z49: 4.15
C50: Program Support (WX Contractor Mngmt) | D50: 55000 | E50: 55000 | F50: =SUM(D50:E50) -> 110000 | G50: 35 | H50: A-19 - LED - TY Kit | I50: 11.32 | L50: 3.27 | M50: 3.27 | R50: 4000 | S50: 4000 | T50: 0 | U50: 45280 | V50: 45280 | W50: 0 | X50: 13080 | Y50: 13080 | Z50: 0
C51: CAN Licensing (WX Portal) | D51: 55000 | E51: 55000 | F51: 110000 | G51: 36 | H51: Aerator - Bath 1.0 GPM - TY Kit | I51: 12 | J51: kWh | K51: per unit | L51: 1.5 | M51: 1.5 | N51: 0.01633430493 | O51: 12 | Q51: 3000 | R51: 4000 | S51: 7000 | T51: 33960 | U51: 48000 | V51: 81960 | W51: 9810 | X51: 6000 | Y51: 15810 | Z51: 0
F52: 0 | G52: 37 | Q52: 3000 | R52: 0 | S52: 3000 | T52: 88830 | U52: 0 | V52: 88830 | W52: 4500 | X52: 0 | Y52: 4500 | Z52: 1.62
F53: 0 | G53: 38 | S53: 0 | T53: 0 | U53: 0 | V53: 0 | W53: 0 | X53: 0 | Y53: 0 | Z53: 0.067
G54: 39 | S54: 0 | T54: 0 | U54: 0 | V54: 0 | W54: 0 | X54: 0 | Y54: 0 | Z54: 0.003
C55: MATERIALS | D55: =SUM(D56:D59) -> 0 | E55: =SUM(E56:E59) -> 0 | F55: =D55+E55 -> 0 | G55: 40 | S55: 0 | T55: 0 | U55: 0 | V55: 0 | W55: 0 | X55: 0 | Y55: 0 | Z55: 0.003
F56: =SUM(D56:E56) -> 0 | G56: 41 | S56: 0 | T56: 0 | U56: 0 | V56: 0 | W56: 0 | X56: 0 | Y56: 0 | Z56: 6.568
F57: 0 | G57: 42 | S57: 0 | T57: 0 | U57: 0 | V57: 0 | W57: 0 | X57: 0 | Y57: 0 | Z57: 4.151
F58: 0 | G58: 43 | S58: 0 | T58: 0 | U58: 0 | V58: 0 | W58: 0 | X58: 0 | Y58: 0 | Z58: 6.568
F59: 0 | G59: 44 | S59: 0 | T59: 0 | U59: 0 | V59: 0 | W59: 0 | X59: 0 | Y59: 0 | Z59: 4.151
G60: 45
C61: MISCELLANEOUS | D61: =SUM(D62:D65) -> 1000 | E61: =SUM(E62:E65) -> 1000 | F61: =D61+E61 -> 2000 | G61: 46
D62: 1000 | E62: 1000 | F62: =SUM(D62:E62) -> 2000 | G62: 47
F63: 0 | G63: 48
A64: SF Existing Weatherization | F64: 0 | G64: 49
A65: Schedule 214 | F65: 0 | G65: 50
A66: Order Number
A67: 18230627 | C67: DIRECT BENEFIT TO CUSTOMER | D67: =W15 -> 595920 | E67: =X15 -> 471311 | F67: =D67+E67 -> 1067231
A68: Electric | C68: Ratio | D68: =D67/D12 -> 0.6148134637 | E68: =E67/E12 -> 0.558615576
C70: REVENUE | D70: 0 | E70: 0 | F70: 0

Sheet SpcHeat Detail_REM_E214 Elec
C1: SF Existing Space Heat | D1: Schedule 214 | E1: Order Number | F1: 18230628 | G1: Electric | M1: SF Existing Space Heat | N1: Schedule 214 | O1: Order Number | P1: 18230628 | Q1: Electric | U1: SF Existing Space Heat | V1: Schedule 214 | W1: Order Number | X1: 18230628 | Y1: Electric
D2: This table summarizes the subtotals in the detail table below and is used to populate 2018-2019 Sector view tables (located at the front of this workbook).
A3: SF Existing Space Heat | D3: Program Labor | E3: Marketing Labor | F3: Overhead | G3: Marketing | H3: Employee/Office Expense | I3: Outside Services | J3: Materials | K3: Miscellaneous | L3: DBtC | M3: Revenue | N3: Total Budget | O3: Total Savings
A4: Schedule 214 | C4: 2018 (Reference only) | D4: 29600 | E4: 23200 | F4: 48998.4 | G4: 228000 | H4: 3000 | I4: 0 | J4: 1000 | K4: 500 | L4: 2970000 | M4: 0 | N4: 3304298.4 | O4: 7549370
A5: Order Number | C5: Original 2019 figures | D5: =D15 -> 29600 | E5: =D21 -> 23200 | F5: =D27 -> 48998.4 | G5: =D37 -> 228000 | H5: =D43 -> 3000 | I5: =D49 -> 0 | J5: =D55 -> 1000 | K5: =D61 -> 500 | L5: =D67 -> 2970000 | M5: =D70 -> 0 | N5: =SUM(D5:M5) -> 3304298.4 | O5: =T15 -> 7549370
A6: 18230628 | C6: 2019 (Updated for 2019 ACP) | D6: =E15 -> 52800 | E6: =E21 -> 0 | F6: =E27 -> 48206.4 | G6: =E37 -> 228000 | H6: =E43 -> 3000 | I6: =E49 -> 0 | J6: =E55 -> 1000 | K6: =E61 -> 500 | L6: =E67 -> 3126600 | M6: =E70 -> 0 | N6: =SUM(D6:M6) -> 3460106.4 | O6: =U15 -> 7276125
A7: Electric
H8: All measure cost, incentive and savings figures are based on updated 2019 data. Highlighted cells indicate revisions from values presented in the 2018-2019 BCP. Lined-out measures are retired for 2019.
C10: Spending Section | H10: Savings Section | W10: Savings Section | Z10: Savings Section
C12: Overall Total | D12: =D15+D21+D27+D37+D43+D49+D55+D61+D67 -> 3304298.4 | E12: =E15+E21+E27+E37+E43+E49+E55+E61+E67 -> 3460106.4 | F12: =D12+E12 -> 6764404.8 | H12: Measure Information | Q12: Unit Totals | T12: Projected Savings | W12: Incentive Totals | Z12: 1st Year
H13: Measure Name | I13: Savings | J13: UOM | K13: Unit Type | L13: Measure Cost | M13: Incentive | N13: Support % | O13: Measure Life | P13: End Use | Q13: 2018 | R13: 2019 | S13: Combined | T13: 2018 | U13: 2019 | V13: Combined | W13: 2018 | X13: 2019 | Y13: Combined | Z13: NEBs per Unit
C14: Budget Category | D14: 2018 | E14: 2019 | F14: Total | H14: i | I14: i | K14: i | L14: i | M14: i | N14: i | O14: i | P14: i | Q14: i | R14: i | Z14: i
B15: FTE | C15: PROGRAM LABOR | D15: =SUM(D16:D19) -> 29600 | E15: =SUM(E16:E19) -> 52800 | F15: =D15+E15 -> 82400 | H15: TOTALS g | L15: =SUMPRODUCT(L16:L23,S16:S23) -> 20279585 | M15: =SUM(M16:M23) -> 6950 | N15: =SUM(N16:N65) -> 4.62 | O15: N/A | T15: =SUM(T16:T65) -> 7549370 | U15: =SUM(U16:U65) -> 7276125 | V15: 14605495 | W15: 2970000 | X15: 3126600 | Y15: =SUM(Y16:Y65) -> 6060400 | Z15: 0
B16: 0.2 | C16: Program Manager | D16: 16000 | E16: 16000 | F16: =SUM(D16:E16) -> 32000 | G16: 1 | H16: Ductless Heat Pump | I16: 2659 | J16: kWh | K16: per unit | L16: 3978 | M16: 800 | N16: 0.4226577847 | O16: 15 | P16: SF Heat Pump | Q16: 1200 | R16: 1316 | S16: =SUM(Q16:R16) -> 2516 | T16: 3190800 | U16: =R16*I16 -> 3499244 | V16: =SUM(T16:U16) -> 6690044 | W16: 960000 | X16: =R16*M16 -> 1052800 | Y16: =SUM(W16:X16) -> 2012800 | Z16: 159.04
B17: 0.1 | C17: Market Manager | D17: 8000 | E17: 8000 | F17: =SUM(D17:E17) -> 16000 | G17: 2 | H17: Ductless Heat Pump Upgrade from minimum | I17: 500 | J17: kWh | K17: per unit | L17: 750 | M17: 500 | N17: 0.03311534605 | O17: 15 | P17: SF Heat Pump | Q17: 500 | R17: 827 | S17: 1327 | T17: 250000 | U17: 413500 | V17: 663500 | W17: 250000 | X17: 413500 | Y17: 663500 | Z17: 0
B18: 0.1 | C18: Program Implementer | D18: 5600 | E18: 5600 | F18: 11200 | G18: 3 | H18: Ductless Heat Pump Manufactured Homes | I18: 3343 | J18: kWh | K18: per unit | L18: 3978 | M18: 1200 | N18: 0.1328455222 | O18: 18 | P18: SF Heat Pump | Q18: 300 | R18: 137 | S18: 437 | T18: 1002900 | U18: 457991 | V18: 1460891 | W18: 360000 | X18: 164400 | Y18: 524400 | Z18: 200.58
C19: Marketing Labor | E19: 23200 | F19: 23200 | G19: 4 | H19: Air Source Heat Pump Tier 2 | I19: 109 | J19: kWh | K19: per unit | L19: 890 | M19: 350 | O19: 15 | P19: SF Heat Pump | R19: 0 | S19: 0 | T19: 0 | U19: 0 | V19: 0 | W19: 0 | X19: 0 | Y19: 0 | Z19: 0
B20: =SUM(B16:B19) -> 0.4 | G20: 5 | H20: Air Source Heat Pump Tier 3 | I20: 939 | J20: kWh | K20: per unit | L20: 1686 | M20: 800 | N20: 0.06219061988 | O20: 15 | P20: SF Heat Pump | Q20: 500 | R20: 844 | S20: 1344 | T20: 469500 | U20: 792516 | V20: 1262016 | W20: 400000 | X20: 675200 | Y20: 1075200 | Z20: 0
B21: FTE | C21: MARKETING LABOR | D21: =SUM(D22:D25) -> 23200 | E21: =SUM(E22:E25) -> 0 | F21: =D21+E21 -> 23200 | G21: 6 | H21: FAF to Heat Pump Conversion | I21: 3528 | J21: kWh | K21: per unit | L21: 4859 | M21: 1500 | N21: 0.2336618817 | O21: 15 | P21: SF Heat Pump | Q21: 500 | R21: 493 | S21: 993 | T21: 1764000 | U21: 1739304 | V21: 3503304 | W21: 750000 | X21: 739500 | Y21: 1489500 | Z21: 0
D22: 23200 | E22: 0 | F22: =SUM(D22:E22) -> 23200 | G22: 7 | H22: Heat Pump Sizing and Lock out | I22: 650 | J22: kWh | K22: per unit | L22: 567 | M22: 300 | N22: 0.05596493482 | O22: 15 | P22: SF Heat Pump | Q22: 650 | R22: 0 | S22: 650 | T22: 422500 | U22: 0 | V22: 422500 | W22: 195000 | X22: 0 | Y22: 195000 | Z22: 0
F23: 0 | G23: 8 | H23: Geothermal Heat Pump | I23: 4037 | J23: kWh | K23: per unit | L23: 3889 | M23: 1500 | N23: 0.00534746608 | O23: 15 | P23: SF Heat Pump | Q23: 10 | R23: 10 | S23: 20 | T23: 40370 | U23: 40370 | V23: 80740 | W23: 15000 | X23: 15000 | Y23: 30000 | Z23: 0
F24: 0 | G24: 9 | H24: A-19 - LED - TY Kit | I24: 11.32 | J24: kWh | K24: per unit | L24: 3 | M24: 3 | N24: 0.01499462869 | O24: 12 | P24: Res Lighting | Q24: 10000 | R24: 10000 | S24: 20000 | T24: 113200 | U24: =R24*I24 -> 113200 | V24: =SUM(T24:U24) -> 226400 | W24: 30000 | X24: =R24*M24 -> 30000 | Y24: =SUM(W24:X24) -> 60000 | Z24: 0
F25: 0 | G25: 10 | H25: Aerator - Bath 1.0 GPM - TY Kit | I25: 29.61 | J25: kWh | K25: per unit | L25: 1 | M25: 1 | N25: 0.03922181586 | O25: 10 | P25: Res Water Heat | Q25: 10000 | R25: 0 | S25: 10000 | T25: 296100 | U25: 0 | V25: 296100 | W25: 10000 | X25: 0 | Y25: 10000 | Z25: 1.62
B26: =SUM(B22:B25) -> 0 | G26: 11 | H26: Aerator - Bath - Engagement - EO - Any WH - 1.0 gpm - Thank You kit | I26: 12 | J26: kWh | K26: per unit | L26: No | M26: 1.81 | N26: 1.81 | O26: 10 | P26: Res Water Heat | R26: 10000 | U26: 120000 | X26: 18100
C27: TOTAL OVERHEAD | D27: =SUM(D29:D31)+SUM(D33:D35) -> 48998.4 | E27: =SUM(E29:E31)+SUM(E33:E35) -> 48206.4 | F27: =D27+E27 -> 97204.8 | G27: 12 | H27: Aerator - Bath - Engagement - C - Any WH - 1.0 gpm -Thank You kit | I27: 10 | J27: kWh | K27: per unit | L27: Yes | M27: 1.81 | N27: 1.81 | O27: 10 | P27: Res Water Heat | R27: 10000 | U27: 100000 | X27: 18100
C28: Labor Overhead Rate | D28: ='Global Figures Reference'!$D$5 -> 0.688 | E28: ='Global Figures Reference'!$E$5 -> 0.683 | G28: 13
C29: Program Staff Overhead | D29: =D15*D28 -> 20364.8 | E29: =E15*E28 -> 36062.4 | F29: =SUM(D29:E29) -> 56427.2 | G29: 14
C30: Marketing Staff Overhead | D30: =D21*D28 -> 15961.6 | E30: =E21*E28 -> 0 | F30: 15961.6 | G30: 15
F31: 0 | G31: 16
C32: Micro Overhead Rate | D32: ='Global Figures Reference'!$D$6 -> 0.24 | E32: ='Global Figures Reference'!$E$6 -> 0.23 | G32: 17
C33: Program Staff Overhead | D33: =D15*D32 -> 7104 | E33: =E15*E32 -> 12144 | F33: =SUM(D33:E33) -> 19248 | G33: 18
A34: SF Existing Space Heat | C34: Marketing Staff Overhead | D34: =D21*D32 -> 5568 | E34: =E21*E32 -> 0 | F34: =SUM(D34:E34) -> 5568 | G34: 19
A35: Schedule 214 | G35: 20
A36: Order Number | G36: 21
A37: 18230628 | C37: MARKETING | D37: =SUM(D38:D41) -> 228000 | E37: =SUM(E38:E41) -> 228000 | F37: =D37+E37 -> 456000 | G37: 22
A38: Electric | D38: 228000 | E38: 228000 | F38: =SUM(D38:E38) -> 456000 | G38: 23
F39: 0 | G39: 24
F40: 0 | G40: 25
F41: 0 | G41: 26
G42: 27
C43: EMPLOYEE/OFFICE EXPENSES | D43: =SUM(D44:D47) -> 3000 | E43: =SUM(E44:E47) -> 3000 | F43: =D43+E43 -> 6000 | G43: 28
D44: 3000 | E44: 3000 | F44: =SUM(D44:E44) -> 6000 | G44: 29
F45: 0 | G45: 30
F46: 0 | G46: 31
F47: 0 | G47: 32
G48: 33
C49: OUTSIDE SERVICES | D49: =SUM(D50:D53) -> 0 | E49: =SUM(E50:E53) -> 0 | F49: =D49+E49 -> 0 | G49: 34
F50: =SUM(D50:E50) -> 0 | G50: 35
F51: 0 | G51: 36
F52: 0 | G52: 37
F53: 0 | G53: 38
G54: 39
C55: MATERIALS | D55: =SUM(D56:D59) -> 1000 | E55: =SUM(E56:E59) -> 1000 | F55: =D55+E55 -> 2000 | G55: 40
D56: 1000 | E56: 1000 | F56: =SUM(D56:E56) -> 2000 | G56: 41
F57: 0 | G57: 42
F58: 0 | G58: 43
F59: 0 | G59: 44
G60: 45
C61: MISCELLANEOUS | D61: =SUM(D62:D65) -> 500 | E61: =SUM(E62:E65) -> 500 | F61: =D61+E61 -> 1000 | G61: 46
D62: 500 | E62: 500 | F62: =SUM(D62:E62) -> 1000 | G62: 47
F63: 0 | G63: 48
A64: SF Existing Space Heat | F64: 0 | G64: 49
A65: Schedule 214 | F65: 0 | G65: 50
A66: Order Number
A67: 18230628 | C67: DIRECT BENEFIT TO CUSTOMER | D67: =W15 -> 2970000 | E67: =X15 -> 3126600 | F67: =D67+E67 -> 6096600
A68: Electric | C68: Ratio | D68: =D67/D12 -> 0.8988292341 | E68: =E67/E12 -> 0.9036138311
C70: REVENUE | D70: 0 | E70: 0 | F70: 0

Sheet SFRental_REM_E214 Elec
D1: Single Family Rental | E1: Residential | F1: Schedule 214 | G1: Order Number | H1: 18230525 | I1: Electric | M1: Single Family Rental | N1: Residential | O1: Schedule 214 | P1: Order Number | Q1: 18230525 | R1: Electric
D2: This table summarizes the subtotals in the detail table below and is used to populate 2018-2019 Sector view tables (located at the front of this workbook).
A3: Single Family Rental | D3: Labor | E3: Marketing Labor | F3: Overhead | G3: Marketing | H3: Employee/Office Expense | I3: Outside Services | J3: Materials | K3: Miscellaneous | L3: DBtC | M3: Revenue | N3: Total Budget | O3: Total Savings
A4: Residential | C4: 2018 (Reference only) | D4: 7200 | E4: 5600 | F4: 11878.4 | G4: 15000 | H4: 250 | I4: 70000 | J4: 0 | K4: 0 | L4: 0 | M4: 0 | N4: 109928.4 | O4: 0
A5: Schedule 214 | C5: Original 2019 figures | D5: =D15 -> 7200 | E5: =D21 -> 5600 | F5: =D27 -> 11878.4 | G5: =D37 -> 15000 | H5: =D43 -> 250 | I5: =D49 -> 70000 | J5: =D55 -> 0 | K5: =D61 -> 0 | L5: =D67 -> 0 | M5: =D70 -> 0 | N5: =SUM(D5:M5) -> 109928.4 | O5: =T17 -> 0
A6: Order Number | C6: 2019 (Updated for 2019 ACP) | D6: =E15 -> 12800 | E6: =E21 -> 0 | F6: =E27 -> 11686.4 | G6: =E37 -> 10000 | H6: =E43 -> 100 | I6: =E49 -> 70000 | J6: =E55 -> 0 | K6: =E61 -> 0 | L6: =E67 -> 0 | M6: =E70 -> 0 | N6: =SUM(D6:M6) -> 104586.4 | O6: =U17 -> 0
A7: 18230525
A8: Electric | L8: Requires Budget team
H9: All measure cost, incentive and savings figures are based on updated 2019 data. Highlighted cells indicate revisions from values presented in the 2018-2019 BCP. Lined-out measures are retired for 2019. | L9: approval to use.
C12: Overall Total | D12: =D15+D21+D27+D37+D43+D49+D55+D61+D67 -> 109928.4 | E12: =E15+E21+E27+E37+E43+E49+E55+E61+E67 -> 104586.4 | F12: =D12+E12 -> 214514.8 | H12: Savings Section | W12: Savings Section | Z12: Savings Section
C14: Budget Category | D14: 2018 | E14: 2019 | F14: Total | H14: Measure Information | Q14: Unit Totals | T14: Projected Savings | W14: Incentive Totals | Z14: 1st Year
B15: FTE | C15: LABOR | D15: =SUM(D16:D19) -> 7200 | E15: =SUM(E16:E19) -> 12800 | F15: =SUM(F16:F19) -> 20000 | H15: Measure Name | I15: Savings | J15: UOM | K15: Unit Type | L15: Measure Cost | M15: Incentive | N15: Support % | O15: Measure Life | P15: End Use | Q15: 2018 | R15: 2019 | S15: Combined | T15: 2018 | U15: 2019 | V15: Combined | W15: 2018 | X15: 2019 | Y15: Combined | Z15: NEBs per Unit
B16: 0.02 | C16: Market Manager | D16: 1600 | E16: 1600 | F16: =SUM(D16:E16) -> 3200 | H16: i | I16: i | K16: i | L16: i | M16: i | N16: i | O16: i | P16: i | Q16: i | R16: i | Z16: i
B17: 0.05 | C17: Program Coordinator | D17: 2800 | E17: 2800 | F17: =SUM(D17:E17) -> 5600 | H17: TOTALS g | L17: =SUMPRODUCT(L18:L25,S18:S25) -> 0 | M17: =SUM(M18:M25) -> 0 | N17: =SUM(N18:N67) -> 0 | O17: N/A | T17: =SUM(T18:T67) -> 0 | U17: 0 | V17: 0 | W17: 0 | X17: 0 | Y17: 0 | Z17: 0
B18: 0.05 | C18: Program Implementer | D18: 2800 | E18: 2800 | F18: =SUM(D18:E18) -> 5600 | S18: =SUM(Q18:R18) -> 0 | T18: =Q18*I18 -> 0 | U18: =R18*I18 -> 0 | V18: =SUM(T18:U18) -> 0 | W18: =Q18*M18 -> 0 | X18: =R18*M18 -> 0 | Y18: =SUM(W18:X18) -> 0 | Z18: 0
C19: Marketing | E19: 5600 | F19: =SUM(D19:E19) -> 5600 | S19: 0 | T19: =Q19*I19 -> 0 | U19: 0 | V19: 0 | W19: =Q19*M19 -> 0 | X19: 0 | Y19: 0 | Z19: 0
B20: =SUM(B16:B19) -> 0.12 | S20: 0 | T20: 0 | U20: 0 | V20: 0 | W20: 0 | X20: 0 | Y20: 0 | Z20: 0
C21: MARKETING LABOR | D21: =SUM(D22:D25) -> 5600 | E21: =SUM(E22:E25) -> 0 | F21: =SUM(F22:F25) -> 5600 | S21: 0 | T21: 0 | U21: 0 | V21: 0 | W21: 0 | X21: 0 | Y21: 0 | Z21: 0
D22: 5600 | E22: 0 | F22: =SUM(D22:E22) -> 5600 | S22: 0 | T22: 0 | U22: 0 | V22: 0 | W22: 0 | X22: 0 | Y22: 0 | Z22: 0
F23: =SUM(D23:E23) -> 0 | S23: 0 | T23: 0 | U23: 0 | V23: 0 | W23: 0 | X23: 0 | Y23: 0 | Z23: 0
F24: =SUM(D24:E24) -> 0 | S24: 0 | T24: 0 | U24: 0 | V24: 0 | W24: 0 | X24: 0 | Y24: 0 | Z24: 0
F25: =SUM(D25:E25) -> 0 | S25: 0 | T25: 0 | U25: 0 | V25: 0 | W25: 0 | X25: 0 | Y25: 0
C27: OVERHEAD | D27: =SUM(D29:D31)+SUM(D33:D35) -> 11878.4 | E27: =SUM(E29:E31)+SUM(E33:E35) -> 11686.4 | F27: =SUM(F29:F35) -> 23564.8
C28: Labor Overhead Rate | D28: ='Global Figures Reference'!$D$5 -> 0.688 | E28: ='Global Figures Reference'!$E$5 -> 0.683
C29: Program Staff Overhead | D29: =D15*D28 -> 4953.6 | E29: =E15*E28 -> 8742.4 | F29: =SUM(D29:E29) -> 13696
C30: Marketing Staff Overhead | D30: =D21*D28 -> 3852.8 | E30: =E21*E28 -> 0 | F30: =SUM(D30:E30) -> 3852.8
F31: =SUM(D31:E31) -> 0
C32: Micro Overhead Rate | D32: ='Global Figures Reference'!$D$6 -> 0.24 | E32: ='Global Figures Reference'!$E$6 -> 0.23
C33: Program Staff Overhead | D33: =D15*D32 -> 1728 | E33: =E15*E32 -> 2944 | F33: =SUM(D33:E33) -> 4672
C34: Marketing Staff Overhead | D34: =D21*D32 -> 1344 | E34: =E21*E32 -> 0 | F34: =SUM(D34:E34) -> 1344
A35: Single Family Rental | F35: =SUM(D35:E35) -> 0
A36: Residential
A37: Schedule 214 | C37: MARKETING | D37: =SUM(D38:D41) -> 15000 | E37: =SUM(E38:E41) -> 10000 | F37: =D37+E37 -> 25000
A38: Order Number | D38: 15000 | E38: 10000 | F38: =D38+E38 -> 25000
A39: 18230525 | F39: =D39+E39 -> 0
A40: Electric | F40: 0
F41: 0
C43: EMPLOYEE/OFFICE EXPENSES | D43: =SUM(D44:D47) -> 250 | E43: =SUM(E44:E47) -> 100 | F43: =SUM(D43:E43) -> 350
C44: Parking, tolls, travel | D44: 250 | E44: 100 | F44: =SUM(D44:E44) -> 350
F45: 0
F46: 0
F47: 0
C49: OUTSIDE SERVICES | D49: =SUM(D50:D53) -> 70000 | E49: =SUM(E50:E53) -> 70000 | F49: 140000
C50: Customer Acquisition Management | D50: 70000 | E50: 70000 | F50: 140000
F51: 0
F52: 0
F53: 0
C55: MATERIALS | D55: =SUM(D56:D59) -> 0 | E55: =SUM(E56:E59) -> 0 | F55: 0
F56: 0
F57: 0
F58: 0
F59: 0
C61: MISCELLANEOUS | D61: =SUM(D62:D65) -> 0 | E61: =SUM(E62:E65) -> 0 | F61: =SUM(D61:E61) -> 0
F62: =SUM(D62:E62) -> 0
F63: =D63+E63 -> 0
F64: =SUM(D64:E64) -> 0
F65: 0
C67: DIRECT BENEFIT TO CUSTOMER | D67: =D68 -> 0 | E67: =E68 -> 0
D68: =W17 -> 0 | E68: =X17 -> 0
C70: REVENUE

Sheet HmAppplc_Detail_REM_E214 Elec
C1: Home Appliances | D1: Schedule 214 | E1: Order Number | F1: 18230434 | G1: Electric | M1: Home Appliances | N1: Schedule 214 | O1: Order Number | P1: 18230434 | Q1: Electric | V1: Home Appliances | W1: Schedule 214 | X1: Order Number | Y1: 18230434 | Z1: Electric
D2: This table summarizes the subtotals in the detail table below and is used to populate 2019 Sector view tables (located at the front of this workbook).
A3: Home Appliances | D3: Program Labor | E3: Marketing Labor | F3: Overhead | G3: Marketing | H3: Employee/Office Expense | I3: Outside Services | J3: Materials | K3: Miscellaneous | L3: DBtC | M3: Revenue | N3: Total Budget | O3: Total Savings
A4: Schedule 214 | C4: 2018 (Reference only) | D4: 68800 | E4: 39200 | F4: 100224 | G4: 205781 | H4: 1000 | I4: 95000 | J4: 1000 | K4: 500 | L4: 1862939.2 | M4: 0 | N4: 2374444.2 | O4: 6172402.75
A5: Order Number | C5: Original 2019 figures | D5: =D15 -> 68800 | E5: =D21 -> 39200 | F5: =D27 -> 100224 | G5: =D37 -> 205781 | H5: =D43 -> 1000 | I5: =D49 -> 95000 | J5: =D56 -> 1000 | K5: =D62 -> 500 | L5: =D68 -> 1862939.2 | M5: =D71 -> 0 | N5: =SUM(D5:M5) -> 2374444.2 | O5: =U15 -> 6172402.75
A6: 18230434 | C6: 2019 (Updated for 2019 ACP) | D6: =E15 -> 80000 | E6: =E21 -> 0 | F6: =E27 -> 73040 | G6: =E37 -> 110000 | H6: =E43 -> 1000 | I6: =E49 -> 137000 | J6: =E56 -> 1000 | K6: =E62 -> 500 | L6: =E68 -> 447485 | M6: =E71 -> 0 | N6: =SUM(D6:M6) -> 850025 | O6: =V15 -> 2047790
A7: Electric
H8: All measure cost, incentive and savings figures are based on updated 2019 data. Highlighted cells indicate revisions from values presented in the 2018-2019 BCP. Lined-out measures are retired for 2019.
C10: Spending Section | H10: Savings Section | W10: Savings Section | Z10: Savings Section
C12: Overall Total | D12: =D15+D21+D27+D37+D43+D49+D56+D62+D68 -> 2374444.2 | E12: =E15+E21+E27+E37+E43+E49+E56+E62+E68 -> 850025 | F12: =D12+E12 -> 3224469.2 | H12: Measure Information | R12: Unit Totals | U12: Projected Savings | X12: Incentive Totals | AA12: First-year NEBs per unit
H13: Measure Name | I13: Savings | J13: UOM | K13: Unit Type | L13: Dual Fuel? | M13: Measure Cost | N13: Incentive | O13: Support % | P13: Measure Life | Q13: End Use | R13: 2018 | S13: 2019 | T13: Combined | U13: 2018 | V13: 2019 | W13: Combined | X13: 2018 | Y13: 2019 | Z13: Combined
C14: Budget Category | D14: 2018 | E14: 2019 | F14: Total | H14: i | I14: i | K14: i | M14: i | N14: i | O14: i | P14: i | Q14: i | R14: i | S14: i | AA14: i
B15: FTE | C15: PROGRAM LABOR | D15: =SUM(D16:D19) -> 68800 | E15: =SUM(E16:E19) -> 80000 | F15: =D15+E15 -> 148800 | H15: TOTALS g | M15: =SUMPRODUCT(M16:M46,T16:T46) -> 2779501.5 | N15: =SUM(N16:N46) -> 2056.54 | O15: =SUM(O16:O66) -> 1 | P15: N/A | U15: =SUM(U16:U66) -> 6172402.75 | V15: =SUM(V16:V66) -> 2047790 | W15: =SUM(W16:W66) -> 8220192.75 | X15: =SUM(X16:X66) -> 1862939.2 | Y15: 447485 | Z15: 2310424.2
B16: 0.65 | C16: Program Coordinator | D16: 52000 | E16: 24000 | F16: =SUM(D16:E16) -> 76000 | G16: 1 | H16: Advanced Power Strips | I16: 216 | J16: kWh | K16: per unit | L16: No | M16: 37 | N16: 45 | O16: 0.2083207352 | P16: 5 | Q16: Res Plug Load | R16: 0 | S16: 0 | T16: =SUM(R16:S16) -> 0 | U16: 0 | V16: =S16*I16 -> 0 | W16: =SUM(U16:V16) -> 0 | X16: 0 | Y16: =S16*N16 -> 0 | Z16: =SUM(X16:Y16) -> 0 | AA16: 0
B17: 0.07 | C17: Market Manager | D17: 5600 | E17: 5600 | F17: =SUM(D17:E17) -> 11200 | G17: 2 | H17: Energy Star Freezer | I17: 23 | J17: kWh | K17: per unit | L17: No | M17: 59.88 | N17: 39.68 | O17: 0.003549168082 | P17: 22 | Q17: Res Refrigerator | R17: 0 | S17: 0 | T17: =SUM(R17:S17) -> 0 | U17: 0 | V17: 0 | W17: =SUM(U17:V17) -> 0 | X17: 0 | Y17: =S17*N17 -> 0 | Z17: =SUM(X17:Y17) -> 0 | AA17: 0
B18: 0.2 | C18: Program Implementer | D18: 11200 | E18: 11200 | F18: 22400 | G18: 3 | H18: Energy Star Refrigerator | I18: 39 | J18: kWh | K18: per unit | L18: No | M18: 100.23 | N18: 25 | O18: 0.03009077287 | P18: 15 | Q18: Res Refrigerator | R18: 1000 | S18: 0 | T18: =SUM(R18:S18) -> 1000 | U18: 39000 | V18: 0 | W18: =SUM(U18:V18) -> 39000 | X18: 39680 | Y18: 0 | Z18: 39680 | AA18: 0
C19: Marketing | E19: 39200 | F19: 39200 | G19: 4 | H19: Clothes Washer - Energy Star - Front Load -Any WH - Any Dryer - C - kWh | I19: 142 | J19: kWh | K19: per unit | L19: Yes | M19: 65.56 | N19: 25 | O19: 0.1185113516 | P19: 14 | Q19: Res Water Heat | R19: 4700 | S19: 1000 | T19: 5700 | U19: 300800 | V19: 142000 | W19: 442800 | X19: 186496 | Y19: 25000 | Z19: 211496 | AA19: 17.06
B20: =SUM(B16:B19) -> 0.92 | G20: 5 | H20: Clothes Washer - Energy Star - Front Load - Any WH - Any Dryer - EO | I20: 142 | J20: kWh | K20: per unit | L20: No | M20: 65.56 | N20: 25 | O20: 0.0888835137 | P20: 14 | Q20: Res Water Heat | R20: 7900 | S20: 1000 | T20: 8900 | U20: 505600 | V20: 142000 | W20: 647600 | X20: 313472 | Y20: 25000 | Z20: 338472 | AA20: 17.06
B21: FTE | C21: MARKETING LABOR | D21: =SUM(D22:D25) -> 39200 | E21: =SUM(E22:E25) -> 0 | F21: =D21+E21 -> 39200 | G21: 6 | H21: Clothes Dryer - Vented | I21: 192 | J21: kWh | K21: per unit | L21: No | M21: 386.45 | N21: 50 | O21: 0.0028239033 | P21: 12 | Q21: Res Plug Load | R21: 40 | S21: 200 | T21: 240 | U21: 4880 | V21: 38400 | W21: 43280 | X21: 2587.2 | Y21: 10000 | Z21: 12587.2 | AA21: -0.24
D22: 39200 | E22: 0 | F22: =SUM(D22:E22) -> 39200 | G22: 7 | H22: Clothes Dryer - Ventless | I22: 238 | J22: kWh | K22: per unit | L22: No | M22: 386.45 | N22: 50 | O22: 0.005277458626 | P22: 12 | Q22: Res Plug Load | R22: 200 | S22: 10 | T22: 210 | U22: 33400 | V22: 2380 | W22: =SUM(U22:V22) -> 35780 | X22: 12936 | Y22: =S22*N22 -> 500 | Z22: =SUM(X22:Y22) -> 13436 | AA22: 3.91
F23: 0 | G23: 8 | H23: Clothes Dryer - Vented - Energy Star | I23: 68 | J23: kWh | K23: per unit | L23: No | M23: 20.44 | N23: 25 | O23: 0.04305295195 | P23: 12 | Q23: Res Plug Load | R23: 5000 | S23: 1500 | T23: 6500 | U23: 465000 | V23: 102000 | W23: 567000 | X23: 198400 | Y23: 37500 | Z23: 235900 | AA23: -0.08
F24: 0 | G24: 9 | H24: Clothes Dryer - Ventless - Energy Star | I24: 118 | J24: kWh | K24: per unit | L24: No | M24: 184.88 | N24: 25 | O24: 0.002719742932 | P24: 12 | Q24: Res Plug Load | R24: 100 | S24: 100 | T24: 200 | U24: 14100 | V24: 11800 | W24: 25900 | X24: 3968 | Y24: 2500 | Z24: 6468 | AA24: 4.46
F25: 0 | G25: 10 | H25: Freezer Decomm | I25: 334 | J25: kWh | K25: per unit | L25: No | M25: 120 | N25: 120 | O25: 0.08564296893 | P25: 6 | Q25: Res Refrigerator | R25: 3600 | S25: 500 | T25: 4100 | U25: 1598400 | V25: 167000 | W25: 1765400 | X25: 468000 | Y25: 60000 | Z25: 528000 | AA25: 15.4
B26: =SUM(B22:B25) -> 0 | G26: 11 | H26: Refrigerator Decomm | I26: 411 | J26: kWh | K26: per unit | L26: No | M26: 120 | N26: 120 | O26: 0.2229803425 | P26: 5 | Q26: Res Refrigerator | R26: 3000 | S26: 1000 | T26: 4000 | U26: 867000 | V26: 411000 | W26: 1278000 | X26: 390000 | Y26: 120000 | Z26: 510000 | AA26: 16.58
C27: TOTAL OVERHEAD | D27: =SUM(D29:D31)+SUM(D33:D35) -> 100224 | E27: =SUM(E29:E31)+SUM(E33:E35) -> 73040 | F27: =D27+E27 -> 173264 | G27: 12 | H27: Clothes Washer Replacement Electric WH / Electric Dryer - Frontload | I27: 848 | J27: kWh | K27: per unit | L27: No | M27: 717 | N27: 717 | O27: 0.008178517754 | P27: 11 | Q27: Res Water Heat | R27: 0 | S27: 0 | T27: 0 | U27: 0 | V27: 0 | W27: 0 | X27: 0 | Y27: 0 | Z27: 0 | AA27: 11.61
C28: Labor Overhead Rate | D28: ='Global Figures Reference'!$D$5 -> 0.688 | E28: ='Global Figures Reference'!$E$5 -> 0.683 | G28: 13 | H28: Clothes Washer Replacement Electric WH / Electric Dryer - Top load | I28: 809 | J28: kWh | K28: per unit | L28: No | M28: 700 | N28: 700 | O28: 0.01560476619 | P28: 11 | Q28: Res Water Heat | R28: 0 | S28: 0 | T28: 0 | U28: 0 | V28: 0 | W28: 0 | X28: 0 | Y28: 0 | Z28: 0 | AA28: 11.61
C29: Program Staff Overhead | D29: =D15*D28 -> 47334.4 | E29: =E15*E28 -> 54640 | F29: =SUM(D29:E29) -> 101974.4 | G29: 14 | H29: Lamp - LED - Engagement - APPD | I29: 11.32 | J29: kWh | K29: per unit | L29: No | M29: 2 | N29: 2 | O29: 0.01091754964 | P29: 12 | Q29: Res Lighting | R29: 39000 | S29: 1500 | T29: 40500 | U29: 441480 | V29: 16980 | W29: 458460 | X29: 78000 | Y29: 3000 | Z29: 81000 | AA29: 0
C30: Marketing Staff Overhead | D30: =D21*D28 -> 26969.6 | E30: =E21*E28 -> 0 | F30: 26969.6 | G30: 15 | H30: Lamp - LED - Engagement - APPR | I30: 11.32 | J30: kWh | K30: per unit | L30: No | M30: 2 | N30: 2 | O30: 0.0003275264893 | P30: 12 | Q30: Res Lighting | R30: 0 | S30: 0 | T30: 0 | U30: 0 | V30: 0 | W30: 0 | X30: 0 | Y30: 0 | Z30: 0 | AA30: 0
F31: 0 | G31: 16 | H31: Showerhead - Engagement - EO - 1.5 gpm - APPD | I31: 74.1 | J31: kWh | K31: per unit | L31: No | M31: 10 | N31: 10 | O31: 0.04287935134 | P31: 10 | Q31: Res Water Heat | R31: 5125 | S31: 1000 | T31: 6125 | U31: 379762.5 | V31: 74100 | W31: 453862.5 | X31: 51250 | Y31: 10000 | Z31: 61250 | AA31: 14.31
C32: Micro Overhead Rate | D32: ='Global Figures Reference'!$D$6 -> 0.24 | E32: ='Global Figures Reference'!$E$6 -> 0.23 | G32: 17 | H32: Showerhead - Engagement - EO - 1.5 gpm - APPR | I32: 74.1 | J32: kWh | K32: per unit | L32: No | M32: 10 | N32: 10 | O32: 0.002143967567 | P32: 10 | Q32: Res Water Heat | R32: 0 | S32: 0 | T32: 0 | U32: 0 | V32: 0 | W32: 0 | X32: 0 | Y32: 0 | Z32: 0 | AA32: 14.31
C33: Program Staff Overhead | D33: =D15*D32 -> 16512 | E33: =E15*E32 -> 18400 | F33: =SUM(D33:E33) -> 34912 | G33: 18 | H33: Showerhead - Engagement - C - 1.5 gpm - APPD | I33: 61.3 | J33: kWh | K33: per unit | L33: Yes | M33: 10 | N33: 10 | O33: 0.03547239186 | P33: 10 | Q33: Res Water Heat | R33: 1475 | S33: 500 | T33: 1975 | U33: 90417.5 | V33: 30650 | W33: 121067.5 | X33: 14750 | Y33: 5000 | Z33: 19750 | AA33: 10.01
A34: Home Appliances | C34: Marketing Staff Overhead | D34: =D21*D32 -> 9408 | E34: =E21*E32 -> 0 | F34: =SUM(D34:E34) -> 9408 | G34: 19 | H34: Showerhead - Engagement - C - 1.5 gpm - APPR | I34: 61.3 | J34: kWh | K34: per unit | L34: Yes | M34: 10 | N34: 10 | O34: 0 | P34: 10 | Q34: Res Water Heat | R34: 0 | S34: 0 | T34: 0 | U34: 0 | V34: 0 | W34: 0 | X34: 0 | Y34: 0 | Z34: 0 | AA34: 10.01
A35: Schedule 214 | F35: 0 | G35: 20 | H35: Aerator - Bath - Engagement - EO - Any WH - 1.0 gpm - APPD | I35: 12 | J35: kWh | K35: per unit | L35: No | M35: 1.81 | N35: 1.81 | O35: 0.02855730079 | P35: 10 | Q35: Res Water Heat | R35: 42700 | S35: 2000 | T35: 44700 | U35: 1264347 | V35: 24000 | W35: 1288347 | X35: 85400 | Y35: 3620 | Z35: 89020 | AA35: 1.99
A36: Order Number | G36: 21 | H36: Aerator - Bath - Engagement - EO - Any WH - 1.0 gpm - APPR | I36: 29.61 | J36: kWh | K36: per unit | L36: No | M36: 2 | N36: 2 | O36: 0.001713438047 | P36: 10 | Q36: Res Water Heat | R36: 0 | S36: 0 | T36: 0 | U36: 0 | V36: 0 | W36: 0 | X36: 0 | Y36: 0 | Z36: 0 | AA36: 1.62
A37: 18230434 | C37: MARKETING | D37: =SUM(D38:D41) -> 205781 | E37: =SUM(E38:E41) -> 110000 | F37: =D37+E37 -> 315781 | G37: 22 | H37: Aerator - Bath - Engagement - C - Any WH - 1.0 gpm - APPD | I37: 10 | J37: kWh | K37: per unit | L37: Yes | M37: 1.81 | N37: 1.81 | O37: 0.0236193278 | P37: 10 | Q37: Res Water Heat | R37: 2400 | S37: 1000 | T37: 3400 | U37: 58776 | V37: 10000 | W37: =SUM(U37:V37) -> 68776 | X37: 4800 | Y37: =S37*N37 -> 1810 | Z37: =SUM(X37:Y37) -> 6610 | AA37: 1.39
A38: Electric | C38: Advertising;Claymation,General,Social | D38: 145781 | E38: 50000 | F38: =SUM(D38:E38) -> 195781 | G38: 23 | H38: Aerator - Bath - Engagement - C - Any WH - 1.0 gpm - APPR | I38: 24.49 | J38: kWh | K38: per unit | L38: Yes | M38: 2 | N38: 2 | O38: 0 | P38: 10 | Q38: Res Water Heat | R38: 0 | S38: 0 | T38: 0 | U38: 0 | V38: 0 | W38: 0 | X38: 0 | Y38: 0 | Z38: 0 | AA38: 1.134
C39: Campaigns; Upgrades & Cross-Sell | D39: 60000 | E39: 60000 | F39: 120000 | G39: 24 | H39: Aerator - Kitchen - Engagement - EO - Any WH - 1.5 gpm - APPD | I39: 19 | J39: kWh | K39: per unit | L39: No | M39: 1.81 | N39: 1.81 | O39: 0.00998203523 | P39: 10 | Q39: Res Water Heat | R39: 5125 | S39: 1000 | T39: 6125 | U39: 88406.25 | V39: 19000 | W39: 107406.25 | X39: 10250 | Y39: 1810 | Z39: 12060 | AA39: 2.8
F40: 0 | G40: 25 | H40: Aerator - Kitchen - Engagement - EO - Any WH - 1.5 gpm - APPR | I40: 17.25 | J40: kWh | K40: per unit | L40: No | M40: 2 | N40: 2 | O40: 0.0004991017615 | P40: 10 | Q40: Res Water Heat | R40: 0 | S40: 0 | T40: 0 | U40: 0 | V40: 0 | W40: 0 | X40: 0 | Y40: 0 | Z40: 0 | AA40: 1.062
F41: 0 | G41: 26 | H41: Aerator - Kitchen - Engagement - C - Any WH - 1.5 gpm - APPD | I41: 16 | J41: kWh | K41: per unit | L41: Yes | M41: 1.81 | N41: 1.81 | O41: 0.00825181579 | P41: 10 | Q41: Res Water Heat | R41: 1475 | S41: 500 | T41: =SUM(R41:S41) -> 1975 | U41: 21033.5 | V41: 8000 | W41: =SUM(U41:V41) -> 29033.5 | X41: 2950 | Y41: =S41*N41 -> 905 | Z41: =SUM(X41:Y41) -> 3855 | AA41: 1.96
G42: 27 | H42: Aerator - Kitchen - Engagement - C - Any WH - 1.5 gpm - APPR | I42: 14.26 | J42: kWh | K42: per unit | L42: Yes | M42: 2 | N42: 2 | O42: 0 | P42: 10 | Q42: Res Water Heat | R42: 0 | S42: 0 | T42: 0 | U42: =R42*I42 -> 0 | V42: 0 | W42: 0 | X42: 0 | Y42: 0 | Z42: 0 | AA42: 0.74
C43: EMPLOYEE/OFFICE EXPENSES | D43: =SUM(D44:D47) -> 1000 | E43: =SUM(E44:E47) -> 1000 | F43: =D43+E43 -> 2000 | G43: 28 | H43: Lamp - LED - Thank You kit | I43: 11.32 | J43: kWh | K43: per unit | M43: 2 | N43: 2 | P43: 12 | S43: 14000 | T43: 14000 | U43: 0 | V43: 158480 | W43: 158480 | X43: 0 | Y43: 28000 | Z43: 28000 | AA43: 0
C44: Employee Expense Budget | D44: 1000 | E44: 1000 | F44: =SUM(D44:E44) -> 2000 | G44: 29 | H44: Aerator - Bath - Engagement - EO - Any WH - 1.0 gpm - Thank You kit | I44: 12 | J44: kWh | K44: per unit | M44: 1.81 | N44: 1.81 | P44: 10 | S44: 9000 | T44: 9000 | U44: 0 | V44: 108000 | W44: 108000 | X44: 0 | Y44: 16290 | Z44: 16290 | AA44: 1.99
F45: 0 | G45: 30 | H45: Aerator - Bath - Engagement - C - Any WH - 1.0 gpm -Thank You kit | I45: 10 | J45: kWh | K45: per unit | M45: 1.81 | N45: 1.81 | P45: 10 | S45: 5000 | T45: 5000 | U45: 0 | V45: 50000 | W45: 50000 | X45: 0 | Y45: 9050 | Z45: 9050 | AA45: 1.39
F46: 0 | G46: 31 | H46: Clothes Washer - Tier 2 or higher - Front Load -Any WH - Any Dryer - C - kWh | I46: 152 | J46: kWh | K46: per unit | M46: 59.53 | N46: 25 | P46: 14 | S46: 1500 | T46: 1500 | U46: 0 | V46: 228000 | W46: 228000 | X46: 0 | Y46: 37500 | Z46: 37500 | AA46: 16.43
F47: 0 | G47: 32 | H47: Clothes Washer - Tier 2 or higher - Front Load - Any WH - Any Dryer - EO | I47: 152 | J47: kWh | K47: per unit | M47: 59.53 | N47: 25 | P47: 14 | S47: 2000 | T47: 2000 | U47: 0 | V47: =S47*I47 -> 304000 | W47: =SUM(U47:V47) -> 304000 | X47: =R47*N47 -> 0 | Y47: =S47*N47 -> 50000 | Z47: =SUM(X47:Y47) -> 50000 | AA47: 16.43
G48: 33 | X48: 0
C49: OUTSIDE SERVICES | D49: =SUM(D50:D54) -> 95000 | E49: =SUM(E50:E54) -> 137000 | F49: =D49+E49 -> 232000 | G49: 34 | X49: 0
C50: Incentive Processing* | D50: 50000 | E50: 37000 | F50: =SUM(D50:E50) -> 87000 | G50: 35 | X50: 0
C51: Field Services * | D51: 45000 | E51: 100000 | F51: 145000 | G51: 36 | X51: 0
C52: *Portion factored in DBtC | F52: 0 | G52: 37
F53: 0 | G53: 38
F54: 0 | G54: 39
G55: 40
C56: MATERIALS | D56: =SUM(D57:D60) -> 1000 | E56: =SUM(E57:E60) -> 1000 | F56: =D56+E56 -> 2000 | G56: 41
C57: Materials Budget | D57: 1000 | E57: 1000 | F57: =SUM(D57:E57) -> 2000 | G57: 42
F58: 0 | G58: 43
F59: 0 | G59: 44
F60: 0 | G60: 45
G61: 46
C62: MISCELLANEOUS | D62: =SUM(D63:D66) -> 500 | E62: =SUM(E63:E66) -> 500 | F62: =D62+E62 -> 1000 | G62: 47
C63: Misc. Budget | D63: 500 | E63: 500 | F63: =SUM(D63:E63) -> 1000 | G63: 48
F64: 0 | G64: 49
A65: Home Appliances | F65: 0 | G65: 50
A66: Schedule 214 | F66: 0 | G66: 51
A67: Order Number
A68: 18230434 | C68: DIRECT BENEFIT TO CUSTOMER | D68: =X15 -> 1862939.2 | E68: =Y15 -> 447485 | F68: =D68+E68 -> 2310424.2
A69: Electric | C69: Ratio | D69: =D68/D12 -> 0.7845790606 | E69: =E68/E12 -> 0.5264374577
C71: REVENUE | D71: 0 | E71: 0 | F71: 0

Sheet ShwrHead_Detail_REM_E214 Elec
C1: Showerheads | D1: Schedule 214 | E1: Order Number | F1: 18230435 | G1: Electric | M1: Showerheads | N1: Schedule 214 | O1: Order Number | P1: 18230435 | Q1: Electric | V1: Showerheads | W1: Schedule 214 | X1: Order Number | Y1: 18230435 | Z1: Electric
D2: This table summarizes the subtotals in the detail table below and is used to populate 2019 Sector view tables (located at the front of this workbook).
A3: Showerheads | D3: Program Labor | E3: Marketing Labor | F3: Overhead | G3: Marketing | H3: Employee/Office Expense | I3: Outside Services | J3: Materials | K3: Miscellaneous | L3: DBtC | M3: Revenue | N3: Total Budget | O3: Total Savings
A4: Schedule 214 | C4: 2018 (Reference only) | D4: 26024.85 | E4: 5399.7 | F4: 28219.2459 | G4: 80915 | H4: 1000 | I4: 43006 | J4: 1000 | K4: 500 | L4: 454750 | M4: 0 | N4: 640814.7959 | O4: 4272610
A5: Order Number | C5: Original 2019 figures | D5: =D15 -> 21600 | E5: =D21 -> 3200 | F5: =D27 -> 23014.4 | G5: =D37 -> 80915 | H5: =D43 -> 500 | I5: =D49 -> 12125 | J5: =D56 -> 500 | K5: =D62 -> 250 | L5: =D68 -> 275097.8344 | M5: =D71 -> 0 | N5: =SUM(D5:M5) -> 417202.2344 | O5: =U15 -> 1476223
A6: 18230435 | C6: 2019 (Updated for 2019 ACP) | D6: =E15 -> 24800 | E6: =E21 -> 0 | F6: =E27 -> 22642.4 | G6: =E37 -> 80915 | H6: =E43 -> 500 | I6: =E49 -> 66000 | J6: =E56 -> 500 | K6: =E62 -> 250 | L6: =E68 -> 208745 | M6: =E71 -> 0 | N6: =SUM(D6:M6) -> 404352.4 | O6: =V15 -> 1567972
A7: Electric
H8: All measure cost, incentive and savings figures are based on updated 2019 data. Highlighted cells indicate revisions from values presented in the 2018-2019 BCP. Lined-out measures are retired for 2019.
C10: Spending Section | H10: Savings Section | W10: Savings Section | Z10: Savings Section
C12: Overall Total | D12: =D15+D21+D27+D37+D43+D49+D56+D62+D68 -> 417202.2344 | E12: =E15+E21+E27+E37+E43+E49+E56+E62+E68 -> 404352.4 | F12: =D12+E12 -> 821554.6344 | H12: Measure Information | R12: Unit Totals | U12: Projected Savings | X12: Incentive Totals | AA12: First-year NEBs per unit
H13: Measure Name | I13: Savings | J13: UOM | K13: Unit Type | L13: Dual Fuel? | M13: Measure Cost | N13: Incentive | O13: Support % | P13: Measure Life | Q13: End Use | R13: 2018 | S13: 2019 | T13: Combined | U13: 2018 | V13: 2019 | W13: Combined | X13: 2018 | Y13: 2019 | Z13: Combined
C14: Budget Category | D14: 2018 | E14: 2019 | F14: Total | H14: i | I14: i | K14: i | M14: i | N14: i | O14: i | P14: i | Q14: i | S14: i | AA14: i
B15: FTE | C15: PROGRAM LABOR | D15: =SUM(D16:D19) -> 21600 | E15: =SUM(E16:E19) -> 24800 | F15: =D15+E15 -> 46400 | H15: TOTALS g | M15: =SUMPRODUCT(L16:L129,S16:S129) -> 0 | N15: =SUM(M16:M129) -> 99.06 | O15: =SUM(O16:O24) -> 0.4810388905 | P15: N/A | U15: =SUM(U16:U66) -> 1476223 | V15: =SUM(V16:V66) -> 1567972 | W15: 3044195 | X15: =SUM(X16:X66) -> 275097.8344 | Y15: 208745 | Z15: 483842.8344 | AA15: 0
B16: 0.25 | C16: Program Coordinator | D16: 14000 | E16: 14000 | F16: =SUM(D16:E16) -> 28000 | G16: 1 | H16: Showerhead - Retail_C - Any WH - 1.50 gpm and less (E) | I16: 61.3 | J16: kWh | K16: per unit | L16: Yes | M16: 0.01 | N16: 7 | O16: 0.1298613097 | P16: 10 | Q16: Res Water Heat | R16: 3400 | S16: 7000 | T16: =SUM(R16:S16) -> 10400 | U16: 208420 | V16: =S16*I16 -> 429100 | W16: =SUM(U16:V16) -> 637520 | X16: 24786 | Y16: =S16*N16 -> 49000 | Z16: =SUM(X16:Y16) -> 73786 | AA16: 10.01
B17: 0.05 | C17: Program Implementer | D17: 2800 | E17: 2800 | F17: =SUM(D17:E17) -> 5600 | G17: 2 | H17: Showerhead - Retail_C - Any WH - 1.51 to 1.75 gpm (E) | I17: 40.1 | J17: kWh | K17: per unit | L17: Yes | M17: 0.01 | N17: 7 | O17: 0.08245152632 | P17: 10 | Q17: Res Water Heat | R17: 3300 | S17: 4000 | T17: =SUM(R17:S17) -> 7300 | U17: 132330 | V17: 160400 | W17: =SUM(U17:V17) -> 292730 | X17: 24057 | Y17: =S17*N17 -> 28000 | Z17: =SUM(X17:Y17) -> 52057 | AA17: 6.5
B18: 0.05 | C18: Market Manager | D18: 4800 | E18: 4800 | F18: 9600 | G18: 3 | H18: Showerhead - Retail_C - Any WH - 1.76 to 2.0 gpm (E) | I18: 14.9 | J18: kWh | K18: per unit | L18: Yes | M18: 0.01 | N18: 2.1 | O18: 0.09283818802 | P18: 10 | Q18: Res Water Heat | R18: 10000 | S18: 3500 | T18: =SUM(R18:S18) -> 13500 | U18: 149000 | V18: 52150 | W18: 201150 | X18: 72900 | Y18: 7350 | Z18: 80250 | AA18: 2.38
C19: Marketing Labor | E19: 3200 | F19: 3200 | G19: 4 | H19: Showerhead - Retail_EO - Any WH - 1.50 gpm and less | I19: 74.1 | J19: kWh | K19: per unit | L19: No | M19: 0.01 | N19: 10 | O19: 0.09233972795 | P19: 10 | Q19: Res Water Heat | R19: 2000 | S19: 3500 | T19: 5500 | U19: 148200 | V19: 259350 | W19: 407550 | X19: 20580 | Y19: 35000 | Z19: 55580 | AA19: 14.31
B20: =SUM(B16:B18) -> 0.35 | G20: 5 | H20: Showerhead - Retail_EO - Any WH - 1.51 to 1.75 gpm | I20: 48.5 | J20: kWh | K20: per unit | L20: No | M20: 0.01 | N20: 10 | O20: 0.03626297009 | P20: 10 | Q20: Res Water Heat | R20: 1200 | S20: 2000 | T20: 3200 | U20: 58200 | V20: 97000 | W20: 155200 | X20: 12348 | Y20: 20000 | Z20: 32348 | AA20: 9.3
B21: FTE | C21: MARKETING LABOR | D21: =SUM(D22:D25) -> 3200 | E21: =SUM(E22:E25) -> 0 | F21: =D21+E21 -> 3200 | G21: 6 | H21: Showerhead - Retail_EO - Any WH - 1.76 to 2.0 gpm | I21: 18.1 | J21: kWh | K21: per unit | L21: No | M21: 0.01 | N21: 3 | O21: 0.03157744543 | P21: 10 | Q21: Res Water Heat | R21: 2800 | S21: 4000 | T21: 6800 | U21: 50680 | V21: 72400 | W21: 123080 | X21: 28812 | Y21: 12000 | Z21: 40812 | AA21: 3.41
D22: 3200 | E22: 0 | F22: =SUM(D22:E22) -> 3200 | G22: 7 | H22: Adapter - ShowerStart (E) | I22: 15.9 | J22: kWh | K22: per unit | L22: No | M22: 17.82 | N22: 15 | O22: 0.001750840996 | P22: 10 | Q22: Res Water Heat | R22: 100 | S22: 20 | T22: 120 | U22: 1750 | V22: 318 | W22: 2068 | X22: 1529.210854 | Y22: 300 | Z22: 1829.210854 | AA22: 3.36
F23: 0 | G23: 8 | H23: Adapter-ShowerStart - C_Electric Water Heat | I23: 13.1 | J23: kWh | K23: per unit | L23: Yes | M23: 8.91 | N23: 7.5 | O23: 0.002891068406 | P23: 10 | Q23: Res Water Heat | R23: 200 | S23: 80 | T23: 280 | U23: 2900 | V23: 1048 | W23: 3948 | X23: 2058.421708 | Y23: 600 | Z23: 2658.421708 | AA23: 1.68
F24: 0 | G24: 9 | H24: Showerhead - ShowerStart - 1.5 gpm (E) | I24: 96.6 | J24: kWh | K24: per unit | L24: No | M24: 20.74 | N24: 20 | O24: 0.01106581355 | P24: 10 | Q24: Res Water Heat | R24: 100 | S24: 4 | T24: 104 | U24: 11080 | V24: 386.4 | W24: 11466.4 | X24: 3029.210854 | Y24: 80 | Z24: 3109.210854 | AA24: 22.41
F25: 0 | G25: 10 | H25: Showerhead-ShowerStart - C_Electric Water Heat | I25: 79.9 | J25: kWh | K25: per unit | L25: Yes | M25: 10.37 | N25: 10 | O25: 0.01829348457 | P25: 10 | Q25: Res Water Heat | R25: 200 | S25: 4 | T25: =SUM(R25:S25) -> 204 | U25: 18320 | V25: 319.6 | W25: =SUM(U25:V25) -> 18639.6 | X25: 3058.421708 | Y25: =S25*N25 -> 40 | Z25: =SUM(X25:Y25) -> 3098.421708 | AA25: 11.205
B26: =SUM(B22:B24) -> 0 | G26: 11 | H26: Faucet - WaterSense - EO - Any WH - 1.5 gpm or less | I26: 19 | J26: kWh | K26: per unit | L26: No | M26: 20 | N26: 20 | O26: 0.004299218103 | P26: 10 | Q26: Res Water Heat | R26: 400 | S26: 0 | T26: 400 | U26: 6900 | V26: 0 | W26: 6900 | X26: 8116.843416 | Y26: 0 | Z26: 8116.843416 | AA26: 2.8
C27: TOTAL OVERHEAD | D27: =SUM(D29:D31)+SUM(D33:D35) -> 23014.4 | E27: =SUM(E29:E31)+SUM(E33:E35) -> 22642.4 | F27: =D27+E27 -> 45656.8 | G27: 12 | H27: Faucet - WaterSense - C - Any WH - 1.5 gpm or less | I27: 16 | J27: kWh | K27: per unit | L27: Yes | M27: 15 | N27: 15 | O27: 0.008885050746 | P27: 10 | Q27: Res Water Heat | R27: 1000 | S27: 0 | T27: 1000 | U27: 14260 | V27: 0 | W27: 14260 | X27: 15292.10854 | Y27: 0 | Z27: 15292.10854 | AA27: 1.96
C28: Labor Overhead Rate | D28: ='Global Figures Reference'!$D$5 -> 0.688 | E28: ='Global Figures Reference'!$E$5 -> 0.683 | G28: 13 | H28: Aerator - WaterSense - EO - Any WH - 1.5 gpm or less | I28: 19 | J28: kWh | K28: per unit | L28: No | M28: 1.81 | N28: 1.81 | O28: 0.005374022629 | P28: 10 | Q28: Res Water Heat | R28: 500 | S28: 2500 | T28: 3000 | U28: 8625 | V28: 47500 | W28: 56125 | X28: 1146.054268 | Y28: 4525 | Z28: 5671.054267 | AA28: 2.8
C29: Program Staff Overhead | D29: =D15*D28 -> 14860.8 | E29: =E15*E28 -> 16938.4 | F29: =SUM(D29:E29) -> 31799.2 | G29: 14 | H29: Aerator - WaterSense - EO - Any WH - 1.0 gpm | I29: 12 | J29: kWh | K29: per unit | L29: No | M29: 1.81 | N29: 1.81 | O29: 0.2213910401 | P29: 10 | Q29: Res Water Heat | R29: 10000 | S29: 9000 | T29: 19000 | U29: 296100 | V29: 108000 | W29: 404100 | X29: 22921.08535 | Y29: 16290 | Z29: 39211.08535 | AA29: 1.99
C30: Marketing Staff Overhead | D30: =D21*D28 -> 2201.6 | E30: =E21*E28 -> 0 | F30: 2201.6 | G30: 15 | H30: Aerator - WaterSense -C-Any WH -1.5 gpm - kWh | I30: 16 | J30: kWh | K30: per unit | L30: Yes | M30: 1.27 | N30: 1.27 | O30: 0.04709076896 | P30: 10 | Q30: Res Water Heat | R30: 5300 | S30: 10000 | T30: 15300 | U30: 75578 | V30: 160000 | W30: 235578 | X30: 10558.17524 | Y30: 12700 | Z30: 23258.17524 | AA30: 1.96
F31: 0 | G31: 16 | H31: Aerator - WaterSense -C-Any WH -1.0 gpm -kWh | I31: 10 | J31: kWh | K31: per unit | L31: Yes | M31: 1.27 | N31: 1.27 | O31: 0.2136275245 | P31: 10 | Q31: Res Water Heat | R31: 12000 | S31: 18000 | T31: 30000 | U31: 293880 | V31: 180000 | W31: 473880 | X31: 23905.30242 | Y31: 22860 | Z31: 46765.30242 | AA31: 1.39
C32: Micro Overhead Rate | D32: ='Global Figures Reference'!$D$6 -> 0.24 | E32: ='Global Figures Reference'!$E$6 -> 0.23 | G32: 17 | T32: 0 | U32: 0 | V32: 0 | W32: 0 | X32: 0 | Y32: 0 | Z32: 0
C33: Program Staff Overhead | D33: =D15*D32 -> 5184 | E33: =E15*E32 -> 5704 | F33: =SUM(D33:E33) -> 10888 | G33: 18 | T33: 0 | U33: 0 | V33: 0 | W33: 0 | X33: 0 | Y33: 0 | Z33: 0
A34: Showerheads | C34: Marketing Staff Overhead | D34: =D21*D32 -> 768 | E34: =E21*E32 -> 0 | F34: =SUM(D34:E34) -> 768 | G34: 19 | T34: 0 | U34: 0 | V34: 0 | W34: 0 | X34: 0 | Y34: 0 | Z34: 0
A35: Schedule 214 | F35: 0 | G35: 20 | T35: 0 | U35: 0 | V35: 0 | W35: 0 | X35: 0 | Y35: 0 | Z35: 0
A36: Order Number | G36: 21
A37: 18230435 | C37: MARKETING | D37: =SUM(D38:D41) -> 80915 | E37: =SUM(E38:E41) -> 80915 | F37: =D37+E37 -> 161830 | G37: 22
A38: Electric | C38: Advertising;Claymation,General,Social | D38: 64870 | E38: 64870 | F38: =SUM(D38:E38) -> 129740 | G38: 23
C39: Campaigns; Upgrades & Cross-Sell | D39: 16045 | E39: 16045 | F39: 32090 | G39: 24
F40: 0 | G40: 25
F41: 0 | G41: 26
G42: 27
C43: EMPLOYEE/OFFICE EXPENSES | D43: =SUM(D44:D47) -> 500 | E43: =SUM(E44:E47) -> 500 | F43: =D43+E43 -> 1000 | G43: 28
D44: 500 | E44: 500 | F44: =SUM(D44:E44) -> 1000 | G44: 29
F45: 0 | G45: 30
F46: 0 | G46: 31
F47: 0 | G47: 32
G48: 33
C49: OUTSIDE SERVICES | D49: =SUM(D50:D54) -> 12125 | E49: =SUM(E50:E54) -> 66000 | F49: =D49+E49 -> 78125 | G49: 34
C50: Field Services* | D50: 2000 | E50: 52000 | F50: =SUM(D50:E50) -> 54000 | G50: 35
C51: Incentive Processing* | D51: 7125 | E51: 11000 | F51: 18125 | G51: 36
C52: Pop-Up Retail | D52: 2000 | E52: 2000 | F52: 4000 | G52: 37
C53: Market Research | D53: 1000 | E53: 1000 | F53: 2000 | G53: 38
C54: * Portion factored in DBtC | F54: 0 | G54: 39
G55: 40
C56: MATERIALS | D56: =SUM(D57:D60) -> 500 | E56: =SUM(E57:E60) -> 500 | F56: =D56+E56 -> 1000 | G56: 41
D57: 500 | E57: 500 | F57: =SUM(D57:E57) -> 1000 | G57: 42
F58: 0 | G58: 43
F59: 0 | G59: 44
F60: 0 | G60: 45
G61: 46
C62: MISCELLANEOUS | D62: =SUM(D63:D66) -> 250 | E62: =SUM(E63:E66) -> 250 | F62: =D62+E62 -> 500 | G62: 47
D63: 250 | E63: 250 | F63: =SUM(D63:E63) -> 500 | G63: 48
F64: 0 | G64: 49
A65: Showerheads | F65: 0 | G65: 50
A66: Schedule 214 | F66: 0 | G66: 51
A67: Order Number
A68: 18230435 | C68: DIRECT BENEFIT TO CUSTOMER | D68: =X15 -> 275097.8344 | E68: =Y15 -> 208745 | F68: =D68+E68 -> 483842.8344
A69: Electric | C69: Ratio | D69: =D68/D12 -> 0.6593872508 | E69: =E68/E12 -> 0.5162452356
C71: REVENUE | D71: 0 | E71: 0 | F71: 0

Sheet Web Tstat Detail_REM E214 Elec
C1: Web-Enabled T-stat | D1: Schedule 214 | E1: Order Number | F1: 18230023 | G1: Electric | M1: Web-Enabled T-stat | N1: Schedule 214 | O1: Order Number | P1: 18230023 | Q1: Electric | V1: Web-Enabled T-stat | W1: Schedule 214 | X1: Order Number | Y1: 18230023 | Z1: Electric
D2: This table summarizes the subtotals in the detail table below and is used to populate 2019 Sector view tables (located at the front of this workbook).
A3: Web-Enabled T-stat | D3: Program Labor | E3: Marketing Labor | F3: Overhead | G3: Marketing | H3: Employee/Office Expense | I3: Outside Services | J3: Materials | K3: Miscellaneous | L3: DBtC | M3: Revenue | N3: Total Budget | O3: Total Savings
A4: Schedule 214 | C4: 2018 (Reference only) | D4: 26800 | E4: 4800 | F4: 29324.8 | G4: 15000 | H4: 100 | I4: 12000 | J4: 500 | K4: 500 | L4: 60000 | M4: 0 | N4: 149024.8 | O4: 1165600
A5: Order Number | C5: Original 2019 figures | D5: =D15 -> 26800 | E5: =D21 -> 4800 | F5: =D27 -> 29324.8 | G5: =D37 -> 15000 | H5: =D43 -> 100 | I5: =D49 -> 12000 | J5: =D55 -> 500 | K5: =D61 -> 500 | L5: =D67 -> 60000 | M5: =D70 -> 0 | N5: =SUM(D5:M5) -> 149024.8 | O5: =T15 -> 1165600
A6: 18230023 | C6: 2019 (Updated for 2019 ACP) | D6: =E15 -> 39400 | E6: =E21 -> 0 | F6: =E27 -> 35972.2 | G6: =E37 -> 65000 | H6: =E43 -> 200 | I6: =E49 -> 36100 | J6: =E55 -> 500 | K6: =E61 -> 500 | L6: =E67 -> 245997 | M6: =E70 -> 0 | N6: =SUM(D6:M6) -> 423669.2 | O6: =U15 -> 1639020
A7: Electric
H8: All measure cost, incentive and savings figures are based on updated 2019 data. Highlighted cells indicate revisions from values presented in the 2018-2019 BCP. Lined-out measures are retired for 2019.
C10: Spending Section | H10: Savings Section | W10: Savings Section | Z10: 1st Year
Z11: NEBs per Unit
C12: Overall Total | D12: =D15+D21+D27+D37+D43+D49+D55+D61+D67 -> 149024.8 | E12: =E15+E21+E27+E37+E43+E49+E55+E61+E67 -> 423669.2 | F12: =D12+E12 -> 572694 | H12: Measure Information | Q12: Unit Totals | T12: Projected Savings | W12: Incentive Totals | Z12: i
H13: Measure Name | I13: Savings | J13: UOM | K13: Unit Type | L13: Measure Cost | M13: Incentive | N13: Support % | O13: Measure Life | P13: End Use | Q13: 2018 | R13: 2019 | S13: Combined | T13: 2018 | U13: 2019 | V13: Combined | W13: 2018 | X13: 2019 | Y13: Combined
C14: Budget Category | D14: 2018 | E14: 2019 | F14: Total | H14: i | I14: i | K14: i | L14: i | M14: i | N14: i | O14: i | P14: i | Q14: i | R14: i | Z14: 0
B15: FTE | C15: PROGRAM LABOR | D15: =SUM(D16:D19) -> 26800 | E15: =SUM(E16:E19) -> 39400 | F15: =D15+E15 -> 66200 | H15: TOTALS g | L15: =SUMPRODUCT(L16:L179,S16:S179) -> 597951 | M15: =SUM(M16:M179) -> 80.08 | O15: 20 | T15: =SUM(T16:T65) -> 1165600 | U15: =SUM(U16:U65) -> 1639020 | V15: 2804620 | W15: =SUM(W16:W65) -> 60000 | X15: 245997 | Y15: 305997 | Z15: 0
B16: 0.25 | C16: Program Manager | D16: 20000 | E16: 16000 | F16: =SUM(D16:E16) -> 36000 | G16: 1 | H16: Web Enabled Thermostat - E | I16: 502 | J16: kWh | K16: per unit | L16: 151.83 | M16: 75 | N16: 1 | O16: 11 | P16: SF Space Heat | Q16: 800 | R16: 3000 | S16: =Q16+R16 -> 3800 | T16: 1165600 | U16: =I16*R16 -> 1506000 | V16: =T16+U16 -> 2671600 | W16: 60000 | X16: =M16*R16 -> 225000 | Y16: =W16+X16 -> 285000 | Z16: 0
B17: 0.05 | C17: Market Manager | D17: 4000 | E17: 5600 | F17: =SUM(D17:E17) -> 9600 | G17: 2 | H17: RETL: Lamp - LED - A Lamp | I17: 11.32 | K17: per unit | L17: 2 | M17: 2 | O17: 12 | P17: Res Lighting | R17: 6000 | S17: =Q17+R17 -> 6000 | T17: 0 | U17: =I17*R17 -> 67920 | V17: =T17+U17 -> 67920 | W17: 0 | X17: =M17*R17 -> 12000 | Y17: =W17+X17 -> 12000 | Z17: 0
B18: 0.05 | C18: Program Implementer | D18: 2800 | E18: 2800 | F18: =SUM(D18:E18) -> 5600 | G18: 3 | H18: RETSH: Aerator - WaterSense - C - Any WH - 1.0 gpm | I18: 10 | K18: per unit | L18: 1.27 | M18: 1.27 | O18: 10 | P18: Res Water Heat | R18: 3450 | S18: =Q18+R18 -> 3450 | T18: 0 | U18: =I18*R18 -> 34500 | V18: =T18+U18 -> 34500 | W18: 0 | X18: =M18*R18 -> 4381.5 | Y18: =W18+X18 -> 4381.5 | Z18: 1.918
C19: Marketing Labor | E19: 15000 | F19: =SUM(D19:E19) -> 15000 | G19: 4 | H19: RETSH: Aerator - WaterSense - EO - Any WH - 1.0 gpm | I19: 12 | K19: per unit | L19: 1.81 | M19: 1.81 | O19: 10 | P19: Res Water Heat | R19: 2550 | S19: 2550 | T19: 0 | U19: 30600 | V19: 30600 | W19: 0 | X19: 4615.5 | Y19: 4615.5 | Z19: 2.74
B20: =SUM(B16:B19) -> 0.35 | G20: 5 | Z20: 0
B21: FTE | C21: MARKETING LABOR | D21: =SUM(D22:D25) -> 4800 | E21: =SUM(E22:E25) -> 0 | F21: =D21+E21 -> 4800 | G21: 6 | Z21: 0
D22: 4800 | E22: 0 | F22: =SUM(D22:E22) -> 4800 | G22: 7 | Z22: 0
F23: =SUM(D23:E23) -> 0 | G23: 8 | Z23: 0
F24: =SUM(D24:E24) -> 0 | G24: 9 | Z24: 0
F25: =SUM(D25:E25) -> 0 | G25: 10 | Z25: 0
B26: =SUM(B22:B25) -> 0 | G26: 11 | Z26: 0
C27: TOTAL OVERHEAD | D27: =SUM(D29:D31)+SUM(D33:D35) -> 29324.8 | E27: =SUM(E29:E31)+SUM(E33:E35) -> 35972.2 | F27: =D27+E27 -> 65297 | G27: 12 | Z27: 0
C28: Labor Overhead Rate | D28: ='Global Figures Reference'!$D$5 -> 0.688 | E28: ='Global Figures Reference'!$E$5 -> 0.683 | G28: 13 | Z28: 0
C29: Program Staff Overhead | D29: =D15*D28 -> 18438.4 | E29: =E15*E28 -> 26910.2 | F29: =SUM(D29:E29) -> 45348.6 | G29: 14 | Z29: 0
C30: Marketing Staff Overhead | D30: =D21*D28 -> 3302.4 | E30: =E21*E28 -> 0 | F30: =SUM(D30:E30) -> 3302.4 | G30: 15 | Z30: 0
F31: =SUM(D31:E31) -> 0 | G31: 16 | Z31: 0
C32: Micro Overhead Rate | D32: ='Global Figures Reference'!$D$6 -> 0.24 | E32: ='Global Figures Reference'!$E$6 -> 0.23 | G32: 17 | Z32: 0
C33: Program Staff Overhead | D33: =D15*D32 -> 6432 | E33: =E15*E32 -> 9062 | F33: =SUM(D33:E33) -> 15494 | G33: 18 | Z33: 0
A34: Web-Enabled T-stat | C34: Marketing Staff Overhead | D34: =D21*D32 -> 1152 | E34: =E21*E32 -> 0 | F34: =SUM(D34:E34) -> 1152 | G34: 19 | Z34: 0
A35: Schedule 214 | F35: =SUM(D35:E35) -> 0 | G35: 20 | Z35: 0
A36: Order Number | G36: 21 | Z36: 0
A37: 18230023 | C37: MARKETING | D37: =SUM(D38:D41) -> 15000 | E37: =SUM(E38:E41) -> 65000 | F37: =D37+E37 -> 80000 | G37: 22 | Z37: 0
A38: Electric | C38: Advertising | D38: 5000 | E38: 25000 | F38: =SUM(D38:E38) -> 30000 | G38: 23 | Z38: 0
C39: Campaigns | D39: 5000 | E39: 20000 | F39: =SUM(D39:E39) -> 25000 | G39: 24 | Z39: 0
C40: Cross-sell | D40: 5000 | E40: 20000 | F40: =SUM(D40:E40) -> 25000 | G40: 25 | Z40: 0
F41: =SUM(D41:E41) -> 0 | G41: 26 | Z41: 0
G42: 27 | Z42: 0
C43: EMPLOYEE/OFFICE EXPENSES | D43: =SUM(D44:D47) -> 100 | E43: =SUM(E44:E47) -> 200 | F43: =D43+E43 -> 300 | G43: 28 | Z43: 0
D44: 100 | E44: 200 | F44: =SUM(D44:E44) -> 300 | G44: 29 | Z44: 0
F45: =SUM(D45:E45) -> 0 | G45: 30 | Z45: 0
F46: =SUM(D46:E46) -> 0 | G46: 31 | Z46: 0
F47: =SUM(D47:E47) -> 0 | G47: 32 | Z47: 0
G48: 33 | Z48: 0
C49: OUTSIDE SERVICES | D49: =SUM(D50:D53) -> 12000 | E49: =SUM(E50:E53) -> 36100 | F49: =D49+E49 -> 48100 | G49: 34 | Z49: 0
C50: Field Services | D50: 2000 | E50: 22000 | F50: =SUM(D50:E50) -> 24000 | G50: 35 | Z50: 0
C51: Incentive Processing | D51: 5000 | E51: 14100 | F51: =SUM(D51:E51) -> 19100 | G51: 36 | Z51: 0
C52: Manufacturer Partnerships | D52: 5000 | E52: 0 | F52: =SUM(D52:E52) -> 5000 | G52: 37 | Z52: 0
F53: =SUM(D53:E53) -> 0 | G53: 38 | Z53: 0
G54: 39 | Z54: 0
C55: MATERIALS | D55: =SUM(D56:D59) -> 500 | E55: =SUM(E56:E59) -> 500 | F55: =D55+E55 -> 1000 | G55: 40 | Z55: 0
D56: 500 | E56: 500 | F56: =SUM(D56:E56) -> 1000 | G56: 41 | Z56: 0
F57: =SUM(D57:E57) -> 0 | G57: 42 | Z57: 0
F58: =SUM(D58:E58) -> 0 | G58: 43 | Z58: 0
F59: =SUM(D59:E59) -> 0 | G59: 44 | Z59: 0
G60: 45 | Z60: 0
C61: MISCELLANEOUS | D61: =SUM(D62:D65) -> 500 | E61: =SUM(E62:E65) -> 500 | F61: =D61+E61 -> 1000 | G61: 46 | Z61: 0
D62: 500 | E62: 500 | F62: =SUM(D62:E62) -> 1000 | G62: 47 | Z62: 0
F63: =SUM(D63:E63) -> 0 | G63: 48 | Z63: 0
A64: Web-Enabled T-stat | F64: =SUM(D64:E64) -> 0 | G64: 49 | Z64: 0
A65: Schedule 214 | F65: =SUM(D65:E65) -> 0 | G65: 50 | Z65: 0
A66: Order Number
A67: 18230023 | C67: DIRECT BENEFIT TO CUSTOMER | D67: =W15 -> 60000 | E67: =X15 -> 245997 | F67: =D67+E67 -> 305997
A68: Electric | C68: Ratio
C70: REVENUE | D70: 0 | E70: 0 | F70: 0

Sheet Lighting Detail_REM_E214 Elec
C1: Lighting | D1: Schedule 214 | E1: Order Number | F1: 18230440 | G1: Electric | M1: Lighting | N1: Schedule 214 | O1: Order Number | P1: 18230440 | Q1: Electric | V1: Lighting | W1: Schedule 214 | X1: Order Number | Y1: 18230440 | Z1: Electric
D2: This table summarizes the subtotals in the detail table below and is used to populate 2019 Sector view tables (located at the front of this workbook).
A3: Lighting | D3: Program Labor | E3: Marketing Labor | F3: Overhead | G3: Marketing | H3: Employee/Office Expense | I3: Outside Services | J3: Materials | K3: Miscellaneous | L3: DBtC | M3: Revenue | N3: Total Budget | O3: Total Savings
A4: Schedule 214 | C4: 2018 (Reference only) | D4: 166720 | E4: 103200 | F4: 250485.76 | G4: 1625000 | H4: 11000 | I4: 1585743.5 | J4: 8250 | K4: 0 | L4: 8855051.046 | M4: 0 | N4: 12605450.31 | O4: 62649617.42
A5: Order Number | C5: Original 2019 figures | D5: 166720 | E5: 103200 | F5: 250485.76 | G5: 1450000 | H5: 11000 | I5: 1585743.5 | J5: 8250 | K5: 0 | L5: 8421740.663 | M5: 0 | N5: 11997139.92 | O5: 59570286.23
A6: 18230440 | C6: 2019 (Updated for 2019 ACP) | D6: =E15 -> 265920 | E6: =E21 -> 0 | F6: =E27 -> 242784.96 | G6: =E37 -> 1355000 | H6: =E43 -> 11000 | I6: =E49 -> 1175100 | J6: =E58 -> 8250 | K6: =E64 -> 0 | L6: =E70 -> 8609629 | M6: =E73 -> 0 | N6: =SUM(D6:M6) -> 11667683.96 | O6: =U15 -> 60073009.09
A7: Electric
H8: All measure cost, incentive and savings figures are based on updated 2019 data. Highlighted cells indicate revisions from values presented in the 2018-2019 BCP. Lined-out measures are retired for 2019.
C10: Spending Section | H10: Savings Section | W10: Savings Section | Z10: Savings Section
C12: Overall Total | D12: =D15+D21+D27+D37+D43+D49+D58+D64+D70 -> 12605450.31 | E12: =E15+E21+E27+E37+E43+E49+E58+E64+E70 -> 11667683.96 | F12: =D12+E12 -> 24273134.27 | H12: Measure Information | Q12: Unit Totals | T12: Projected Savings | W12: Incentive Totals | Z12: First-year NEBs per unit
H13: Measure Name | I13: Savings | J13: UOM | K13: Unit Type | L13: Measure Cost | M13: Incentive | N13: Support % | O13: Measure Life | P13: End Use | Q13: 2018 | R13: 2019 | S13: Combined | T13: 2018 | U13: 2019 | V13: Combined | W13: 2018 | X13: 2019 | Y13: Combined
C14: Budget Category | D14: 2018 | E14: 2019 | F14: Total | H14: i | I14: i | K14: i | L14: i | M14: i | N14: i | O14: i | P14: i | Q14: i | R14: i | Z14: i
B15: FTE | C15: PROGRAM LABOR | D15: =SUM(D16:D19) -> 166720 | E15: =SUM(E16:E19) -> 265920 | F15: =D15+E15 -> 432640 | H15: TOTALS g | L15: =SUMPRODUCT(L16:L131,S16:S131) -> 15503941.06 | M15: =SUM(M16:M131) -> 44.75 | O15: 11 | T15: =SUM(T16:T68) -> 62649617.42 | U15: 60073009.09 | V15: 122722626.5 | W15: 8855051.046 | X15: 8609629 | Y15: 17464680.05 | Z15: 0
B16: 0.65 | C16: Market Manager | D16: 52000 | E16: 48000 | F16: =SUM(D16:E16) -> 100000 | G16: 1 | H16: A-Lamp LED | I16: 11.32 | J16: kWh | K16: per unit | L16: 1.59 | M16: 1.75 | N16: 0.3070981624 | O16: 12 | P16: Res Lighting | Q16: 1661420.4 | R16: 1847960 | S16: =SUM(Q16:R16) -> 3509380.4 | T16: 18807278.93 | U16: =R16*I16 -> 20918907.2 | V16: =SUM(T16:U16) -> 39726186.13 | W16: 2907485.7 | X16: =R16*M16 -> 3233930 | Y16: =SUM(W16:X16) -> 6141415.7
B17: 1 | C17: Program Manager | D17: 80000 | E17: 80000 | F17: =SUM(D17:E17) -> 160000 | G17: 2 | H17: Value A-Lamp LED | I17: 11.32 | J17: kWh | K17: per unit | L17: 1.59 | M17: 0.5 | N17: 0.03412207464 | O17: 12 | P17: Res Lighting | Q17: 191706.48 | R17: 0 | S17: =SUM(Q17:R17) -> 191706.48 | T17: 2170117.354 | U17: =R17*I17 -> 0 | V17: =SUM(T17:U17) -> 2170117.354 | W17: 95853.24 | X17: =R17*M17 -> 0 | Y17: =SUM(W17:X17) -> 95853.24
B18: 0.62 | C18: Program Implementer | D18: 34720 | E18: 34720 | F18: 69440 | G18: 3 | H18: Candelabra LED | I18: 22.49 | J18: kWh | K18: per unit | L18: 2.92 | M18: 2 | N18: 0.08274059631 | O18: 11 | P18: Res Lighting | Q18: 232720.75 | R18: 197061 | S18: 429781.75 | T18: 5233889.667 | U18: 4431901.89 | V18: =SUM(T18:U18) -> 9665791.557 | W18: 465441.5 | X18: 394122 | Y18: =SUM(W18:X18) -> 859563.5
C19: Marketing Labor | E19: 103200 | F19: 103200 | G19: 4 | H19: Globe LED | I19: 12.93 | J19: kWh | K19: per unit | L19: 3.68 | M19: 2.5 | N19: 0.01409626162 | O19: 12 | P19: Res Lighting | Q19: 68962.45 | R19: 86104 | S19: 155066.45 | T19: 891684.4785 | U19: 1113324.72 | V19: 2005009.198 | W19: 172406.125 | X19: 215260 | Y19: 387666.125
B20: =SUM(B16:B19) -> 2.27 | G20: 5 | H20: MR-16 LED | I20: 20.19 | J20: kWh | K20: per unit | L20: 1.75 | M20: 2 | N20: 0.007315382551 | O20: 12 | P20: Res Lighting | Q20: 22919.65 | R20: 8243 | S20: 31162.65 | T20: 462747.7335 | U20: 166426.17 | V20: 629173.9035 | W20: 45839.3 | X20: 16486 | Y20: 62325.3
B21: FTE | C21: MARKETING LABOR | D21: =SUM(D22:D25) -> 103200 | E21: =SUM(E22:E25) -> 0 | F21: =D21+E21 -> 103200 | G21: 6 | H21: Reflector LED | I21: 28.05 | J21: kWh | K21: per unit | L21: 2.08 | M21: 3.25 | N21: 0.415463668 | O21: 9 | P21: Res Lighting | Q21: 936928.8 | R21: 919221 | S21: 1856149.8 | T21: 26280852.84 | U21: 25784149.05 | V21: 52065001.89 | W21: 3045018.6 | X21: 2987468.25 | Y21: 6032486.85
C22: Overall Labor | D22: 103200 | E22: 0 | F22: =SUM(D22:E22) -> 103200 | G22: 7 | H22: Retrofit Kit LED | I22: 25.61 | J22: kWh | K22: per unit | L22: 2.08 | M22: 5.25 | N22: 0.08923771319 | O22: 12 | P22: Res Lighting | Q22: 220417.325 | R22: 172541 | S22: 392958.325 | T22: 5644887.693 | U22: 4418775.01 | V22: 10063662.7 | W22: 1157190.956 | X22: 905840.25 | Y22: 2063031.206
F23: 0 | G23: 8 | H23: Indoor LED Fixture | I23: 18.23 | J23: kWh | K23: per unit | L23: 0 | M23: 5 | N23: 0.02496168701 | O23: 12 | P23: Res Lighting | Q23: 86615.15 | R23: 50862 | S23: 137477.15 | T23: 1578994.185 | U23: 927214.26 | V23: 2506208.445 | W23: 433075.75 | X23: 254310 | Y23: 687385.75
F24: 0 | G24: 9 | H24: Outdoor LED Fixture | I24: 5.91 | J24: kWh | K24: per unit | L24: 9.65 | M24: 5 | N24: 0.004240558183 | O24: 12 | P24: Res Lighting | Q24: 45387.9 | R24: 26007 | S24: 71394.9 | T24: 268242.489 | U24: 153701.37 | V24: 421943.859 | W24: 226939.5 | X24: 130035 | Y24: 356974.5
F25: 0 | G25: 10 | H25: T8 Retrofit LED | I25: 7.98 | J25: kWh | K25: per unit | L25: 2.56 | M25: 2.5 | N25: 0.004399259848 | O25: 12 | P25: Res Lighting | Q25: 34872.5 | R25: 48627 | S25: 83499.5 | T25: 278282.55 | U25: 388043.46 | V25: 666326.01 | W25: 87181.25 | X25: 121567.5 | Y25: 208748.75
B26: =SUM(B22:B25) -> 0 | G26: 11 | H26: T8 Fixture LED | I26: 28.63 | J26: kWh | K26: per unit | L26: 24.19 | M26: 5 | N26: 0.01012094118 | O26: 12 | P26: Res Lighting | Q26: 22361.875 | R26: 49502 | S26: 71863.875 | T26: 640220.4812 | U26: 1417242.26 | V26: 2057462.741 | W26: 111809.375 | X26: 247510 | Y26: 359319.375
C27: TOTAL OVERHEAD | D27: =SUM(D29:D31)+SUM(D33:D35) -> 250485.76 | E27: =SUM(E29:E31)+SUM(E33:E35) -> 242784.96 | F27: =D27+E27 -> 493270.72 | G27: 12 | H27: String Lights LED | I27: 34.27 | J27: kWh | K27: per unit | L27: 20 | M27: 10 | N27: 0.006203695056 | O27: 12 | P27: Res Lighting | Q27: 10680.975 | R27: 10310 | S27: =SUM(Q27:R27) -> 20990.975 | T27: 392419.0215 | U27: =R27*I27 -> 353323.7 | V27: =SUM(T27:U27) -> 745742.7215 | W27: 106809.75 | X27: =R27*M27 -> 103100 | Y27: =SUM(W27:X27) -> 209909.75
C28: Labor Overhead Rate | D28: ='Global Figures Reference'!$D$5 -> 0.688 | E28: ='Global Figures Reference'!$E$5 -> 0.683 | G28: 13 | S28: =SUM(Q28:R28) -> 0 | T28: =Q28*I28 -> 0 | U28: =R28*I28 -> 0 | V28: =SUM(T28:U28) -> 0 | W28: 0 | X28: =R28*M28 -> 0 | Y28: =SUM(W28:X28) -> 0
C29: Program Staff Overhead | D29: =D15*D28 -> 114703.36 | E29: =E15*E28 -> 181623.36 | F29: =SUM(D29:E29) -> 296326.72 | G29: 14 | S29: =SUM(Q29:R29) -> 0 | T29: 0 | U29: =R29*I29 -> 0 | V29: =SUM(T29:U29) -> 0 | W29: =Q29*M29 -> 0 | X29: =R29*M29 -> 0 | Y29: =SUM(W29:X29) -> 0
C30: Marketing Staff Overhead | D30: =D21*D28 -> 71001.6 | E30: =E21*E28 -> 0 | F30: 71001.6 | G30: 15
F31: 0 | G31: 16
C32: Micro Overhead Rate | D32: ='Global Figures Reference'!$D$6 -> 0.24 | E32: ='Global Figures Reference'!$E$6 -> 0.23 | G32: 17
C33: Program Staff Overhead | D33: =D15*D32 -> 40012.8 | E33: =E15*E32 -> 61161.6 | F33: =SUM(D33:E33) -> 101174.4 | G33: 18
A34: Lighting | C34: Marketing Staff Overhead | D34: =D21*D32 -> 24768 | E34: =E21*E32 -> 0 | F34: =SUM(D34:E34) -> 24768 | G34: 19
A35: Schedule 214 | F35: 0 | G35: 20
A36: Order Number | G36: 21
A37: 18230440 | C37: MARKETING | D37: =SUM(D38:D41) -> 1625000 | E37: =SUM(E38:E41) -> 1355000 | F37: =D37+E37 -> 2980000 | G37: 22
A38: Electric | C38: Advertising: Claymation, General, Social | D38: 500000 | E38: 400000 | F38: =SUM(D38:E38) -> 900000 | G38: 23
C39: Campaigns: Upgrades & Cross-Sell | D39: 1100000 | E39: 930000 | F39: 2030000 | G39: 24
C40: Sports Sponsorships | D40: 25000 | E40: 25000 | F40: 50000 | G40: 25
F41: 0 | G41: 26
G42: 27
C43: EMPLOYEE/OFFICE EXPENSES | D43: =SUM(D44:D47) -> 11000 | E43: =SUM(E44:E47) -> 11000 | F43: =D43+E43 -> 22000 | G43: 28
D44: 11000 | E44: 11000 | F44: =SUM(D44:E44) -> 22000 | G44: 29
F45: 0 | G45: 30
F46: 0 | G46: 31
F47: 0 | G47: 32
G48: 33
C49: OUTSIDE SERVICES | D49: =SUM(D50:D56) -> 1585743.5 | E49: =SUM(E50:E56) -> 1175100 | F49: =D49+E49 -> 2760843.5 | G49: 34
C50: Incentive Processing | D50: 400000 | E50: 133700 | F50: =SUM(D50:E50) -> 533700 | G50: 35
C51: Field Services* | D51: 1010743.5 | E51: 866400 | F51: 1877143.5 | G51: 36
C52: Pop-Up Retail Management | D52: 100000 | E52: 100000 | F52: 200000 | G52: 37
C53: ShopPSE Maintenance | D53: 50000 | E53: 50000 | F53: 100000 | G53: 38
C54: Market Research | D54: 25000 | E54: 25000 | F54: 50000 | G54: 39
C55: *Field Services needs to be updated because a portion is DBTC | F55: 0 | G55: 40
F56: 0 | G56: 41
G57: 42
C58: MATERIALS | D58: =SUM(D59:D62) -> 8250 | E58: =SUM(E59:E62) -> 8250 | F58: =D58+E58 -> 16500 | G58: 43
D59: 8250 | E59: 8250 | F59: =SUM(D59:E59) -> 16500 | G59: 44
F60: 0 | G60: 45
F61: 0 | G61: 46
F62: 0 | G62: 47
G63: 48
C64: MISCELLANEOUS | D64: =SUM(D65:D68) -> 0 | E64: =SUM(E65:E68) -> 0 | F64: =D64+E64 -> 0 | G64: 49
D65: 0 | E65: 0 | F65: =SUM(D65:E65) -> 0 | G65: 50
F66: 0 | G66: 51
A67: Lighting | F67: 0 | G67: 52
A68: Schedule 214 | F68: 0 | G68: 53
A69: Order Number
A70: 18230440 | C70: DIRECT BENEFIT TO CUSTOMER | D70: =W15 -> 8855051.046 | E70: =X15 -> 8609629 | F70: =D70+E70 -> 17464680.05
A71: Electric | C71: Ratio | D71: =D70/D12 -> 0.7024779624 | E71: =E70/E12 -> 0.7379038573
C73: REVENUE | D73: 0 | E73: 0 | F73: 0

Sheet HER Detail_REM_E214 elec.
C1: Home Energy Reports | D1: Schedule 214 | E1: Order Number | F1: 18230461 | G1: Electric | M1: Home Energy Reports | N1: Schedule 214 | O1: Order Number | P1: 18230461 | Q1: Electric | V1: Home Energy Reports | W1: Schedule 214 | X1: Order Number | Y1: 18230461 | Z1: Electric
D2: This table summarizes the subtotals in the detail table below and is used to populate 2019 Sector view tables (located at the front of this workbook).
A3: Home Energy Reports | D3: Program Labor | E3: Marketing Labor | F3: Overhead | G3: Marketing | H3: Employee/Office Expense | I3: Outside Services | J3: Materials | K3: Miscellaneous | L3: DBtC | M3: Revenue | N3: Total Budget | O3: Total Savings
A4: Schedule 214 | C4: 2018 (Reference only) | D4: 6220 | E4: 0 | F4: 5585.56 | G4: 14040 | H4: 500 | I4: 49769 | J4: 250 | K4: 250 | L4: 49760 | M4: 0 | N4: 126374.56 | O4: 0
A5: Order Number | C5: Original 2019 figures | D5: =D15 -> 24800 | E5: =D21 -> 4000 | F5: =D27 -> 26726.4 | G5: =D37 -> 15381.33 | H5: =D43 -> 600 | I5: =D49 -> 100250 | J5: =D55 -> 100 | K5: =D61 -> 150 | L5: =D67 -> 217200 | M5: =D70 -> 0 | N5: =SUM(D5:M5) -> 389207.73 | O5: =T15 -> 11600000
A6: 18230461 | C6: 2019 (Updated for 2019 ACP) | D6: =E15 -> 20800 | E6: =E21 -> 0 | F6: =E27 -> 18990.4 | G6: =E37 -> 0 | H6: =E43 -> 600 | I6: =E49 -> 337117.16 | J6: =E55 -> 100 | K6: =E61 -> 150 | L6: =E67 -> 337035 | M6: =E70 -> 0 | N6: =SUM(D6:M6) -> 714792.56 | O6: =U15 -> 0
A7: Electric
H8: All measure cost, incentive and savings figures are based on updated 2019 data. Highlighted cells indicate revisions from values presented in the 2018-2019 BCP. Lined-out measures are retired for 2019.
C10: Spending Section | H10: Savings Section | W10: Savings Section | Z10: Savings Section
C12: Overall Total | D12: =D15+D21+D27+D37+D43+D49+D55+D61+D67 -> 389207.73 | E12: =E15+E21+E27+E37+E43+E49+E55+E61+E67 -> 714792.56 | F12: =D12+E12 -> 1104000.29 | H12: Measure Information | Q12: Unit Totals | T12: Projected Savings | W12: Incentive Totals | Z12: First-year NEBs per unit
H13: Measure Name | I13: Savings | J13: UOM | K13: Unit Type | L13: Measure Cost | M13: Incentive | N13: Support % | O13: Measure Life | P13: End Use | Q13: 2018 | R13: 2019 | S13: Combined | T13: 2018 | U13: 2019 | V13: Combined | W13: 2018 | X13: 2019 | Y13: Combined
C14: Budget Category | D14: 2018 | E14: 2019 | F14: Total | H14: i | I14: i | K14: i | L14: i | M14: i | N14: i | O14: i | P14: i | Q14: i | R14: i | Z14: i
B15: FTE | C15: PROGRAM LABOR | D15: =SUM(D16:D19) -> 24800 | E15: =SUM(E16:E19) -> 20800 | F15: =D15+E15 -> 45600 | H15: TOTALS g | L15: =SUMPRODUCT(L16:L23,S16:S23) -> 472235 | M15: =SUM(M16:M23) -> 7.13 | T15: =SUM(T16:T65) -> 11600000 | U15: =SUM(U16:U65) -> 0 | V15: =SUM(V16:V65) -> 11600000 | W15: =SUM(W16:W65) -> 217200 | X15: 337035 | Y15: 554235 | Z15: 0
B16: 0.25 | C16: Program Manager | D16: 20000 | E16: 16000 | F16: =SUM(D16:E16) -> 36000 | G16: 1 | H16: Home Energy Reports Electric | I16: 241.4 | J16: kWh | K16: per home | L16: 3.38 | M16: 3.38 | N16: 1 | O16: 2 | P16: Res Lighting | Q16: 40000 | S16: =SUM(Q16:R16) -> 40000 | T16: 11600000 | U16: =R16*I16 -> 0 | V16: =SUM(T16:U16) -> 11600000 | W16: 217200 | X16: =R16*M16 -> 0 | Y16: =SUM(W16:X16) -> 217200
B17: 0.06 | C17: Market Manager | D17: 4800 | E17: 800 | F17: =SUM(D17:E17) -> 5600 | G17: 2 | H17: Home Energy Reports Electric Year 2 | I17: 0 | J17: kWh | K17: per home | L17: 3.75 | M17: 3.75 | N17: 0 | O17: 2 | P17: Res Lighting | R17: 89876 | S17: =SUM(Q17:R17) -> 89876 | T17: 0 | U17: =R17*I17 -> 0 | V17: =SUM(T17:U17) -> 0 | W17: 0 | X17: =R17*M17 -> 337035 | Y17: =SUM(W17:X17) -> 337035
C18: Marketing Labor | E18: 4000 | F18: 4000 | G18: 3
F19: 0 | G19: 4
B20: =SUM(B16:B19) -> 0.31 | G20: 5
B21: FTE | C21: MARKETING LABOR | D21: =SUM(D22:D25) -> 4000 | E21: =SUM(E22:E25) -> 0 | F21: =D21+E21 -> 4000 | G21: 6
C22: Marketing Manager | D22: 4000 | E22: 0 | F22: =SUM(D22:E22) -> 4000 | G22: 7
F23: 0 | G23: 8
F24: 0 | G24: 9
F25: 0 | G25: 10
B26: =SUM(B22:B25) -> 0 | G26: 11
C27: TOTAL OVERHEAD | D27: =SUM(D29:D31)+SUM(D33:D35) -> 26726.4 | E27: =SUM(E29:E31)+SUM(E33:E35) -> 18990.4 | F27: =D27+E27 -> 45716.8 | G27: 12
C28: Labor Overhead Rate | D28: ='Global Figures Reference'!$D$5 -> 0.688 | E28: ='Global Figures Reference'!$E$5 -> 0.683 | G28: 13
C29: Program Staff Overhead | D29: =D15*D28 -> 17062.4 | E29: =E15*E28 -> 14206.4 | F29: =SUM(D29:E29) -> 31268.8 | G29: 14
C30: Marketing Staff Overhead | D30: =D21*D28 -> 2752 | E30: =E21*E28 -> 0 | F30: 2752 | G30: 15
F31: 0 | G31: 16
C32: Micro Overhead Rate | D32: ='Global Figures Reference'!$D$6 -> 0.24 | E32: ='Global Figures Reference'!$E$6 -> 0.23 | G32: 17
C33: Program Staff Overhead | D33: =D15*D32 -> 5952 | E33: =E15*E32 -> 4784 | F33: =SUM(D33:E33) -> 10736 | G33: 18
A34: Home Energy Reports | C34: Marketing Staff Overhead | D34: =D21*D32 -> 960 | E34: =E21*E32 -> 0 | F34: =SUM(D34:E34) -> 960 | G34: 19
A35: Schedule 214 | F35: 0 | G35: 20
A36: Order Number | G36: 21
A37: 18230461 | C37: MARKETING | D37: =SUM(D38:D41) -> 15381.33 | E37: =SUM(E38:E41) -> 0 | F37: =D37+E37 -> 15381.33 | G37: 22
A38: Electric | C38: Marketing Modules | D38: 15381.33 | E38: 0 | F38: =SUM(D38:E38) -> 15381.33 | G38: 23
F39: 0 | G39: 24
F40: 0 | G40: 25
F41: 0 | G41: 26
G42: 27
C43: EMPLOYEE/OFFICE EXPENSES | D43: =SUM(D44:D47) -> 600 | E43: =SUM(E44:E47) -> 600 | F43: =D43+E43 -> 1200 | G43: 28
C44: Employee Expense Budget | D44: 500 | E44: 500 | F44: =SUM(D44:E44) -> 1000 | G44: 29
C45: Phone Expense, office supplies | D45: 100 | E45: 100 | F45: 200 | G45: 30
F46: 0 | G46: 31
F47: 0 | G47: 32
G48: 33
C49: OUTSIDE SERVICES | D49: =SUM(D50:D53) -> 100250 | E49: =SUM(E50:E53) -> 337117.16 | F49: =D49+E49 -> 437367.16 | G49: 34
C50: Oracle | D50: 100250 | E50: 337117.16 | F50: =SUM(D50:E50) -> 437367.16 | G50: 35
F51: 0 | G51: 36
F52: 0 | G52: 37
F53: 0 | G53: 38
G54: 39
C55: MATERIALS | D55: =SUM(D56:D59) -> 100 | E55: =SUM(E56:E59) -> 100 | F55: =D55+E55 -> 200 | G55: 40
C56: Materials | D56: 100 | E56: 100 | F56: =SUM(D56:E56) -> 200 | G56: 41
F57: 0 | G57: 42
F58: 0 | G58: 43
F59: 0 | G59: 44
G60: 45
C61: MISCELLANEOUS | D61: =SUM(D62:D65) -> 150 | E61: =SUM(E62:E65) -> 150 | F61: =D61+E61 -> 300 | G61: 46
C62: Misc. | D62: 150 | E62: 150 | F62: =SUM(D62:E62) -> 300 | G62: 47
F63: 0 | G63: 48
A64: Home Energy Reports | F64: 0 | G64: 49
A65: Schedule 214 | F65: 0 | G65: 50
A66: Order Number
A67: 18230461 | C67: DIRECT BENEFIT TO CUSTOMER | D67: =W15 -> 217200 | E67: =X15 -> 337035 | F67: =D67+E67 -> 554235
A68: Electric | C68: Ratio | D68: =D67/D12 -> 0.5580567477 | E68: =E67/E12 -> 0.4715144209
C70: REVENUE | D70: 0 | E70: 0 | F70: 0

Sheet SFNC Detail_REM E215 Elec
C1: Single Family New Construction | D1: Schedule 215 | E1: Order Number | F1: 18230405 | G1: Electric | M1: Single Family New Construction | N1: Schedule 215 | O1: Order Number | P1: 18230405 | Q1: Electric | V1: Single Family New Construction | W1: Schedule 215 | X1: Order Number | Y1: 18230405
D2: This table summarizes the subtotals in the detail table below and is used to populate 2019 Sector view tables (located at the front of this workbook).
A3: Single Family New Construction | D3: Program Labor | E3: Marketing Labor | F3: Overhead | G3: Marketing | H3: Employee/Office Expense | I3: Outside Services | J3: Materials | K3: Miscellaneous | L3: DBtC | M3: Revenue | N3: Total Budget | O3: Total Savings
A4: Schedule 215 | C4: 2018 (Reference only) | D4: 13600 | E4: 4000 | F4: 16332.8 | G4: 4000 | H4: 1000 | I4: 0 | J4: 0 | K4: 0 | L4: 101250 | M4: 0 | N4: 140182.8 | O4: 193068
A5: Order Number | C5: Original 2019 figures | D5: =D15 -> 13600 | E5: =D21 -> 4000 | F5: =D27 -> 16332.8 | G5: =D37 -> 4000 | H5: =D43 -> 1000 | I5: =D49 -> 0 | J5: =D55 -> 0 | K5: =D61 -> 0 | L5: =D67 -> 101250 | M5: =D70 -> 0 | N5: =SUM(D5:M5) -> 140182.8 | O5: =T15 -> 193068
A6: 18230405 | C6: 2019 (Updated for 2019 ACP) | D6: =E15 -> 17600 | E6: =E21 -> 0 | F6: =E27 -> 16068.8 | G6: =E37 -> 10000 | H6: =E43 -> 1000 | I6: =E49 -> 0 | J6: =E55 -> 0 | K6: =E61 -> 0 | L6: =E67 -> 142750 | M6: =E68 -> 0 | N6: =SUM(D6:M6) -> 187418.8 | O6: =U15 -> 285543
A7: Electric
H8: All measure cost, incentive and savings figures are based on updated 2019 data. Highlighted cells indicate revisions from values presented in the 2018-2019 BCP. Lined-out measures are retired for 2019.
C10: Spending Section | H10: Savings Section | W10: Savings Section
C12: Overall Total | D12: =D15+D21+D27+D37+D43+D49+D55+D61+D67 -> 140182.8 | E12: =E15+E21+E27+E37+E43+E49+E55+E61+E67 -> 187418.8 | F12: =D12+E12 -> 327601.6 | H12: Measure Information | Q12: Unit Totals | T12: Projected Savings | W12: Incentive Totals
H13: Measure Name | I13: Savings | J13: UOM | K13: Unit Type | L13: Measure Cost | M13: Incentive | N13: Support % | O13: Measure Life | P13: End Use | Q13: 2018 | R13: 2019 | S13: Combined | T13: 2018 | U13: 2019 | V13: Combined | W13: 2018 | X13: 2019 | Y13: Combined | Z13: First year NEBs
C14: Budget Category | D14: 2018 | E14: 2019 | F14: Total | H14: i | I14: i | K14: i | L14: i | M14: i | N14: i | O14: i | P14: i | Q14: i | R14: i
B15: FTE | C15: PROGRAM LABOR | D15: =SUM(D16:D19) -> 13600 | E15: =SUM(E16:E19) -> 17600 | F15: =D15+E15 -> 31200 | H15: TOTALS g | L15: 0 | M15: 0 | O15: N/A | T15: =SUM(T16:T65) -> 193068 | U15: =SUM(U16:U65) -> 285543 | V15: =SUM(V16:V65) -> 478611 | W15: =SUM(W16:W65) -> 101250 | X15: 142750 | Y15: 244000
B16: 0.03 | C16: Market Manager | D16: 2400 | E16: 2400 | F16: =SUM(D16:E16) -> 4800 | G16: 1 | H16: BuiltGreen 4-Star All Electric | I16: 3083 | J16: kWh | K16: per home | L16: 5354.04 | M16: 1500 | N16: 0.5980522619 | O16: 36 | P16: SF Heat Pump | Q16: 39 | R16: 65 | S16: =Q16+R16 -> 104 | T16: 112437 | U16: =R16*I16 -> 200395 | V16: =T16+U16 -> 312832 | W16: 58500 | X16: =R16*M16 -> 97500 | Y16: =W16+X16 -> 156000 | Z16: 36.68
B17: 0.14 | C17: Program Manager | D17: 11200 | E17: 11200 | F17: =SUM(D17:E17) -> 22400 | G17: 2 | H17: BuiltGreen 5-Star All Electric | I17: 4974 | J17: kWh | K17: per home | L17: 5999.93 | M17: 2000 | N17: 0.3792726767 | O17: 33 | P17: SF Heat Pump | Q17: 16 | R17: 15 | S17: =Q17+R17 -> 31 | T17: 76384 | U17: =R17*I17 -> 74610 | V17: =T17+U17 -> 150994 | W17: 32000 | X17: =R17*M17 -> 30000 | Y17: =W17+X17 -> 62000 | Z17: 36.68
C18: Marketing Labor | E18: 4000 | F18: 4000 | G18: 3 | H18: BuiltGreen 4-Star Dual Fuel | I18: 514 | J18: kWh | K18: per home | L18: 2155 | M18: 750 | N18: 0.00725601965 | O18: 36 | P18: Res Lighting | Q18: 5 | R18: 7 | S18: =Q18+R18 -> 12 | T18: 1370 | U18: =R18*I18 -> 3598 | V18: =T18+U18 -> 4968 | W18: 3750 | X18: =R18*M18 -> 5250 | Y18: =W18+X18 -> 9000 | Z18: 36.68
F19: 0 | G19: 4 | H19: BuiltGreen 5-Star Dual Fuel | I19: 694 | J19: kWh | K19: per home | L19: 6443 | M19: 1000 | N19: 0.01541904176 | O19: 33 | P19: Res Lighting | Q19: 7 | R19: 10 | S19: 17 | T19: 2877 | U19: 6940 | V19: 9817 | W19: 7000 | X19: 10000 | Y19: 17000 | Z19: 36.68
B20: =SUM(B16:B19) -> 0.17 | G20: 5
B21: FTE | C21: MARKETING LABOR | D21: =SUM(D22:D25) -> 4000 | E21: =SUM(E22:E25) -> 0 | F21: =D21+E21 -> 4000 | G21: 6
B22: 0.05 | D22: 4000 | E22: 0 | F22: =SUM(D22:E22) -> 4000 | G22: 7
F23: 0 | G23: 8
F24: 0 | G24: 9
F25: 0 | G25: 10
B26: =SUM(B22:B25) -> 0.05 | G26: 11
C27: TOTAL OVERHEAD | D27: =SUM(D29:D31)+SUM(D33:D35) -> 16332.8 | E27: =SUM(E29:E31)+SUM(E33:E35) -> 16068.8 | F27: =D27+E27 -> 32401.6 | G27: 12
C28: Labor Overhead Rate | D28: ='Global Figures Reference'!$D$5 -> 0.688 | E28: ='Global Figures Reference'!$E$5 -> 0.683 | G28: 13
C29: Program Staff Overhead | D29: =D15*D28 -> 9356.8 | E29: =E15*E28 -> 12020.8 | F29: =SUM(D29:E29) -> 21377.6 | G29: 14
C30: Marketing Staff Overhead | D30: =D21*D28 -> 2752 | E30: =E21*E28 -> 0 | F30: 2752 | G30: 15
F31: 0 | G31: 16
C32: Micro Overhead Rate | D32: ='Global Figures Reference'!$D$6 -> 0.24 | E32: ='Global Figures Reference'!$E$6 -> 0.23 | G32: 17
C33: Program Staff Overhead | D33: =D15*D32 -> 3264 | E33: =E15*E32 -> 4048 | F33: =SUM(D33:E33) -> 7312 | G33: 18
A34: Single Family New Construction | C34: Marketing Staff Overhead | D34: =D21*D32 -> 960 | E34: =E21*E32 -> 0 | F34: =SUM(D34:E34) -> 960 | G34: 19
A35: Schedule 215 | F35: 0 | G35: 20
A36: Order Number | G36: 21
A37: 18230405 | C37: MARKETING | D37: =SUM(D38:D41) -> 4000 | E37: =SUM(E38:E41) -> 10000 | F37: =D37+E37 -> 14000 | G37: 22
A38: Electric | C38: Materials | D38: 4000 | E38: 2000 | F38: =SUM(D38:E38) -> 6000 | G38: 23
C39: Sponsorships | E39: 8000 | F39: 8000 | G39: 24
F40: 0 | G40: 25
F41: 0 | G41: 26
G42: 27
C43: EMPLOYEE/OFFICE EXPENSES | D43: =SUM(D44:D47) -> 1000 | E43: =SUM(E44:E47) -> 1000 | F43: =D43+E43 -> 2000 | G43: 28
C44: Trainings, Bus Passes, Travel, Fleet | D44: 1000 | E44: 1000 | F44: =SUM(D44:E44) -> 2000 | G44: 29
F45: 0 | G45: 30
F46: 0 | G46: 31
F47: 0 | G47: 32
G48: 33
C49: OUTSIDE SERVICES | D49: =SUM(D50:D53) -> 0 | E49: =SUM(E50:E53) -> 0 | F49: =D49+E49 -> 0 | G49: 34
F50: =SUM(D50:E50) -> 0 | G50: 35
F51: 0 | G51: 36
F52: 0 | G52: 37
F53: 0 | G53: 38
G54: 39
C55: MATERIALS | D55: =SUM(D56:D59) -> 0 | E55: =SUM(E56:E59) -> 0 | F55: =D55+E55 -> 0 | G55: 40
F56: =SUM(D56:E56) -> 0 | G56: 41
F57: 0 | G57: 42
F58: 0 | G58: 43
F59: 0 | G59: 44
G60: 45
C61: MISCELLANEOUS | D61: =SUM(D62:D65) -> 0 | E61: =SUM(E62:E65) -> 0 | F61: =D61+E61 -> 0 | G61: 46
F62: =SUM(D62:E62) -> 0 | G62: 47
F63: 0 | G63: 48
A64: Single Family New Construction | F64: 0 | G64: 49
A65: Schedule 215 | F65: 0 | G65: 50
A66: Order Number
A67: 18230405 | C67: DIRECT BENEFIT TO CUSTOMER | D67: =W15 -> 101250 | E67: =X15 -> 142750 | F67: =D67+E67 -> 244000
A68: Electric | C68: Ratio
C70: REVENUE | D70: 0 | E70: 0 | F70: 0

Sheet NCMfgHome Detail_REM E215 Elec
C1: Energy Star Manufactured Home | D1: Schedule 215 | E1: Order Number | F1: 18230071 | G1: Electric | M1: Energy Star Manufactured Home | N1: Schedule 215 | O1: Order Number | P1: 18230071 | Q1: Electric | V1: Energy Star Manufactured Home | W1: Schedule 215 | X1: Order Number | Y1: 18230071 | Z1: Electric
D2: This table summarizes the subtotals in the detail table below and is used to populate 2019 Sector view tables (located at the front of this workbook).
A3: Energy Star Manufactured Home | D3: Program Labor | E3: Marketing Labor | F3: Overhead | G3: Marketing | H3: Employee/Office Expense | I3: Outside Services | J3: Materials | K3: Miscellaneous | L3: DBtC | M3: Revenue | N3: Total Budget | O3: Total Savings
A4: Schedule 215 | C4: 2018 (Reference only) | D4: 10400 | E4: 2400 | F4: 11878.4 | G4: 15500 | H4: 500 | I4: 1500 | J4: 500 | K4: 0 | L4: 27500 | M4: 0 | N4: 70178.4 | O4: 61210
A5: Order Number | C5: Original 2019 figures | D5: =D15 -> 10400 | E5: =D21 -> 2400 | F5: =D27 -> 11878.4 | G5: =D37 -> 15500 | H5: =D43 -> 500 | I5: =D49 -> 1500 | J5: =D55 -> 500 | K5: =D61 -> 0 | L5: =D67 -> 27500 | M5: =D70 -> 0 | N5: =SUM(D5:M5) -> 70178.4 | O5: =T15 -> 61210
A6: 18230071 | C6: 2019 (Updated for 2019 ACP) | D6: =E15 -> 12800 | E6: =E21 -> 0 | F6: =E27 -> 11686.4 | G6: =E37 -> 16000 | H6: =E43 -> 500 | I6: =E49 -> 1500 | J6: =E55 -> 500 | K6: =E61 -> 0 | L6: =E67 -> 42500 | M6: =E70 -> 0 | N6: =SUM(D6:M6) -> 85486.4 | O6: =U15 -> 95695
A7: Electric
H8: All measure cost, incentive and savings figures are based on updated 2019 data. Highlighted cells indicate revisions from values presented in the 2018-2019 BCP. Lined-out measures are retired for 2019.
C10: Spending Section | H10: Savings Section | W10: Savings Section | Z10: Savings Section
C12: Overall Total | D12: =D15+D21+D27+D37+D43+D49+D55+D61+D67 -> 70178.4 | E12: =E15+E21+E27+E37+E43+E49+E55+E61+E67 -> 85486.4 | F12: =D12+E12 -> 155664.8 | H12: Measure Information | Q12: Unit Totals | T12: Projected Savings | W12: Incentive Totals | Z12: First-year NEBs per unit
H13: Measure Name | I13: Savings | J13: UOM | K13: Unit Type | L13: Measure Cost | M13: Incentive | N13: Support % | O13: Measure Life | P13: End Use | Q13: 2018 | R13: 2019 | S13: Combined | T13: 2018 | U13: 2019 | V13: Combined | W13: 2018 | X13: 2019 | Y13: Combined
C14: Budget Category | D14: 2018 | E14: 2019 | F14: Total | H14: i | I14: i | K14: i | L14: i | M14: i | N14: i | O14: i | P14: i | Q14: i | R14: i | Z14: i
B15: FTE | C15: PROGRAM LABOR | D15: =SUM(D16:D19) -> 10400 | E15: =SUM(E16:E19) -> 12800 | F15: =D15+E15 -> 23200 | H15: TOTALS g | L15: 0 | M15: 0 | O15: N/A | T15: =SUM(T16:T65) -> 61210 | U15: =SUM(U16:U65) -> 95695 | V15: =SUM(V16:V65) -> 156905 | W15: =SUM(W16:W65) -> 27500 | X15: =SUM(X16:X65) -> 42500 | Y15: 70000 | Z15: 0
B16: 0.03 | C16: Market Manager | D16: 2400 | E16: 2400 | F16: =SUM(D16:E16) -> 4800 | G16: 1 | H16: Estar Manufactured Home (NEEM 1.1) | I16: 2299 | J16: kWh | K16: per home | L16: 2441.7 | M16: 1000 | N16: 0.716 | O16: 45 | Q16: 20 | R16: 35 | S16: =Q16+R16 -> 55 | T16: 45980 | U16: =R16*I16 -> 80465 | V16: =T16+U16 -> 126445 | W16: 20000 | X16: =R16*M16 -> 35000 | Y16: =W16+X16 -> 55000 | Z16: 15.57
B17: 0.1 | C17: Program Manager | D17: 8000 | E17: 8000 | F17: =SUM(D17:E17) -> 16000 | G17: 2 | H17: Estar w/ NEEM+ (NEEM 2.0) | I17: 3046 | J17: kWh | K17: per home | L17: 4054.73 | M17: 1500 | N17: 0.284 | O17: 45 | Q17: 5 | R17: 5 | S17: =Q17+R17 -> 10 | T17: 15230 | U17: =R17*I17 -> 15230 | V17: =T17+U17 -> 30460 | W17: 7500 | X17: =R17*M17 -> 7500 | Y17: =W17+X17 -> 15000 | Z17: 18.19
C18: Marketing Labor | E18: 2400 | F18: 2400 | G18: 3
F19: 0 | G19: 4
G20: 5
B21: FTE | C21: MARKETING LABOR | D21: =SUM(D22:D25) -> 2400 | E21: =SUM(E22:E25) -> 0 | F21: =D21+E21 -> 2400 | G21: 6
B22: 0.03 | D22: 2400 | E22: 0 | F22: =SUM(D22:E22) -> 2400 | G22: 7
F23: 0 | G23: 8
F24: 0 | G24: 9
F25: 0 | G25: 10
G26: 11
C27: TOTAL OVERHEAD | D27: =SUM(D29:D31)+SUM(D33:D35) -> 11878.4 | E27: =SUM(E29:E31)+SUM(E33:E35) -> 11686.4 | F27: =D27+E27 -> 23564.8 | G27: 12
C28: Labor Overhead Rate | D28: ='Global Figures Reference'!$D$5 -> 0.688 | E28: ='Global Figures Reference'!$E$5 -> 0.683 | G28: 13
C29: Program Staff Overhead | D29: =D15*D28 -> 7155.2 | E29: =E15*E28 -> 8742.4 | F29: =SUM(D29:E29) -> 15897.6 | G29: 14
C30: Marketing Staff Overhead | D30: =D21*D28 -> 1651.2 | E30: =E21*E28 -> 0 | F30: 1651.2 | G30: 15
F31: 0 | G31: 16
C32: Micro Overhead Rate | D32: ='Global Figures Reference'!$D$6 -> 0.24 | E32: ='Global Figures Reference'!$E$6 -> 0.23 | G32: 17
C33: Program Staff Overhead | D33: =D15*D32 -> 2496 | E33: =E15*E32 -> 2944 | F33: =SUM(D33:E33) -> 5440 | G33: 18
A34: Energy Star Manufactured Home | C34: Marketing Staff Overhead | D34: =D21*D32 -> 576 | E34: =E21*E32 -> 0 | F34: =SUM(D34:E34) -> 576 | G34: 19
A35: Schedule 215 | F35: 0 | G35: 20
A36: Order Number | G36: 21
A37: 18230071 | C37: MARKETING | D37: =SUM(D38:D41) -> 15500 | E37: =SUM(E38:E41) -> 16000 | F37: =D37+E37 -> 31500 | G37: 22
A38: Electric | C38: Materials | D38: 10000 | E38: 5000 | F38: =SUM(D38:E38) -> 15000 | G38: 23
C39: NEEM 1.1 Spiff | D39: 4000 | E39: 8000 | F39: 12000 | G39: 24
C40: NEEM 2.0 Spiff | D40: 1500 | E40: 3000 | F40: 4500 | G40: 25
F41: 0 | G41: 26
G42: 27
C43: EMPLOYEE/OFFICE EXPENSES | D43: =SUM(D44:D47) -> 500 | E43: =SUM(E44:E47) -> 500 | F43: =D43+E43 -> 1000 | G43: 28
C44: Trainings, Bus Passes, Travel, Fleet | D44: 500 | E44: 500 | F44: =SUM(D44:E44) -> 1000 | G44: 29
F45: 0 | G45: 30
F46: 0 | G46: 31
F47: 0 | G47: 32
G48: 33
C49: OUTSIDE SERVICES | D49: =SUM(D50:D53) -> 1500 | E49: =SUM(E50:E53) -> 1500 | F49: =D49+E49 -> 3000 | G49: 34
C50: Lead Generation | D50: 1500 | E50: 1500 | F50: =SUM(D50:E50) -> 3000 | G50: 35
F51: 0 | G51: 36
F52: 0 | G52: 37
F53: 0 | G53: 38
G54: 39
C55: MATERIALS | D55: =SUM(D56:D59) -> 500 | E55: =SUM(E56:E59) -> 500 | F55: =D55+E55 -> 1000 | G55: 40
C56: Office Supplies, Printing, Phones, etc. | D56: 500 | E56: 500 | F56: =SUM(D56:E56) -> 1000 | G56: 41
F57: 0 | G57: 42
F58: 0 | G58: 43
F59: 0 | G59: 44
G60: 45
C61: MISCELLANEOUS | D61: =SUM(D62:D65) -> 0 | E61: =SUM(E62:E65) -> 0 | F61: =D61+E61 -> 0 | G61: 46
F62: =SUM(D62:E62) -> 0 | G62: 47
F63: 0 | G63: 48
A64: Energy Star Manufactured Home | F64: 0 | G64: 49
A65: Schedule 215 | F65: 0 | G65: 50
A66: Order Number
A67: 18230071 | C67: DIRECT BENEFIT TO CUSTOMER | D67: =W15 -> 27500 | E67: =X15 -> 42500 | F67: =D67+E67 -> 70000
A68: Electric | C68: Ratio
C70: REVENUE | D70: 0 | E70: 0 | F70: 0

Sheet MF Retr Detail_REM E217 Elec
C1: Multi-Family Retrofit | D1: Schedule 217 | E1: Order Number | F1: 18230407 | G1: Electric | M1: Multi-Family Retrofit | N1: Schedule 217 | O1: Order Number | P1: 18230407 | Q1: Electric | V1: Multi-Family Retrofit | W1: Schedule 217 | X1: Order Number | Y1: 18230407 | Z1: Electric
D2: This table summarizes the subtotals in the detail table below and is used to populate 2019 Sector view tables (located at the front of this workbook).
A3: Multi-Family Retrofit | D3: Program Labor | E3: Marketing Labor | F3: Overhead | G3: Marketing | H3: Employee/Office Expense | I3: Outside Services | J3: Materials | K3: Miscellaneous | L3: DBtC | M3: Revenue | N3: Total Budget | O3: Total Savings
A4: Schedule 217 | C4: 2018 (Reference only) | D4: 144900 | E4: 43200 | F4: 174556.8 | G4: 67500 | H4: 4000 | I4: 1492000 | J4: 1000 | K4: 1000 | L4: 8457598.045 | M4: 0 | N4: 10385754.85 | O4: 17569035.03
A5: Order Number | C5: Original 2019 figures | D5: =D15 -> 144900 | E5: =D22 -> 43200 | F5: =D28 -> 174556.8 | G5: =D38 -> 67500 | H5: =D44 -> 4000 | I5: =D50 -> 1492000 | J5: =D56 -> 1000 | K5: =D62 -> 1000 | L5: =D68 -> 8457598.045 | M5: =D71 -> 0 | N5: =SUM(D5:M5) -> 10385754.85 | O5: =U15 -> 17569035.03
A6: 18230407 | C6: 2019 (Updated for 2019 ACP) | D6: =E15 -> 188100 | E6: =E22 -> 0 | F6: =E28 -> 171735.3 | G6: =E38 -> 67500 | H6: =E44 -> 4000 | I6: =E50 -> 1200000 | J6: =E56 -> 1000 | K6: =E62 -> 1000 | L6: =E68 -> 7681871.625 | M6: =E71 -> 0 | N6: =SUM(D6:M6) -> 9315206.925 | O6: =V15 -> 14728652
A7: Electric
H8: All measure cost, incentive and savings figures are based on updated 2019 data. Highlighted cells indicate revisions from values presented in the 2018-2019 BCP. Lined-out measures are retired for 2019.
C10: Spending Section | H10: Savings Section | W10: Savings Section | Z10: Savings Section
C12: Overall Total | D12: =D15+D22+D28+D38+D44+D50+D56+D62+D68 -> 10385754.85 | E12: =E15+E22+E28+E38+E44+E50+E56+E62+E68 -> 9315206.925 | F12: =D12+E12 -> 19700961.77 | H12: Measure Information | R12: Unit Totals | U12: Projected Savings | X12: Incentive Totals | AA12: 1st Year
H13: Measure Name | I13: Savings | J13: UOM | K13: Unit Type | L13: Dual Fuel? | M13: Measure Cost | N13: Incentive | O13: Support % | P13: Measure Life | Q13: End Use | R13: 2018 | S13: 2019 | T13: Combined | U13: 2018 | V13: 2019 | W13: Combined | X13: 2018 | Y13: 2019 | Z13: Combined | AA13: NEBs per Unit
C14: Budget Category | D14: 2018 | E14: 2019 | F14: Total | H14: i | I14: i | K14: i | M14: i | N14: i | O14: i | P14: i | Q14: i | R14: i | S14: i | AA14: i
B15: FTE | C15: PROGRAM LABOR | D15: =SUM(D16:D20) -> 144900 | E15: =SUM(E16:E20) -> 188100 | F15: =D15+E15 -> 333000 | H15: TOTALS g | M15: 23616009.49 | N15: =SUM(N16:N72) -> 38961.535 | P15: 18 | U15: =SUM(U16:U133) -> 17569035.03 | V15: =SUM(V16:V133) -> 14728652 | W15: 32297687.03 | X15: 8457598.045 | Y15: 7681871.625 | Z15: 16139469.67 | AA15: 0
B16: 0.45 | C16: Market Manager | D16: 36000 | E16: 36000 | F16: =SUM(D16:E16) -> 72000 | G16: 1 | H16: Advanced Power Strip (home office) - Direct Install | J16: kWh | K16: per unit | L16: No | O16: 0.01126493904 | R16: 800 | S16: 0 | T16: =SUM(R16:S16) -> 800 | U16: 190400 | V16: =S16*I16 -> 0 | W16: =SUM(U16:V16) -> 190400 | X16: 53920 | Y16: =S16*N16 -> 0 | Z16: =SUM(X16:Y16) -> 53920 | AA16: 0
B17: 0.8 | C17: Program Manager | D17: 64000 | E17: 64000 | F17: =SUM(D17:E17) -> 128000 | G17: 2 | H17: Advanced Power Strip (IR) - Direct Install bluetooth | J17: kWh | K17: per unit | L17: No | O17: 0.006271447155 | R17: 1000 | S17: 0 | T17: =SUM(R17:S17) -> 1000 | U17: 106000 | V17: 0 | W17: =SUM(U17:V17) -> 106000 | X17: 55000 | Y17: =S17*N17 -> 0 | Z17: =SUM(X17:Y17) -> 55000 | AA17: 0
B18: 0.5 | C18: Program Implementer | D18: 22400 | E18: 22400 | F18: 44800 | G18: 3 | H18: Aerator - 1.0 gpm EWH - Direct Install - bathroom | I18: 48 | J18: kWh | K18: per unit | L18: No | M18: 2 | N18: 2 | O18: 0.005464678727 | P18: 10 | Q18: Res Water Heat | R18: 1200 | S18: 2000 | T18: 3200 | U18: 92364 | V18: 96000 | W18: =SUM(U18:V18) -> 188364 | X18: 2400 | Y18: 4000 | Z18: 6400 | AA18: 4.32
